Workbook

Sheet Instrucciones
B2: 1.- INTRODUCCIÓN DE DATOS | H2: Autor: Oscar Redondo Rivera. o.redondo.rivera@gmail.com
B4: Tan solo es necesario introducir datos en las casillas en color blanco. | J4: Versión 3.9 Febrero 2018
B5: Las celdas en color azul con letra blanca señalan los datos que deben aportarse para el calculo
B6: Las celdas en color azul claro con letra negra indican los datos que son calculados de forma automática
I8: Nota: La presente aplicación se proporciona bajo una licencia Creative Commons "tal cual", sin garantías implícitas o explícitas. Bajo ninguna circunstancia el autor se responsabiliza de su uso.
B14: 2.- DATOS DE RADIACIÓN SOLAR
B16: Se ofrecen dos posibilidades:
B17: a) Atlas de radiación solar 2012 de AEMET. Empleado por el CTE-HE4 para establecer las zonas de radiación solar (opción por defecto)
B18: b) Datos de radición solar del Pliego de Instalaciones solares de baja temperatura del IDAE, más conservadoras que las anteriores
B20: 3.- ESTABLECER LA DEMANDA DE ACS SEGÚN CTE HE4 2013
B22: En primer lugar se establece como demnada principal la correspondiente a viviendas,
B23: indicando el número de viviendas de que existen y su número de dormitorios
B24: Se complementa la demanda con otros usos del edificio y se indica si el sistema de acumulación será centralizado o individual en cada vivienda
B40: 4.- AJUSTE DEL VOLUMEN EL NÚMERO DE PANELES SOLARES
B42: La selección del captador solar desde el catalogos de la aplicación
B43: Es posible añadir nuevos equipos a la herramienta tan solo introduciendo sus caracteristicas en los listados
B44: El ajuste del nº de paneles se realiza desde el cursor que actualiza de forma automatica el calculo y la gráfica de aporte solar
B63: 5.- AJUSTE DEL VOLUMEN DE ACUMULACIÓN
B65: Selección del volumen de acumulación, para lo que se aportarán datos del volumen óptimo, mínimo y máximo según el número de
B66: paneles solares que se haya selccinado en el apartado anterior
B67: En la parte inferior se selecciona el método de disipación, bien mediante aerotermo (dispador dinámico) o drain back
B86: 6.- SOMBRAS
B88: En la pestaña "Sombras" se dispone de las herramientas para establecer los perfiles de obstrucción solar sobre la carta solar cilíndrica
B89: La herramienta cuenta con dos perfiles de posición relativa a los paneles (peto de cubierta y obstáculo superior) en los que se pedirán las
B90: distancias relativas entre el obstáculo y los captadores. Adicionalmente se podrán incluir obstáculos genericos según su azimut (angulo respecto
B91: al sur), distancia y altura de cada uno de sus vertices.
B92: El programa analizará la obstrucción solar y determinará de forma automática los factores de corrección
B113: 7.- CALCULO DEL CIRCUITO PRIMARIO
B115: Permite el calculo del circuito primario, incluido los datos de selección del equipo de bombeo y vaso de expansión si fuera necesario
B116: El dimesionado se realiza en función del caudal de cada tramo que puede indicarse de forma directa (caudal adicional) o asociado a los
B117: paneles solares (nº de captadores a los que da servicio el tramo)
B136: INFORME DE SALIDA
B138: Informe de calculo editable que resume en una página las principales características del ssitema calculado

Sheet HE-4 SOLAR
B2: HE4 / 2013: CONTRIBUCION SOLAR MÍNIMA DE AGUA CALIENTE SANITARIA | J2: Actualizaciones y otras herramientas en:
J3: Autor: Oscar Redondo Rivera. o.redondo.rivera@gmail.com
B4: DATOS GEOGRAFICOS Y CLIMATOLÓGICOS | J4: =Instrucciones!J4 -> Versión 3.9 Febrero 2018
B6: Localidad | D6: Madrid
B7: Zona climática s/ CTE-HE4 | D7: ='Datos CTE'!C63 -> IV
B8: Zona Climática s/ CTE-HE1 | D8: =Localidades!C4 -> D3
B9: Latitud de cálculo: | D9: =IF(D11="Otra localidad (definida por usuario)",'Localidad Usuario'!D6,Localidades!C3) -> 40º
B11: Origen datos de radiación solar | D11: Atlas Radiacion solar 2012 AEMET | I11: =IF(D11='Datos SOLAR'!B9,1,0) -> 0 | J11: =IF(I11=1,"Definir datos en hoja Localidad Usuario","") -> 
D13: Enero | E13: Febrero | F13: Marzo | G13: Abril | H13: Mayo | I13: Junio | J13: Julio | K13: Agosto | L13: Sept. | M13: Oct. | N13: Nov. | O13: Dic. | P13: Anual
B14: Tª. media agua red [ºC]: | D14: =IF($I$11=0,Localidades!G4,'Localidad Usuario'!D9) -> 8.00 | E14: =IF($I$11=0,Localidades!H4,'Localidad Usuario'!E9) -> 8.00 | F14: =IF($I$11=0,Localidades!I4,'Localidad Usuario'!F9) -> 10.00 | G14: =IF($I$11=0,Localidades!J4,'Localidad Usuario'!G9) -> 12.00 | H14: =IF($I$11=0,Localidades!K4,'Localidad Usuario'!H9) -> 14.00 | I14: =IF($I$11=0,Localidades!L4,'Localidad Usuario'!I9) -> 17.00 | J14: =IF($I$11=0,Localidades!M4,'Localidad Usuario'!J9) -> 20.00 | K14: =IF($I$11=0,Localidades!N4,'Localidad Usuario'!K9) -> 19.00 | L14: =IF($I$11=0,Localidades!O4,'Localidad Usuario'!L9) -> 17.00 | M14: =IF($I$11=0,Localidades!P4,'Localidad Usuario'!M9) -> 13.00 | N14: =IF($I$11=0,Localidades!Q4,'Localidad Usuario'!N9) -> 10.00 | O14: =IF($I$11=0,Localidades!R4,'Localidad Usuario'!O9) -> 8.00 | P14: =SUM(D14:O14)/12 -> 13.00
B15: Tª. media mensual en horas diurnas [ºC]: | D15: =IF($I$11=0,Localidades!G8,'Localidad Usuario'!D10) -> 6.00 | E15: =IF($I$11=0,Localidades!H8,'Localidad Usuario'!E10) -> 8.00 | F15: =IF($I$11=0,Localidades!I8,'Localidad Usuario'!F10) -> 11.00 | G15: =IF($I$11=0,Localidades!J8,'Localidad Usuario'!G10) -> 13.00 | H15: =IF($I$11=0,Localidades!K8,'Localidad Usuario'!H10) -> 18.00 | I15: =IF($I$11=0,Localidades!L8,'Localidad Usuario'!I10) -> 23.00 | J15: =IF($I$11=0,Localidades!M8,'Localidad Usuario'!J10) -> 28.00 | K15: =IF($I$11=0,Localidades!N8,'Localidad Usuario'!K10) -> 26.00 | L15: =IF($I$11=0,Localidades!O8,'Localidad Usuario'!L10) -> 21.00 | M15: =IF($I$11=0,Localidades!P8,'Localidad Usuario'!M10) -> 15.00 | N15: =IF($I$11=0,Localidades!Q8,'Localidad Usuario'!N10) -> 11.00 | O15: =IF($I$11=0,Localidades!R8,'Localidad Usuario'!O10) -> 7.00 | P15: =SUM(D15:O15)/12 -> 15.58
B16: Rad. horiz. [MJ/m2 día]: | D16: =IF($I$11=0,VLOOKUP($D$11,'Datos SOLAR'!$B$7:$N$9,'Datos SOLAR'!C5,FALSE),'Localidad Usuario'!D11) -> 8.18 | E16: =IF($I$11=0,VLOOKUP($D$11,'Datos SOLAR'!$B$7:$N$9,'Datos SOLAR'!D5,FALSE),'Localidad Usuario'!E11) -> 11.72 | F16: =IF($I$11=0,VLOOKUP($D$11,'Datos SOLAR'!$B$7:$N$9,'Datos SOLAR'!E5,FALSE),'Localidad Usuario'!F11) -> 16.76 | G16: =IF($I$11=0,VLOOKUP($D$11,'Datos SOLAR'!$B$7:$N$9,'Datos SOLAR'!F5,FALSE),'Localidad Usuario'!G11) -> 20.73 | H16: =IF($I$11=0,VLOOKUP($D$11,'Datos SOLAR'!$B$7:$N$9,'Datos SOLAR'!G5,FALSE),'Localidad Usuario'!H11) -> 23.79 | I16: =IF($I$11=0,VLOOKUP($D$11,'Datos SOLAR'!$B$7:$N$9,'Datos SOLAR'!H5,FALSE),'Localidad Usuario'!I11) -> 27.90 | J16: =IF($I$11=0,VLOOKUP($D$11,'Datos SOLAR'!$B$7:$N$9,'Datos SOLAR'!I5,FALSE),'Localidad Usuario'!J11) -> 28.99 | K16: =IF($I$11=0,VLOOKUP($D$11,'Datos SOLAR'!$B$7:$N$9,'Datos SOLAR'!J5,FALSE),'Localidad Usuario'!K11) -> 25.24 | L16: =IF($I$11=0,VLOOKUP($D$11,'Datos SOLAR'!$B$7:$N$9,'Datos SOLAR'!K5,FALSE),'Localidad Usuario'!L11) -> 19.72 | M16: =IF($I$11=0,VLOOKUP($D$11,'Datos SOLAR'!$B$7:$N$9,'Datos SOLAR'!L5,FALSE),'Localidad Usuario'!M11) -> 12.83 | N16: =IF($I$11=0,VLOOKUP($D$11,'Datos SOLAR'!$B$7:$N$9,'Datos SOLAR'!M5,FALSE),'Localidad Usuario'!N11) -> 8.76 | O16: =IF($I$11=0,VLOOKUP($D$11,'Datos SOLAR'!$B$7:$N$9,'Datos SOLAR'!N5,FALSE),'Localidad Usuario'!O11) -> 6.74 | P16: =SUM(D16:O16)/12 -> 17.61
B18: CALCULO DE NECESIDADES DE ACS
B20: Tipo de edificio | D20: Viviendas | H20: Calculo del nº de ocupantes vivienda
B21: Nº personas | D21: =J22*J23+K22*K23+L22*L23+M22*M23+N22*N23+O22*O23+P22*P23 -> 93 | H21: Nº dormitorios | J21: 1D | K21: 2D | L21: 3D | M21: 4D | N21: 5D | O21: 6D | P21: >6D
B22: Consumo por ocupante | D22: =VLOOKUP($D$20,'Datos CTE'!$B$5:$D$26,2,FALSE) -> 28 l/d | H22: Nº pers (CTE) | J22: 1.5 | K22: 3 | L22: 4 | M22: 5 | N22: 6 | O22: 6 | P22: 7 | Q22: TOTAL
B23: Factor de centralización | D23: =IF(L31="Acumulación individual",1,'Datos CTE'!C54) -> 0.90 | H23: Nº viviendas | K23: 1 | L23: 5 | M23: 14 | Q23: =SUM(J23:P23) -> 20
J24: =IF(J23=0,0,J22) -> 0 | K24: =IF(K23=0,0,K22) -> 3 | L24: 4 | M24: 5 | N24: 0 | O24: 0 | P24: 0
B25: Otros usos: | D25: Administrativos | H25: Demanda de ACS viviendas | L25: =D21*D22*D23 -> 2,344 l/d
B26: Nº personas | D26: 0 | E26: =VLOOKUP(D25,'Datos CTE'!$B$5:$C$26,2,FALSE) -> 2 | H26: Demanda de ACS otros usos | L26: =D26*E26+D29*E29+D32*E32 -> 00 l/d
B28: Otros usos: | D28: Restaurantes | H28: Demanda TOTAL de ACS | L28: =L25+L26 -> 2,343.60 litros/dia de ACS a 60ºC | R28: =IF(L28<50,"<<<Demanda inferior a 50 l/d. NO ES OBLIGATORIO CTE HE4","") -> 
B29: Nº personas | D29: 0 | E29: =VLOOKUP(D28,'Datos CTE'!$B$5:$C$26,2,FALSE) -> 8
B31: Otros usos: | D31: Gimnasios | H31: Tipo de acumulación | L31: Acumulación centralizada
B32: Nº personas | D32: 0 | E32: =VLOOKUP(D31,'Datos CTE'!$B$5:$C$26,2,FALSE) -> 21 | H32: Volumen acumulacion individual | L32: =MAX(J24:P24)*28 -> 140 litros
D34: Enero | E34: Febrero | F34: Marzo | G34: Abril | H34: Mayo | I34: Junio | J34: Julio | K34: Agosto | L34: Sept. | M34: Oct. | N34: Nov. | O34: Dic. | P34: Anual
B35: % Ocupación | D35: 100% | E35: 100% | F35: 100% | G35: 100% | H35: 100% | I35: 100% | J35: 100% | K35: 100% | L35: 100% | M35: 100% | N35: 100% | O35: 100% | P35: =SUM(D35:O35)/12 -> 100%
B37: CAPTADORES. GEOMETRÍA Y CARACTERÍSTICAS | U37: =D112+E112+F112+G112 -> 0.00 | V37: =OR(U37=4,U38=4,U39=4,U40=4,U41=4) -> FALSE | W37: =IF(V37=TRUE,1,0) -> 0
U38: =E112+F112+G112+H112 -> 0.00
B39: Ángulo de inclinación ( b ) | D39: 35º | E39: optimo | F39: =D9 -> 40º | U39: =F112+G112+H112+I112 -> 0.00
B40: Azimut respecto a Sur ( a ) | D40: 40º | E40: optimo | F40: 0º | U40: =G112+H112+I112+J112 -> 0.00
B41: Nº Captadores | D41: 10 | U41: =H112+I112+J112+K112 -> 0.00
U42: =I112+J112+K112+L112 -> 0.00 | V42: =OR(U42=4,U43=4,U44=4,U45=4,U46=4) -> FALSE | W42: =IF(V42=TRUE,1,0) -> 0
B43: Contribución anual del sistema | D43: =P120 -> 45.25% | E43: Min CTE | F43: =IF(L28<50,0,'Datos CTE'!C32) -> 50% | U43: =J112+K112+L112+M112 -> 0.00
U44: =K112+L112+M112+N112 -> 0.00
B45: Marca / Modelo | D45: GREENHEISS GH Class 25V | U45: =L112+M112+N112+O112 -> 0.00
U46: =M112+N112+O112+D112 -> 0.00
B47: Número de grupos | D47: 2
A48: =IF(MOD(D48,1)>0,1,0) -> 0 | B48: Numero de paneles por grupo | D48: =D41/D47 -> 5.00 | E48: =IF(D48>10,"numero de paneles por grupo excesivo",IF(A48=1,"grupos con distinto número de paneles","")) -> 
B50: Superficie de captación del panel (m²) | D50: =VLOOKUP(D45,Captadores!$B$8:$F$58,2,FALSE) -> 2.32m² | F50: EXCESO CONTRIBUCIÓN SOLAR | U50: =N112+O112+D112+E112 -> 0.00 | V50: =OR(U50=4,U51=4) -> FALSE | W50: =IF(V50=TRUE,1,0) -> 0
B51: Longitud del panel en max. pendiente (m) | D51: =VLOOKUP(D45,Captadores!$B$8:$F$58,3,FALSE) -> 2.15m | G51: >100% max 3 meses | U51: =O112+D112+E112+F112 -> 0.00
B52: Factor de eficiencia del colector: | D52: =VLOOKUP(D45,Captadores!$B$8:$F$58,4,FALSE) -> 0.770 | G52: >110% no permitido
B53: Coeficiente global de pérdida W/(m2·ºC) | D53: =VLOOKUP(D45,Captadores!$B$8:$H$58,7,FALSE) -> 4.211
B54: Area total de captación proyectada | D54: =D50*D41 -> 23.20m² | F54: Enero | G54: Febrero | H54: Marzo | I54: Abril | J54: Mayo | K54: Junio | L54: Julio | M54: Agosto | N54: Sept. | O54: Oct. | P54: Nov. | Q54: Dic.
F55: =D129 -> 20.91% | G55: =E129 -> 30.73% | H55: 42.75% | I55: 49.37% | J55: 54.59% | K55: 64.80% | L55: 72.51% | M55: 68.10% | N55: 58.25% | O55: 39.79% | P55: 26.38% | Q55: 17.44%
B56: Factor de modificación del ángulo de incidencia | D56: 0.96 | F56: =IF(O77<>0,"« Se precisa sistema de disipación de calor","") ->  | R56: 0.94
B57: Factor de corrección captador - intercambiador | D57: 0.95 | R57: 0.96
B58: Factor de eficacia corregida del colector | D58: =D52*D56*D57 -> 0.70 | R58: 1.15
B59: Coeficiente global de pérdida corregido (KW/m²ºC) | D59: =D53*D57/1000 -> 0.0040
B61: Altura del captador (H) | D61: =D51*SIN(D39*PI()/180) -> 1.23 m
B62: Distancia mínima entre captadores o peto (D) | D62: =D61/(TAN(PI()/180*(61-D9))) -> 3.28 m
B64: VOLUMEN DE ACUMULACION Y PERDIDAS DE CIRCUITO
B66: Temperatura de acumulación ACS | D66: 60 ºC
B67: Demanda de ACS corregida | D67: =IF(D66=60,L28,L28*((60-MIN($D$14:$O$14))/(D66-MIN($D$14:$O$14)))) -> 2,344 l/d
B68: Estimación de perdidas térmicas del circuito | D68: 4%
B70: Consumo de agua a máxima ocupación | D70: =D67 -> 2344 l/d | E70: V/A= | F70: =D70/D54 -> 101
B71: Volumen de acumulación maximo | D71: =180*D50*D41 -> 4176 l | E71: Valor en función del nº de paneles relación V/A=180 | M71: =IF(D72>D71,"« Dato incorrecto. Incrementar nº de paneles","") -> 
B72: Volumen de acumulación mínimo | D72: =50*D50*D41 -> 1160 l | E72: Valor en función del nº de paneles relación V/A=50
B73: Volumen de acumulación individual | D73: =IF(L31='Tablas primario'!B13,"",'HE-4 SOLAR'!L32) ->  | E73: =IF(L31='Tablas primario'!B13,"","total viviendas") ->  | G73: =IF(L31='Tablas primario'!B13,"",Q23) -> 
B74: Volumen de acumulación óptimo | D74: =75*D50*D41 -> 1740 l | E74: Valor en función del nº de paneles relación V/A=75
B76: Acumulador 1 | D76: SD Interacumulador BDLE S/ 1500S | H76: =IF(D76="","",VLOOKUP(D76,Acumuladores!$B$8:$T$116,4,FALSE)) -> NO | I76: =IF(H76="NO","","Acumulador con Sistema Drain Back") ->  | M76: =IF(H76="NO",1,0) -> 1
B77: nº acumuladores tipo 1 | D77: 1 | E77: =IF(D76="","",VLOOKUP(D76,Acumuladores!B8:C75,2,FALSE))*D77 -> 1,500 litros | M77: =M76*M78 -> 1 | N77: =P113 -> 0 | O77: =M77*N77 -> 0
B78: Acumulador 2 | H78: =IF(D78="","NO",VLOOKUP(D78,Acumuladores!$B$8:$T$116,4,FALSE)) -> NO | I78: =IF(H78="NO","","Acumulador con Sistema Drain Back") ->  | M78: =IF(H78="NO",1,0) -> 1
B79: nº acumuladores tipo 2 | E79: =IF(D78="",0,VLOOKUP(D78,Acumuladores!B8:C75,2,FALSE))*D79 -> 00 litros | H79: =IF(D79="NO CUMPLE","« El volumen de acumulación debe estar entre el máximo y mínimo marcados","") ->  | I79: =IF(E79="NO CUMPLE","« El volumen de acumulación debe estar entre el máximo y mínimo marcados","") ->  | J79: =IF(F79="NO CUMPLE","« El volumen de acumulación debe estar entre el máximo y mínimo marcados","") ->  | K79: =IF(G79="NO CUMPLE","« El volumen de acumulación debe estar entre el máximo y mínimo marcados","") ->  | L79: =IF(H79="NO CUMPLE","« El volumen de acumulación debe estar entre el máximo y mínimo marcados","") ->  | M79: =IF(I79="NO CUMPLE","« El volumen de acumulación debe estar entre el máximo y mínimo marcados","") -> 
B81: Volumen de acumulación proyectado | D81: =E77+E79 -> 1,500 l | E81: =IF(D81>D71,1,IF(D81<D72,1,0)) -> 0 | I81: =IF(E81=1,"NO CUMPLE, El volumen de acumulación debe estar entre el máx. y min ","") -> 
B82: Relación Volumen / Area de captación | D82: =D81/(D41*D50) -> 64.66 | E82: Valor entre 50 y 180 | I82: =IF(D82>=50,IF(D82<=180,"CUMPLE","NO CUMPLE"),"NO CUMPLE") -> CUMPLE | K82: CTE-HE4 2013/2.2.5,2
B84: Sistema de disipación de calor | D84: Sistema Drain-Back | I84: =IF(D84<>"Sistema Drain-Back","",IF(D84="Sistema Drain-Back",IF(H76="NO","Drain Back externo","Drain Back incorporado en acumulador"))) -> Drain Back externo
B85: Potencia mínima dispador | D85: =Disipadores!C32 -> 24 kW | F85: PC (m.c.a): | G85: =IF(D84="Disipador dinámico",Disipadores!C34,0) -> 0 | I85: Caudal (l/h) | J85: =Disipadores!C33 -> 1,800
B87: CALCULO DE DEMANDA ENERGÉTICA
B89: Calculo de la Instalación por el método de curvas f (F-Chart).
B90: Ecuación de la fracción de carga calorífica mensual aportada: f = 1,029D1 - 0,065D2 - 0,245D1² + 0,0018D2² + 0,215D1³
A92: 1.- | B92: DEMANDA POR CONSUMO A.C.S
D93: Enero | E93: Febrero | F93: Marzo | G93: Abril | H93: Mayo | I93: Junio | J93: Julio | K93: Agosto | L93: Sept. | M93: Oct. | N93: Nov. | O93: Dic. | P93: Anual
B94: Días computables | D94: =31*D35 -> 31 | E94: =28*E35 -> 28 | F94: =31*F35 -> 31 | G94: =30*G35 -> 30 | H94: =31*H35 -> 31 | I94: =30*I35 -> 30 | J94: =31*J35 -> 31 | K94: =31*K35 -> 31 | L94: =30*L35 -> 30 | M94: =31*M35 -> 31 | N94: =30*N35 -> 30 | O94: =31*O35 -> 31 | P94: =SUM(D94:O94)/(12*P35) -> 30 | Q94: días/mes
B95: Consumo mensual de agua a 60º | D95: =$D$70*D35*D94 -> 72,652 | E95: 65,621 | F95: 72,652 | G95: 70,308 | H95: 72,652 | I95: 70,308 | J95: 72,652 | K95: 72,652 | L95: 70,308 | M95: 72,652 | N95: 70,308 | O95: 72,652 | P95: =SUM(D95:O95)/(12*P35) -> 71,285 | Q95: litros ACS/mes
B96: Consumo mensual corregido s/ Tª acumulación | D96: =IF($D$66=60,D95,D95*((60-D14)/($D$66-D14))) -> 72,652 | E96: 65,621 | F96: 72,652 | G96: 70,308 | H96: 72,652 | I96: 70,308 | J96: 72,652 | K96: 72,652 | L96: 70,308 | M96: 72,652 | N96: 70,308 | O96: 72,652 | P96: =SUM(D96:O96)/(12*P35) -> 71,285 | Q96: litros ACS/mes
B97: Incremento Ta. [ºC]: | D97: =$D$66-D14 -> 52.00 | E97: 52.00 | F97: 50.00 | G97: 48.00 | H97: 46.00 | I97: 43.00 | J97: 40.00 | K97: 41.00 | L97: 43.00 | M97: 47.00 | N97: 50.00 | O97: 52.00 | P97: 47.00 | Q97: ºC
B98: Energía necesaria consumo de ACS (kWh) | D98: =D95*D97*0.00116 -> 4,382 | E98: =E95*E97*0.00116 -> 3,958 | F98: 4,214 | G98: 3,915 | H98: 3,877 | I98: 3,507 | J98: 3,371 | K98: 3,455 | L98: 3,507 | M98: 3,961 | N98: 4,078 | O98: 4,382 | P98: =SUM(D98:O98)/(12*P35) -> 3,884 | Q98: kWh/mes
B99: Mayoración pérdidas de Intercambio y Circulación | D99: =D98*(1+$D$68) -> 4,558 | E99: 4,117 | F99: 4,382 | G99: 4,071 | H99: 4,032 | I99: 3,647 | J99: 3,506 | K99: 3,594 | L99: 3,647 | M99: 4,119 | N99: 4,241 | O99: 4,558 | P99: =SUM(D99:O99)/(12*P35) -> 4,039 | Q99: kWh/mes
P100: =SUM(D99:O99) -> 48,472 | Q100: kWh/año
A101: 2.- | B101: ENERGIA ABSORBIDA POR CAPTADORES | D101: 1 | E101: 2 | F101: 3 | G101: 4 | H101: 5 | I101: 6 | J101: 7 | K101: 8 | L101: 9 | M101: 10 | N101: 11 | O101: 12
D102: Enero | E102: Febrero | F102: Marzo | G102: Abril | H102: Mayo | I102: Junio | J102: Julio | K102: Agosto | L102: Sept. | M102: Oct. | N102: Nov. | O102: Dic. | P102: Anual
B103: Días computables | D103: =D94 -> 31 | E103: =E94 -> 28 | F103: 31 | G103: 30 | H103: 31 | I103: 30 | J103: 31 | K103: 31 | L103: 30 | M103: 31 | N103: 30 | O103: 31 | P103: =SUM(D103:O103)/(12*P35) -> 30 | Q103: días
B104: Rad. horiz. [kJ/m2/día]: | D104: =D16 -> 8.18 | E104: 11.72 | F104: 16.76 | G104: 20.73 | H104: 23.79 | I104: 27.90 | J104: 28.99 | K104: 25.24 | L104: 19.72 | M104: 12.83 | N104: 8.76 | O104: 6.74 | P104: =SUM(D104:O104)/(12*P35) -> 17.61 | Q104: MJ/m² día
B105: Factor de corrección por inclinación (k) | D105: ='Factor K'!F10 -> 1.37 | E105: ='Factor K'!G10 -> 1.28 | F105: ='Factor K'!H10 -> 1.17 | G105: ='Factor K'!I10 -> 1.06 | H105: ='Factor K'!J10 -> 0.98 | I105: ='Factor K'!K10 -> 0.95 | J105: ='Factor K'!L10 -> 0.98 | K105: ='Factor K'!M10 -> 1.07 | L105: ='Factor K'!N10 -> 1.21 | M105: ='Factor K'!O10 -> 1.37 | N105: ='Factor K'!P10 -> 1.47 | O105: ='Factor K'!Q10 -> 1.45 | P105: =SUM(D105:O105)/(12*P35) -> 1.20
B106: Factor de corrección por orientación | D106: =1-(0.000035*$D$40*$D$40) -> 0.94 | E106: =1-(0.000035*$D$40*$D$40) -> 0.94 | F106: 0.94 | G106: 0.94 | H106: 0.94 | I106: 0.94 | J106: 0.94 | K106: 0.94 | L106: 0.94 | M106: 0.94 | N106: 0.94 | O106: 0.94 | P106: =SUM(D106:O106)/(12*P35) -> 0.94
B107: Factor de corrección por sombras | D107: =1-Sombras!H30 -> 1.00 | E107: =1-Sombras!I30 -> 1.00 | F107: =1-Sombras!J30 -> 1.00 | G107: =1-Sombras!K30 -> 1.00 | H107: =1-Sombras!L30 -> 1.00 | I107: =1-Sombras!M30 -> 1.00 | J107: =1-Sombras!N30 -> 1.00 | K107: =1-Sombras!O30 -> 1.00 | L107: =1-Sombras!P30 -> 1.00 | M107: =1-Sombras!Q30 -> 1.00 | N107: =1-Sombras!R30 -> 1.00 | O107: =1-Sombras!S30 -> 1.00 | P107: ='Posicion solar'!C864 -> 1.00
B108: Factor de corección total | D108: =D105*D106*D107 -> 1.29 | E108: 1.21 | F108: 1.10 | G108: 1.00 | H108: 0.93 | I108: 0.90 | J108: 0.93 | K108: 1.01 | L108: 1.14 | M108: 1.29 | N108: 1.39 | O108: 1.37 | P108: =SUM(D108:O108)/(12*P35) -> 1.13
B109: Radiación solar incidente (KWh/m² mes) | D109: =D103*D104*D108/3.6 -> 91.14 | E109: 110.12 | F109: 159.44 | G109: 172.86 | H109: 189.55 | I109: 208.54 | J109: 230.91 | K109: 219.50 | L109: 187.71 | M109: 142.93 | N109: 101.31 | O109: 79.46 | P109: =SUM(D109:O109)/(12*P35) -> 157.79 | Q109: KWh/m² mes
B110: Radiación solar absorvida (KWh/mes) | D110: =D109*$D$54*$D$58 -> 1,485 | E110: 1,794 | F110: 2,598 | G110: 2,816 | H110: 3,088 | I110: 3,397 | J110: 3,762 | K110: 3,576 | L110: 3,058 | M110: 2,329 | N110: 1,651 | O110: 1,295 | P110: =SUM(D110:O110)/(12*P35) -> 2,571 | Q110: KWh/mes
P111: =SUM(D110:O110) -> 30,848 | Q111: kWh/año
D112: =IF(D120<=1,0,1) -> 0.00 | E112: =IF(E120<=1,0,1) -> 0.00 | F112: 0.00 | G112: 0.00 | H112: 0.00 | I112: 0.00 | J112: 0.00 | K112: 0.00 | L112: 0.00 | M112: 0.00 | N112: 0.00 | O112: 0.00
A113: 3.- | B113: CALCULO DE ENERGIA APORTADA | D113: =IF(D120<=1.1,0,1) -> 0 | E113: =IF(E120<=1.1,0,1) -> 0 | F113: 0 | G113: 0 | H113: 0 | I113: 0 | J113: 0 | K113: 0 | L113: 0 | M113: 0 | N113: 0 | O113: 0 | P113: =SUM(D113:O113) -> 0
D114: Enero | E114: Febrero | F114: Marzo | G114: Abril | H114: Mayo | I114: Junio | J114: Julio | K114: Agosto | L114: Sept. | M114: Oct. | N114: Nov. | O114: Dic. | P114: Anual
B115: Relación radiación absorvida y ener. demandada | D115: =IF(D99=0,0,D110/D99) -> 0.33 | E115: =IF(E99=0,0,E110/E99) -> 0.44 | F115: 0.59 | G115: 0.69 | H115: 0.77 | I115: 0.93 | J115: 1.07 | K115: 1.00 | L115: 0.84 | M115: 0.57 | N115: 0.39 | O115: 0.28 | P115: =IF(P99=0,0,P110/P99) -> 0.64 | Q115: valor D1
B116: Factor de corrección por almacenamiento | D116: =IF(D115=0,0,($D$81/75/$D$54)^-0.25) -> 1.04 | E116: =IF(E115=0,0,($D$81/75/$D$54)^-0.25) -> 1.04 | F116: 1.04 | G116: 1.04 | H116: 1.04 | I116: 1.04 | J116: 1.04 | K116: 1.04 | L116: 1.04 | M116: 1.04 | N116: 1.04 | O116: 1.04 | P116: =SUM(D116:O116)/(12*P35) -> 1.04 | Q116: valor K1
B117: Factor de corrección para acs según su temperatura | D117: =IF(D115=0,0,(11.6+1.18*$D$66+3.86*D14-2.32*D15)/(100-D15)) -> 1.06 | E117: =IF(E115=0,0,(11.6+1.18*$D$66+3.86*E14-2.32*E15)/(100-E15)) -> 1.03 | F117: 1.07 | G117: 1.13 | H117: 1.15 | I117: 1.23 | J117: 1.31 | K117: 1.29 | L117: 1.26 | M117: 1.15 | N117: 1.07 | O117: 1.04 | P117: =SUM(D117:O117)/(12*P35) -> 1.15 | Q117: valor K2
B118: Energia mensual perdida por el captador | D118: =$D$54*$D$59*(100-D15)*(24*D103)*D116*D117 -> 7120.26 | E118: =$D$54*$D$59*(100-E15)*(24*E103)*E116*E117 -> 6130.87 | F118: 6842.21 | G118: 6835.09 | H118: 6784.89 | I118: 6564.63 | J118: 6782.02 | K118: 6837.91 | L118: 6886.41 | M118: 7007.04 | N118: 6621.50 | O118: 6954.01 | P118: =SUM(D118:O118)/(12*P35) -> 6780.57 | Q118: KWh/mes
B119: Relación entre energía perdida y demanda mensual | D119: =IF(D35=0,0,D118/D98) -> 1.62 | E119: =IF(E35=0,0,E118/E98) -> 1.55 | F119: 1.62 | G119: 1.75 | H119: 1.75 | I119: 1.87 | J119: 2.01 | K119: 1.98 | L119: 1.96 | M119: 1.77 | N119: 1.62 | O119: 1.59 | P119: =SUM(D119:O119)/(12*P35) -> 1.76 | Q119: valor D2
B120: Porcentaje de energía aportado por el sistema solar | D120: =IF($D$41=0,0,(1.029*D115)-(0.065*D119)-(0.245*D115^2)+(0.0018*D119^2)+(0.0215*D115^3)) -> 20.91% | E120: =IF($D$41=0,0,(1.029*E115)-(0.065*E119)-(0.245*E115^2)+(0.0018*E119^2)+(0.0215*E115^3)) -> 30.73% | F120: 42.75% | G120: 49.37% | H120: 54.59% | I120: 64.80% | J120: 72.51% | K120: 68.10% | L120: 58.25% | M120: 39.79% | N120: 26.38% | O120: 17.44% | P120: =IF($D$41=0,0,(1.029*P115)-(0.065*P119)-(0.245*P115^2)+(0.0018*P119^2)+(0.0215*P115^3)) -> 45.25% | Q120: valor f en %
B122: Energía necesaria por consumo de ACS (kWh) | D122: =D99 -> 4557.64 | E122: =E99 -> 4116.58 | F122: 4382.34 | G122: 4071.34 | H122: 4031.76 | I122: 3647.24 | J122: 3505.88 | K122: 3593.52 | L122: 3647.24 | M122: 4119.40 | N122: 4240.98 | O122: 4557.64 | P122: =P100/12 -> 4,039 | Q122: kWh/mes
B123: Energía aportada por el sistema solar | D123: =D120*D99 -> 953.10 | E123: =E120*E99 -> 1265.14 | F123: 1873.59 | G123: 2009.89 | H123: 2200.74 | I123: 2363.25 | J123: 2542.27 | K123: 2447.17 | L123: 2124.66 | M123: 1639.20 | N123: 1118.89 | O123: 794.88 | P123: =P111/12 -> 2,571 | Q123: kWh/mes
B124: Energia aportada por sistema de apoyo | D124: =IF(D99-D123>0,1,0)*(D99-D123) -> 3604.54 | E124: =IF(E99-E123>0,1,0)*(E99-E123) -> 2851.44 | F124: 2508.75 | G124: 2061.45 | H124: 1831.02 | I124: 1283.99 | J124: 963.60 | K124: 1146.35 | L124: 1522.58 | M124: 2480.20 | N124: 3122.09 | O124: 3762.76 | P124: =SUM(D124:O124)/12 -> 2,262 | Q124: kWh/mes
B126: Energia anual aportada por sistema de apoyo | D126: =SUM(D124:O124) -> 27,139 | E126: kWh/año | G126: Emisiones del sistema de referencia | K126: =(D126/0.92)*0.311 -> 9,174 | L126: kgCO2/año
D128: Enero | E128: Febrero | F128: Marzo | G128: Abril | H128: Mayo | I128: Junio | J128: Julio | K128: Agosto | L128: Sept. | M128: Oct. | N128: Nov. | O128: Dic. | P128: Anual
D129: =D120 -> 20.91% | E129: =E120 -> 30.73% | F129: 42.75% | G129: 49.37% | H129: 54.59% | I129: 64.80% | J129: 72.51% | K129: 68.10% | L129: 58.25% | M129: 39.79% | N129: 26.38% | O129: 17.44% | P129: 45.25%
B131: CUMPLIMIENTO CTE DB-HE4 / 2013
A133: 1.- | B133: CONTRIBUCIÓN SOLAR MÍNIMA | D133: CTE-HE4 Tabla 2.1
B135: Capital de Provincia | D135: =D6 -> Madrid
B136: Zona climática | D136: =D7 -> IV
A137: =IF(D137<5000,1,IF(D137<6000,2,IF(D137<7000,3,IF(D137<8000,4,IF(D137<9000,5,IF(D137<10000,6,IF(D137<12500,7,IF(D137<15000,8,9)))))))) -> 1 | B137: Demanda total de agua caliente sanitaria | D137: =D70 -> 2344 l/d
B138: Contribución solar anual mínima (%) | D138: =F43 -> 50.00%
B139: Contribución solar anual calculada (%) | D139: =P120 -> 45.25% | E139: =IF(D139>=D138,"CUMPLE","NO CUMPLE") -> NO CUMPLE | G139: =IF(E139="NO CUMPLE","« Aumentar captadores o su eficiencia","") -> « Aumentar captadores o su eficiencia
A142: 2.- | B142: PERDIDAS LÍMITE | D142: CTE-HE4 Tabla 2.4
A144: =IF(D144="General",1,IF(D144="Superposición",2,3)) -> 1 | B144: Disposición de los paneles | D144: General
B146: Perdida límite por orientación e inclinación | D146: =VLOOKUP(D144,'Datos CTE'!B41:F43,3,FALSE) -> 10.00%
B147: Perdida calculada por orientación e inclinación | D147: =IF(D39<=15,((D39-D9)^2*1.2/10000),(((D39-D9)^2*1.2/10000)+(3.5/100000*D40^2))) -> 5.95% | E147: =IF(D147<=D146,"CUMPLE","NO CUMPLE") -> CUMPLE
B149: Perdida límite por sombras | D149: =VLOOKUP(D144,'Datos CTE'!B41:F43,4,FALSE) -> 10.00%
B150: Perdida calculada por sombras | D150: =1-P107 -> 0.00% | E150: =IF(D150<=D149,"CUMPLE","NO CUMPLE") -> CUMPLE
B152: Perdida límite TOTAL | D152: =VLOOKUP(D144,'Datos CTE'!B41:F43,5,FALSE) -> 15.00%
B153: Perdida calculada TOTAL | D153: =D147+D150 -> 5.95% | E153: =IF(D153<=D152,"CUMPLE","NO CUMPLE") -> CUMPLE
A155: 3.- | B155: EXCESO DE CONTRIBUCIÓN SOLAR | D155: CTE-HE4 2.1.4
B157: Ningún mes supera una contribucion del 110% | D157: =IF(P113<1,"CUMPLE","PRECISA DISIPACIÓN") -> CUMPLE | G157: =IF(D157="CUMPLE",0,1) -> 0
B158: No se supera el 100% de contribución
B159: en más de 3 meses seguidos | D159: =IF((W37+W42+W50)>0,"PRECISA DISIPACIÓN","CUMPLE") -> CUMPLE | G159: =IF(D159="CUMPLE",0,1) -> 0

Sheet Sombras
B2: Localidad | D2: =IF('HE-4 SOLAR'!D11="Otra localidad (definida por usuario)",'Localidad Usuario'!D5,'HE-4 SOLAR'!D6) -> Madrid | U2: PERFILES ADICIONALES DE OBSTRUCCION SOLAR
B3: Latitud | D3: ='HE-4 SOLAR'!D9 -> 40.40 | U3: (No referenciados a la posición del panel) | Z3: =SIN(RADIANS(C22))*10 -> -6.427876097 | AA3: 0 | AC3: Perfil edificio
B4: Datos Radiación | D4: ='HE-4 SOLAR'!D11 -> Atlas Radiacion solar 2012 AEMET
U5: Grupo 1 | X5: Grupo 2 | Z5: =COS(RADIANS(C22))*10 -> -7.660444431 | AA5: 0 | AC5: Proteccion solar
B6: Orientación de los captadores (Azimut) | F6: ='HE-4 SOLAR'!D40 -> 40 | U6: Perfil edificio | X6: Perfil edificio
Z7: =F6+90 -> 130 | AA7: =IF(X26<15,0,90) -> 90 | AC7: TRUE | AF7: TRUE | AJ7: FALSE | AK7: =IF(AJ7=TRUE,1,0) -> 0 | AM7: FALSE | AN7: =IF(AM7=TRUE,1,0) -> 0
U8: azimut | V8: altura | X8: azimut | Y8: altura | Z8: =Z7 -> 130 | AA8: 0 | AJ8: azimut | AK8: altura | AM8: azimut | AN8: altura
U9: 90 | V9: 50 | X9: -90 | Y9: 45 | AC9: =IF($AC$7=FALSE,0,U9) -> 90 | AD9: =IF($AC$7=FALSE,0,V9) -> 50 | AF9: =IF($AF$7=FALSE,0,X9) -> -90 | AG9: =IF($AF$7=FALSE,0,Y9) -> 45 | AJ9: =U9*$AK$7 -> 0 | AK9: =V9*$AK$7 -> 0 | AM9: =X9*$AN$7 -> 0 | AN9: =Y9*$AN$7 -> 0
U10: 115 | V10: 60 | X10: -50 | Y10: 40 | Z10: =F6-90 -> -50 | AA10: =IF(X26<15,0,90) -> 90 | AC10: =IF($AC$7=FALSE,0,U10) -> 115 | AD10: 60 | AF10: =IF($AF$7=FALSE,0,X10) -> -50 | AG10: 40 | AJ10: =U10*$AK$7 -> 0 | AK10: 0 | AM10: =X10*$AN$7 -> 0 | AN10: 0
U11: =U10 -> 115.00 | V11: =IF($U$6=$AC$3,0,90) -> 0.00 | X11: =X10 -> -50.00 | Y11: =IF($X$6=$AC$3,0,90) -> 0.00 | Z11: =Z10 -> -50 | AA11: 0 | AC11: 115 | AD11: 0 | AF11: -50 | AG11: 0 | AJ11: 0 | AK11: 0 | AM11: 0 | AN11: 0
U12: =U9 -> 90.00 | V12: =IF($U$6=$AC$3,0,90) -> 0.00 | X12: =X9 -> -90.00 | Y12: =IF($X$6=$AC$3,0,90) -> 0.00 | AC12: 90 | AD12: 0 | AF12: -90 | AG12: 0 | AJ12: 0 | AK12: 0 | AM12: 0 | AN12: 0
U13: =U9 -> 90 | V13: =V9 -> 50 | X13: =X9 -> -90 | Y13: =Y9 -> 45 | AJ13: 0 | AK13: 0 | AM13: 0 | AN13: 0
U14: azimut | V14: altura | X14: azimut | Y14: altura | Z14: =SIN(RADIANS(C22+90))*10 -> -7.660444431 | AA14: 0 | AJ14: =U14 -> azimut | AK14: altura | AM14: =X14 -> azimut | AN14: altura
U15: 115 | V15: 60 | X15: -90 | Y15: 45 | Z15: =COS(RADIANS(C22+90))*10 -> 6.427876097 | AA15: 0 | AC15: =IF($AC$7=FALSE,0,U15) -> 115 | AD15: 60 | AF15: =IF($AF$7=FALSE,0,X15) -> -90 | AG15: 45 | AJ15: =U15*$AK$7 -> 0 | AK15: 0 | AM15: =X15*$AN$7 -> 0 | AN15: 0
U16: 120 | V16: 55 | X16: -120 | Y16: 65 | AC16: 120 | AD16: 55 | AF16: -120 | AG16: 65 | AJ16: 0 | AK16: 0 | AM16: 0 | AN16: 0
U17: =U16 -> 120.00 | V17: =IF($U$6=$AC$3,0,90) -> 0.00 | X17: =X16 -> -120.00 | Y17: =IF($X$6=$AC$3,0,90) -> 0.00 | Z17: =SIN(RADIANS(C22-90))*10 -> 7.660444431 | AA17: 0 | AC17: 120 | AD17: 0 | AF17: -120 | AG17: 0 | AJ17: 0 | AK17: 0 | AM17: 0 | AN17: 0
U18: =U15 -> 115.00 | V18: =IF($U$6=$AC$3,0,90) -> 0.00 | X18: =X15 -> -90.00 | Y18: =IF($X$6=$AC$3,0,90) -> 0.00 | Z18: =COS(RADIANS(C22-9090))*10 -> -6.427876097 | AA18: 0 | AC18: 115 | AD18: 0 | AF18: -90 | AG18: 0 | AJ18: 0 | AK18: 0 | AM18: 0 | AN18: 0
U19: =U15 -> 115 | V19: =V15 -> 60 | X19: =X15 -> -90 | Y19: =Y15 -> 45 | AJ19: 0 | AK19: 0 | AM19: 0 | AN19: 0
U20: azimut | V20: altura | X20: azimut | Y20: altura | Z20: =Z7+105 -> 235 | AA20: 90 | AJ20: azimut | AK20: altura | AM20: azimut | AN20: altura
U21: 90 | V21: 50 | X21: -120 | Y21: 65 | Z21: =Z20 -> 235 | AA21: =AA8 -> 0 | AC21: =IF($AC$7=FALSE,0,U21) -> 90 | AD21: 50 | AF21: =IF($AF$7=FALSE,0,X21) -> -120 | AG21: 65 | AJ21: =U21*$AK$7 -> 0 | AK21: 0 | AM21: =X21*$AN$7 -> 0 | AN21: 0
C22: =180+F6 -> 220 | U22: 25 | V22: 50 | X22: -180 | Y22: 60 | Z22: =Z10-105 -> -155 | AA22: =AA20 -> 90 | AC22: 25 | AD22: 50 | AF22: -180 | AG22: 60 | AJ22: 0 | AK22: 0 | AM22: 0 | AN22: 0
B23: Actualizaciones y otras herramientas en: | U23: =U22 -> 25.00 | V23: =IF($U$6=$AC$3,0,90) -> 0.00 | X23: =X22 -> -180.00 | Y23: =IF($X$6=$AC$3,0,90) -> 0.00 | Z23: =Z22 -> -155 | AA23: =AA21 -> 0 | AC23: 25 | AD23: 0 | AF23: -180 | AG23: 0 | AJ23: 0 | AK23: 0 | AM23: 0 | AN23: 0
U24: =U21 -> 90.00 | V24: =IF($U$6=$AC$3,0,90) -> 0.00 | X24: =X21 -> -120.00 | Y24: =IF($X$6=$AC$3,0,90) -> 0.00 | AC24: 90 | AD24: 0 | AF24: -120 | AG24: 0 | AJ24: 0 | AK24: 0 | AM24: 0 | AN24: 0
U25: =U21 -> 90 | V25: =V21 -> 50 | X25: =X21 -> -120 | Y25: =Y21 -> 65 | AJ25: 0 | AK25: 0 | AM25: 0 | AN25: 0
U26: Inclinación de los captadores | X26: ='HE-4 SOLAR'!D39 -> 35.00 grados | Z26: ='Posicion solar'!C234 -> 7,234
B27: Autor: Oscar Redondo Rivera. o.redondo.rivera@gmail.com
H28: Ene | I28: Feb | J28: Mar | K28: Abr | L28: May | M28: Jun | N28: Jul | O28: Ago | P28: Sep | Q28: Oct | R28: Nov | S28: Dic | X28: directa | Y28: global
B29: % Obstruccion sobre radiación DIRECTA | H29: ='Posicion solar'!C851 -> 0.00% | I29: ='Posicion solar'!D851 -> 0.00% | J29: ='Posicion solar'!E851 -> 0.00% | K29: ='Posicion solar'!F851 -> 0.00% | L29: ='Posicion solar'!G851 -> 0.00% | M29: ='Posicion solar'!H851 -> 0.00% | N29: ='Posicion solar'!I851 -> 0.00% | O29: ='Posicion solar'!J851 -> 0.00% | P29: ='Posicion solar'!K851 -> 0.00% | Q29: ='Posicion solar'!L851 -> 0.00% | R29: ='Posicion solar'!M851 -> 0.00% | S29: ='Posicion solar'!N851 -> 0.00% | U29: % Obstruccion solar INVIERNO | X29: ='Posicion solar'!C857 -> 0.00% | Y29: ='Posicion solar'!C860 -> 0.00%
B30: % Obstruccion sobre radiación GLOBAL | H30: ='Posicion solar'!C854 -> 0.00% | I30: ='Posicion solar'!D854 -> 0.00% | J30: ='Posicion solar'!E854 -> 0.00% | K30: ='Posicion solar'!F854 -> 0.00% | L30: ='Posicion solar'!G854 -> 0.00% | M30: ='Posicion solar'!H854 -> 0.00% | N30: ='Posicion solar'!I854 -> 0.00% | O30: ='Posicion solar'!J854 -> 0.00% | P30: ='Posicion solar'!K854 -> 0.00% | Q30: ='Posicion solar'!L854 -> 0.00% | R30: ='Posicion solar'!M854 -> 0.00% | S30: ='Posicion solar'!N854 -> 0.00% | U30: % Obstruccion solar VERANO | X30: ='Posicion solar'!C858 -> 0.00% | Y30: ='Posicion solar'!C861 -> 0.00% | AA30: =IF(AC31=TRUE,1,0) -> 0 | AE30: FALSE | AF30: =IF(AE30=TRUE,1,0) -> 0 | AK30: FALSE | AL30: =IF(AK30=TRUE,1,0) -> 0 | AM30: FALSE | AN30: =IF(Y45=0,0,IF(V45+V46=0,0,IF(AM30=TRUE,1,0))) -> 0
AC31: FALSE
C32: PETO DE CUBIERTA PLANA | I32: OBSTACULOS EN CUBIERTA | N32: Obstáculo 1 | Q32: Obstáculo 2 | V32: OBSTACULO SUPERIOR
Z33: TRUE | AA33: =IF(Z33=TRUE,1,0) -> 1 | AC33: TRUE | AD33: =IF(AC33=TRUE,1,0) -> 1 | AF33: TRUE | AG33: =IF(AF33=TRUE,1,0) -> 1 | AH33: FALSE | AI33: =IF(AH33=TRUE,1,0) -> 0 | AJ33: TRUE
N34: Alfa 1 | O34: 0 | Q34: Alfa 1 | R34: 25
N35: dist 1 | O35: 4 | Q35: dist 1 | R35: 5
N37: Alfa 2 | O37: 25 | Q37: Alfa 2 | R37: 50
N38: dist 2 | O38: 5 | Q38: dist 2 | R38: 10
N40: Alfa 3 | O40: -25 | Q40: Alfa 3 | R40: 0
N41: dist 3 | O41: 5 | Q41: dist 3 | R41: 10
B43: Geometría | E43: Incluir laterales
E44: SI | N44: Altura | O44: 3 | Q44: Altura | R44: 5
B45: a | C45: 5 | D45: m | U45: a | V45: 3 | X45: c | Y45: 1 | AA45: SI
B46: b | C46: 5 | D46: m | U46: b | V46: 3 | X46: h | Y46: 2 | AA46: NO
B47: c | C47: 10 | D47: m
B49: h | C49: 0.55 | D49: m
B51: β | C51: 15 | D51: º | S51: =IF(AJ33=TRUE,1,0) -> 1
B52: =IF(C46>C47," b no puede ser mayor que c",0) -> 0
E53: azimut | F53: altura | G53: d | J53: azimut | K53: altura | L53: d | P53: azimut | Q53: altura | R53: d | W53: azimut | X53: altura
C54: Frontal 1 | D54: 1 | E54: =$AC$31*IF(AA30*(DEGREES(ATAN(C46*COS(C51*PI()/180)/(C45-C46*SIN(C51*PI()/180))))+F6)<1,Z7,AA30*(DEGREES(ATAN(C46*COS(C51*PI()/180)/(C45-C46*SIN(C51*PI()/180))))+F6)) -> 0.00 | F54: =$AC$31*DEGREES(ATAN($C$49/G54))*AA30 -> 0.00 | G54: =(C45-C46*(SIN(C51*PI()/180)))/(COS((E54-F6)*PI()/180)) -> 4.837715106 | H54: Saliente 1 | I54: 1 | J54: =IF(I45=0,0,IF(I46=0,F6,AF30*AA33*(90-DEGREES(ATAN(I45/I46))+$F$6))) -> 0 | K54: =IF(I45=0,0,DEGREES(ATAN($I$49/L54))*AF30*AA33) -> 0 | L54: =(I45^2+I46^2)^0.5 -> 0 | N54: Obtáculo 1 | O54: 1 | P54: =$AK$30*$AF$33*O34 -> 0.00 | Q54: =$AK$30*$AF$33*DEGREES(ATAN($O$44/R54)) -> 0.00 | R54: =O35 -> 4 | U54: Alero a | V54: 1 | W54: =IF(Y45=0,0,AN30*(DEGREES(ATAN(V45/Y45))+$F$6)) -> 0.00 | X54: =DEGREES(ATAN(Y46/Y54))*AN30 -> 0.00 | Y54: =((Y45^2)+(V45)^2)^0.5 -> 3.16227766
C55: Der | D55: 2 | E55: =$AC$31*$F$6*AA30 -> 0.00 | F55: =$AC$31*DEGREES(ATAN($C$49/G55))*AA30 -> 0.00 | G55: =C45 -> 5 | I55: 2 | J55: =IF(I45=0,0,AF30*AA33*($F$6+90)) -> 0 | K55: =IF(I45=0,0,IF(I46=0,90,DEGREES(ATAN($I$49/L55)))*AF30*AA33) -> 0 | L55: =I46 -> 0 | O55: 2 | P55: =$AK$30*$AF$33*O37 -> 0.00 | Q55: =$AK$30*$AF$33*DEGREES(ATAN($O$44/R55)) -> 0.00 | R55: =O38 -> 5 | V55: 2 | W55: =F6*AN30 -> 0.00 | X55: =IF(Y45=0,0,DEGREES(ATAN(Y46/Y45))*AN30) -> 0.00
D56: 3 | E56: =E55 -> 0.00 | F56: 0.00 | I56: 3 | J56: =J55 -> 0 | K56: 0 | O56: 3 | P56: =P55 -> 0.00 | Q56: 0.00 | V56: 3 | W56: =W55 -> 0.00 | X56: =IF(AN30=0,0,90) -> 0.00
D57: 4 | E57: =E54 -> 0.00 | F57: 0.00 | I57: 4 | J57: =J54 -> 0 | K57: 0 | O57: 4 | P57: =P54 -> 0.00 | Q57: 0.00 | V57: 4 | W57: =W54 -> 0.00 | X57: =IF(AN30=0,0,90) -> 0.00
E58: =E54 -> 0.00 | F58: =F54 -> 0.00 | J58: =J54 -> 0 | K58: =K54 -> 0 | P58: =P54 -> 0.00 | Q58: =Q54 -> 0.00 | W58: =W54 -> 0.00 | X58: =X54 -> 0.00
C59: Frontal 2 | D59: 1 | E59: =$AC$31*IF(AA30*(F6-DEGREES(ATAN(C46*COS(C51*PI()/180)/(C45-C46*SIN(C51*PI()/180)))))>1,Z10,AA30*(F6-DEGREES(ATAN(C46*COS(C51*PI()/180)/(C45-C46*SIN(C51*PI()/180)))))) -> 0.00 | F59: =$AC$31*AA30*DEGREES(ATAN($C$49/G59)) -> 0.00 | G59: =(C45-C46*(SIN(C51*PI()/180)))/(COS((E59-F6)*PI()/180)) -> 4.837715106 | H59: Saliente 2 | I59: 1 | J59: =IF(L45=0,0,IF(L46=0,F6,AF30*AD33*($F$6-(90-DEGREES(ATAN(L45/L46)))))) -> 0 | K59: =IF(L45=0,0,DEGREES(ATAN($L$49/L59))*AF30*AD33) -> 0 | L59: =(L46^2+L45^2)^0.5 -> 0 | N59: Obtáculo 1 | O59: 1 | P59: =$AK$30*$AF$33*P54 -> 0.00 | Q59: =$AK$30*$AF$33*Q54 -> 0.00 | U59: Alero b | V59: 1 | W59: =AN30*($F$6-(DEGREES(ATAN(V46/Y45)))) -> 0.00 | X59: =DEGREES(ATAN(Y46/Y59))*AN30 -> 0.00 | Y59: =((Y45^2)+(V46)^2)^0.5 -> 3.16227766
C60: Izq | D60: 2 | E60: =$AC$31*E55 -> 0.00 | F60: =$AC$31*F55 -> 0.00 | I60: 2 | J60: =IF(L45=0,0,AF30*AD33*($F$6-90)) -> 0 | K60: =IF(L45=0,0,IF(L46=0,90,DEGREES(ATAN($L$49/L60)))*AF30*AD33) -> 0 | L60: =L46 -> 0 | O60: 2 | P60: =$AK$30*$AF$33*O40 -> 0.00 | Q60: =$AK$30*$AF$33*DEGREES(ATAN($O$44/R60)) -> 0.00 | R60: =O41 -> 5 | V60: 2 | W60: =W55 -> 0.00 | X60: =X55 -> 0.00
D61: 3 | E61: =E60 -> 0.00 | F61: 0.00 | I61: 3 | J61: =J60 -> 0 | K61: 0 | O61: 3 | P61: =P60 -> 0.00 | Q61: 0.00 | V61: 3 | W61: =W60 -> 0.00 | X61: =IF(AN30=0,0,90) -> 0.00
D62: 4 | E62: =E59 -> 0.00 | F62: 0.00 | I62: 4 | J62: =J59 -> 0 | K62: 0 | O62: 4 | P62: =P59 -> 0.00 | Q62: 0.00 | V62: 4 | W62: =W59 -> 0.00 | X62: =IF(AN30=0,0,90) -> 0.00
E63: =E59 -> 0.00 | F63: =F59 -> 0.00 | J63: =J59 -> 0 | K63: =K59 -> 0 | P63: =P59 -> 0.00 | Q63: =Q59 -> 0.00 | W63: =W59 -> 0.00 | X63: =X59 -> 0.00
C64: Lateral Der | D64: 1 | E64: =$AC$31*F74*E54 -> 0.00 | F64: =$AC$31*F74*F54 -> 0.00 | N64: Obtáculo 2 | O64: 1 | P64: =$AK$30*$AH$33*R34 -> 0.00 | Q64: =$AK$30*$AH$33*DEGREES(ATAN($O$44/R64)) -> 0.00 | R64: =R35 -> 5 | U64: Lateral a | V64: 1 | W64: =W54 -> 0.00 | X64: =X54 -> 0.00
D65: 2 | E65: =$AC$31*F74*AA30*(F6+90) -> 0.00 | F65: =$AC$31*F74*IF(C46=C47,90,AA30*DEGREES(ATAN($C$49/G65))) -> 0.00 | G65: =(G54*SIN((E54-F6-C51)*PI()/180)*COS(C51*PI()/180)) -> -3.827794258 | O65: 2 | P65: =$AK$30*$AH$33*R37 -> 0.00 | Q65: =$AK$30*$AH$33*DEGREES(ATAN($R$44/R65)) -> 0.00 | R65: =R38 -> 10 | V65: 2 | W65: =AN30*(90+F6) -> 0.00 | X65: =IF(V45=0,90*AN30,DEGREES(ATAN(Y46/V45))*AN30) -> 0.00
D66: 3 | E66: =E65 -> 0.00 | F66: 0.00 | O66: 3 | P66: =P65 -> 0.00 | Q66: 0.00 | V66: 3 | W66: =W65 -> 0.00 | X66: =IF(AN30=0,0,90) -> 0.00
D67: 4 | E67: =E64 -> 0.00 | F67: 0.00 | O67: 4 | P67: =P64 -> 0.00 | Q67: 0.00 | V67: 4 | W67: =W64 -> 0.00 | X67: =IF(AN30=0,0,90) -> 0.00
E68: =E64 -> 0.00 | F68: =F64 -> 0.00 | P68: =P64 -> 0.00 | Q68: =Q64 -> 0.00 | W68: =W64 -> 0.00 | X68: =X64 -> 0.00
C69: Lateral Izq | D69: 1 | E69: =$AC$31*F74*E59 -> 0.00 | F69: =$AC$31*F74*F59 -> 0.00 | N69: Obtáculo 2 | O69: 1 | P69: =$AK$30*$AH$33*P64 -> 0.00 | Q69: =$AK$30*$AH$33*DEGREES(ATAN($O$44/R69)) -> 0.00 | R69: =R35 -> 5 | U69: Lateral b | V69: 1 | W69: =W59 -> 0.00 | X69: =X59 -> 0.00
D70: 2 | E70: =$AC$31*F74*AA30*($F$6-90) -> 0.00 | F70: =$AC$31*F74*IF(C46=C47,90,AA30*DEGREES(ATAN($C$49/G70))) -> 0.00 | G70: =(G59*SIN((-E59+F6+C51)*PI()/180)*COS(C51*PI()/180)) -> 3.827794258 | O70: 2 | P70: =$AK$30*$AH$33*R40 -> 0.00 | Q70: =$AK$30*$AH$33*DEGREES(ATAN($R$44/R70)) -> 0.00 | R70: =R41 -> 10 | V70: 2 | W70: =(-90+F6)*AN30 -> 0.00 | X70: =IF(V46=0,90*AN30,DEGREES(ATAN(Y46/V46))*AN30) -> 0.00
D71: 3 | E71: =E70 -> 0.00 | F71: 0.00 | O71: 3 | P71: =P70 -> 0.00 | Q71: 0.00 | V71: 3 | W71: =W70 -> 0.00 | X71: =IF(AN30=0,0,90) -> 0.00
D72: 4 | E72: =E69 -> 0.00 | F72: 0.00 | O72: 4 | P72: =P69 -> 0.00 | Q72: 0.00 | V72: 4 | W72: =W69 -> 0.00 | X72: =IF(AN30=0,0,90) -> 0.00
E73: =E69 -> 0 | F73: =F69 -> 0 | P73: =P69 -> 0 | Q73: =Q69 -> 0 | W73: =W69 -> 0 | X73: =X69 -> 0
F74: =IF(E44="SI",1,0) -> 1 | N74: Obtáculo 3 | O74: 1 | P74: =IF(R49=0,0,AL30*S51*($F$6-DEGREES(ATAN((O47)/O49)))) -> 0 | Q74: =IF(R49=0,0,AL30*S51*DEGREES(ATAN($R$48/R69))) -> 0 | R74: =R69 -> 5
D75: x | E75: y | N75: Frontal | O75: 2 | P75: =IF(R49=0,0,AL30*S51*($F$6-(DEGREES(ATAN((O47+R49)/O49))))) -> 0 | Q75: =IF(R49=0,0,DEGREES(ATAN($R$48/R75))*AL30*S51) -> 0 | R75: =((O49^2)+(R49+O47)^2)^0.5 -> 0
C76: fachada | D76: 0 | E76: =C45 -> 5 | O76: 3 | P76: =P75 -> 0 | Q76: 0
D77: =C47 -> 10 | E77: =C45 -> 5 | O77: 4 | P77: =P74 -> 0 | Q77: 0
C78: lat der | D78: =D77 -> 10 | E78: =E77 -> 5 | P78: =P74 -> 0 | Q78: =Q74 -> 0
D79: =D78 -> 10 | E79: 0 | N79: Obtáculo 3 | O79: 1 | P79: =P74 -> 0 | Q79: =Q74 -> 0
C80: lat izq | D80: 0 | E80: =E76 -> 5 | N80: Lateral | O80: 2 | P80: =IF(R49=0,0,AL30*S51*($F$6-((DEGREES(ATAN((O47)/(O49+R50))))))) -> 0 | Q80: =IF(R49=0,0,DEGREES(ATAN($R$48/R80))*AL30*S51) -> 0 | R80: =((O47^2)+(O49+R50)^2)^0.5 -> 0
D81: 0 | E81: 0 | O81: 3 | P81: =P80 -> 0 | Q81: 0
C82: Frontal | D82: 0 | E82: 0 | O82: 4 | P82: =P79 -> 0 | Q82: 0
D83: =C47 -> 10 | E83: 0 | P83: =P79 -> 0 | Q83: =Q79 -> 0
C84: Ref | D84: =C46 -> 5 | E84: =C45 -> 5

Sheet Tablas primario (hidden)
B2: Tuberia de cobre sanitario
B3: Dim. Ext | C3: Dim int. | D3: espesor | E3: Volumen
B4: (mm) | C4: (mm) | D4: (mm) | E4: (litros/ml) | G4: cobre | H4: 560 | J4: paralelo
A5: 1 | B5: 15/13 | C5: 13 | D5: 1.00 | E5: =(PI()*(C5/2)*(C5/2)/10000)*10 -> 0.133 | G5: acero inox. | H5: 700 | J5: serie
A6: =A5+1 -> 2 | B6: 18/16 | C6: 16 | D6: 1.00 | E6: =(PI()*(C6/2)*(C6/2)/10000)*10 -> 0.201
A7: =A6+1 -> 3 | B7: 22/20 | C7: 20 | D7: 1.00 | E7: 0.314 | G7: agua | H7: 1.00
A8: 4 | B8: 28/26 | C8: 26 | D8: 1.20 | E8: 0.515 | G8: agua glicolada | H8: 1.30
A9: 5 | B9: 35/33 | C9: 33 | D9: 1.20 | E9: 0.835
A10: 6 | B10: 42/40 | C10: 40 | D10: 1.20 | E10: 1.232
A11: 7 | B11: 54/52 | C11: 52 | D11: 1.20 | E11: 2.091
B13: Acumulación centralizada
B14: Acumulación individual

Sheet Informe calculo
B2: INSTALACIÓN SOLAR TÉRMICA
B3: Informe de calculo de cumplimiento del CTE-HE4
B5: PROYECTO | D5: Ejemplo | O5: Cumple CTE | Q5: =IF(R5=1,"CUMPLE","NO CUMPLE") -> NO CUMPLE | R5: =I46*H57*H62*H63*H64*H66*H67 -> 0
B7: Localidad | D7: =IF('HE-4 SOLAR'!D11="Otra localidad (definida por usuario)",'Localidad Usuario'!D5,'HE-4 SOLAR'!D6) -> Madrid
B8: Zona climática s/ CTE-HE4 | D8: =IF('HE-4 SOLAR'!D11="Otra localidad (definida por usuario)","---",'HE-4 SOLAR'!D7) -> IV
B9: Zona Climática s/ CTE-HE1 | D9: =IF('HE-4 SOLAR'!D11="Otra localidad (definida por usuario)","---",'HE-4 SOLAR'!D8) -> D3
B10: Latitud de cálculo: | D10: ='HE-4 SOLAR'!D9 -> 40.4
B12: Método de calculo | D12: Método f-chart recogido en el Pliego de Condiciones Térmicas para Instalaciones de Baja Temperatura del IDAE
B13: Datos de radiación solar | D13: ='HE-4 SOLAR'!$D$11 -> Atlas Radiacion solar 2012 AEMET
B14: Datos de Tª del agua | D14: Anexo B del CTE-HE4 2013 para la localidad del edificio
B16: CALCULO DE NECESIDADES DE ACS
B18: Demanda de ACS viviendas | D18: ='HE-4 SOLAR'!L25 -> 2,344 | E18: litros/dia
B19: Demanda de ACS otros usos | D19: ='HE-4 SOLAR'!L26 -> 0 | E19: litros/dia
B21: Demanda TOTAL de ACS a 60ºC | D21: ='HE-4 SOLAR'!L28 -> 2,344 | E21: litros/dia
B23: Temperatura de agua en calculo | D23: ='HE-4 SOLAR'!D66 -> 60 | E23: ºC
B24: Demanda TOTAL de ACS a 60ºC | D24: ='HE-4 SOLAR'!D67 -> 2,344 | E24: litros/dia
D26: Ene | E26: Feb | F26: Mar | G26: Abr | H26: May | I26: Jun | J26: Jul | K26: Ago | L26: Sep | M26: Oct | N26: Nov | O26: Dic | P26: Anual
B27: % ocupación prevista | D27: 100.00% | E27: 100.00% | F27: 100.00% | G27: 100.00% | H27: 100.00% | I27: 100.00% | J27: 100.00% | K27: 100.00% | L27: 100.00% | M27: 100.00% | N27: 100.00% | O27: 100.00% | P27: =SUM(D27:O27)/12 -> 100.00%
B28: Consumo mensual de agua (l/mes) | D28: ='HE-4 SOLAR'!D95 -> 72,652 | E28: ='HE-4 SOLAR'!E95 -> 65,621 | F28: ='HE-4 SOLAR'!F95 -> 72,652 | G28: ='HE-4 SOLAR'!G95 -> 70,308 | H28: ='HE-4 SOLAR'!H95 -> 72,652 | I28: ='HE-4 SOLAR'!I95 -> 70,308 | J28: ='HE-4 SOLAR'!J95 -> 72,652 | K28: ='HE-4 SOLAR'!K95 -> 72,652 | L28: ='HE-4 SOLAR'!L95 -> 70,308 | M28: ='HE-4 SOLAR'!M95 -> 72,652 | N28: ='HE-4 SOLAR'!N95 -> 70,308 | O28: ='HE-4 SOLAR'!O95 -> 72,652 | P28: ='HE-4 SOLAR'!P95 -> 71,285
B30: EQUIPOS SELECCIONADOS
B32: Volumen de acumulación proyectado | D32: ='HE-4 SOLAR'!D81 -> 1,500 | E32: litros
B33: Nº de depositos | D33: ='HE-4 SOLAR'!D77 -> 1 Ud x | E33: ='HE-4 SOLAR'!D76 -> SD Interacumulador BDLE S/ 1500S
D34: =IF('HE-4 SOLAR'!D79=0,"",'HE-4 SOLAR'!D79) ->  | E34: =IF('HE-4 SOLAR'!D79=0,"",'HE-4 SOLAR'!D78) -> 
B36: Panel solar proyectado | D36: ='HE-4 SOLAR'!D41 -> 10 Ud x | E36: ='HE-4 SOLAR'!D45 -> GREENHEISS GH Class 25V
B37: Factores de rendimiento del panel | D37: K0 | E37: =VLOOKUP($E$36,Captadores!$B$8:$G$58,4,FALSE) -> 0.770 | F37: K1 | G37: =VLOOKUP($E$36,Captadores!$B$8:$G$58,5,FALSE) -> 3.911 | H37: K2 | I37: =VLOOKUP($E$36,Captadores!$B$8:$G$58,6,FALSE) -> 0.010
B38: Número de grupos | D38: ='HE-4 SOLAR'!D47 -> 2
B39: Nüemro de paneles por grupo | D39: ='HE-4 SOLAR'!D48 -> 5
B41: Sistema de disipación de calor | D41: ='HE-4 SOLAR'!D84:G84 -> Sistema Drain-Back | H41: Potencia | I41: =IF(D41="Sin disipador",0,'HE-4 SOLAR'!D85) -> 24.00 kW
B43: Superficie de captación del panel (m²) | D43: ='HE-4 SOLAR'!D50 -> 2.32 | E43: m2
B45: Area total de captación proyectada (m2) | D45: ='HE-4 SOLAR'!D54 -> 23.20 | E45: m2
B46: Relación Volumen/área captación | D46: ='HE-4 SOLAR'!D82 -> 64.66 | E46: Valor entre 50 y 180 | G46: ='HE-4 SOLAR'!I82 -> CUMPLE | I46: =IF(G46="CUMPLE",1,0) -> 1
B48: Orientación de los captadores | D48: ='HE-4 SOLAR'!D40 -> 40 | E48: grados respecto al Sur
B49: Inclinación de los captadores | D49: ='HE-4 SOLAR'!D39 -> 35 | E49: grados de inclinación
B51: CUMPLIMIENTO DEL CTE HE4
D53: Ene | E53: Feb | F53: Mar | G53: Abr | H53: May | I53: Jun | J53: Jul | K53: Ago | L53: Sep | M53: Oct | N53: Nov | O53: Dic | P53: Anual
B54: % energía aportado por el sistema solar | D54: ='HE-4 SOLAR'!F55 -> 20.91% | E54: ='HE-4 SOLAR'!G55 -> 30.73% | F54: ='HE-4 SOLAR'!H55 -> 42.75% | G54: ='HE-4 SOLAR'!I55 -> 49.37% | H54: ='HE-4 SOLAR'!J55 -> 54.59% | I54: ='HE-4 SOLAR'!K55 -> 64.80% | J54: ='HE-4 SOLAR'!L55 -> 72.51% | K54: ='HE-4 SOLAR'!M55 -> 68.10% | L54: ='HE-4 SOLAR'!N55 -> 58.25% | M54: ='HE-4 SOLAR'!O55 -> 39.79% | N54: ='HE-4 SOLAR'!P55 -> 26.38% | O54: ='HE-4 SOLAR'!Q55 -> 17.44% | P54: ='HE-4 SOLAR'!D43 -> 45.25%
D56: Mínimo | E56: Proyectado
B57: Contribución anual del sistema | D57: ='HE-4 SOLAR'!F43 -> 50% | E57: =P54 -> 45.25% | F57: ='HE-4 SOLAR'!E139 -> NO CUMPLE | H57: =IF(F57="CUMPLE",1,0) -> 0
B59: Disposición del modulo solar | D59: ='HE-4 SOLAR'!D144:E144 -> General
D61: Maximo | E61: Proyectado
B62: Perdidas por orientación e inclinación | D62: ='HE-4 SOLAR'!D146 -> 10% | E62: ='HE-4 SOLAR'!D147 -> 5.95% | F62: ='HE-4 SOLAR'!E147 -> CUMPLE | H62: =IF(F62="CUMPLE",1,0) -> 1
B63: Perdida límite por sombras | D63: ='HE-4 SOLAR'!D149 -> 10% | E63: ='HE-4 SOLAR'!D150 -> 0.00% | F63: ='HE-4 SOLAR'!E150 -> CUMPLE | H63: =IF(F63="CUMPLE",1,0) -> 1
B64: Perdida límite TOTAL | D64: ='HE-4 SOLAR'!D152 -> 15% | E64: ='HE-4 SOLAR'!D153 -> 5.95% | F64: ='HE-4 SOLAR'!E153 -> CUMPLE | H64: =IF(F64="CUMPLE",1,0) -> 1
B66: Ningún mes supera una contribucion del 110% | D66: max | E66: =MAX(D54:O54) -> 72.51% | F66: ='HE-4 SOLAR'!D157 -> CUMPLE | H66: =IF(F66="NO CUMPLE",0,1) -> 1
B67: < 100% de contribución en más de 3 meses seguidos | F67: ='HE-4 SOLAR'!D159 -> CUMPLE | H67: =IF(F67="NO CUMPLE",0,1) -> 1
B69: Consumo de enrgía convencional | D69: ='HE-4 SOLAR'!D126 -> 27,139 | E69: kWh/año
B70: Porcentaje de uso de energía convencional | D70: =1-E57 -> 54.75%
B72: CALCULO DE LA APORTACIÓN POR EL MÉTODO F-CHART
B74: Estimación perdidas térmicas del circuito | D74: ='HE-4 SOLAR'!D68 -> 4% | F74: Ecuación de la fracción de carga calorífica mensual aportada: f = 1,029D1 - 0,065D2 - 0,245D1² + 0,0018D2² + 0,215D1³
B76: ='HE-4 SOLAR'!B92 -> DEMANDA POR CONSUMO A.C.S | D76: Ene | E76: Feb | F76: Mar | G76: Abr | H76: May | I76: Jun | J76: Jul | K76: Ago | L76: Sep | M76: Oct | N76: Nov | O76: Dic | P76: Anual
B77: Energía necesaria por consumo de ACS (kWh) | D77: ='HE-4 SOLAR'!D98 -> 4,382 | E77: ='HE-4 SOLAR'!E98 -> 3,958 | F77: ='HE-4 SOLAR'!F98 -> 4,214 | G77: ='HE-4 SOLAR'!G98 -> 3,915 | H77: ='HE-4 SOLAR'!H98 -> 3,877 | I77: ='HE-4 SOLAR'!I98 -> 3,507 | J77: ='HE-4 SOLAR'!J98 -> 3,371 | K77: ='HE-4 SOLAR'!K98 -> 3,455 | L77: ='HE-4 SOLAR'!L98 -> 3,507 | M77: ='HE-4 SOLAR'!M98 -> 3,961 | N77: ='HE-4 SOLAR'!N98 -> 4,078 | O77: ='HE-4 SOLAR'!O98 -> 4,382 | P77: ='HE-4 SOLAR'!P98 -> 3,884 | Q77: kWh/mes
B78: ='HE-4 SOLAR'!B99 -> Mayoración pérdidas de Intercambio y Circulación | D78: ='HE-4 SOLAR'!D99 -> 4,558 | E78: ='HE-4 SOLAR'!E99 -> 4,117 | F78: ='HE-4 SOLAR'!F99 -> 4,382 | G78: ='HE-4 SOLAR'!G99 -> 4,071 | H78: ='HE-4 SOLAR'!H99 -> 4,032 | I78: ='HE-4 SOLAR'!I99 -> 3,647 | J78: ='HE-4 SOLAR'!J99 -> 3,506 | K78: ='HE-4 SOLAR'!K99 -> 3,594 | L78: ='HE-4 SOLAR'!L99 -> 3,647 | M78: ='HE-4 SOLAR'!M99 -> 4,119 | N78: ='HE-4 SOLAR'!N99 -> 4,241 | O78: ='HE-4 SOLAR'!O99 -> 4,558 | P78: ='HE-4 SOLAR'!P99 -> 4,039 | Q78: kWh/mes
B80: ='HE-4 SOLAR'!B101 -> ENERGIA ABSORBIDA POR CAPTADORES | D80: Ene | E80: Feb | F80: Mar | G80: Abr | H80: May | I80: Jun | J80: Jul | K80: Ago | L80: Sep | M80: Oct | N80: Nov | O80: Dic | P80: Anual
B81: ='HE-4 SOLAR'!B105 -> Factor de corrección por inclinación (k) | D81: ='HE-4 SOLAR'!D105 -> 1.37 | E81: ='HE-4 SOLAR'!E105 -> 1.28 | F81: ='HE-4 SOLAR'!F105 -> 1.17 | G81: ='HE-4 SOLAR'!G105 -> 1.06 | H81: ='HE-4 SOLAR'!H105 -> 0.98 | I81: ='HE-4 SOLAR'!I105 -> 0.95 | J81: ='HE-4 SOLAR'!J105 -> 0.98 | K81: ='HE-4 SOLAR'!K105 -> 1.07 | L81: ='HE-4 SOLAR'!L105 -> 1.21 | M81: ='HE-4 SOLAR'!M105 -> 1.37 | N81: ='HE-4 SOLAR'!N105 -> 1.47 | O81: ='HE-4 SOLAR'!O105 -> 1.45 | P81: ='HE-4 SOLAR'!P105 -> 1.20
B82: ='HE-4 SOLAR'!B106 -> Factor de corrección por orientación | D82: ='HE-4 SOLAR'!D106 -> 0.94 | E82: ='HE-4 SOLAR'!E106 -> 0.94 | F82: ='HE-4 SOLAR'!F106 -> 0.94 | G82: ='HE-4 SOLAR'!G106 -> 0.94 | H82: ='HE-4 SOLAR'!H106 -> 0.94 | I82: ='HE-4 SOLAR'!I106 -> 0.94 | J82: ='HE-4 SOLAR'!J106 -> 0.94 | K82: ='HE-4 SOLAR'!K106 -> 0.94 | L82: ='HE-4 SOLAR'!L106 -> 0.94 | M82: ='HE-4 SOLAR'!M106 -> 0.94 | N82: ='HE-4 SOLAR'!N106 -> 0.94 | O82: ='HE-4 SOLAR'!O106 -> 0.94 | P82: ='HE-4 SOLAR'!P106 -> 0.94
B83: ='HE-4 SOLAR'!B107 -> Factor de corrección por sombras | D83: ='HE-4 SOLAR'!D107 -> 1.00 | E83: ='HE-4 SOLAR'!E107 -> 1.00 | F83: ='HE-4 SOLAR'!F107 -> 1.00 | G83: ='HE-4 SOLAR'!G107 -> 1.00 | H83: ='HE-4 SOLAR'!H107 -> 1.00 | I83: ='HE-4 SOLAR'!I107 -> 1.00 | J83: ='HE-4 SOLAR'!J107 -> 1.00 | K83: ='HE-4 SOLAR'!K107 -> 1.00 | L83: ='HE-4 SOLAR'!L107 -> 1.00 | M83: ='HE-4 SOLAR'!M107 -> 1.00 | N83: ='HE-4 SOLAR'!N107 -> 1.00 | O83: ='HE-4 SOLAR'!O107 -> 1.00 | P83: ='HE-4 SOLAR'!P107 -> 1.00
B84: ='HE-4 SOLAR'!B108 -> Factor de corección total | D84: ='HE-4 SOLAR'!D108 -> 1.29 | E84: ='HE-4 SOLAR'!E108 -> 1.21 | F84: ='HE-4 SOLAR'!F108 -> 1.10 | G84: ='HE-4 SOLAR'!G108 -> 1.00 | H84: ='HE-4 SOLAR'!H108 -> 0.93 | I84: ='HE-4 SOLAR'!I108 -> 0.90 | J84: ='HE-4 SOLAR'!J108 -> 0.93 | K84: ='HE-4 SOLAR'!K108 -> 1.01 | L84: ='HE-4 SOLAR'!L108 -> 1.14 | M84: ='HE-4 SOLAR'!M108 -> 1.29 | N84: ='HE-4 SOLAR'!N108 -> 1.39 | O84: ='HE-4 SOLAR'!O108 -> 1.37 | P84: ='HE-4 SOLAR'!P108 -> 1.13
B85: ='HE-4 SOLAR'!B109 -> Radiación solar incidente (KWh/m² mes) | D85: ='HE-4 SOLAR'!D109 -> 91 | E85: ='HE-4 SOLAR'!E109 -> 110 | F85: ='HE-4 SOLAR'!F109 -> 159 | G85: ='HE-4 SOLAR'!G109 -> 173 | H85: ='HE-4 SOLAR'!H109 -> 190 | I85: ='HE-4 SOLAR'!I109 -> 209 | J85: ='HE-4 SOLAR'!J109 -> 231 | K85: ='HE-4 SOLAR'!K109 -> 220 | L85: ='HE-4 SOLAR'!L109 -> 188 | M85: ='HE-4 SOLAR'!M109 -> 143 | N85: ='HE-4 SOLAR'!N109 -> 101 | O85: ='HE-4 SOLAR'!O109 -> 79 | P85: ='HE-4 SOLAR'!P109 -> 158 | Q85: KWh/m² mes
B86: ='HE-4 SOLAR'!B110 -> Radiación solar absorvida (KWh/mes) | D86: ='HE-4 SOLAR'!D110 -> 1,485 | E86: ='HE-4 SOLAR'!E110 -> 1,794 | F86: ='HE-4 SOLAR'!F110 -> 2,598 | G86: ='HE-4 SOLAR'!G110 -> 2,816 | H86: ='HE-4 SOLAR'!H110 -> 3,088 | I86: ='HE-4 SOLAR'!I110 -> 3,397 | J86: ='HE-4 SOLAR'!J110 -> 3,762 | K86: ='HE-4 SOLAR'!K110 -> 3,576 | L86: ='HE-4 SOLAR'!L110 -> 3,058 | M86: ='HE-4 SOLAR'!M110 -> 2,329 | N86: ='HE-4 SOLAR'!N110 -> 1,651 | O86: ='HE-4 SOLAR'!O110 -> 1,295 | P86: ='HE-4 SOLAR'!P110 -> 2,571 | Q86: KWh/mes
B88: ='HE-4 SOLAR'!B113 -> CALCULO DE ENERGIA APORTADA | D88: Ene | E88: Feb | F88: Mar | G88: Abr | H88: May | I88: Jun | J88: Jul | K88: Ago | L88: Sep | M88: Oct | N88: Nov | O88: Dic | P88: Anual
B89: ='HE-4 SOLAR'!B115 -> Relación radiación absorvida y ener. demandada | D89: ='HE-4 SOLAR'!D115 -> 0.33 | E89: ='HE-4 SOLAR'!E115 -> 0.44 | F89: ='HE-4 SOLAR'!F115 -> 0.59 | G89: ='HE-4 SOLAR'!G115 -> 0.69 | H89: ='HE-4 SOLAR'!H115 -> 0.77 | I89: ='HE-4 SOLAR'!I115 -> 0.93 | J89: ='HE-4 SOLAR'!J115 -> 1.07 | K89: ='HE-4 SOLAR'!K115 -> 1.00 | L89: ='HE-4 SOLAR'!L115 -> 0.84 | M89: ='HE-4 SOLAR'!M115 -> 0.57 | N89: ='HE-4 SOLAR'!N115 -> 0.39 | O89: ='HE-4 SOLAR'!O115 -> 0.28 | P89: ='HE-4 SOLAR'!P115 -> 0.64 | Q89: valor D1
B90: ='HE-4 SOLAR'!B116 -> Factor de corrección por almacenamiento | D90: ='HE-4 SOLAR'!D116 -> 1.04 | E90: ='HE-4 SOLAR'!E116 -> 1.04 | F90: ='HE-4 SOLAR'!F116 -> 1.04 | G90: ='HE-4 SOLAR'!G116 -> 1.04 | H90: ='HE-4 SOLAR'!H116 -> 1.04 | I90: ='HE-4 SOLAR'!I116 -> 1.04 | J90: ='HE-4 SOLAR'!J116 -> 1.04 | K90: ='HE-4 SOLAR'!K116 -> 1.04 | L90: ='HE-4 SOLAR'!L116 -> 1.04 | M90: ='HE-4 SOLAR'!M116 -> 1.04 | N90: ='HE-4 SOLAR'!N116 -> 1.04 | O90: ='HE-4 SOLAR'!O116 -> 1.04 | P90: ='HE-4 SOLAR'!P116 -> 1.04 | Q90: valor K1
B91: ='HE-4 SOLAR'!B117 -> Factor de corrección para acs según su temperatura | D91: ='HE-4 SOLAR'!D117 -> 1.06 | E91: ='HE-4 SOLAR'!E117 -> 1.03 | F91: ='HE-4 SOLAR'!F117 -> 1.07 | G91: ='HE-4 SOLAR'!G117 -> 1.13 | H91: ='HE-4 SOLAR'!H117 -> 1.15 | I91: ='HE-4 SOLAR'!I117 -> 1.23 | J91: ='HE-4 SOLAR'!J117 -> 1.31 | K91: ='HE-4 SOLAR'!K117 -> 1.29 | L91: ='HE-4 SOLAR'!L117 -> 1.26 | M91: ='HE-4 SOLAR'!M117 -> 1.15 | N91: ='HE-4 SOLAR'!N117 -> 1.07 | O91: ='HE-4 SOLAR'!O117 -> 1.04 | P91: ='HE-4 SOLAR'!P117 -> 1.15 | Q91: valor K2
B92: ='HE-4 SOLAR'!B118 -> Energia mensual perdida por el captador | D92: ='HE-4 SOLAR'!D118 -> 7,120 | E92: ='HE-4 SOLAR'!E118 -> 6,131 | F92: ='HE-4 SOLAR'!F118 -> 6,842 | G92: ='HE-4 SOLAR'!G118 -> 6,835 | H92: ='HE-4 SOLAR'!H118 -> 6,785 | I92: ='HE-4 SOLAR'!I118 -> 6,565 | J92: ='HE-4 SOLAR'!J118 -> 6,782 | K92: ='HE-4 SOLAR'!K118 -> 6,838 | L92: ='HE-4 SOLAR'!L118 -> 6,886 | M92: ='HE-4 SOLAR'!M118 -> 7,007 | N92: ='HE-4 SOLAR'!N118 -> 6,621 | O92: ='HE-4 SOLAR'!O118 -> 6,954 | P92: ='HE-4 SOLAR'!P118 -> 6,781 | Q92: KWh/mes
B93: ='HE-4 SOLAR'!B119 -> Relación entre energía perdida y demanda mensual | D93: ='HE-4 SOLAR'!D119 -> 1.62 | E93: ='HE-4 SOLAR'!E119 -> 1.55 | F93: ='HE-4 SOLAR'!F119 -> 1.62 | G93: ='HE-4 SOLAR'!G119 -> 1.75 | H93: ='HE-4 SOLAR'!H119 -> 1.75 | I93: ='HE-4 SOLAR'!I119 -> 1.87 | J93: ='HE-4 SOLAR'!J119 -> 2.01 | K93: ='HE-4 SOLAR'!K119 -> 1.98 | L93: ='HE-4 SOLAR'!L119 -> 1.96 | M93: ='HE-4 SOLAR'!M119 -> 1.77 | N93: ='HE-4 SOLAR'!N119 -> 1.62 | O93: ='HE-4 SOLAR'!O119 -> 1.59 | P93: ='HE-4 SOLAR'!P119 -> 1.76 | Q93: valor D2
B94: ='HE-4 SOLAR'!B120 -> Porcentaje de energía aportado por el sistema solar | D94: ='HE-4 SOLAR'!D120 -> 0.21 | E94: ='HE-4 SOLAR'!E120 -> 0.31 | F94: ='HE-4 SOLAR'!F120 -> 0.43 | G94: ='HE-4 SOLAR'!G120 -> 0.49 | H94: ='HE-4 SOLAR'!H120 -> 0.55 | I94: ='HE-4 SOLAR'!I120 -> 0.65 | J94: ='HE-4 SOLAR'!J120 -> 0.73 | K94: ='HE-4 SOLAR'!K120 -> 0.68 | L94: ='HE-4 SOLAR'!L120 -> 0.58 | M94: ='HE-4 SOLAR'!M120 -> 0.40 | N94: ='HE-4 SOLAR'!N120 -> 0.26 | O94: ='HE-4 SOLAR'!O120 -> 0.17 | P94: ='HE-4 SOLAR'!P120 -> 0.45 | Q94: valor f en %
B96: ='HE-4 SOLAR'!B122 -> Energía necesaria por consumo de ACS (kWh) | D96: ='HE-4 SOLAR'!D122 -> 4,558 | E96: ='HE-4 SOLAR'!E122 -> 4,117 | F96: ='HE-4 SOLAR'!F122 -> 4,382 | G96: ='HE-4 SOLAR'!G122 -> 4,071 | H96: ='HE-4 SOLAR'!H122 -> 4,032 | I96: ='HE-4 SOLAR'!I122 -> 3,647 | J96: ='HE-4 SOLAR'!J122 -> 3,506 | K96: ='HE-4 SOLAR'!K122 -> 3,594 | L96: ='HE-4 SOLAR'!L122 -> 3,647 | M96: ='HE-4 SOLAR'!M122 -> 4,119 | N96: ='HE-4 SOLAR'!N122 -> 4,241 | O96: ='HE-4 SOLAR'!O122 -> 4,558 | P96: ='HE-4 SOLAR'!P122 -> 4,039 | Q96: kWh/mes
B97: ='HE-4 SOLAR'!B123 -> Energía aportada por el sistema solar | D97: ='HE-4 SOLAR'!D123 -> 953 | E97: ='HE-4 SOLAR'!E123 -> 1,265 | F97: ='HE-4 SOLAR'!F123 -> 1,874 | G97: ='HE-4 SOLAR'!G123 -> 2,010 | H97: ='HE-4 SOLAR'!H123 -> 2,201 | I97: ='HE-4 SOLAR'!I123 -> 2,363 | J97: ='HE-4 SOLAR'!J123 -> 2,542 | K97: ='HE-4 SOLAR'!K123 -> 2,447 | L97: ='HE-4 SOLAR'!L123 -> 2,125 | M97: ='HE-4 SOLAR'!M123 -> 1,639 | N97: ='HE-4 SOLAR'!N123 -> 1,119 | O97: ='HE-4 SOLAR'!O123 -> 795 | P97: ='HE-4 SOLAR'!P123 -> 2,571 | Q97: kWh/mes
B98: ='HE-4 SOLAR'!B124 -> Energia aportada por sistema de apoyo | D98: ='HE-4 SOLAR'!D124 -> 3,605 | E98: ='HE-4 SOLAR'!E124 -> 2,851 | F98: ='HE-4 SOLAR'!F124 -> 2,509 | G98: ='HE-4 SOLAR'!G124 -> 2,061 | H98: ='HE-4 SOLAR'!H124 -> 1,831 | I98: ='HE-4 SOLAR'!I124 -> 1,284 | J98: ='HE-4 SOLAR'!J124 -> 964 | K98: ='HE-4 SOLAR'!K124 -> 1,146 | L98: ='HE-4 SOLAR'!L124 -> 1,523 | M98: ='HE-4 SOLAR'!M124 -> 2,480 | N98: ='HE-4 SOLAR'!N124 -> 3,122 | O98: ='HE-4 SOLAR'!O124 -> 3,763 | P98: ='HE-4 SOLAR'!P124 -> 2,262 | Q98: kWh/mes
B100: ='HE-4 SOLAR'!B126 -> Energia anual aportada por sistema de apoyo | D100: ='HE-4 SOLAR'!D126 -> 27,139 | E100: ='HE-4 SOLAR'!E126 -> kWh/año | I100: ='HE-4 SOLAR'!G126 -> Emisiones del sistema de referencia | M100: ='HE-4 SOLAR'!K126 -> 9,174 | N100: kgCO2/año
B102: ESTUDIO DE SOMBRAS SOBRE CARTA SOLAR CILINDRICA | I102: CIRCUITO PRIMARIO
B104: % Obstrucción solar global en Invierno | D104: =Sombras!Y29 -> 0.00% | I104: DATOS DE SELECCIÓN DEL EQUIPO DE BOMBEO
B105: % Obstruccion solar global en Verano | D105: =Sombras!Y30 -> 0.00%
I106: Caudal | L106: ='C. Primario'!I10 -> 1.16 m3/h
B107: % Obstruccion solar global Anual | D107: =P129 -> 0.00% | I107: Perdida de carga | L107: ='C. Primario'!I11 -> 5.23 mca
I109: DATOS DE SELECCIÓN PARA EL INTERCAMBIADOR
I111: Superficie min. de intercambio | L111: =0.15*'HE-4 SOLAR'!D54 -> 3.48 m² | N111: (aplicable a serpentines)
I112: Potencia min. Intercambiador | L112: =MAX(0.6*'HE-4 SOLAR'!D54,500*'HE-4 SOLAR'!D54/1000) -> 13.92 kW | N112: (aplicable a intercambiadores de placas)
I114: DATOS DE SELECCIÓN DEL | L114: =IF('C. Primario'!D9=0,"DRAIN BACK","VASO DE EXPANSIÓN") -> DRAIN BACK
I116: Volumen mínimo | L116: ='C. Primario'!O10 -> 94.10 litros
I117: Presion valvula seguridad | L117: ='C. Primario'!O6 -> 10.00 bar
I119: Volumen en circuito (litros) | L119: ='C. Primario'!O12 -> 167.01 litros
I120: Volumen dilatado (litros) | L120: ='C. Primario'!O13 -> 14.20 litros
I121: Volumen de reserva (litros) | L121: ='C. Primario'!O14 -> 4.84 litros
I122: Volumen vaporizado (litros) | L122: ='C. Primario'!O15 -> 14.74 litros
I124: 15/13 | J124: 18/16 | K124: 22/20 | L124: 28/26 | M124: 35/33 | N124: 42/40 | O124: 54/52 | P124: Diámetro tubería
I125: ='C. Primario'!AB2 -> 0 | J125: ='C. Primario'!AC2 -> 0 | K125: ='C. Primario'!AD2 -> 25 | L125: ='C. Primario'!AE2 -> 85 | M125: ='C. Primario'!AF2 -> 0 | N125: ='C. Primario'!AG2 -> 0 | O125: ='C. Primario'!AH2 -> 0 | P125: ml de tuberia Cir. Primario
D127: Ene | E127: Feb | F127: Mar | G127: Abr | H127: May | I127: Jun | J127: Jul | K127: Ago | L127: Sep | M127: Oct | N127: Nov | O127: Dic | P127: Anual
B128: % Obstruccion sobre radiación DIRECTA | D128: =Sombras!H29 -> 0.00% | E128: =Sombras!I29 -> 0.00% | F128: =Sombras!J29 -> 0.00% | G128: =Sombras!K29 -> 0.00% | H128: =Sombras!L29 -> 0.00% | I128: =Sombras!M29 -> 0.00% | J128: =Sombras!N29 -> 0.00% | K128: =Sombras!O29 -> 0.00% | L128: =Sombras!P29 -> 0.00% | M128: =Sombras!Q29 -> 0.00% | N128: =Sombras!R29 -> 0.00% | O128: =Sombras!S29 -> 0.00% | P128: =1-'Posicion solar'!C863 -> 0.00%
B129: % Obstruccion sobre radiación GLOBAL | D129: =Sombras!H30 -> 0.00% | E129: =Sombras!I30 -> 0.00% | F129: =Sombras!J30 -> 0.00% | G129: =Sombras!K30 -> 0.00% | H129: =Sombras!L30 -> 0.00% | I129: =Sombras!M30 -> 0.00% | J129: =Sombras!N30 -> 0.00% | K129: =Sombras!O30 -> 0.00% | L129: =Sombras!P30 -> 0.00% | M129: =Sombras!Q30 -> 0.00% | N129: =Sombras!R30 -> 0.00% | O129: =Sombras!S30 -> 0.00% | P129: =1-'Posicion solar'!C864 -> 0.00%

Sheet C. Primario
AB1: 15/13 | AC1: 18/16 | AD1: 22/20 | AE1: 28/26 | AF1: 35/33 | AG1: 42/40 | AH1: 54/52
B2: CIRCUITO PRIMARIO SOLAR (conexión captador con intercambiador o drainback) | T2: Factor aumento por retorno | Y2: 1.00 | AB2: =$Y$2*SUM(AF17:AF119970) -> 0 | AC2: 0 | AD2: 25 | AE2: 85 | AF2: 0 | AG2: 0 | AH2: 0
W3: Volumen captador | X3: =VLOOKUP('HE-4 SOLAR'!$D$45,Captadores!$B$8:$I$58,8,FALSE) -> 1.34
B4: Número total de captadores | C4: ='HE-4 SOLAR'!D41 -> 10 | D4: =MAX(AC:AC) -> 10 | F4: Datos selección bomba | L4: Datos Vaso de expansión o Drain Back | W4: Volumen total captadores | X4: =X3*C4 -> 13.4 | AU4: Primario | AV4: Wilo Yonos | AW4: General
B5: Superficie de captación | C5: ='HE-4 SOLAR'!D54 -> 23.20 m² | F5: Perdida de carga lineal | I5: =SUM(AD$3:AD$1048576)*$Y$2 -> 2.93 mca | L5: Coeficiente exp. fluido | O5: 0.085 | W5: Serpentin 1 | X5: =IF(VLOOKUP('HE-4 SOLAR'!D76,Acumuladores!$B$8:$I$55,8,FALSE)="---",0,(VLOOKUP('HE-4 SOLAR'!D76,Acumuladores!$B$8:$I$55,8,FALSE))) -> 17 | Y5: num 1 | Z5: ='HE-4 SOLAR'!D77 -> 1 | AV5: Wilo Maxo | AW5: Gran caudal
B6: Caudal por captador | C6: =VLOOKUP('HE-4 SOLAR'!$D$45,Captadores!$B$8:$J$58,9,FALSE) -> 50.00 l/h m2 | F6: Perdida intercambiador | I6: 2.00 mca | L6: Tarado valvula seguridad | O6: 10.00 bar | W6: Serpentin 2 | X6: =IF('HE-4 SOLAR'!D78="","0",VLOOKUP('HE-4 SOLAR'!D78:G78,Acumuladores!$B$8:$I$55,8,FALSE)) -> 0 | Y6: num 1 | Z6: ='HE-4 SOLAR'!D78 -> 0 | AV6: Stratos
B7: Caudal total | C7: =C5*C6 -> 1,160.00 l/h | D7: =C7/3600 -> 0.3222222222 | F7: Perdida captadores | I7: 0.03 mca | L7: Columna encima del vaso | O7: 15.00 m | W7: Serpentin ?¿? | X7: =IF(X5+X6<>0,"SI","NO") -> SI | AU7: ACS | AV7: Stratos Z | AW7: Recirculacion
B8: Fluido caloportador | C8: agua glicolada | D8: =IF(C8="agua",1,1.3) -> 1.3 | F8: Montaje de captadores | I8: paralelo | L8: Volumen interc. placas | O8: 4.00 litros | W8: Volumen intercambiador | X8: =IF(X7="SI",(X5*Z5)+(X6*Z6),O8) -> 17
B9: Velocidad del fluido | C9: 1.50 m/s | D9: =IF('HE-4 SOLAR'!D84="Disipador dinámico",1,0) -> 0 | E9: =IF('HE-4 SOLAR'!D84="Disipador dinámico",'HE-4 SOLAR'!G85&">>>",0) -> 0 | F9: Perdida carga adicional | I9: 0.27 mca | W9: Volumen en equipos (litros) | X9: =X4+X8 -> 30.4
B10: Tipo de tubería | C10: cobre | D10: =IF(C10="cobre",1,1.25) -> 1.00 | F10: Caudal de la bomba | I10: =C7*0.001 -> 1.16 m3/h | L10: Volumen min del vaso | O10: =X11*O11*X13 -> 94.10 litros | W10: Presion absoluta final (Kg/cm2) | X10: =MIN((O6*0.9)+1,0.65*O6) -> 6.50
B11: Perdida de carga maxima (mmca /m) | C11: 38 | F11: Perdida de carga TOTAL | I11: =IF(I8="paralelo",I5+(('HE-4 SOLAR'!D77+'HE-4 SOLAR'!D79)*I6)+I7+I9,(I5+(('HE-4 SOLAR'!D77+'HE-4 SOLAR'!D79)*I6)+I9+('HE-4 SOLAR'!D48*I7))) -> 5.23 mca | L11: Coeficiente de presión | O11: =X10/(X10-X12) -> 1.86 | W11: Volumen util | X11: =O13+O14+O15 -> 33.78
A12: =IF('HE-4 SOLAR'!L31='Tablas primario'!B14,1,0) -> 0 | B12: Caudal por acumulador ind. | C12: =C7/'HE-4 SOLAR'!Q23 -> 58.00 l/h | L12: Volumen en circuito (litros) | O12: =(SUM(AE:AE)*$Y$2)+X9 -> 167.01 | W12: Presion absoluta inicial (Kg/cm2) | X12: =0.5+1+(O7/10) -> 3
F13: Nota: se considera un sistema cerrado (presurizado) | L13: Volumen dilatado (litros) | O13: =O12*O5 -> 14.20 | W13: coeficiente seguridad | X13: 1.5
F14: no se considera la perdida de carga por altura geometrica | L14: Volumen de reserva (litros) | O14: =MAX(3,0.029*O12) -> 4.84
L15: Volumen vaporizado (litros) | O15: =X4*1.1 -> 14.74 | AA15: http://www.wilo.es/instalador-hotwater/productos/?tx_wproducts_general%5Bproduct%5D=524&tx_wproducts_general%5Baction%5D=show&cHash=ad46cec350bed1d03e8485082a150ee5#.WdgF41u0OUk | AJ15: http://productfinder.wilo.com/es/es/c0000003a0003b16700010023/product.html#tab=4
T16: ( en rojo los diámetros que superan la velocidad o perdida de carga máxima)
B17: Tramo | C17: Núm. Captadores | D17: Caudal | E17: Longitud | F17: Parte del | G17: Caudal | H17: Velocidad | I17: Diámetro | J17: Serie | K17: Serie | L17: Diámetro | M17: Velocidad | N17: Pérdida | O17: +25% | P17: Pérdida | Q17: Pérdida | R17: Volumen | T17: D ext | U17: 15/13 | V17: 18/16 | W17: 22/20 | X17: 28/26 | Y17: 35/33 | Z17: 42/40 | AA17: 54/52 | AB17: =INDEX(U17:AA17,1,MAX(MATCH(AB20,U17:AA17,0),MATCH(AB19,U17:AA17,0))) -> 28/26
B18: Descripcion | C18: a los que da | D18: adicional | E18: del tramo | F18: tramo mas | G18: TOTAL | H18: Máxima | I18: Teórico Int | J18: nominal | K18: nominal | L18: Nom. Int. | M18: Cálculo | N18: Tubería | O18: Accesorios | P18: Total | Q18: TOTAL | R18: fluido | T18: D int | U18: 13 | V18: 16 | W18: 20 | X18: 26 | Y18: 33 | Z18: 40 | AA18: 52 | AF18: =IF(K20=$AB$1,1,0)*E20 -> 0 | AG18: =IF(K20=$AC$1,1,0)*E20 -> 0 | AH18: =IF(K20=$AD$1,1,0)*E20 -> 0 | AI18: =IF(K20=$AE$1,1,0)*E20 -> 40 | AJ18: =IF(K20=$AF$1,1,0)*E20 -> 0 | AK18: =IF(K20=$AG$1,1,0)*E20 -> 0 | AL18: =IF(K20=$AH$1,1,0)*E20 -> 0
C19: servicio el tramo | D19: l/h | E19: (m) | F19: desfavorable | G19: (l/s) | H19: (m/s) | I19: (mm) | J19: CALCULO | K19: SELEC. | L19: (mm) | M19: (m/s) | N19: (mca /m) | O19: (mca) | P19: (mca) | Q19: (KPa) | R19: (litros) | T19: v (m/s) | U19: =4000*G20/(PI()*U18*U18) -> 2.43 | V19: =4000*G20/(PI()*V18*V18) -> 1.60 | W19: =4000*G20/(PI()*W18*W18) -> 1.03 | X19: =4000*G20/(PI()*X18*X18) -> 0.63 | Y19: =4000*G20/(PI()*Y18*Y18) -> 0.39 | Z19: =4000*G20/(PI()*Z18*Z18) -> 0.26 | AA19: =4000*G20/(PI()*AA18*AA18) -> 0.15 | AB19: =IF(U19<2,U17,INDEX(U17:AA17,1,MATCH(H20,U19:AA19,-1)+1)) -> 22/20
B20: ida / 8 captadores | C20: =$C$4 -> 10 | D20: 0 | E20: 40.00 | F20: SI | G20: =($C$6*($C$5/$C$4)*C20 + D20)/3600 -> 0.32 | H20: =$C$9 -> 1.50 | I20: =(4000*G20/(PI()*$H$20))^0.5 -> 16.54 | J20: =AB17 -> 28/26 | K20: =J20 -> 28/26 | L20: =VLOOKUP(K20,'Tablas primario'!$B$5:$C$11,2,FALSE) -> 25.60 | M20: =4000*G20/(PI()*L20*L20) -> 0.63 | N20: =$D$10*$D$8*(378*((G20*3600)^1.75)*(L20^-4.75)/1000) -> 0.023 | O20: =N20*0.25 -> 0.006 | P20: =(N20+O20)*E20 -> 1.16 | Q20: =P20*9.8 -> 11.36 | R20: =E20*VLOOKUP(K20,'Tablas primario'!$B$5:$E$11,4,FALSE) -> 20.59 | T20: mca /m | U20: =$D$10*$D$8*(378*((G20*3600)^1.75)*(U18^-4.75)/1000) -> 0.579 | V20: =$D$10*$D$8*(378*((G20*3600)^1.75)*(V18^-4.75)/1000) -> 0.216 | W20: =$D$10*$D$8*(378*((G20*3600)^1.75)*(W18^-4.75)/1000) -> 0.075 | X20: =$D$10*$D$8*(378*((G20*3600)^1.75)*(X18^-4.75)/1000) -> 0.023 | Y20: =$D$10*$D$8*(378*((G20*3600)^1.75)*(Y18^-4.75)/1000) -> 0.007 | Z20: =$D$10*$D$8*(378*((G20*3600)^1.75)*(Z18^-4.75)/1000) -> 0.003 | AA20: =$D$10*$D$8*(378*((G20*3600)^1.75)*(AA18^-4.75)/1000) -> 0.001 | AB20: =IF(U20<($C$11/1000),U17,INDEX(U17:AA17,1,MATCH(($C$11/1000),U20:AA20,-1)+1)) -> 28/26 | AC20: =C20 -> 10 | AD20: =IF(F20="SI",P20,0) -> 1.16 | AE20: =R20 -> 20.59
B22: Tramo | C22: Núm. Captadores | D22: Caudal | E22: Longitud | F22: Parte del | G22: Caudal | H22: Velocidad | I22: Diámetro | J22: Serie | K22: Serie | L22: Diámetro | M22: Velocidad | N22: Pérdida | O22: +25% | P22: Pérdida | Q22: Pérdida | R22: Volumen | T22: D ext | U22: 15/13 | V22: 18/16 | W22: 22/20 | X22: 28/26 | Y22: 35/33 | Z22: 42/40 | AA22: 54/52 | AB22: =INDEX(U22:AA22,1,MAX(MATCH(AB25,U22:AA22,0),MATCH(AB24,U22:AA22,0))) -> 22/20
B23: Descripcion | C23: a los que da | D23: adicional | E23: del tramo | F23: tramo mas | G23: TOTAL | H23: Máxima | I23: Teórico Int | J23: nominal | K23: nominal | L23: Nom. Int. | M23: Cálculo | N23: Tubería | O23: Accesorios | P23: Total | Q23: TOTAL | R23: fluido | T23: D int | U23: 13 | V23: 16 | W23: 20 | X23: 26 | Y23: 33 | Z23: 40 | AA23: 52 | AF23: =IF(K25=$AB$1,1,0)*E25 -> 0 | AG23: =IF(K25=$AC$1,1,0)*E25 -> 0 | AH23: =IF(K25=$AD$1,1,0)*E25 -> 10 | AI23: =IF(K25=$AE$1,1,0)*E25 -> 0 | AJ23: =IF(K25=$AF$1,1,0)*E25 -> 0 | AK23: =IF(K25=$AG$1,1,0)*E25 -> 0 | AL23: =IF(K25=$AH$1,1,0)*E25 -> 0
C24: servicio el tramo | D24: l/h | E24: (m) | F24: desfavorable | G24: (l/s) | H24: (m/s) | I24: (mm) | J24: CALCULO | K24: SELEC. | L24: (mm) | M24: (m/s) | N24: (mca /m) | O24: (mca) | P24: (mca) | Q24: (KPa) | R24: (litros) | T24: v (m/s) | U24: =4000*G25/(PI()*U23*U23) -> 0.97 | V24: =4000*G25/(PI()*V23*V23) -> 0.64 | W24: =4000*G25/(PI()*W23*W23) -> 0.41 | X24: =4000*G25/(PI()*X23*X23) -> 0.25 | Y24: =4000*G25/(PI()*Y23*Y23) -> 0.15 | Z24: =4000*G25/(PI()*Z23*Z23) -> 0.10 | AA24: =4000*G25/(PI()*AA23*AA23) -> 0.06 | AB24: =IF(U24<2,U22,INDEX(U22:AA22,1,MATCH(H25,U24:AA24,-1)+1)) -> 15/13
B25: ida / 4 captadores | C25: 4 | D25: 0 | E25: 10.00 | F25: SI | G25: =($C$6*($C$5/$C$4)*C25 + D25)/3600 -> 0.13 | H25: =$C$9 -> 1.50 | I25: =(4000*G25/(PI()*$H$20))^0.5 -> 10.46 | J25: =AB22 -> 22/20 | K25: =J25 -> 22/20 | L25: =VLOOKUP(K25,'Tablas primario'!$B$5:$C$11,2,FALSE) -> 20.00 | M25: =4000*G25/(PI()*L25*L25) -> 0.41 | N25: =$D$10*$D$8*(378*((G25*3600)^1.75)*(L25^-4.75)/1000) -> 0.015 | O25: =N25*0.25 -> 0.004 | P25: =(N25+O25)*E25 -> 0.19 | Q25: =P25*9.8 -> 1.85 | R25: =E25*VLOOKUP(K25,'Tablas primario'!$B$5:$E$11,4,FALSE) -> 3.14 | T25: mca /m | U25: =$D$10*$D$8*(378*((G25*3600)^1.75)*(U23^-4.75)/1000) -> 0.117 | V25: =$D$10*$D$8*(378*((G25*3600)^1.75)*(V23^-4.75)/1000) -> 0.043 | W25: =$D$10*$D$8*(378*((G25*3600)^1.75)*(W23^-4.75)/1000) -> 0.015 | X25: =$D$10*$D$8*(378*((G25*3600)^1.75)*(X23^-4.75)/1000) -> 0.005 | Y25: =$D$10*$D$8*(378*((G25*3600)^1.75)*(Y23^-4.75)/1000) -> 0.001 | Z25: =$D$10*$D$8*(378*((G25*3600)^1.75)*(Z23^-4.75)/1000) -> 0.001 | AA25: =$D$10*$D$8*(378*((G25*3600)^1.75)*(AA23^-4.75)/1000) -> 0.000 | AB25: =IF(U25<($C$11/1000),U22,INDEX(U22:AA22,1,MATCH(($C$11/1000),U25:AA25,-1)+1)) -> 22/20 | AC25: =C25 -> 4 | AD25: =IF(F25="SI",P25,0) -> 0.19 | AE25: =R25 -> 3.14
B27: Tramo | C27: Núm. Captadores | D27: Caudal | E27: Longitud | F27: Parte del | G27: Caudal | H27: Velocidad | I27: Diámetro | J27: Serie | K27: Serie | L27: Diámetro | M27: Velocidad | N27: Pérdida | O27: +25% | P27: Pérdida | Q27: Pérdida | R27: Volumen | T27: D ext | U27: 15/13 | V27: 18/16 | W27: 22/20 | X27: 28/26 | Y27: 35/33 | Z27: 42/40 | AA27: 54/52 | AB27: =INDEX(U27:AA27,1,MAX(MATCH(AB30,U27:AA27,0),MATCH(AB29,U27:AA27,0))) -> 22/20
B28: Descripcion | C28: a los que da | D28: adicional | E28: del tramo | F28: tramo mas | G28: TOTAL | H28: Máxima | I28: Teórico Int | J28: nominal | K28: nominal | L28: Nom. Int. | M28: Cálculo | N28: Tubería | O28: Accesorios | P28: Total | Q28: TOTAL | R28: fluido | T28: D int | U28: 13 | V28: 16 | W28: 20 | X28: 26 | Y28: 33 | Z28: 40 | AA28: 52 | AF28: =IF(K30=$AB$1,1,0)*E30 -> 0 | AG28: =IF(K30=$AC$1,1,0)*E30 -> 0 | AH28: =IF(K30=$AD$1,1,0)*E30 -> 15 | AI28: =IF(K30=$AE$1,1,0)*E30 -> 0 | AJ28: =IF(K30=$AF$1,1,0)*E30 -> 0 | AK28: =IF(K30=$AG$1,1,0)*E30 -> 0 | AL28: =IF(K30=$AH$1,1,0)*E30 -> 0
C29: servicio el tramo | D29: l/h | E29: (m) | F29: desfavorable | G29: (l/s) | H29: (m/s) | I29: (mm) | J29: CALCULO | K29: SELEC. | L29: (mm) | M29: (m/s) | N29: (mca /m) | O29: (mca) | P29: (mca) | Q29: (KPa) | R29: (litros) | T29: v (m/s) | U29: =4000*G30/(PI()*U28*U28) -> 0.97 | V29: =4000*G30/(PI()*V28*V28) -> 0.64 | W29: =4000*G30/(PI()*W28*W28) -> 0.41 | X29: =4000*G30/(PI()*X28*X28) -> 0.25 | Y29: =4000*G30/(PI()*Y28*Y28) -> 0.15 | Z29: =4000*G30/(PI()*Z28*Z28) -> 0.10 | AA29: =4000*G30/(PI()*AA28*AA28) -> 0.06 | AB29: =IF(U29<2,U27,INDEX(U27:AA27,1,MATCH(H30,U29:AA29,-1)+1)) -> 15/13
B30: ret / 4 captadores | C30: 4 | D30: 0 | E30: 15.00 | F30: SI | G30: =($C$6*($C$5/$C$4)*C30 + D30)/3600 -> 0.13 | H30: =$C$9 -> 1.50 | I30: =(4000*G30/(PI()*$H$20))^0.5 -> 10.46 | J30: =AB27 -> 22/20 | K30: =J30 -> 22/20 | L30: =VLOOKUP(K30,'Tablas primario'!$B$5:$C$11,2,FALSE) -> 20.00 | M30: =4000*G30/(PI()*L30*L30) -> 0.41 | N30: =$D$10*$D$8*(378*((G30*3600)^1.75)*(L30^-4.75)/1000) -> 0.015 | O30: =N30*0.25 -> 0.004 | P30: =(N30+O30)*E30 -> 0.28 | Q30: =P30*9.8 -> 2.77 | R30: =E30*VLOOKUP(K30,'Tablas primario'!$B$5:$E$11,4,FALSE) -> 4.71 | T30: mca /m | U30: =$D$10*$D$8*(378*((G30*3600)^1.75)*(U28^-4.75)/1000) -> 0.117 | V30: =$D$10*$D$8*(378*((G30*3600)^1.75)*(V28^-4.75)/1000) -> 0.043 | W30: =$D$10*$D$8*(378*((G30*3600)^1.75)*(W28^-4.75)/1000) -> 0.015 | X30: =$D$10*$D$8*(378*((G30*3600)^1.75)*(X28^-4.75)/1000) -> 0.005 | Y30: =$D$10*$D$8*(378*((G30*3600)^1.75)*(Y28^-4.75)/1000) -> 0.001 | Z30: =$D$10*$D$8*(378*((G30*3600)^1.75)*(Z28^-4.75)/1000) -> 0.001 | AA30: =$D$10*$D$8*(378*((G30*3600)^1.75)*(AA28^-4.75)/1000) -> 0.000 | AB30: =IF(U30<($C$11/1000),U27,INDEX(U27:AA27,1,MATCH(($C$11/1000),U30:AA30,-1)+1)) -> 22/20 | AC30: =C30 -> 4 | AD30: =IF(F30="SI",P30,0) -> 0.28 | AE30: =R30 -> 4.71
B32: Tramo | C32: Núm. Captadores | D32: Caudal | E32: Longitud | F32: Parte del | G32: Caudal | H32: Velocidad | I32: Diámetro | J32: Serie | K32: Serie | L32: Diámetro | M32: Velocidad | N32: Pérdida | O32: +25% | P32: Pérdida | Q32: Pérdida | R32: Volumen | T32: D ext | U32: 15/13 | V32: 18/16 | W32: 22/20 | X32: 28/26 | Y32: 35/33 | Z32: 42/40 | AA32: 54/52 | AB32: =INDEX(U32:AA32,1,MAX(MATCH(AB35,U32:AA32,0),MATCH(AB34,U32:AA32,0))) -> 28/26
B33: Descripcion | C33: a los que da | D33: adicional | E33: del tramo | F33: tramo mas | G33: TOTAL | H33: Máxima | I33: Teórico Int | J33: nominal | K33: nominal | L33: Nom. Int. | M33: Cálculo | N33: Tubería | O33: Accesorios | P33: Total | Q33: TOTAL | R33: fluido | T33: D int | U33: 13 | V33: 16 | W33: 20 | X33: 26 | Y33: 33 | Z33: 40 | AA33: 52 | AF33: =IF(K35=$AB$1,1,0)*E35 -> 0 | AG33: =IF(K35=$AC$1,1,0)*E35 -> 0 | AH33: =IF(K35=$AD$1,1,0)*E35 -> 0 | AI33: =IF(K35=$AE$1,1,0)*E35 -> 45 | AJ33: =IF(K35=$AF$1,1,0)*E35 -> 0 | AK33: =IF(K35=$AG$1,1,0)*E35 -> 0 | AL33: =IF(K35=$AH$1,1,0)*E35 -> 0
C34: servicio el tramo | D34: l/h | E34: (m) | F34: desfavorable | G34: (l/s) | H34: (m/s) | I34: (mm) | J34: CALCULO | K34: SELEC. | L34: (mm) | M34: (m/s) | N34: (mca /m) | O34: (mca) | P34: (mca) | Q34: (KPa) | R34: (litros) | T34: v (m/s) | U34: =4000*G35/(PI()*U33*U33) -> 2.43 | V34: =4000*G35/(PI()*V33*V33) -> 1.60 | W34: =4000*G35/(PI()*W33*W33) -> 1.03 | X34: =4000*G35/(PI()*X33*X33) -> 0.63 | Y34: =4000*G35/(PI()*Y33*Y33) -> 0.39 | Z34: =4000*G35/(PI()*Z33*Z33) -> 0.26 | AA34: =4000*G35/(PI()*AA33*AA33) -> 0.15 | AB34: =IF(U34<2,U32,INDEX(U32:AA32,1,MATCH(H35,U34:AA34,-1)+1)) -> 22/20
B35: ret / 8 captadores | C35: =$C$4 -> 10 | D35: 0 | E35: 45.00 | F35: SI | G35: =($C$6*($C$5/$C$4)*C35 + D35)/3600 -> 0.32 | H35: =$C$9 -> 1.50 | I35: =(4000*G35/(PI()*$H$20))^0.5 -> 16.54 | J35: =AB32 -> 28/26 | K35: =J35 -> 28/26 | L35: =VLOOKUP(K35,'Tablas primario'!$B$5:$C$11,2,FALSE) -> 25.60 | M35: =4000*G35/(PI()*L35*L35) -> 0.63 | N35: =$D$10*$D$8*(378*((G35*3600)^1.75)*(L35^-4.75)/1000) -> 0.023 | O35: =N35*0.25 -> 0.006 | P35: =(N35+O35)*E35 -> 1.30 | Q35: =P35*9.8 -> 12.78 | R35: =E35*VLOOKUP(K35,'Tablas primario'!$B$5:$E$11,4,FALSE) -> 23.16 | T35: mca /m | U35: =$D$10*$D$8*(378*((G35*3600)^1.75)*(U33^-4.75)/1000) -> 0.579 | V35: =$D$10*$D$8*(378*((G35*3600)^1.75)*(V33^-4.75)/1000) -> 0.216 | W35: =$D$10*$D$8*(378*((G35*3600)^1.75)*(W33^-4.75)/1000) -> 0.075 | X35: =$D$10*$D$8*(378*((G35*3600)^1.75)*(X33^-4.75)/1000) -> 0.023 | Y35: =$D$10*$D$8*(378*((G35*3600)^1.75)*(Y33^-4.75)/1000) -> 0.007 | Z35: =$D$10*$D$8*(378*((G35*3600)^1.75)*(Z33^-4.75)/1000) -> 0.003 | AA35: =$D$10*$D$8*(378*((G35*3600)^1.75)*(AA33^-4.75)/1000) -> 0.001 | AB35: =IF(U35<($C$11/1000),U32,INDEX(U32:AA32,1,MATCH(($C$11/1000),U35:AA35,-1)+1)) -> 28/26 | AC35: =C35 -> 10 | AD35: =IF(F35="SI",P35,0) -> 1.30 | AE35: =R35 -> 23.16

Sheet C. Secundario
AB1: 20 | AC1: 25 | AD1: 32 | AE1: 40 | AF1: 50 | AG1: 63 | AH1: 75
B2: CIRCUITO SECUNDARIO DISTRIBUIDO (conexión acumulador central con intercambiadores individuales) | T2: Factor aumento por retorno | Y2: 2.00 | AB2: =SUM(AF17:AF108000) -> 0 | AC2: 0 | AD2: 0 | AE2: 0 | AF2: 6 | AG2: 0 | AH2: 0
W3: Volumen captador | X3: =VLOOKUP('HE-4 SOLAR'!$D$45,Captadores!$B$8:$I$58,8,FALSE) -> 1.34
B4: Número total de intercambiadores | C4: 16 | D4: =MAX(AC:AC) -> 25 | F4: Datos selección bomba | L4: Datos Vaso de expansión | W4: Volumen total captadores | X4: =X3*C4 -> 21.44
B5: Aplicar simultaneidad | C5: SI | D5: =IF(C5="NO",1,IF(C4=1,1,MAX(0.2,1/((C4-1)^0.5)))) -> 0.26 | F5: Perdida de carga lineal | I5: =SUM(AD$3:AD$1048576)*$Y$2 -> 0.28 mca | L5: Coeficiente exp. fluido | O5: 0.085 | W5: Serpentin 1 | X5: =IF(VLOOKUP('HE-4 SOLAR'!D76,Acumuladores!$B$8:$I$55,8,FALSE)="---",0,(VLOOKUP('HE-4 SOLAR'!D76,Acumuladores!$B$8:$I$55,8,FALSE))) -> 17 | Y5: num 1 | Z5: ='HE-4 SOLAR'!D77 -> 1
B6: Caudal por intercambiador | C6: 800 l/h | F6: Perdida Ud intercambiador | I6: 0.30 mca | L6: Tarado valvula seguridad | O6: 10.00 bar | W6: Serpentin 2 | X6: =IF('HE-4 SOLAR'!D78="","0",VLOOKUP('HE-4 SOLAR'!D78:G78,Acumuladores!$B$8:$I$55,8,FALSE)) -> 0 | Y6: num 1 | Z6: ='HE-4 SOLAR'!D78 -> 0
B7: Caudal simultaneo total | C7: =C4*C6*D5 -> 3,305 l/h | D7: =C7/3600 -> 0.9180404969 | F7: Perdida TOTAL interc. | I7: =I6*C4 -> 4.80 mca | L7: Columna encima del vaso | O7: 15.00 m | W7: Serpentin ?¿? | X7: =IF(X5+X6<>0,"SI","NO") -> SI
B8: Fluido caloportador | C8: agua | D8: =IF(C8="agua",1,1.3) -> 1 | L8: Volumen Ud interc. placas | O8: 1.00 litros | W8: Volumen intercambiador | X8: =O8*C4 -> 16
B9: Velocidad del fluido | C9: 1.50 m/s | D9: =IF('HE-4 SOLAR'!D84="Disipador dinámico",1,0) -> 0 | F9: Perdida carga adicional | I9: 0.00 mca | W9: Volumen en equipos (litros) | X9: =X4+X8 -> 37.44
B10: Tipo de tubería | C10: PEX | D10: 1.00 | F10: Caudal de la bomba | I10: =C7*0.001 -> 3.30 m3/h | L10: Volumen min del vaso | O10: =X11*O11*X13 -> 106.98 litros | W10: Presion absoluta final (Kg/cm2) | X10: =MIN((O6*0.9)+1,0.65*O6) -> 6.50
B11: Perdida de carga maxima (mmca /m) | C11: 38 | F11: Perdida de carga TOTAL | I11: =I5+I7+I9 -> 5.08 mca | L11: Coeficiente de presión | O11: =X10/(X10-X12) -> 1.86 | W11: Volumen util | X11: =O13+O14+O15 -> 38.40
A12: =IF('HE-4 SOLAR'!L31='Tablas primario'!B14,1,0) -> 0 | B12: Caudal por acumulador ind. | C12: =C7/'HE-4 SOLAR'!Q23 -> 165.25 l/h | L12: Volumen en circuito (litros) | O12: =(SUM(AE:AE)*$Y$2)+X9 -> 130.00 | W12: Presion absoluta inicial (Kg/cm2) | X12: =0.5+1+(O7/10) -> 3
F13: Nota: se considera un sistema cerrado (presurizado) | L13: Volumen dilatado (litros) | O13: =O12*O5 -> 11.05 | W13: coeficiente seguridad | X13: 1.5
F14: no se considera la perdida de carga por altura geometrica | L14: Volumen de reserva (litros) | O14: =MAX(3,0.029*O12) -> 3.77
L15: Volumen vaporizado (litros) | O15: =X4*1.1 -> 23.58 | AB15: http://productfinder.wilo.com/es/es/c0000003a0003b16700010023/product.html#tab=4
T16: ( en rojo los diámetros que superan la velocidad o perdida de carga máxima)
B17: Tramo | C17: Núm. Intercamb. | D17: Caudal | E17: Longitud | F17: Parte del | G17: Caudal | H17: Velocidad | I17: Diámetro | J17: Serie | K17: Serie | L17: Diámetro | M17: Velocidad | N17: Pérdida | O17: +25% | P17: Pérdida | Q17: Pérdida | R17: Volumen | T17: D ext | U17: 20 | V17: 25 | W17: 32 | X17: 40 | Y17: 50 | Z17: 63 | AA17: 75 | AB17: =IF(MAX(AB19,AB20)>75,75,MAX(AB19,AB20)) -> 50
B18: Descripcion | C18: a los que da | D18: adicional | E18: del tramo | F18: tramo mas | G18: TOTAL | H18: Máxima | I18: Teórico Int | J18: nominal | K18: nominal | L18: Nom. Int. | M18: Cálculo | N18: Tubería | O18: Accesorios | P18: Total | Q18: TOTAL | R18: fluido | T18: D int | U18: 14.6 | V18: 18.2 | W18: 23.4 | X18: 29.2 | Y18: 36.5 | Z18: 46.0 | AA18: 54.7 | AF18: =IF(K20=$AB$1,1,0)*E20 -> 0 | AG18: =IF(K20=$AC$1,1,0)*E20 -> 0 | AH18: =IF(K20=$AD$1,1,0)*E20 -> 0 | AI18: =IF(K20=$AE$1,1,0)*E20 -> 0 | AJ18: =IF(K20=$AF$1,1,0)*E20 -> 6 | AK18: =IF(K20=$AG$1,1,0)*E20 -> 0 | AL18: =IF(K20=$AH$1,1,0)*E20 -> 0
C19: servicio el tramo | D19: l/h | E19: (m) | F19: desfavorable | G19: (l/s) | H19: (m/s) | I19: (mm) | J19: CALCULO | K19: SELEC. | L19: (mm) | M19: (m/s) | N19: (mca /m) | O19: (mca) | P19: (mca) | Q19: (KPa) | R19: (litros) | T19: v (m/s) | U19: =4000*G20/(PI()*U18*U18) -> 5.15 | V19: =4000*G20/(PI()*V18*V18) -> 3.31 | W19: =4000*G20/(PI()*W18*W18) -> 2.01 | X19: =4000*G20/(PI()*X18*X18) -> 1.29 | Y19: =4000*G20/(PI()*Y18*Y18) -> 0.82 | Z19: =4000*G20/(PI()*Z18*Z18) -> 0.52 | AA19: =4000*G20/(PI()*AA18*AA18) -> 0.37 | AB19: =IFERROR(INDEX(U17:AA17,1,MATCH(H20,U19:AA19,-1)),20) -> 32
B20: ida / 16 viviendas | C20: 16 | D20: 0 | E20: 6.00 | F20: SI | G20: =($C$6*C20 + D20)*(MAX(0.2,(1/((C20+1)^0.5))))/3600 -> 0.86 | H20: =$C$9 -> 1.50 | I20: =(4000*G20/(PI()*$H$20))^0.5 -> 27.06 | J20: =AB17 -> 50 | K20: =J20 -> 50 | L20: =INDEX(U18:AA18,1,MATCH(K20,U17:AA17,0)) -> 36.50 | M20: =4000*G20/(PI()*L20*L20) -> 0.82 | N20: =$D$10*$D$8*(378*((G20*3600)^1.75)*(L20^-4.75)/1000) -> 0.019 | O20: =N20*0.25 -> 0.005 | P20: =(N20+O20)*E20 -> 0.14 | Q20: =P20*9.8 -> 1.36 | R20: =E20*1000*PI()*(L20/2/1000)^2 -> 6.28 | T20: mca /m | U20: =$D$10*$D$8*(378*((G20*3600)^1.75)*(U18^-4.75)/1000) -> 1.438 | V20: =$D$10*$D$8*(378*((G20*3600)^1.75)*(V18^-4.75)/1000) -> 0.505 | W20: =$D$10*$D$8*(378*((G20*3600)^1.75)*(W18^-4.75)/1000) -> 0.153 | X20: =$D$10*$D$8*(378*((G20*3600)^1.75)*(X18^-4.75)/1000) -> 0.053 | Y20: =$D$10*$D$8*(378*((G20*3600)^1.75)*(Y18^-4.75)/1000) -> 0.019 | Z20: =$D$10*$D$8*(378*((G20*3600)^1.75)*(Z18^-4.75)/1000) -> 0.006 | AA20: =$D$10*$D$8*(378*((G20*3600)^1.75)*(AA18^-4.75)/1000) -> 0.003 | AB20: =IFERROR(INDEX(U17:AA17,1,MATCH(($C$11/1000),U20:AA20,-1)+1),20) -> 50 | AC20: =C20 -> 16 | AD20: =IF(F20="SI",P20,0) -> 0.14 | AE20: =R20 -> 6.28

Sheet Acumuladores
B2: VOLVER A HOJA SOLAR
O4: Datos conjuntos solares
B5: FABRICANTE Y MODELO | C5: Volumen de acumulación (litros) | G5: Capacidad Drain Back (litros) | H5: Área intercambio serpentin (m2) | I5: Volumen max en serpentin (litros) | K5: Altura deposito (mm) | L5: Diámetro deposito (mm) | M5: Peso en vacio | O5: Modulo solar asociado | P5: Bombeo primario | Q5: Potencia max. bomba (W) | R5: Altura máxima (metros) | S5: Longitud máx. tuberia (metros) | T5: Dim primario entrada / salida | V5: Actualizado
E6: DRAIN BACK
B8: SD WE 75 | C8: 75 | E8: NO | G8: --- | H8: 0.53 | I8: 5 | K8: 799 | L8: 549 | M8: 40 | P8: --- | Q8: --- | R8: --- | S8: --- | T8: --- | V8: 2017-06-01
B9: SD WE 100 | C9: 100 | E9: NO | G9: --- | H9: 0.70 | I9: 7 | K9: 947 | L9: 697 | M9: 50 | P9: --- | Q9: --- | R9: --- | S9: --- | T9: --- | V9: 2017-06-01
B10: SD WE 150 | C10: 150 | E10: NO | G10: --- | H10: 0.85 | I10: 8 | K10: 1318 | L10: 1068 | M10: 69 | P10: --- | Q10: --- | R10: --- | S10: --- | T10: --- | V10: 2017-06-01
B11: SD Helioset 150 (FES 150) | C11: 150 | E11: SI | G11: 8 | H11: 1.30 | I11: 8 | K11: 1064 | L11: 600 | M11: 69 | O11: =Captadores!B13 -> Saunier Duval SRH 2.3 (cub. Incli./panel hor.) | P11: 2x GSHD 8 | Q11: 75 | R11: 12 | S11: 20 | T11: DN 10/10 | V11: 2017-04-01
B12: SD Helioset 250 (FES 250) | C12: 250 | E12: SI | G12: 8 | H12: 1.50 | I12: 9 | K12: 1539 | L12: 600 | M12: 89 | O12: =Captadores!B14 -> Saunier Duval SRV 2.3 (cub. Plana/panel vert) | P12: 2x GSHD 8 | Q12: 75 | R12: 12 | S12: 20 | T12: DN 10/10 | V12: 2017-04-01
B13: SD Helioset 350 (FES 350) | C13: 355 | E13: SI | G13: 10 | H13: 1.60 | I13: 10 | K13: 1680 | L13: 796 | M13: 125 | O13: =Captadores!B14 -> Saunier Duval SRV 2.3 (cub. Plana/panel vert) | P13: 2x GSHD 8 | Q13: 75 | R13: 12 | S13: 20 | T13: DN 10/10 | V13: 2017-04-01
B14: SD Interacumulador BDLE S/ 750S | C14: 750 | E14: NO | G14: --- | H14: 2.70 | I14: 16 | K14: 1890 | L14: 950 | M14: 195 | P14: --- | Q14: --- | R14: --- | S14: --- | T14: --- | V14: 2017-04-01
B15: SD Interacumulador BDLE S/ 1000S | C15: 1,000 | E15: NO | G15: --- | H15: 3.30 | I15: 20 | K15: 2250 | L15: 950 | M15: 230 | P15: --- | Q15: --- | R15: --- | S15: --- | T15: --- | V15: 2017-04-01
B16: SD Interacumulador BDLE S/ 1500S | C16: 1,500 | E16: NO | G16: --- | H16: 2.80 | I16: 17 | K16: 1830 | L16: 1360 | M16: 415 | P16: --- | Q16: --- | R16: --- | S16: --- | T16: --- | V16: 2017-04-01
B17: SD Interacumulador BDLE S/ 2000S | C17: 2,000 | E17: NO | G17: --- | H17: 3.40 | I17: 20 | K17: 2280 | L17: 1360 | M17: 475 | P17: --- | Q17: --- | R17: --- | S17: --- | T17: --- | V17: 2017-04-01
B18: SD Interacumulador BDLE S/ 2500S | C18: 2,500 | E18: NO | G18: --- | H18: 4.20 | I18: 25 | K18: 2015 | L18: 1660 | M18: 690 | P18: --- | Q18: --- | R18: --- | S18: --- | T18: --- | V18: 2017-04-01
B19: SD Acumulador BDLE 750 | C19: 750 | E19: NO | G19: --- | H19: --- | I19: --- | K19: 1840 | L19: 950 | M19: 170 | P19: --- | Q19: --- | R19: --- | S19: --- | T19: --- | V19: 2017-04-01
B20: SD Acumulador BDLE 1000 | C20: 1,000 | E20: NO | G20: --- | H20: --- | I20: --- | K20: 2250 | L20: 950 | M20: 200 | P20: --- | Q20: --- | R20: --- | S20: --- | T20: --- | V20: 2017-04-01
B21: SD Acumulador BDLE 1500 | C21: 1,500 | E21: NO | G21: --- | H21: --- | I21: --- | K21: 1830 | L21: 1360 | M21: 390 | P21: --- | Q21: --- | R21: --- | S21: --- | T21: --- | V21: 2017-04-01
B22: SD Acumulador BDLE 2000 | C22: 2,000 | E22: NO | G22: --- | H22: --- | I22: --- | K22: 2280 | L22: 1360 | M22: 450 | P22: --- | Q22: --- | R22: --- | S22: --- | T22: --- | V22: 2017-04-01
B23: SD Acumulador BDLE 2500 | C23: 2,500 | E23: NO | G23: --- | H23: --- | I23: --- | K23: 2015 | L23: 1660 | M23: 630 | P23: --- | Q23: --- | R23: --- | S23: --- | T23: --- | V23: 2017-04-01
B24: SD Acumulador BDLE 3000 | C24: 3,000 | E24: NO | G24: --- | H24: --- | I24: --- | K24: 2305 | L24: 1660 | M24: 690 | P24: --- | Q24: --- | R24: --- | S24: --- | T24: --- | V24: 2017-04-01
B25: SD Acumulador BDLE 3500 | C25: 3,500 | E25: NO | G25: --- | H25: --- | I25: --- | K25: 2580 | L25: 1660 | M25: 755 | P25: --- | Q25: --- | R25: --- | S25: --- | T25: --- | V25: 2017-04-01
B26: SD Acumulador BDLE 4000 | C26: 4,000 | E26: NO | G26: --- | H26: --- | I26: --- | K26: 2310 | L26: 1910 | M26: 880 | P26: --- | Q26: --- | R26: --- | S26: --- | T26: --- | V26: 2017-04-01
B28: Vaillant auroSTEP Plus 150 (VIH SN 150) | C28: 150 | E28: SI | G28: 8 | H28: 1.30 | I28: --- | K28: 1082 | L28: 605 | M28: 110 | O28: =Captadores!B16 -> Vaillant auroTHERM VFK 135 VD (vert) | P28: 2x GSHD 8 | Q28: 86 | R28: 12 | S28: 20 | T28: DN 10/10 | V28: 2017-04-01
B29: Vaillant auroSTEP Plus 250 (VIH SN 250) | C29: 253 | E29: SI | G29: 8 | H29: 1.30 | I29: --- | K29: 1692 | L29: 605 | M29: 130 | O29: =Captadores!B16 -> Vaillant auroTHERM VFK 135 VD (vert) | P29: 2x GSHD 8 | Q29: 86 | R29: 12 | S29: 20 | T29: DN 10/10 | V29: 2017-04-01
B30: Vaillant auroSTEP Plus 350 (VIH SN 350) | C30: 395 | E30: SI | G30: 10 | H30: 1.60 | I30: --- | K30: 1592 | L30: 814 | M30: 140 | O30: =Captadores!B16 -> Vaillant auroTHERM VFK 135 VD (vert) | P30: 2x GSHD 8 | Q30: 86 | R30: 12 | S30: 20 | T30: DN 10/10 | V30: 2017-04-01
B31: Vaillant allSTORE VPS 300 | C31: 303 | E31: NO | G31: --- | H31: --- | I31: --- | K31: 1735 | L31: 780 | M31: 70
B32: Vaillant allSTORE VPS 500 | C32: 491 | E32: NO | G32: --- | H32: --- | I32: --- | K32: 1715 | L32: 930 | M32: 90
B33: Vaillant allSTORE VPS 800 | C33: 778 | E33: NO | G33: --- | H33: --- | I33: --- | K33: 1846 | L33: 1070 | M33: 130
B34: Vaillant allSTORE VPS 1000 | C34: 962 | E34: NO | G34: --- | H34: --- | I34: --- | K34: 2226 | L34: 1070 | M34: 145
B35: Vaillant allSTORE VPS 1500 | C35: 1,505 | E35: NO | G35: --- | H35: --- | I35: --- | K35: 2205 | L35: 1400 | M35: 210
B36: Vaillant allSTORE VPS 2000 | C36: 1,917 | E36: NO | G36: --- | H36: --- | I36: --- | K36: 2330 | L36: 1500 | M36: 240
B38: ACV Drain Back 200 | C38: 200 | E38: SI | G38: 10 | H38: 1.40 | I38: 9 | K38: 1515 | L38: 560 | M38: 54 | O38: =Captadores!B26 -> ACS Helioplan 2,5 DB | P38: Wilo-Yonos PICO-STG 15/13 | Q38: 85 | R38: 13 | S38: 20 | T38: DN 10/10 | V38: 2017-04-01 | W38: http://productfinder.wilo.com/com/es/Wilo/c0000002a0003a36300010023/c0000002a0003a4a200010023/c00000049000165be00020023/product.html
B39: ACV Drain Back 300 | C39: 300 | E39: SI | G39: 11 | H39: 1.60 | I39: 10 | K39: 1755 | L39: 640 | M39: 68 | O39: =Captadores!B26 -> ACS Helioplan 2,5 DB | P39: Wilo-Yonos PICO-STG 15/13 | Q39: 85 | R39: 13 | S39: 20 | T39: DN 10/10 | V39: =V38 -> 2017-04-01 | W39: http://productfinder.wilo.com/com/es/Wilo/c0000002a0003a36300010023/c0000002a0003a4a200010023/c00000049000165be00020023/product.html
B41: GrennHeiss GH 200 DB | C41: 212 | E41: SI | G41: 8.6 | H41: 1.40 | I41: 9 | K41: 1520 | L41: 560 | M41: 65 | O41: =Captadores!B27 -> GREENHEISS GH Class 25V | P41: Wilo STG 15-11 | Q41: 75 | R41: 11 | S41: 20 | T41: DN 10/10 | V41: 2017-04-01 | W41: http://productfinder.wilo.com/com/es/c0000000e0001b19500020023/_00000000000179d40001003a/product.html#tab=product_datasheet
B43: Lapesa Interacumulador MVV 1500 SB | C43: 1,500 | E43: NO | G43: --- | H43: 2.80 | I43: 17 | K43: 1830 | L43: 1360 | M43: 430 | P43: --- | Q43: --- | R43: --- | S43: --- | T43: --- | V43: 2017-04-01
B44: Lapesa Interacumulador MVV 2000 SB | C44: 2,000 | E44: NO | G44: --- | H44: 3.40 | I44: 19 | K44: 2280 | L44: 1360 | M44: 495 | P44: --- | Q44: --- | R44: --- | S44: --- | T44: --- | V44: 2017-04-01
B45: Lapesa Interacumulador MVV 2500 SB | C45: 2,500 | E45: NO | G45: --- | H45: 4.80 | I45: 28 | K45: 2015 | L45: 1660 | M45: 675 | P45: --- | Q45: --- | R45: --- | S45: --- | T45: --- | V45: 2017-04-01
B46: Lapesa Interacumulador MVV 3000 SB | C46: 3,000 | E46: NO | G46: --- | H46: 5.00 | I46: 29 | K46: 2305 | L46: 1660 | M46: 740 | P46: --- | Q46: --- | R46: --- | S46: --- | T46: --- | V46: 2017-04-01
B48: Lapesa acumulador MVV 1500 RB | C48: 1,500 | E48: NO | G48: --- | H48: --- | I48: --- | K48: 1830 | L48: 1360 | M48: 400 | P48: --- | Q48: --- | R48: --- | S48: --- | T48: --- | V48: 2017-04-01
B49: Lapesa acumulador MVV 2000 RB | C49: 2,000 | E49: NO | G49: --- | H49: --- | I49: --- | K49: 2280 | L49: 1360 | M49: 460 | P49: --- | Q49: --- | R49: --- | S49: --- | T49: --- | V49: 2017-04-01
B50: Lapesa acumulador MVV 2500 RB | C50: 2,500 | E50: NO | G50: --- | H50: --- | I50: --- | K50: 2015 | L50: 1660 | M50: 635 | P50: --- | Q50: --- | R50: --- | S50: --- | T50: --- | V50: 2017-04-01
B51: Lapesa acumulador MVV 3000 RB | C51: 3,000 | E51: NO | G51: --- | H51: --- | I51: --- | K51: 2305 | L51: 1660 | M51: 705 | P51: --- | Q51: --- | R51: --- | S51: --- | T51: --- | V51: 2017-04-01
B52: Lapesa acumulador MVV 3500 RB | C52: 3,500 | E52: NO | G52: --- | H52: --- | I52: --- | K52: 2580 | L52: 1660 | M52: 755 | P52: --- | Q52: --- | R52: --- | S52: --- | T52: ---
B53: Lapesa acumulador MVV 4000 RB | C53: 4,000 | E53: NO | G53: --- | H53: --- | I53: --- | K53: 2310 | L53: 1910 | M53: 915 | P53: --- | Q53: --- | R53: --- | S53: --- | T53: ---
B54: TERMOSIFÓN JUNKERS 150l | C54: 150 | E54: NO | G54: --- | H54: --- | I54: --- | K54: 1120 | L54: 580 | M54: 71 | O54: JUNKERS Smart FCC-2S | P54: --- | Q54: --- | R54: --- | S54: --- | T54: --- | V54: 2017-06-01

Sheet Captadores
B2: VOLVER A HOJA SOLAR
B5: FABRICANTE Y MODELO | C5: Superficie apertura (m2) | D5: Longitud | E5: Factor de eficacia | F5: Coeficiente lineal | G5: Coeficiente cuadratico | H5: Coeficiente global | I5: Volumen contenido | J5: Caudal | M5: Actualizado
D6: en maxima | E6: (Rendimiento) | F6: de perdidas (k1) | G6: de perdidas (k2) | H6: de perdidas | K6: Transmisión
D7: pendiente | F7: (W/m².ºC) | G7: (W/m².ºC) | H7: (W/m².ºC) | I7: litros | J7: l / h m2 | K7: %
A8: =IF(B8="",0,1) -> 1 | B8: Fagor Solaria-2.4 G AL | C8: 2.170 | D8: =C8/1.2 -> 1.808 | E8: 0.6930 | F8: 4.3900 | G8: 0.0180 | H8: =IF(F8="",0,F8+30*G8) -> 4.9300 | I8: 1.3000 | J8: 50 | K8: 0.9200 | M8: 2015-03-01
A9: =IF(B9="",0,1) -> 1 | B9: Fagor Solaria-2.8 G AL | C9: 2.580 | D9: =C9/1.2 -> 2.150 | E9: 0.6930 | F9: 4.3900 | G9: 0.0180 | H9: 4.9300 | I9: 1.5000 | J9: 50 | K9: 0.9200 | M9: 2015-03-01
A10: 1 | B10: Fagor Solaria-2.4 AL AL | C10: 2.170 | D10: =C10/1.2 -> 1.808 | E10: 0.7220 | F10: 3.3900 | G10: 0.0140 | H10: 3.8100 | I10: 1.3000 | J10: 50 | K10: 0.9200 | M10: 2015-03-01
A11: 1 | B11: Fagor Solaria-2.8 AL AL | C11: 2.580 | D11: =C11/1.2 -> 2.150 | E11: 0.7220 | F11: 3.3900 | G11: 0.0140 | H11: 3.8100 | I11: 1.5000 | J11: 50 | K11: 0.9200 | M11: 2015-03-01
A12: 1 | B12: Saunier Duval SCV 2.3 (cub. Incli./panel vert) | C12: 2.350 | D12: 2.033 | E12: 0.7530 | F12: 2.8340 | G12: 0.0560 | H12: 4.5140 | I12: 1.8500 | J12: 50 | K12: 0.9100 | M12: 2017-04-01
A13: 1 | B13: Saunier Duval SRH 2.3 (cub. Incli./panel hor.) | C13: 2.350 | D13: 1.233 | E13: 0.8100 | F13: 3.3550 | G13: 0.0240 | H13: 4.0750 | I13: 2.1600 | J13: 50 | K13: 0.9100 | M13: 2017-04-01
A14: 1 | B14: Saunier Duval SRV 2.3 (cub. Plana/panel vert) | C14: 2.350 | D14: 2.033 | E14: 0.7900 | F14: 2.4400 | G14: 0.0500 | H14: 3.9400 | I14: 1.8500 | J14: 50 | K14: 0.9100 | M14: 2017-04-01
A15: 1 | B15: Vaillant auroTHERM VFK 125 (vert) | C15: 2.352 | D15: 2.033 | E15: 0.7530 | F15: 3.9360 | G15: 0.0170 | H15: 4.4460 | I15: 1.8500 | J15: 45 | K15: 0.8900 | M15: 2017-04-01
A16: 1 | B16: Vaillant auroTHERM VFK 135 VD (vert) | C16: 2.352 | D16: 2.033 | E16: 0.8140 | F16: 3.7610 | G16: 0.0120 | H16: 4.1210 | I16: 1.4600 | J16: 45 | K16: 0.9100 | M16: 2017-04-01
A17: 1 | B17: Vaillant auroTHERM VFK 135 HD (hor.) | C17: 2.352 | D17: 1.233 | E17: 0.8010 | F17: 3.7610 | G17: 0.0120 | H17: 4.1210 | I17: 1.3500 | J17: 45 | K17: 0.9100 | M17: 2017-04-01
B18: Vaillant auroTHERM VFK 145 H (hor.) | C18: 2.352 | D18: 1.233 | E18: 0.8010 | F18: 3.3200 | G18: 0.0230 | H18: 4.0100 | I18: 2.1600 | J18: 45 | K18: 0.9100 | M18: 2017-04-01
A19: 1 | B19: Vaillant auroTHERM VFK 145 V (vert) | C19: 2.352 | D19: 2.033 | E19: 0.7900 | F19: 2.4140 | G19: 0.0490 | H19: 3.8840 | I19: 1.8500 | J19: 45 | K19: 0.9100 | M19: 2017-04-01
A20: 1 | B20: Viessman Vitosol 100-F SVA (vert) | C20: 2.324 | D20: 2.380 | E20: 0.7600 | F20: 4.1300 | G20: 0.0182 | H20: 4.6760 | I20: 1.4800 | J20: 50 | K20: 0.9100 | M20: 2017-04-01
A21: 1 | B21: Viessman Vitosol 100-F SVB (vert) | C21: 2.324 | D21: 2.380 | E21: 0.7540 | F21: 4.0108 | G21: 0.0114 | H21: 4.3528 | I21: 1.6700 | J21: 50 | K21: 0.9100 | M21: 2017-04-01
A22: 1 | B22: Viessman Vitosol 100-F SHA (hor) | C22: 2.324 | D22: 1.056 | E22: 0.7600 | F22: 4.1300 | G22: 0.0114 | H22: 4.4720 | I22: 2.3300 | J22: 50 | K22: 0.9100 | M22: 2017-04-01
A23: 1 | B23: Viessman Vitosol 100-F SHB (hor) | C23: 2.324 | D23: 1.056 | E23: 0.7540 | F23: 4.0108 | G23: 0.0114 | H23: 4.3528 | I23: 2.3300 | J23: 50 | K23: 0.9100 | M23: 2017-04-01
A24: 1 | B24: Viessman Vitosol 200-F SV2A (vert) | C24: 2.324 | D24: 2.380 | E24: 0.7920 | F24: 4.0400 | G24: 0.0182 | H24: =IF(G23="",0,G23+30*G24) -> 0.5574 | I24: 1.8300 | J24: 50 | K24: 0.9100 | M24: 2017-04-01
A25: 1 | B25: Viessman Vitosol 200-F SH2A (hor) | C25: 2.324 | D25: 1.056 | E25: 0.7920 | F25: 4.0400 | G25: 0.0182 | H25: =IF(G24="",0,G24+30*G25) -> 0.5642 | I25: 2.4800 | J25: 50 | K25: 0.9100 | M25: 2017-04-01
A26: 1 | B26: ACS Helioplan 2,5 DB | C26: 2.404 | D26: 2.150 | E26: 0.7880 | F26: 3.2600 | G26: 0.0150 | H26: =IF(F26="",0,F26+30*G26) -> 3.7100 | I26: 1.7000 | J26: 50 | K26: 0.9100 | M26: 2017-04-01
A27: 1 | B27: GREENHEISS GH Class 25V | C27: 2.320 | D27: 2.150 | E27: 0.7700 | F27: 3.9110 | G27: 0.0100 | H27: 4.2110 | I27: 1.3400 | J27: 50 | K27: 0.9100 | M27: 2017-04-01
A28: 1 | B28: JUNKERS TERMOSIFON Smart FCC-2S | C28: 1.936 | D28: 2.026 | E28: 0.7610 | F28: 4.0830 | G28: 0.0120 | H28: 4.4430 | I28: 1.9200 | J28: 50 | K28: 0.9100 | M28: 2017-06-01
A29: 0 | H29: 0.0000
A30: 0 | H30: 0.0000
A31: 0 | H31: 0.0000
A32: 0 | H32: 0.0000
A33: 0 | H33: 0.0000
A34: 0 | H34: 0.0000
A35: 0 | H35: 0.0000
A36: 0 | H36: 0.0000
A37: 0 | H37: 0.0000
A38: 0 | H38: 0.0000
A39: 0 | H39: 0.0000
A40: 0 | H40: 0.0000
A41: 0 | H41: 0.0000
A42: 0 | H42: 0.0000
A43: 0 | H43: 0.0000
A44: 0 | H44: 0.0000
A45: 0 | H45: 0.0000
A46: 0 | H46: 0.0000
A47: 0 | H47: 0.0000
A48: 0 | H48: 0.0000
A49: 0 | H49: 0.0000
A50: 0 | H50: 0.0000
A51: 0 | H51: 0.0000
A52: 0 | H52: 0.0000
A53: 0 | H53: 0.0000
A54: 0 | H54: 0.0000
A55: 0 | H55: 0.0000
A56: 0 | H56: 0.0000
A57: 0 | H57: 0.0000
A58: =SUM(A8:A57) -> 20 | B58: COLECTOR PROMEDIO | C58: =SUM(C8:C57)/$A$58 -> 2.446 | D58: 1.921 | E58: 0.804 | F58: 3.850 | G58: 0.022 | H58: 4.097 | I58: 1.861 | J58: 51 | K58: 0.957

Sheet Disipadores (hidden)
E2: Sin disipador
B3: Disipadores de calor dinámicos | E3: Disipador dinámico | M3: https://www.youtube.com/watch?v=vQLtdR8R_bM
E4: Sistema Drain-Back
B5: Salvador Scoda
Q6: Wilo Stratos STG
B7: Modelo | C7: m2 colector | D7: Potencia Kw | E7: Caudal l/h | F7: Tª salida | G7: m.c.a | Q7: Wilo Star-STG
B8: BD 08 | C8: 10 | D8: 8 | E8: 600 | F8: 76.76 | G8: 0.13 | Q8: Wilo Top-STG
B9: BD 16 | C9: 20 | D9: 16 | E9: 1200 | F9: 77.19 | G9: 0.27
B10: BD 24 | C10: 30 | D10: 24 | E10: 1800 | F10: 77.33 | G10: 0.74 | Q10: rendimiento | R10: 25%
B11: BD 32 | C11: 40 | D11: 32 | E11: 2400 | F11: 77.38 | G11: 0.72
B12: BD 40 | C12: 50 | D12: 40 | E12: 3000 | F12: 77.6 | G12: 1.19 | Q12: parelelo
B13: BD 48 | C13: 60 | D13: 48 | E13: 3600 | F13: 77.7 | G13: 1.83
B14: BD 56 | C14: 70 | D14: 56 | E14: 4200 | F14: 77.47 | G14: 0.95
B15: BD 64 | C15: 80 | D15: 64 | E15: 4800 | F15: 77.54 | G15: 1.45
B16: BD 72 | C16: 90 | D16: 72 | E16: 5400 | F16: 77.18 | G16: 1.37
B17: BD 80 | C17: 100 | D17: 80 | E17: 6000 | F17: 76.96 | G17: 1.23
B18: BD 96 | C18: 120 | D18: 96 | E18: 7200 | F18: 78.19 | G18: 1.32
B19: BD 112 | C19: 140 | D19: 112 | E19: 8400 | F19: 77.79 | G19: 0.72
B20: BD 120 | C20: 150 | D20: 120 | E20: 9000 | F20: 76.86 | G20: 0.87
B21: BD 144 | C21: 180 | D21: 144 | E21: 10800 | F21: 78 | G21: 1.04
B22: BD 160 | C22: 200 | D22: 160 | E22: 12000 | F22: 77.44 | G22: 1.17
B23: BD 184 | C23: 230 | D23: 184 | E23: 13800 | F23: 77.96 | G23: 1.41
B24: BD 200 | C24: 250 | D24: 200 | E24: 15000 | F24: 77.23 | G24: 1.54
B25: BD 224 | C25: 280 | D25: 224 | E25: 16800 | F25: 77.55 | G25: 1.79
B26: BD 240 | C26: 300 | D26: 240 | E26: 18000 | F26: 77.11 | G26: 1.92
B27: BD 264 | C27: 330 | D27: 264 | E27: 19800 | F27: 77.29 | G27: 2.13
B30: m2 paneles | C30: ='HE-4 SOLAR'!D54 -> 23.2
B31: Modelo | C31: =IF(C30<10,"BD 08",INDEX($B$8:$G$27,MATCH(C30,$C$8:$C$27,1)+1,1)) -> BD 24
B32: Potencia | C32: =IF(C30<10,D8,INDEX($B$8:$G$27,MATCH(C30,$C$8:$C$27,1)+1,3)) -> 24 | Q32: valvula de 3 vias en serie
B33: Caudal | C33: =IF(C30<10,E8,INDEX($B$8:$G$27,MATCH(C30,$C$8:$C$27,1)+1,4)) -> 1800
B34: mca | C34: =IF(C30<10,G8,INDEX($B$8:$G$27,MATCH(C30,$C$8:$C$27,1)+1,6)) -> 0.74

Sheet Localidad Usuario
B2: LOCALIDAD DEFINIDA POR EL USUARIO
B5: Nombre de la localidad | D5: definida por usuario
B6: Latitud | D6: 40.00 | E6: grados norte
D8: Enero | E8: Febrero | F8: Marzo | G8: Abril | H8: Mayo | I8: Junio | J8: Julio | K8: Agosto | L8: Sept. | M8: Oct. | N8: Nov. | O8: Dic.
B9: Tª. media agua red [ºC]: | D9: - | E9: - | F9: - | G9: - | H9: - | I9: - | J9: - | K9: - | L9: - | M9: - | N9: - | O9: -
B10: Tª. media mensual en horas diurnas [ºC]: | D10: - | E10: - | F10: - | G10: - | H10: - | I10: - | J10: - | K10: - | L10: - | M10: - | N10: - | O10: -
B11: Rad. horiz. [MJ/m2 día]: | D11: - | E11: - | F11: - | G11: - | H11: - | I11: - | J11: - | K11: - | L11: - | M11: - | N11: - | O11: -

Sheet Posicion solar (hidden)
B2: DATOS GENERALES
B3: Localidad | C3: =Sombras!D2 -> Madrid | E3: radianes | G3: inclinacion | I3: =Sombras!X26 -> 35 | K3: reflexion | M3: 0.2
B4: Latitud | C4: =Sombras!D3 -> 40.40 | E4: =C4*PI()/180 -> 0.71 | G4: azimut | I4: =Sombras!F6 -> 40 | K4: cte solar | M4: 1367
C5: ENERO | D5: FEBRERO | E5: MARZO | F5: ABRIL | G5: MAYO | H5: JUNIO | I5: JULIO | J5: AGOSTO | K5: SEPTIEMBRE | L5: OCTUBRE | M5: NOVIEMBRE | N5: DICIEMBRE | P5: fila | Q5: =IF(Sombras!$D$4='Datos SOLAR'!$B$7,1,2)+1 -> 2
B6: Radiacion horizontal (W/m2 dia) | C6: ='HE-4 SOLAR'!D16*1000/3.6 -> 2,273 | D6: ='HE-4 SOLAR'!E16*1000/3.6 -> 3,255 | E6: ='HE-4 SOLAR'!F16*1000/3.6 -> 4,657 | F6: ='HE-4 SOLAR'!G16*1000/3.6 -> 5,758 | G6: ='HE-4 SOLAR'!H16*1000/3.6 -> 6,610 | H6: ='HE-4 SOLAR'!I16*1000/3.6 -> 7,751 | I6: ='HE-4 SOLAR'!J16*1000/3.6 -> 8,052 | J6: ='HE-4 SOLAR'!K16*1000/3.6 -> 7,010 | K6: ='HE-4 SOLAR'!L16*1000/3.6 -> 5,478 | L6: ='HE-4 SOLAR'!M16*1000/3.6 -> 3,565 | M6: ='HE-4 SOLAR'!N16*1000/3.6 -> 2,434 | N6: ='HE-4 SOLAR'!O16*1000/3.6 -> 1,873
B7: COORDENADA SOLAR
F8: 0 | G8: 1 | H8: =G8+1 -> 2 | I8: 3 | J8: 4 | K8: 5 | L8: 6 | M8: 7 | N8: 8 | O8: 9 | P8: 10 | Q8: 11 | R8: 12 | S8: 13 | T8: 14 | U8: 15 | V8: 16 | W8: 17 | X8: 18 | Y8: 19 | Z8: 20 | AA8: 21 | AB8: 22 | AC8: 23 | AD8: 24 | AE8: hora solar
B9: mes | C9: dia | D9: n | E9: declinación | F9: =(12-F8)*15*PI()/180 -> 3.14 | G9: =(12-G8)*15*PI()/180 -> 2.88 | H9: 2.62 | I9: 2.36 | J9: 2.09 | K9: 1.83 | L9: 1.57 | M9: 1.31 | N9: 1.05 | O9: 0.79 | P9: 0.52 | Q9: 0.26 | R9: 0.00 | S9: -0.26 | T9: -0.52 | U9: -0.79 | V9: -1.05 | W9: -1.31 | X9: -1.57 | Y9: -1.83 | Z9: -2.09 | AA9: -2.36 | AB9: -2.62 | AC9: -2.88 | AD9: -3.14 | AE9: ang. Horario
B10: Enero | C10: 21 | D10: =C10 -> 21 | E10: =23.45*SIN(2*PI()*((284+D10)/365.25)) -> -20.18 | F10: =IF(DEGREES(ASIN((COS($E$4)*COS($E$10*PI()/180)*COS(F9))+(SIN($E$4)*SIN($E$10*PI()/180))))<0,0,DEGREES(ASIN((COS($E$4)*COS($E$10*PI()/180)*COS(F9))+(SIN($E$4)*SIN($E$10*PI()/180))))) -> 0.00 | G10: 0.00 | H10: 0.00 | I10: 0.00 | J10: 0.00 | K10: 0.00 | L10: 0.00 | M10: 0.00 | N10: 7.69 | O10: 16.37 | P10: 23.29 | Q10: 27.83 | R10: 29.42 | S10: 27.83 | T10: 23.29 | U10: 16.37 | V10: 7.69 | W10: 0.00 | X10: 0.00 | Y10: 0.00 | Z10: 0.00 | AA10: 0.00 | AB10: 0.00 | AC10: 0.00 | AD10: 0.00 | AE10: altura solar
F11: =-DEGREES(ACOS((SIN(F10*PI()/180)*SIN($E$4)-SIN($E$10*PI()/180))/(COS(F10*PI()/180)*COS($E$4)))) -> -63.06 | G11: =-DEGREES(ACOS((SIN(G10*PI()/180)*SIN($E$4)-SIN($E$10*PI()/180))/(COS(G10*PI()/180)*COS($E$4)))) -> -63.06 | H11: -63.06 | I11: -63.06 | J11: -63.06 | K11: -63.06 | L11: -63.06 | M11: -63.06 | N11: -55.11 | O11: -43.77 | P11: -30.73 | Q11: -15.94 | R11: 0.00 | S11: =DEGREES(ACOS((SIN(S10*PI()/180)*SIN($E$4)-SIN($E$10*PI()/180))/(COS(S10*PI()/180)*COS($E$4)))) -> 15.94 | T11: 30.73 | U11: 43.77 | V11: 55.11 | W11: 63.06 | X11: 63.06 | Y11: 63.06 | Z11: 63.06 | AA11: 63.06 | AB11: 63.06 | AC11: 63.06 | AD11: 63.06 | AE11: azimut
B13: Febrero | C13: 21 | D13: =31+C13 -> 52 | E13: =23.45*SIN(2*PI()*((284+D13)/365.25)) -> -11.31 | F13: =IF(DEGREES(ASIN((COS($E$4)*COS($E$13*PI()/180)*COS(F9))+(SIN($E$4)*SIN($E$13*PI()/180))))<0,0,DEGREES(ASIN((COS($E$4)*COS($E$13*PI()/180)*COS(F9))+(SIN($E$4)*SIN($E$13*PI()/180))))) -> 0.00 | G13: 0.00 | H13: 0.00 | I13: 0.00 | J13: 0.00 | K13: 0.00 | L13: 0.00 | M13: 3.80 | N13: 14.26 | O13: 23.64 | P13: 31.31 | Q13: 36.46 | R13: 38.29 | S13: 36.46 | T13: 31.31 | U13: 23.64 | V13: 14.26 | W13: 3.80 | X13: 0.00 | Y13: 0.00 | Z13: 0.00 | AA13: 0.00 | AB13: 0.00 | AC13: 0.00 | AD13: 0.00 | AE13: altura solar
F14: =-DEGREES(ACOS((SIN(F13*PI()/180)*SIN($E$4)-SIN($E$13*PI()/180))/(COS(F13*PI()/180)*COS($E$4)))) -> -75.08 | G14: -75.08 | H14: -75.08 | I14: -75.08 | J14: -75.08 | K14: -75.08 | L14: -75.08 | M14: -71.67 | N14: -61.19 | O14: -49.19 | P14: -35.02 | Q14: -18.39 | R14: 0.00 | S14: =DEGREES(ACOS((SIN(S13*PI()/180)*SIN($E$4)-SIN($E$13*PI()/180))/(COS(S13*PI()/180)*COS($E$4)))) -> 18.39 | T14: 35.02 | U14: 49.19 | V14: 61.19 | W14: 71.67 | X14: 75.08 | Y14: 75.08 | Z14: 75.08 | AA14: 75.08 | AB14: 75.08 | AC14: 75.08 | AD14: 75.08 | AE14: azimut
B16: Marzo | C16: 21 | D16: =(28+31)+C16 -> 80 | E16: =23.45*SIN(2*PI()*((284+D16)/365.25)) -> -0.50 | F16: =IF(DEGREES(ASIN((COS($E$4)*COS($E$13*PI()/180)*COS(F9))+(SIN($E$4)*SIN($E$13*PI()/180))))<0,0,DEGREES(ASIN((COS($E$4)*COS($E$13*PI()/180)*COS(F9))+(SIN($E$4)*SIN($E$13*PI()/180))))) -> 0.00 | G16: 0.00 | H16: 0.00 | I16: 0.00 | J16: 0.00 | K16: 0.00 | L16: 0.00 | M16: 3.80 | N16: 14.26 | O16: 23.64 | P16: 31.31 | Q16: 36.46 | R16: 38.29 | S16: 36.46 | T16: 31.31 | U16: 23.64 | V16: 14.26 | W16: 3.80 | X16: 0.00 | Y16: 0.00 | Z16: 0.00 | AA16: 0.00 | AB16: 0.00 | AC16: 0.00 | AD16: 0.00 | AE16: altura solar
F17: =-DEGREES(ACOS((SIN(F16*PI()/180)*SIN($E$4)-SIN($E$16*PI()/180))/(COS(F16*PI()/180)*COS($E$4)))) -> -89.34 | G17: -89.34 | H17: -89.34 | I17: -89.34 | J17: -89.34 | K17: -89.34 | L17: -89.34 | M17: -86.10 | N17: -76.81 | O17: -67.35 | P17: -57.92 | Q17: -49.97 | R17: 0.00 | S17: =DEGREES(ACOS((SIN(S16*PI()/180)*SIN($E$4)-SIN($E$16*PI()/180))/(COS(S16*PI()/180)*COS($E$4)))) -> 49.97 | T17: 57.92 | U17: 67.35 | V17: 76.81 | W17: 86.10 | X17: 89.34 | Y17: 89.34 | Z17: 89.34 | AA17: 89.34 | AB17: 89.34 | AC17: 89.34 | AD17: 89.34 | AE17: azimut
B19: Abril | C19: 21 | D19: =(31+28+31)+C19 -> 111 | E19: =23.45*SIN(2*PI()*((284+D19)/365.25)) -> 11.48 | F19: =IF(DEGREES(ASIN((COS($E$4)*COS($E$19*PI()/180)*COS(F9))+(SIN($E$4)*SIN($E$19*PI()/180))))<0,0,DEGREES(ASIN((COS($E$4)*COS($E$19*PI()/180)*COS(F9))+(SIN($E$4)*SIN($E$19*PI()/180))))) -> 0.00 | G19: 0.00 | H19: 0.00 | I19: 0.00 | J19: 0.00 | K19: 0.00 | L19: 7.41 | M19: 18.80 | N19: 30.14 | O19: 41.05 | P19: 50.84 | Q19: 58.20 | R19: 61.08 | S19: 58.20 | T19: 50.84 | U19: 41.05 | V19: 30.14 | W19: 18.80 | X19: 7.41 | Y19: 0.00 | Z19: 0.00 | AA19: 0.00 | AB19: 0.00 | AC19: 0.00 | AD19: 0.00 | AE19: altura solar
F20: =-DEGREES(ACOS((SIN(F19*PI()/180)*SIN($E$4)-SIN($E$19*PI()/180))/(COS(F19*PI()/180)*COS($E$4)))) -> -105.16 | G20: -105.16 | H20: -105.16 | I20: -105.16 | J20: -105.16 | K20: -105.16 | L20: -98.79 | M20: -89.23 | N20: -78.94 | O20: -66.77 | P20: -50.88 | Q20: -28.77 | R20: 0.00 | S20: =DEGREES(ACOS((SIN(S19*PI()/180)*SIN($E$4)-SIN($E$19*PI()/180))/(COS(S19*PI()/180)*COS($E$4)))) -> 28.77 | T20: 50.88 | U20: 66.77 | V20: 78.94 | W20: 89.23 | X20: 98.79 | Y20: 105.16 | Z20: 105.16 | AA20: 105.16 | AB20: 105.16 | AC20: 105.16 | AD20: 105.16 | AE20: azimut
B22: Mayo | C22: 21 | D22: =(31+28+31+30)+C22 -> 141 | E22: =23.45*SIN(2*PI()*((284+D22)/365.25)) -> 20.08 | F22: =IF(DEGREES(ASIN((COS($E$4)*COS($E$22*PI()/180)*COS(F9))+(SIN($E$4)*SIN($E$22*PI()/180))))<0,0,DEGREES(ASIN((COS($E$4)*COS($E$22*PI()/180)*COS(F9))+(SIN($E$4)*SIN($E$22*PI()/180))))) -> 0.00 | G22: 0.00 | H22: 0.00 | I22: 0.00 | J22: 0.00 | K22: 2.14 | L22: 12.86 | M22: 24.06 | N22: 35.46 | O22: 46.74 | P22: 57.34 | Q22: 65.98 | R22: 69.68 | S22: 65.98 | T22: 57.34 | U22: 46.74 | V22: 35.46 | W22: 24.06 | X22: 12.86 | Y22: 2.14 | Z22: 0.00 | AA22: 0.00 | AB22: 0.00 | AC22: 0.00 | AD22: 0.00 | AE22: altura solar
F23: =-DEGREES(ACOS((SIN(F22*PI()/180)*SIN($E$4)-SIN($E$22*PI()/180))/(COS(F22*PI()/180)*COS($E$4)))) -> -116.79 | G23: -116.79 | H23: -116.79 | I23: -116.79 | J23: -116.79 | K23: -114.79 | L23: -105.55 | M23: -96.53 | N23: -86.98 | O23: -75.72 | P23: -60.50 | Q23: -36.66 | R23: 0.00 | S23: =DEGREES(ACOS((SIN(S22*PI()/180)*SIN($E$4)-SIN($E$22*PI()/180))/(COS(S22*PI()/180)*COS($E$4)))) -> 36.66 | T23: 60.50 | U23: 75.72 | V23: 86.98 | W23: 96.53 | X23: 105.55 | Y23: 114.79 | Z23: 116.79 | AA23: 116.79 | AB23: 116.79 | AC23: 116.79 | AD23: 116.79 | AE23: azimut
B25: Junio | C25: 21 | D25: =(31+28+31+30+31)+C25 -> 172 | E25: =23.45*SIN(2*PI()*((284+D25)/365.25)) -> 23.45 | F25: =IF(DEGREES(ASIN((COS($E$4)*COS($E$25*PI()/180)*COS(F9))+(SIN($E$4)*SIN($E$25*PI()/180))))<0,0,DEGREES(ASIN((COS($E$4)*COS($E$25*PI()/180)*COS(F9))+(SIN($E$4)*SIN($E$25*PI()/180))))) -> 0.00 | G25: 0.00 | H25: 0.00 | I25: 0.00 | J25: 0.00 | K25: 4.42 | L25: 14.95 | M25: 26.02 | N25: 37.39 | O25: 48.76 | P25: 59.65 | Q25: 68.87 | R25: 73.05 | S25: 68.87 | T25: 59.65 | U25: 48.76 | V25: 37.39 | W25: 26.02 | X25: 14.95 | Y25: 4.42 | Z25: 0.00 | AA25: 0.00 | AB25: 0.00 | AC25: 0.00 | AD25: 0.00 | AE25: altura solar
F26: =-DEGREES(ACOS((SIN(F25*PI()/180)*SIN($E$4)-SIN($E$25*PI()/180))/(COS(F25*PI()/180)*COS($E$4)))) -> -121.50 | G26: -121.50 | H26: -121.50 | I26: -121.50 | J26: -121.50 | K26: -117.28 | L26: -108.28 | M26: -99.55 | N26: -90.41 | O26: -79.74 | P26: -65.21 | Q26: -41.19 | R26: 0.00 | S26: =DEGREES(ACOS((SIN(S25*PI()/180)*SIN($E$4)-SIN($E$25*PI()/180))/(COS(S25*PI()/180)*COS($E$4)))) -> 41.19 | T26: 65.21 | U26: 79.74 | V26: 90.41 | W26: 99.55 | X26: 108.28 | Y26: 117.28 | Z26: 121.50 | AA26: 121.50 | AB26: 121.50 | AC26: 121.50 | AD26: 121.50 | AE26: azimut
B28: Julio | C28: 21 | D28: =(31+28+31+30+31+30)+C28 -> 202 | E28: =23.45*SIN(2*PI()*((284+D28)/365.25)) -> 20.51 | F28: =IF(DEGREES(ASIN((COS($E$4)*COS($E$28*PI()/180)*COS(F9))+(SIN($E$4)*SIN($E$28*PI()/180))))<0,0,DEGREES(ASIN((COS($E$4)*COS($E$28*PI()/180)*COS(F9))+(SIN($E$4)*SIN($E$28*PI()/180))))) -> 0.00 | G28: 0.00 | H28: 0.00 | I28: 0.00 | J28: 0.00 | K28: 2.43 | L28: 13.12 | M28: 24.31 | N28: 35.71 | O28: 47.01 | P28: 57.65 | Q28: 66.35 | R28: 70.11 | S28: 66.35 | T28: 57.65 | U28: 47.01 | V28: 35.71 | W28: 24.31 | X28: 13.12 | Y28: 2.43 | Z28: 0.00 | AA28: 0.00 | AB28: 0.00 | AC28: 0.00 | AD28: 0.00 | AE28: altura solar
F29: =-DEGREES(ACOS((SIN(F28*PI()/180)*SIN($E$4)-SIN($E$28*PI()/180))/(COS(F28*PI()/180)*COS($E$4)))) -> -117.39 | G29: -117.39 | H29: -117.39 | I29: -117.39 | J29: -117.39 | K29: -115.11 | L29: -105.90 | M29: -96.91 | N29: -87.41 | O29: -76.22 | P29: -61.06 | Q29: -37.18 | R29: 0.00 | S29: =DEGREES(ACOS((SIN(S28*PI()/180)*SIN($E$4)-SIN($E$28*PI()/180))/(COS(S28*PI()/180)*COS($E$4)))) -> 37.18 | T29: 61.06 | U29: 76.22 | V29: 87.41 | W29: 96.91 | X29: 105.90 | Y29: 115.11 | Z29: 117.39 | AA29: 117.39 | AB29: 117.39 | AC29: 117.39 | AD29: 117.39 | AE29: azimut
B31: Agosto | C31: 21 | D31: =(31+28+31+30+31+30+31)+C31 -> 233 | E31: =23.45*SIN(2*PI()*((284+D31)/365.25)) -> 11.88 | F31: =IF(DEGREES(ASIN((COS($E$4)*COS($E$31*PI()/180)*COS(F9))+(SIN($E$4)*SIN($E$31*PI()/180))))<0,0,DEGREES(ASIN((COS($E$4)*COS($E$31*PI()/180)*COS(F9))+(SIN($E$4)*SIN($E$31*PI()/180))))) -> 0.00 | G31: 0.00 | H31: 0.00 | I31: 0.00 | J31: 0.00 | K31: 0.00 | L31: 7.67 | M31: 19.04 | N31: 30.40 | O31: 41.33 | P31: 51.15 | Q31: 58.57 | R31: 61.48 | S31: 58.57 | T31: 51.15 | U31: 41.33 | V31: 30.40 | W31: 19.04 | X31: 7.67 | Y31: 0.00 | Z31: 0.00 | AA31: 0.00 | AB31: 0.00 | AC31: 0.00 | AD31: 0.00 | AE31: altura solar
F32: =-DEGREES(ACOS((SIN(F31*PI()/180)*SIN($E$4)-SIN($E$31*PI()/180))/(COS(F31*PI()/180)*COS($E$4)))) -> -105.68 | G32: -105.68 | H32: -105.68 | I32: -105.68 | J32: -105.68 | K32: -105.68 | L32: -99.10 | M32: -89.55 | N32: -79.28 | O32: -67.14 | P32: -51.26 | Q32: -29.06 | R32: 0.00 | S32: =DEGREES(ACOS((SIN(S31*PI()/180)*SIN($E$4)-SIN($E$31*PI()/180))/(COS(S31*PI()/180)*COS($E$4)))) -> 29.06 | T32: 51.26 | U32: 67.14 | V32: 79.28 | W32: 89.55 | X32: 99.10 | Y32: 105.68 | Z32: 105.68 | AA32: 105.68 | AB32: 105.68 | AC32: 105.68 | AD32: 105.68 | AE32: azimut
B34: Septiembre | C34: 21 | D34: =(31+28+31+30+31+30+31+31)+C34 -> 264 | E34: =23.45*SIN(2*PI()*((284+D34)/365.25)) -> -0.05 | F34: =IF(DEGREES(ASIN((COS($E$4)*COS($E$34*PI()/180)*COS(F9))+(SIN($E$4)*SIN($E$34*PI()/180))))<0,0,DEGREES(ASIN((COS($E$4)*COS($E$34*PI()/180)*COS(F9))+(SIN($E$4)*SIN($E$34*PI()/180))))) -> 0.00 | G34: 0.00 | H34: 0.00 | I34: 0.00 | J34: 0.00 | K34: 0.00 | L34: 0.00 | M34: 11.33 | N34: 22.35 | O34: 32.54 | P34: 41.22 | Q34: 47.31 | R34: 49.55 | S34: 47.31 | T34: 41.22 | U34: 32.54 | V34: 22.35 | W34: 11.33 | X34: 0.00 | Y34: 0.00 | Z34: 0.00 | AA34: 0.00 | AB34: 0.00 | AC34: 0.00 | AD34: 0.00 | AE34: altura solar
F35: =-DEGREES(ACOS((SIN(F34*PI()/180)*SIN($E$4)-SIN($E$34*PI()/180))/(COS(F34*PI()/180)*COS($E$4)))) -> -89.93 | G35: -89.93 | H35: -89.93 | I35: -89.93 | J35: -89.93 | K35: -89.93 | L35: -89.93 | M35: -80.11 | N35: -69.45 | O35: -57.01 | P35: -41.66 | Q35: -22.44 | R35: 0.00 | S35: =DEGREES(ACOS((SIN(S34*PI()/180)*SIN($E$4)-SIN($E$34*PI()/180))/(COS(S34*PI()/180)*COS($E$4)))) -> 22.44 | T35: 41.66 | U35: 57.01 | V35: 69.45 | W35: 80.11 | X35: 89.93 | Y35: 89.93 | Z35: 89.93 | AA35: 89.93 | AB35: 89.93 | AC35: 89.93 | AD35: 89.93 | AE35: azimut
B37: Octubre | C37: 21 | D37: =(31+28+31+30+31+30+31+31+30)+C37 -> 294 | E37: =23.45*SIN(2*PI()*((284+D37)/365.25)) -> -11.62 | F37: =IF(DEGREES(ASIN((COS($E$4)*COS($E$37*PI()/180)*COS(F9))+(SIN($E$4)*SIN($E$37*PI()/180))))<0,0,DEGREES(ASIN((COS($E$4)*COS($E$37*PI()/180)*COS(F9))+(SIN($E$4)*SIN($E$37*PI()/180))))) -> 0.00 | G37: 0.00 | H37: 0.00 | I37: 0.00 | J37: 0.00 | K37: 0.00 | L37: 0.00 | M37: 3.59 | N37: 14.03 | O37: 23.39 | P37: 31.03 | Q37: 36.16 | R37: 37.98 | S37: 36.16 | T37: 31.03 | U37: 23.39 | V37: 14.03 | W37: 3.59 | X37: 0.00 | Y37: 0.00 | Z37: 0.00 | AA37: 0.00 | AB37: 0.00 | AC37: 0.00 | AD37: 0.00 | AE37: altura solar
F38: =-DEGREES(ACOS((SIN(F37*PI()/180)*SIN($E$4)-SIN($E$37*PI()/180))/(COS(F37*PI()/180)*COS($E$4)))) -> -74.67 | G38: -74.67 | H38: -74.67 | I38: -74.67 | J38: -74.67 | K38: -74.67 | L38: -74.67 | M38: -71.44 | N38: -60.97 | O38: -48.99 | P38: -34.86 | Q38: -18.30 | R38: 0.00 | S38: =DEGREES(ACOS((SIN(S37*PI()/180)*SIN($E$4)-SIN($E$37*PI()/180))/(COS(S37*PI()/180)*COS($E$4)))) -> 18.30 | T38: 34.86 | U38: 48.99 | V38: 60.97 | W38: 71.44 | X38: 74.67 | Y38: 74.67 | Z38: 74.67 | AA38: 74.67 | AB38: 74.67 | AC38: 74.67 | AD38: 74.67 | AE38: azimut
B40: Noviembre | C40: 21 | D40: =(31+28+31+30+31+30+31+31+30+31)+C40 -> 325 | E40: =23.45*SIN(2*PI()*((284+D40)/365.25)) -> -20.36 | F40: =IF(DEGREES(ASIN((COS($E$4)*COS($E$40*PI()/180)*COS(F9))+(SIN($E$4)*SIN($E$40*PI()/180))))<0,0,DEGREES(ASIN((COS($E$4)*COS($E$40*PI()/180)*COS(F9))+(SIN($E$4)*SIN($E$40*PI()/180))))) -> 0.00 | G40: 0.00 | H40: 0.00 | I40: 0.00 | J40: 0.00 | K40: 0.00 | L40: 0.00 | M40: 0.00 | N40: 7.56 | O40: 16.22 | P40: 23.13 | Q40: 27.66 | R40: 29.24 | S40: 27.66 | T40: 23.13 | U40: 16.22 | V40: 7.56 | W40: 0.00 | X40: 0.00 | Y40: 0.00 | Z40: 0.00 | AA40: 0.00 | AB40: 0.00 | AC40: 0.00 | AD40: 0.00 | AE40: altura solar
F41: =-DEGREES(ACOS((SIN(F40*PI()/180)*SIN($E$4)-SIN($E$40*PI()/180))/(COS(F40*PI()/180)*COS($E$4)))) -> -62.82 | G41: -62.82 | H41: -62.82 | I41: -62.82 | J41: -62.82 | K41: -62.82 | L41: -62.82 | M41: -62.82 | N41: -54.99 | O41: -43.66 | P41: -30.65 | Q41: -15.90 | R41: 0.00 | S41: =DEGREES(ACOS((SIN(S40*PI()/180)*SIN($E$4)-SIN($E$40*PI()/180))/(COS(S40*PI()/180)*COS($E$4)))) -> 15.90 | T41: 30.65 | U41: 43.66 | V41: 54.99 | W41: 62.82 | X41: 62.82 | Y41: 62.82 | Z41: 62.82 | AA41: 62.82 | AB41: 62.82 | AC41: 62.82 | AD41: 62.82 | AE41: azimut
B43: Diciembre | C43: 21 | D43: =(31+28+31+30+31+30+31+31+30+31+30)+C43 -> 355 | E43: =23.45*SIN(2*PI()*((284+D43)/365.25)) -> -23.45 | F43: =IF(DEGREES(ASIN((COS($E$4)*COS($E$43*PI()/180)*COS(F9))+(SIN($E$4)*SIN($E$43*PI()/180))))<0,0,DEGREES(ASIN((COS($E$4)*COS($E$43*PI()/180)*COS(F9))+(SIN($E$4)*SIN($E$43*PI()/180))))) -> 0.00 | G43: 0.00 | H43: 0.00 | I43: 0.00 | J43: 0.00 | K43: 0.00 | L43: 0.00 | M43: 0.00 | N43: 5.24 | O43: 13.66 | P43: 20.31 | Q43: 24.64 | R43: 26.15 | S43: 24.64 | T43: 20.31 | U43: 13.66 | V43: 5.24 | W43: 0.00 | X43: 0.00 | Y43: 0.00 | Z43: 0.00 | AA43: 0.00 | AB43: 0.00 | AC43: 0.00 | AD43: 0.00 | AE43: altura solar
F44: =-DEGREES(ACOS((SIN(F43*PI()/180)*SIN($E$4)-SIN($E$43*PI()/180))/(COS(F43*PI()/180)*COS($E$4)))) -> -58.50 | G44: -58.50 | H44: -58.50 | I44: -58.50 | J44: -58.50 | K44: -58.50 | L44: -58.50 | M44: -58.50 | N44: -52.92 | O44: -41.88 | P44: -29.28 | Q44: -15.14 | R44: 0.00 | S44: =DEGREES(ACOS((SIN(S43*PI()/180)*SIN($E$4)-SIN($E$43*PI()/180))/(COS(S43*PI()/180)*COS($E$4)))) -> 15.14 | T44: 29.28 | U44: 41.88 | V44: 52.92 | W44: 58.50 | X44: 58.50 | Y44: 58.50 | Z44: 58.50 | AA44: 58.50 | AB44: 58.50 | AC44: 58.50 | AD44: 58.50 | AE44: azimut
B46: OBSTRUCCION SOLAR
B47: COLUMNA | C47: 1 | D47: =C47+1 -> 2 | E47: =D47+1 -> 3 | F47: 4 | G47: 5 | H47: 6 | I47: 7 | J47: 8 | K47: 9 | L47: 10 | M47: 11 | N47: 12 | O47: 13 | P47: 14 | Q47: 15 | R47: 16 | S47: 17 | T47: 18 | U47: 19 | V47: 20 | W47: 21 | X47: 22 | Y47: 23 | Z47: 24 | AA47: 25 | AB47: 26 | AC47: 27 | AD47: 28 | AE47: 29 | AF47: 30 | AG47: 31 | AH47: 32 | AI47: 33 | AJ47: 34 | AK47: 35 | AL47: 36 | AM47: 37 | AN47: 38 | AO47: 39 | AP47: 40 | AQ47: 41 | AR47: 42 | AS47: 43 | AT47: 44 | AU47: 45 | AV47: 46 | AW47: 47 | AX47: 48 | AY47: 49 | AZ47: 50 | BA47: 51 | BB47: 52 | BC47: 53 | BD47: 54 | BE47: 55 | BF47: 56 | BG47: 57 | BH47: 58 | BI47: 59 | BJ47: 60 | BK47: 61 | BL47: 62 | BM47: 63 | BN47: 64 | BO47: 65 | BP47: 66 | BQ47: =BP47+1 -> 67 | BR47: 68 | BS47: 69 | BT47: 70 | BU47: 71 | BV47: 72 | BW47: 73
B48: AZIMUT | C48: -180 | D48: =C48+5 -> -175 | E48: =D48+5 -> -170 | F48: -165 | G48: -160 | H48: -155 | I48: -150 | J48: -145 | K48: -140 | L48: -135 | M48: -130 | N48: -125 | O48: -120 | P48: -115 | Q48: -110 | R48: -105 | S48: -100 | T48: -95 | U48: -90 | V48: -85 | W48: -80 | X48: -75 | Y48: -70 | Z48: -65 | AA48: -60 | AB48: -55 | AC48: -50 | AD48: -45 | AE48: -40 | AF48: -35 | AG48: -30 | AH48: -25 | AI48: -20 | AJ48: -15 | AK48: -10 | AL48: -5 | AM48: 0 | AN48: 5 | AO48: 10 | AP48: 15 | AQ48: 20 | AR48: 25 | AS48: 30 | AT48: 35 | AU48: 40 | AV48: 45 | AW48: 50 | AX48: 55 | AY48: 60 | AZ48: 65 | BA48: 70 | BB48: 75 | BC48: 80 | BD48: 85 | BE48: 90 | BF48: 95 | BG48: 100 | BH48: 105 | BI48: 110 | BJ48: 115 | BK48: 120 | BL48: 125 | BM48: 130 | BN48: 135 | BO48: 140 | BP48: 145 | BQ48: =BP48+5 -> 150 | BR48: 155 | BS48: 160 | BT48: 165 | BU48: 170 | BV48: 175 | BW48: 180
B50: ARCO | C50: azimut | D50: altura | F50: Perdidas orinetacion | G50: FALSE
B51: Az este | C51: =IF(Sombras!X26<=15,-180,MIN(Sombras!$Z$10:$AA$10)) -> -50
B52: Az oeste | C52: =IF(Sombras!X26<=15,180,C51+180) -> 130
B53: altura solar | C53: =IF(C48<$C$51,90,IF(C48>$C$52,90,0)) -> 90 | D53: 90 | E53: 90 | F53: 90 | G53: 90 | H53: 90 | I53: 90 | J53: 90 | K53: 90 | L53: 90 | M53: 90 | N53: 90 | O53: 90 | P53: 90 | Q53: 90 | R53: 90 | S53: 90 | T53: 90 | U53: 90 | V53: 90 | W53: 90 | X53: 90 | Y53: 90 | Z53: 90 | AA53: 90 | AB53: 90 | AC53: 0 | AD53: 0 | AE53: 0 | AF53: 0 | AG53: 0 | AH53: 0 | AI53: 0 | AJ53: 0 | AK53: 0 | AL53: 0 | AM53: 0 | AN53: 0 | AO53: 0 | AP53: 0 | AQ53: 0 | AR53: 0 | AS53: 0 | AT53: 0 | AU53: 0 | AV53: 0 | AW53: 0 | AX53: 0 | AY53: 0 | AZ53: 0 | BA53: 0 | BB53: 0 | BC53: 0 | BD53: 0 | BE53: 0 | BF53: 0 | BG53: 0 | BH53: 0 | BI53: 0 | BJ53: 0 | BK53: 0 | BL53: 0 | BM53: 0 | BN53: 90 | BO53: =IF(BO48<$C$51,90,IF(BO48>$C$52,90,0)) -> 90 | BP53: 90 | BQ53: 90 | BR53: 90 | BS53: 90 | BT53: 90 | BU53: 90 | BV53: 90 | BW53: 90
C54: =IF($G$50=TRUE,1,IF(C53=90,0,1)) -> 0 | D54: =IF($G$50=TRUE,1,IF(D53=90,0,1)) -> 0 | E54: 0 | F54: 0 | G54: 0 | H54: 0 | I54: 0 | J54: 0 | K54: 0 | L54: 0 | M54: 0 | N54: 0 | O54: 0 | P54: 0 | Q54: 0 | R54: 0 | S54: 0 | T54: 0 | U54: 0 | V54: 0 | W54: 0 | X54: 0 | Y54: 0 | Z54: 0 | AA54: 0 | AB54: 0 | AC54: 1 | AD54: 1 | AE54: 1 | AF54: 1 | AG54: 1 | AH54: 1 | AI54: 1 | AJ54: 1 | AK54: 1 | AL54: 1 | AM54: 1 | AN54: 1 | AO54: 1 | AP54: 1 | AQ54: 1 | AR54: 1 | AS54: 1 | AT54: 1 | AU54: 1 | AV54: 1 | AW54: 1 | AX54: 1 | AY54: 1 | AZ54: 1 | BA54: 1 | BB54: 1 | BC54: 1 | BD54: 1 | BE54: 1 | BF54: 1 | BG54: 1 | BH54: 1 | BI54: 1 | BJ54: 1 | BK54: 1 | BL54: 1 | BM54: 1 | BN54: 0 | BO54: 0 | BP54: =IF($G$50=TRUE,1,IF(BP53=90,0,1)) -> 0 | BQ54: 0 | BR54: 0 | BS54: 0 | BT54: 0 | BU54: 0 | BV54: 0 | BW54: 0
B55: PATIO | C55: azimut | D55: altura | E55: red az
B56: PATIO F1a | C56: =MIN(Sombras!E54:E55) -> 0.00 | D56: =VLOOKUP(C56,Sombras!$E$54:$F$55,2,FALSE) -> 0.00 | E56: =ROUND(C56/5,0)*5 -> 0 | F56: col inicio | G56: =IF(C56>180,73,IF(C56<-180,1,MATCH($D$56,C58:BW58,FALSE))) -> 1
B57: PATIO F1b | C57: =MAX(Sombras!E54:E55) -> 0.00 | D57: =VLOOKUP(C57,Sombras!$E$54:$F$55,2,FALSE) -> 0.00 | E57: =ROUND(C57/5,0)*5 -> 0 | F57: col fin | G57: =IF(E57>180,73,IF(C57<-180,1,IF(E57=E56,G56,MATCH($D$57,C58:BW58,FALSE)))) -> 1
B58: altura solar | C58: =IF(C48=$E$56,$D$56,IF(C48=$E$57,$D$57,0)) -> 0 | D58: =IF(D48=$E$56,$D$56,IF(D48=$E$57,$D$57,0)) -> 0 | E58: 0 | F58: 0 | G58: 0 | H58: 0 | I58: 0 | J58: 0 | K58: 0 | L58: 0 | M58: 0 | N58: 0 | O58: 0 | P58: 0 | Q58: 0 | R58: 0 | S58: 0 | T58: 0 | U58: 0 | V58: 0 | W58: 0 | X58: 0 | Y58: 0 | Z58: 0 | AA58: 0 | AB58: 0 | AC58: 0 | AD58: 0 | AE58: 0 | AF58: 0 | AG58: 0 | AH58: 0 | AI58: 0 | AJ58: 0 | AK58: 0 | AL58: 0 | AM58: 0 | AN58: 0 | AO58: 0 | AP58: 0 | AQ58: 0 | AR58: 0 | AS58: 0 | AT58: 0 | AU58: 0 | AV58: 0 | AW58: 0 | AX58: 0 | AY58: 0 | AZ58: 0 | BA58: 0 | BB58: 0 | BC58: 0 | BD58: 0 | BE58: 0 | BF58: 0 | BG58: 0 | BH58: 0 | BI58: 0 | BJ58: 0 | BK58: 0 | BL58: 0 | BM58: 0 | BN58: 0 | BO58: 0 | BP58: =IF(BP48=$E$56,$D$56,IF(BP48=$E$57,$D$57,0)) -> 0 | BQ58: 0 | BR58: 0 | BS58: 0 | BT58: 0 | BU58: 0 | BV58: 0 | BW58: 0
B59: altura interpolada | C59: =IF(MAX(C57,C56)<-180,0,IF(C56<-180,D57+((D56-D57)*(C56+180)/(C56-C57)),IF(C$47=$G$56,$D$56,IF(C$47=$G$57,$D$57,0)))) -> 0 | D59: =IF(D47<$G$56,0,IF(D47=$G$56,$D$56,IF(D47<=$G$57,$D$56+(($D$57-$D$56)*(D47-$G$56)/($G$57-$G$56)),0))) -> 0 | E59: 0 | F59: 0 | G59: 0 | H59: 0 | I59: 0 | J59: 0 | K59: 0 | L59: 0 | M59: 0 | N59: 0 | O59: 0 | P59: 0 | Q59: 0 | R59: 0 | S59: 0 | T59: 0 | U59: 0 | V59: 0 | W59: 0 | X59: 0 | Y59: 0 | Z59: 0 | AA59: 0 | AB59: 0 | AC59: 0 | AD59: 0 | AE59: 0 | AF59: 0 | AG59: 0 | AH59: 0 | AI59: 0 | AJ59: 0 | AK59: 0 | AL59: 0 | AM59: 0 | AN59: 0 | AO59: 0 | AP59: 0 | AQ59: 0 | AR59: 0 | AS59: 0 | AT59: 0 | AU59: 0 | AV59: 0 | AW59: 0 | AX59: 0 | AY59: 0 | AZ59: 0 | BA59: 0 | BB59: 0 | BC59: 0 | BD59: 0 | BE59: 0 | BF59: 0 | BG59: 0 | BH59: 0 | BI59: 0 | BJ59: 0 | BK59: 0 | BL59: 0 | BM59: 0 | BN59: 0 | BO59: 0 | BP59: =IF(BP47<$G$56,0,IF(BP47=$G$56,$D$56,IF(BP47<=$G$57,$D$56+(($D$57-$D$56)*(BP47-$G$56)/($G$57-$G$56)),0))) -> 0 | BQ59: 0 | BR59: 0 | BS59: 0 | BT59: 0 | BU59: 0 | BV59: 0 | BW59: =IF(C57>180,D56+((D57-D56)*(C57-180)/(C57-C56)),IF(BW47<$G$56,0,IF(BW47=$G$56,$D$56,IF(BW47<=$G$57,$D$56+(($D$57-$D$56)*(BW47-$G$56)/($G$57-$G$56)),0)))) -> 0
B60: PATIO F2a | C60: =MIN(Sombras!E59:E60) -> 0.00 | D60: =VLOOKUP(C60,Sombras!E59:F60,2,FALSE) -> 0.00 | E60: =ROUND(C60/5,0)*5 -> 0 | F60: col inicio | G60: =IF(C60>180,73,IF(C60<-180,1,MATCH($D$60,C62:BW62,FALSE))) -> 1
B61: PATIO F2b | C61: =MAX(Sombras!E59:E60) -> 0.00 | D61: =VLOOKUP(C61,Sombras!E59:F60,2,FALSE) -> 0.00 | E61: =ROUND(C61/5,0)*5 -> 0 | F61: col fin | G61: =IF(E61>180,73,IF(C61<-180,1,IF(E61=E60,G60,MATCH($D$61,C62:BW62,FALSE)))) -> 1
B62: altura solar | C62: =IF(C$48=$E$60,$D$60,IF(C$48=$E$61,$D$61,0)) -> 0 | D62: =IF(D$48=$E$60,$D$60,IF(D$48=$E$61,$D$61,0)) -> 0 | E62: 0 | F62: 0 | G62: 0 | H62: 0 | I62: 0 | J62: 0 | K62: 0 | L62: 0 | M62: 0 | N62: 0 | O62: 0 | P62: 0 | Q62: 0 | R62: 0 | S62: 0 | T62: 0 | U62: 0 | V62: 0 | W62: 0 | X62: 0 | Y62: 0 | Z62: 0 | AA62: 0 | AB62: 0 | AC62: 0 | AD62: 0 | AE62: 0 | AF62: 0 | AG62: 0 | AH62: 0 | AI62: 0 | AJ62: 0 | AK62: 0 | AL62: 0 | AM62: 0 | AN62: 0 | AO62: 0 | AP62: 0 | AQ62: 0 | AR62: 0 | AS62: 0 | AT62: 0 | AU62: 0 | AV62: 0 | AW62: 0 | AX62: 0 | AY62: 0 | AZ62: 0 | BA62: 0 | BB62: 0 | BC62: 0 | BD62: 0 | BE62: 0 | BF62: 0 | BG62: 0 | BH62: 0 | BI62: 0 | BJ62: 0 | BK62: 0 | BL62: 0 | BM62: 0 | BN62: 0 | BO62: 0 | BP62: =IF(BP$48=$E$60,$D$60,IF(BP$48=$E$61,$D$61,0)) -> 0 | BQ62: 0 | BR62: 0 | BS62: 0 | BT62: 0 | BU62: 0 | BV62: 0 | BW62: 0
B63: altura interpolada | C63: =IF(MAX(C61,C60)<-180,0,IF(C60<-180,D61+((D60-D61)*(C60+180)/(C60-C61)),IF(C$47=$G$60,$D$60,IF(C$47=$G$61,$D$61,0)))) -> 0 | D63: =IF(D47<$G$60,0,IF(D47=$G$60,$D$60,IF(D47<=$G$61,$D$60+(($D$61-$D$60)*(D47-$G$60)/($G$61-$G$60)),0))) -> 0 | E63: 0 | F63: 0 | G63: 0 | H63: 0 | I63: 0 | J63: 0 | K63: 0 | L63: 0 | M63: 0 | N63: 0 | O63: 0 | P63: 0 | Q63: 0 | R63: 0 | S63: 0 | T63: 0 | U63: 0 | V63: 0 | W63: 0 | X63: 0 | Y63: 0 | Z63: 0 | AA63: 0 | AB63: 0 | AC63: 0 | AD63: 0 | AE63: 0 | AF63: 0 | AG63: 0 | AH63: 0 | AI63: 0 | AJ63: 0 | AK63: 0 | AL63: 0 | AM63: 0 | AN63: 0 | AO63: 0 | AP63: 0 | AQ63: 0 | AR63: 0 | AS63: 0 | AT63: 0 | AU63: 0 | AV63: 0 | AW63: 0 | AX63: 0 | AY63: 0 | AZ63: 0 | BA63: 0 | BB63: 0 | BC63: 0 | BD63: 0 | BE63: 0 | BF63: 0 | BG63: 0 | BH63: 0 | BI63: 0 | BJ63: 0 | BK63: 0 | BL63: 0 | BM63: 0 | BN63: 0 | BO63: 0 | BP63: =IF(BP47<$G$60,0,IF(BP47=$G$60,$D$60,IF(BP47<=$G$61,$D$60+(($D$61-$D$60)*(BP47-$G$60)/($G$61-$G$60)),0))) -> 0 | BQ63: 0 | BR63: 0 | BS63: 0 | BT63: 0 | BU63: 0 | BV63: 0 | BW63: =IF(C61>180,D60+((D61-D60)*(C61-180)/(C61-C60)),IF(BW47<$G$60,0,IF(BW47=$G$60,$D$60,IF(BW47<=$G$61,$D$60+(($D$61-$D$60)*(BW47-$G$60)/($G$61-$G$60)),0)))) -> 0
B64: PATIO Ld1 | C64: =MIN(Sombras!E64:E65) -> 0.00 | D64: =VLOOKUP(C64,Sombras!E64:F65,2,FALSE) -> 0.00 | E64: =ROUND(C64/5,0)*5 -> 0 | F64: col inicio | G64: =IF(C64>180,73,IF(C64<-180,1,MATCH($D$64,C66:BW66,FALSE))) -> 1
B65: PATIO Ld2 | C65: =MAX(Sombras!E64:E65) -> 0.00 | D65: =VLOOKUP(C65,Sombras!E64:F65,2,FALSE) -> 0.00 | E65: =ROUND(C65/5,0)*5 -> 0 | F65: col fin | G65: =IF(E65>180,73,IF(C65<-180,1,IF(E65=E64,G64,MATCH($D$65,C66:BW66,FALSE)))) -> 1
B66: altura solar | C66: =IF(C$48=$E$64,$D$64,IF(C$48=$E$65,$D$65,0)) -> 0 | D66: =IF(D$48=$E$64,$D$64,IF(D$48=$E$65,$D$65,0)) -> 0 | E66: 0 | F66: 0 | G66: 0 | H66: 0 | I66: 0 | J66: 0 | K66: 0 | L66: 0 | M66: 0 | N66: 0 | O66: 0 | P66: 0 | Q66: 0 | R66: 0 | S66: 0 | T66: 0 | U66: 0 | V66: 0 | W66: 0 | X66: 0 | Y66: 0 | Z66: 0 | AA66: 0 | AB66: 0 | AC66: 0 | AD66: 0 | AE66: 0 | AF66: 0 | AG66: 0 | AH66: 0 | AI66: 0 | AJ66: 0 | AK66: 0 | AL66: 0 | AM66: 0 | AN66: 0 | AO66: 0 | AP66: 0 | AQ66: 0 | AR66: 0 | AS66: 0 | AT66: 0 | AU66: 0 | AV66: 0 | AW66: 0 | AX66: 0 | AY66: 0 | AZ66: 0 | BA66: 0 | BB66: 0 | BC66: 0 | BD66: 0 | BE66: 0 | BF66: 0 | BG66: 0 | BH66: 0 | BI66: 0 | BJ66: 0 | BK66: 0 | BL66: 0 | BM66: 0 | BN66: 0 | BO66: 0 | BP66: =IF(BP$48=$E$64,$D$64,IF(BP$48=$E$65,$D$65,0)) -> 0 | BQ66: 0 | BR66: 0 | BS66: 0 | BT66: 0 | BU66: 0 | BV66: 0 | BW66: 0
B67: altura interpolada | C67: =IF(MAX(C65,C64)<-180,0,IF(C64<-180,D65+((D64-D65)*(C64+180)/(C64-C65)),IF(C$47=$G$64,$D$64,IF(C$47=$G$65,$D$65,0)))) -> 0 | D67: =IF(D47<$G$64,0,IF(D47=$G$64,$D$64,IF(D47<=$G$65,$D$64+(($D$65-$D$64)*(D47-$G$64)/($G$65-$G$64)),0))) -> 0 | E67: 0 | F67: 0 | G67: 0 | H67: 0 | I67: 0 | J67: 0 | K67: 0 | L67: 0 | M67: 0 | N67: 0 | O67: 0 | P67: 0 | Q67: 0 | R67: 0 | S67: 0 | T67: 0 | U67: 0 | V67: 0 | W67: 0 | X67: 0 | Y67: 0 | Z67: 0 | AA67: 0 | AB67: 0 | AC67: 0 | AD67: 0 | AE67: 0 | AF67: 0 | AG67: 0 | AH67: 0 | AI67: 0 | AJ67: 0 | AK67: 0 | AL67: 0 | AM67: 0 | AN67: 0 | AO67: 0 | AP67: 0 | AQ67: 0 | AR67: 0 | AS67: 0 | AT67: 0 | AU67: 0 | AV67: 0 | AW67: 0 | AX67: 0 | AY67: 0 | AZ67: 0 | BA67: 0 | BB67: 0 | BC67: 0 | BD67: 0 | BE67: 0 | BF67: 0 | BG67: 0 | BH67: 0 | BI67: 0 | BJ67: 0 | BK67: 0 | BL67: 0 | BM67: 0 | BN67: 0 | BO67: 0 | BP67: =IF(BP47<$G$64,0,IF(BP47=$G$64,$D$64,IF(BP47<=$G$65,$D$64+(($D$65-$D$64)*(BP47-$G$64)/($G$65-$G$64)),0))) -> 0 | BQ67: 0 | BR67: 0 | BS67: 0 | BT67: 0 | BU67: 0 | BV67: 0 | BW67: =IF(C65>180,D64+((D65-D64)*(C65-180)/(C65-C64)),IF(BW47<$G$64,0,IF(BW47=$G$64,$D$64,IF(BW47<=$G$65,$D$64+(($D$65-$D$64)*(BW47-$G$64)/($G$65-$G$64)),0)))) -> 0
B68: PATIO Li1 | C68: =MIN(Sombras!E69:E70) -> 0.00 | D68: =VLOOKUP(C68,Sombras!E69:F70,2,FALSE) -> 0.00 | E68: =ROUND(C68/5,0)*5 -> 0 | F68: col inicio | G68: =IF(C68>180,73,IF(C68<-180,1,MATCH($D$68,C70:BW70,FALSE))) -> 1
B69: PATIO Li2 | C69: =MAX(Sombras!E69:E70) -> 0.00 | D69: =VLOOKUP(C69,Sombras!E69:F70,2,FALSE) -> 0.00 | E69: =ROUND(C69/5,0)*5 -> 0 | F69: col fin | G69: =IF(E69>180,73,IF(C69<-180,1,IF(E69=E68,G68,MATCH($D$69,C70:BW70,FALSE)))) -> 1
B70: altura solar | C70: =IF(C$48=$E$68,$D$68,IF(C$48=$E$69,$D$69,0)) -> 0 | D70: =IF(D$48=$E$68,$D$68,IF(D$48=$E$69,$D$69,0)) -> 0 | E70: 0 | F70: 0 | G70: 0 | H70: 0 | I70: 0 | J70: 0 | K70: 0 | L70: 0 | M70: 0 | N70: 0 | O70: 0 | P70: 0 | Q70: 0 | R70: 0 | S70: 0 | T70: 0 | U70: 0 | V70: 0 | W70: 0 | X70: 0 | Y70: 0 | Z70: 0 | AA70: 0 | AB70: 0 | AC70: 0 | AD70: 0 | AE70: 0 | AF70: 0 | AG70: 0 | AH70: 0 | AI70: 0 | AJ70: 0 | AK70: 0 | AL70: 0 | AM70: 0 | AN70: 0 | AO70: 0 | AP70: 0 | AQ70: 0 | AR70: 0 | AS70: 0 | AT70: 0 | AU70: 0 | AV70: 0 | AW70: 0 | AX70: 0 | AY70: 0 | AZ70: 0 | BA70: 0 | BB70: 0 | BC70: 0 | BD70: 0 | BE70: 0 | BF70: 0 | BG70: 0 | BH70: 0 | BI70: 0 | BJ70: 0 | BK70: 0 | BL70: 0 | BM70: 0 | BN70: 0 | BO70: 0 | BP70: =IF(BP$48=$E$68,$D$68,IF(BP$48=$E$69,$D$69,0)) -> 0 | BQ70: 0 | BR70: 0 | BS70: 0 | BT70: 0 | BU70: 0 | BV70: 0 | BW70: 0
B71: altura interpolada | C71: =IF(MAX(C69,C68)<-180,0,IF(C68<-180,D69+((D68-D69)*(C68+180)/(C68-C69)),IF(C$47=$G$68,$D$68,IF(C$47=$G$69,$D$69,0)))) -> 0 | D71: =IF(D47<$G$68,0,IF(D47=$G$68,$D$68,IF(D47<=$G$69,$D$68+(($D$69-$D$68)*(D47-$G$68)/($G$69-$G$68)),0))) -> 0 | E71: 0 | F71: 0 | G71: 0 | H71: 0 | I71: 0 | J71: 0 | K71: 0 | L71: 0 | M71: 0 | N71: 0 | O71: 0 | P71: 0 | Q71: 0 | R71: 0 | S71: 0 | T71: 0 | U71: 0 | V71: 0 | W71: 0 | X71: 0 | Y71: 0 | Z71: 0 | AA71: 0 | AB71: 0 | AC71: 0 | AD71: 0 | AE71: 0 | AF71: 0 | AG71: 0 | AH71: 0 | AI71: 0 | AJ71: 0 | AK71: 0 | AL71: 0 | AM71: 0 | AN71: 0 | AO71: 0 | AP71: 0 | AQ71: 0 | AR71: 0 | AS71: 0 | AT71: 0 | AU71: 0 | AV71: 0 | AW71: 0 | AX71: 0 | AY71: 0 | AZ71: 0 | BA71: 0 | BB71: 0 | BC71: 0 | BD71: 0 | BE71: 0 | BF71: 0 | BG71: 0 | BH71: 0 | BI71: 0 | BJ71: 0 | BK71: 0 | BL71: 0 | BM71: 0 | BN71: 0 | BO71: 0 | BP71: =IF(BP47<$G$68,0,IF(BP47=$G$68,$D$68,IF(BP47<=$G$69,$D$68+(($D$69-$D$68)*(BP47-$G$68)/($G$69-$G$68)),0))) -> 0 | BQ71: 0 | BR71: 0 | BS71: 0 | BT71: 0 | BU71: 0 | BV71: 0 | BW71: =IF(C69>180,D68+((D69-D68)*(C69-180)/(C69-C68)),IF(BW47<$G$68,0,IF(BW47=$G$68,$D$68,IF(BW47<=$G$69,$D$68+(($D$69-$D$68)*(BW47-$G$68)/($G$69-$G$68)),0)))) -> 0
B73: PATIO max | C73: =MAX(C71,C67,C63,C59) -> 0 | D73: =MAX(D71,D67,D63,D59) -> 0 | E73: 0 | F73: 0 | G73: 0 | H73: 0 | I73: 0 | J73: 0 | K73: 0 | L73: 0 | M73: 0 | N73: 0 | O73: 0 | P73: 0 | Q73: 0 | R73: 0 | S73: 0 | T73: 0 | U73: 0 | V73: 0 | W73: 0 | X73: 0 | Y73: 0 | Z73: 0 | AA73: 0 | AB73: 0 | AC73: 0 | AD73: 0 | AE73: 0 | AF73: 0 | AG73: 0 | AH73: 0 | AI73: 0 | AJ73: 0 | AK73: 0 | AL73: 0 | AM73: 0 | AN73: 0 | AO73: 0 | AP73: 0 | AQ73: 0 | AR73: 0 | AS73: 0 | AT73: 0 | AU73: 0 | AV73: 0 | AW73: 0 | AX73: 0 | AY73: 0 | AZ73: 0 | BA73: 0 | BB73: 0 | BC73: 0 | BD73: 0 | BE73: 0 | BF73: 0 | BG73: 0 | BH73: 0 | BI73: 0 | BJ73: 0 | BK73: 0 | BL73: 0 | BM73: 0 | BN73: 0 | BO73: 0 | BP73: =MAX(BP71,BP67,BP63,BP59) -> 0 | BQ73: 0 | BR73: 0 | BS73: 0 | BT73: 0 | BU73: 0 | BV73: 0 | BW73: 0
B75: SALIENTE | C75: azimut | D75: altura
B76: Sal 1a | C76: =MIN(Sombras!J54:J55) -> 0.00 | D76: =VLOOKUP(C76,Sombras!J54:K55,2,FALSE) -> 0.00 | E76: =ROUND(C76/5,0)*5 -> 0 | F76: col inicio | G76: =IF(C76>180,73,IF(C76<-180,1,MATCH($D$76,C78:BW78,FALSE))) -> 1
B77: Sal 1b | C77: =MAX(Sombras!J54:J55) -> 0.00 | D77: =VLOOKUP(C77,Sombras!J54:K55,2,FALSE) -> 0.00 | E77: =ROUND(C77/5,0)*5 -> 0 | F77: col fin | G77: =IF(E77>180,73,IF(C77<-180,1,IF(E77=E76,G76,MATCH($D$77,C78:BW78,FALSE)))) -> 1
B78: altura solar | C78: =IF(C$48=$E$76,$D$76,IF(C$48=$E$77,$D$77,0)) -> 0 | D78: =IF(D$48=$E$76,$D$76,IF(D$48=$E$77,$D$77,0)) -> 0 | E78: 0 | F78: 0 | G78: 0 | H78: 0 | I78: 0 | J78: 0 | K78: 0 | L78: 0 | M78: 0 | N78: 0 | O78: 0 | P78: 0 | Q78: 0 | R78: 0 | S78: 0 | T78: 0 | U78: 0 | V78: 0 | W78: 0 | X78: 0 | Y78: 0 | Z78: 0 | AA78: 0 | AB78: 0 | AC78: 0 | AD78: 0 | AE78: 0 | AF78: 0 | AG78: 0 | AH78: 0 | AI78: 0 | AJ78: 0 | AK78: 0 | AL78: 0 | AM78: 0 | AN78: 0 | AO78: 0 | AP78: 0 | AQ78: 0 | AR78: 0 | AS78: 0 | AT78: 0 | AU78: 0 | AV78: 0 | AW78: 0 | AX78: 0 | AY78: 0 | AZ78: 0 | BA78: 0 | BB78: 0 | BC78: 0 | BD78: 0 | BE78: 0 | BF78: 0 | BG78: 0 | BH78: 0 | BI78: 0 | BJ78: 0 | BK78: 0 | BL78: 0 | BM78: 0 | BN78: 0 | BO78: 0 | BP78: =IF(BP$48=$E$76,$D$76,IF(BP$48=$E$77,$D$77,0)) -> 0 | BQ78: 0 | BR78: 0 | BS78: 0 | BT78: 0 | BU78: 0 | BV78: 0 | BW78: 0
B79: altura interpolada | C79: =IF(MAX(C77,C76)<-180,0,IF(C76<-180,D77+((D76-D77)*(C76+180)/(C76-C77)),IF(C$47=$G$76,$D$76,IF(C$47=$G$77,$D$77,0)))) -> 0 | D79: =IF(D47<$G$76,0,IF(D47=$G$76,$D$76,IF(D47<=$G$77,$D$76+(($D$77-$D$76)*(D47-$G$76)/($G$77-$G$76)),0))) -> 0 | E79: 0 | F79: 0 | G79: 0 | H79: 0 | I79: 0 | J79: 0 | K79: 0 | L79: 0 | M79: 0 | N79: 0 | O79: 0 | P79: 0 | Q79: 0 | R79: 0 | S79: 0 | T79: 0 | U79: 0 | V79: 0 | W79: 0 | X79: 0 | Y79: 0 | Z79: 0 | AA79: 0 | AB79: 0 | AC79: 0 | AD79: 0 | AE79: 0 | AF79: 0 | AG79: 0 | AH79: 0 | AI79: 0 | AJ79: 0 | AK79: 0 | AL79: 0 | AM79: 0 | AN79: 0 | AO79: 0 | AP79: 0 | AQ79: 0 | AR79: 0 | AS79: 0 | AT79: 0 | AU79: 0 | AV79: 0 | AW79: 0 | AX79: 0 | AY79: 0 | AZ79: 0 | BA79: 0 | BB79: 0 | BC79: 0 | BD79: 0 | BE79: 0 | BF79: 0 | BG79: 0 | BH79: 0 | BI79: 0 | BJ79: 0 | BK79: 0 | BL79: 0 | BM79: 0 | BN79: 0 | BO79: 0 | BP79: =IF(BP47<$G$76,0,IF(BP47=$G$76,$D$76,IF(BP47<=$G$77,$D$76+(($D$77-$D$76)*(BP47-$G$76)/($G$77-$G$76)),0))) -> 0 | BQ79: 0 | BR79: 0 | BS79: 0 | BT79: 0 | BU79: 0 | BV79: 0 | BW79: =IF(C77>180,D76+((D77-D76)*(C77-180)/(C77-C76)),IF(BW47<$G$76,0,IF(BW47=$G$76,$D$76,IF(BW47<=$G$77,$D$76+(($D$77-$D$76)*(BW47-$G$76)/($G$77-$G$76)),0)))) -> 0
B80: Sal 2a | C80: =MIN(Sombras!J59:J60) -> 0.00 | D80: =VLOOKUP(C80,Sombras!J59:K60,2,FALSE) -> 0.00 | E80: =ROUND(C80/5,0)*5 -> 0 | F80: col inicio | G80: =IF(C80>180,73,IF(C80<-180,1,MATCH($D$80,C82:BW82,FALSE))) -> 1
B81: Sal 2b | C81: =MAX(Sombras!J59:J60) -> 0.00 | D81: =VLOOKUP(C81,Sombras!J59:K60,2,FALSE) -> 0.00 | E81: =ROUND(C81/5,0)*5 -> 0 | F81: col fin | G81: =IF(E81>180,73,IF(C81<-180,1,IF(E81=E80,G80,MATCH($D$81,C82:BW82,FALSE)))) -> 1
B82: altura solar | C82: =IF(C$48=$E80,$D80,IF(C$48=$E81,$D81,0)) -> 0 | D82: =IF(D$48=$E80,$D80,IF(D$48=$E81,$D81,0)) -> 0 | E82: 0 | F82: 0 | G82: 0 | H82: 0 | I82: 0 | J82: 0 | K82: 0 | L82: 0 | M82: 0 | N82: 0 | O82: 0 | P82: 0 | Q82: 0 | R82: 0 | S82: 0 | T82: 0 | U82: 0 | V82: 0 | W82: 0 | X82: 0 | Y82: 0 | Z82: 0 | AA82: 0 | AB82: 0 | AC82: 0 | AD82: 0 | AE82: 0 | AF82: 0 | AG82: 0 | AH82: 0 | AI82: 0 | AJ82: 0 | AK82: 0 | AL82: 0 | AM82: 0 | AN82: 0 | AO82: 0 | AP82: 0 | AQ82: 0 | AR82: 0 | AS82: 0 | AT82: 0 | AU82: 0 | AV82: 0 | AW82: 0 | AX82: 0 | AY82: 0 | AZ82: 0 | BA82: 0 | BB82: 0 | BC82: 0 | BD82: 0 | BE82: 0 | BF82: 0 | BG82: 0 | BH82: 0 | BI82: 0 | BJ82: 0 | BK82: 0 | BL82: 0 | BM82: 0 | BN82: 0 | BO82: 0 | BP82: =IF(BP$48=$E80,$D80,IF(BP$48=$E81,$D81,0)) -> 0 | BQ82: 0 | BR82: 0 | BS82: 0 | BT82: 0 | BU82: 0 | BV82: 0 | BW82: 0
B83: altura interpolada | C83: =IF(MAX(C81,C80)<-180,0,IF(C80<-180,D81+((D80-D81)*(C80+180)/(C80-C81)),IF(C$47=$G80,$D80,IF(C$47=$G81,$D81,0)))) -> 0 | D83: =IF(D47<$G$80,0,IF(D47=$G$80,$D$80,IF(D47<=$G$81,$D$80+(($D$81-$D$80)*(D47-$G$80)/($G$81-$G$80)),0))) -> 0 | E83: 0 | F83: 0 | G83: 0 | H83: 0 | I83: 0 | J83: 0 | K83: 0 | L83: 0 | M83: 0 | N83: 0 | O83: 0 | P83: 0 | Q83: 0 | R83: 0 | S83: 0 | T83: 0 | U83: 0 | V83: 0 | W83: 0 | X83: 0 | Y83: 0 | Z83: 0 | AA83: 0 | AB83: 0 | AC83: 0 | AD83: 0 | AE83: 0 | AF83: 0 | AG83: 0 | AH83: 0 | AI83: 0 | AJ83: 0 | AK83: 0 | AL83: 0 | AM83: 0 | AN83: 0 | AO83: 0 | AP83: 0 | AQ83: 0 | AR83: 0 | AS83: 0 | AT83: 0 | AU83: 0 | AV83: 0 | AW83: 0 | AX83: 0 | AY83: 0 | AZ83: 0 | BA83: 0 | BB83: 0 | BC83: 0 | BD83: 0 | BE83: 0 | BF83: 0 | BG83: 0 | BH83: 0 | BI83: 0 | BJ83: 0 | BK83: 0 | BL83: 0 | BM83: 0 | BN83: 0 | BO83: 0 | BP83: =IF(BP47<$G$80,0,IF(BP47=$G$80,$D$80,IF(BP47<=$G$81,$D$80+(($D$81-$D$80)*(BP47-$G$80)/($G$81-$G$80)),0))) -> 0 | BQ83: 0 | BR83: 0 | BS83: 0 | BT83: 0 | BU83: 0 | BV83: 0 | BW83: =IF(C81>180,D80+((D81-D80)*(C81-180)/(C81-C80)),IF(BW47<$G80,0,IF(BW47=$G80,$D$80,IF(BW47<=$G81,$D80+(($D81-$D80)*(BW47-$G80)/($G81-$G80)),0)))) -> 0
B85: SALIENTE max | C85: =MAX(C79,C83) -> 0 | D85: =MAX(D79,D83) -> 0 | E85: 0 | F85: 0 | G85: 0 | H85: 0 | I85: 0 | J85: 0 | K85: 0 | L85: 0 | M85: 0 | N85: 0 | O85: 0 | P85: 0 | Q85: 0 | R85: 0 | S85: 0 | T85: 0 | U85: 0 | V85: 0 | W85: 0 | X85: 0 | Y85: 0 | Z85: 0 | AA85: 0 | AB85: 0 | AC85: 0 | AD85: 0 | AE85: 0 | AF85: 0 | AG85: 0 | AH85: 0 | AI85: 0 | AJ85: 0 | AK85: 0 | AL85: 0 | AM85: 0 | AN85: 0 | AO85: 0 | AP85: 0 | AQ85: 0 | AR85: 0 | AS85: 0 | AT85: 0 | AU85: 0 | AV85: 0 | AW85: 0 | AX85: 0 | AY85: 0 | AZ85: 0 | BA85: 0 | BB85: 0 | BC85: 0 | BD85: 0 | BE85: 0 | BF85: 0 | BG85: 0 | BH85: 0 | BI85: 0 | BJ85: 0 | BK85: 0 | BL85: 0 | BM85: 0 | BN85: 0 | BO85: 0 | BP85: =MAX(BP79,BP83) -> 0 | BQ85: 0 | BR85: 0 | BS85: 0 | BT85: 0 | BU85: 0 | BV85: 0 | BW85: 0
B87: EDIFICIOS | C87: azimut | D87: altura
B88: Obs1 fr_a | C88: =MIN(Sombras!P54:P55) -> 0.00 | D88: =VLOOKUP(C88,Sombras!P54:Q55,2,FALSE) -> 0.00 | E88: =ROUND(C88/5,0)*5 -> 0 | F88: col inicio | G88: =IF(C88>180,73,IF(C88<-180,1,MATCH($D$88,C90:BW90,FALSE))) -> 1
B89: Obs1 fr_b | C89: =MAX(Sombras!P54:P55) -> 0.00 | D89: =VLOOKUP(C89,Sombras!P54:Q55,2,FALSE) -> 0.00 | E89: =ROUND(C89/5,0)*5 -> 0 | F89: col fin | G89: =IF(E89>180,73,IF(C89<-180,1,IF(E89=E88,G88,MATCH($D$89,C90:BW90,FALSE)))) -> 1
B90: altura solar | C90: =IF(C$48=$E88,$D88,IF(C$48=$E89,$D89,0)) -> 0 | D90: =IF(D$48=$E88,$D88,IF(D$48=$E89,$D89,0)) -> 0 | E90: 0 | F90: 0 | G90: 0 | H90: 0 | I90: 0 | J90: 0 | K90: 0 | L90: 0 | M90: 0 | N90: 0 | O90: 0 | P90: 0 | Q90: 0 | R90: 0 | S90: 0 | T90: 0 | U90: 0 | V90: 0 | W90: 0 | X90: 0 | Y90: 0 | Z90: 0 | AA90: 0 | AB90: 0 | AC90: 0 | AD90: 0 | AE90: 0 | AF90: 0 | AG90: 0 | AH90: 0 | AI90: 0 | AJ90: 0 | AK90: 0 | AL90: 0 | AM90: 0 | AN90: 0 | AO90: 0 | AP90: 0 | AQ90: 0 | AR90: 0 | AS90: 0 | AT90: 0 | AU90: 0 | AV90: 0 | AW90: 0 | AX90: 0 | AY90: 0 | AZ90: 0 | BA90: 0 | BB90: 0 | BC90: 0 | BD90: 0 | BE90: 0 | BF90: 0 | BG90: 0 | BH90: 0 | BI90: 0 | BJ90: 0 | BK90: 0 | BL90: 0 | BM90: 0 | BN90: 0 | BO90: 0 | BP90: =IF(BP$48=$E88,$D88,IF(BP$48=$E89,$D89,0)) -> 0 | BQ90: 0 | BR90: 0 | BS90: 0 | BT90: 0 | BU90: 0 | BV90: 0 | BW90: 0
B91: altura interpolada | C91: =IF(MAX(C89,C88)<-180,0,IF(C88<-180,D89+((D88-D89)*(C88+180)/(C88-C89)),IF(C$47=$G88,$D88,IF(C$47=$G89,$D89,0)))) -> 0 | D91: =IF(D$47<$G$88,0,IF(D$47=$G$88,$D$88,IF(D$47<=$G$89,$D$88+(($D$89-$D$88)*(D$47-$G$88)/($G$89-$G$88)),0))) -> 0 | E91: =IF(E$47<$G$88,0,IF(E$47=$G$88,$D$88,IF(E$47<=$G$89,$D$88+(($D$89-$D$88)*(E$47-$G$88)/($G$89-$G$88)),0))) -> 0 | F91: 0 | G91: 0 | H91: 0 | I91: 0 | J91: 0 | K91: 0 | L91: 0 | M91: 0 | N91: 0 | O91: 0 | P91: 0 | Q91: 0 | R91: 0 | S91: 0 | T91: 0 | U91: 0 | V91: 0 | W91: 0 | X91: 0 | Y91: 0 | Z91: 0 | AA91: 0 | AB91: 0 | AC91: 0 | AD91: 0 | AE91: 0 | AF91: 0 | AG91: 0 | AH91: 0 | AI91: 0 | AJ91: 0 | AK91: 0 | AL91: 0 | AM91: 0 | AN91: 0 | AO91: 0 | AP91: 0 | AQ91: 0 | AR91: 0 | AS91: 0 | AT91: 0 | AU91: 0 | AV91: 0 | AW91: 0 | AX91: 0 | AY91: 0 | AZ91: 0 | BA91: 0 | BB91: 0 | BC91: 0 | BD91: 0 | BE91: 0 | BF91: 0 | BG91: 0 | BH91: 0 | BI91: 0 | BJ91: 0 | BK91: 0 | BL91: 0 | BM91: 0 | BN91: 0 | BO91: 0 | BP91: 0 | BQ91: =IF(BQ$47<$G$88,0,IF(BQ$47=$G$88,$D$88,IF(BQ$47<=$G$89,$D$88+(($D$89-$D$88)*(BQ$47-$G$88)/($G$89-$G$88)),0))) -> 0 | BR91: 0 | BS91: 0 | BT91: 0 | BU91: 0 | BV91: 0 | BW91: =IF(C89>180,D88+((D89-D88)*(C89-180)/(C89-C88)),IF(BW$47<$G88,0,IF(BW$47=$G88,$D88,IF(BW$47<=$G89,$D88+(($D89-$D88)*(BW$47-$G88)/($G89-$G88)),0)))) -> 0
B92: Obs1 lt_a | C92: =MIN(Sombras!P59:P60) -> 0.00 | D92: =VLOOKUP(C92,Sombras!P59:Q60,2,FALSE) -> 0.00 | E92: =ROUND(C92/5,0)*5 -> 0 | F92: col inicio | G92: =IF(C92>180,73,IF(C92<-180,1,MATCH($D$92,C94:BW94,FALSE))) -> 1
B93: Obs1 lt_b | C93: =MAX(Sombras!P59:P60) -> 0.00 | D93: =VLOOKUP(C93,Sombras!P59:Q60,2,FALSE) -> 0.00 | E93: =ROUND(C93/5,0)*5 -> 0 | F93: col fin | G93: =IF(E93>180,73,IF(C93<-180,1,IF(E93=E92,G92,MATCH($D$93,C94:BW94,FALSE)))) -> 1
B94: altura solar | C94: =IF(C$48=$E92,$D92,IF(C$48=$E93,$D93,0)) -> 0 | D94: =IF(D$48=$E92,$D92,IF(D$48=$E93,$D93,0)) -> 0 | E94: 0 | F94: 0 | G94: 0 | H94: 0 | I94: 0 | J94: 0 | K94: 0 | L94: 0 | M94: 0 | N94: 0 | O94: 0 | P94: 0 | Q94: 0 | R94: 0 | S94: 0 | T94: 0 | U94: 0 | V94: 0 | W94: 0 | X94: 0 | Y94: 0 | Z94: 0 | AA94: 0 | AB94: 0 | AC94: 0 | AD94: 0 | AE94: 0 | AF94: 0 | AG94: 0 | AH94: 0 | AI94: 0 | AJ94: 0 | AK94: 0 | AL94: 0 | AM94: 0 | AN94: 0 | AO94: 0 | AP94: 0 | AQ94: 0 | AR94: 0 | AS94: 0 | AT94: 0 | AU94: 0 | AV94: 0 | AW94: 0 | AX94: 0 | AY94: 0 | AZ94: 0 | BA94: 0 | BB94: 0 | BC94: 0 | BD94: 0 | BE94: 0 | BF94: 0 | BG94: 0 | BH94: 0 | BI94: 0 | BJ94: 0 | BK94: 0 | BL94: 0 | BM94: 0 | BN94: 0 | BO94: 0 | BP94: =IF(BP$48=$E92,$D92,IF(BP$48=$E93,$D93,0)) -> 0 | BQ94: 0 | BR94: 0 | BS94: 0 | BT94: 0 | BU94: 0 | BV94: 0 | BW94: 0
B95: altura interpolada | C95: =IF(MAX(C93,C92)<-180,0,IF(C92<-180,D93+((D92-D93)*(C92+180)/(C92-C93)),IF(C$47=$G92,$D92,IF(C$47=$G93,$D93,0)))) -> 0 | D95: =IF(D$47<$G$92,0,IF(D$47=$G$92,$D$92,IF(D$47<=$G$93,$D$92+(($D$93-$D$92)*(D$47-$G$92)/($G$93-$G$92)),0))) -> 0 | E95: =IF(E$47<$G$92,0,IF(E$47=$G$92,$D$92,IF(E$47<=$G$93,$D$92+(($D$93-$D$92)*(E$47-$G$92)/($G$93-$G$92)),0))) -> 0 | F95: 0 | G95: 0 | H95: 0 | I95: 0 | J95: 0 | K95: 0 | L95: 0 | M95: 0 | N95: 0 | O95: 0 | P95: 0 | Q95: 0 | R95: 0 | S95: 0 | T95: 0 | U95: 0 | V95: 0 | W95: 0 | X95: 0 | Y95: 0 | Z95: 0 | AA95: 0 | AB95: 0 | AC95: 0 | AD95: 0 | AE95: 0 | AF95: 0 | AG95: 0 | AH95: 0 | AI95: 0 | AJ95: 0 | AK95: 0 | AL95: 0 | AM95: 0 | AN95: 0 | AO95: 0 | AP95: 0 | AQ95: 0 | AR95: 0 | AS95: 0 | AT95: 0 | AU95: 0 | AV95: 0 | AW95: 0 | AX95: 0 | AY95: 0 | AZ95: 0 | BA95: 0 | BB95: 0 | BC95: 0 | BD95: 0 | BE95: 0 | BF95: 0 | BG95: 0 | BH95: 0 | BI95: 0 | BJ95: 0 | BK95: 0 | BL95: 0 | BM95: 0 | BN95: 0 | BO95: 0 | BP95: 0 | BQ95: =IF(BQ$47<$G$92,0,IF(BQ$47=$G$92,$D$92,IF(BQ$47<=$G$93,$D$92+(($D$93-$D$92)*(BQ$47-$G$92)/($G$93-$G$92)),0))) -> 0 | BR95: 0 | BS95: 0 | BT95: 0 | BU95: 0 | BV95: 0 | BW95: =IF(C93>180,D92+((D93-D92)*(C93-180)/(C93-C92)),IF(BW$47<$G92,0,IF(BW$47=$G92,$D92,IF(BW$47<=$G93,$D92+(($D93-$D92)*(BW$47-$G92)/($G93-$G92)),0)))) -> 0
B96: Obs2 fr1_a | C96: =MIN(Sombras!P64:P65) -> 0.00 | D96: =VLOOKUP(C96,Sombras!P64:Q65,2,FALSE) -> 0.00 | E96: =ROUND(C96/5,0)*5 -> 0 | F96: col inicio | G96: =IF(C96>180,73,IF(C96<-180,1,MATCH($D96,C98:BW98,FALSE))) -> 1
B97: Obs2 fr1_b | C97: =MAX(Sombras!P64:P65) -> 0.00 | D97: =VLOOKUP(C97,Sombras!P64:Q65,2,FALSE) -> 0.00 | E97: =ROUND(C97/5,0)*5 -> 0 | F97: col fin | G97: =IF(E97>180,73,IF(C97<-180,1,IF(E97=E96,G96,MATCH($D97,C98:BW98,FALSE)))) -> 1
B98: altura solar | C98: =IF(C$48=$E96,$D96,IF(C$48=$E97,$D97,0)) -> 0 | D98: =IF(D$48=$E96,$D96,IF(D$48=$E97,$D97,0)) -> 0 | E98: 0 | F98: 0 | G98: 0 | H98: 0 | I98: 0 | J98: 0 | K98: 0 | L98: 0 | M98: 0 | N98: 0 | O98: 0 | P98: 0 | Q98: 0 | R98: 0 | S98: 0 | T98: 0 | U98: 0 | V98: 0 | W98: 0 | X98: 0 | Y98: 0 | Z98: 0 | AA98: 0 | AB98: 0 | AC98: 0 | AD98: 0 | AE98: 0 | AF98: 0 | AG98: 0 | AH98: 0 | AI98: 0 | AJ98: 0 | AK98: 0 | AL98: 0 | AM98: 0 | AN98: 0 | AO98: 0 | AP98: 0 | AQ98: 0 | AR98: 0 | AS98: 0 | AT98: 0 | AU98: 0 | AV98: 0 | AW98: 0 | AX98: 0 | AY98: 0 | AZ98: 0 | BA98: 0 | BB98: 0 | BC98: 0 | BD98: 0 | BE98: 0 | BF98: 0 | BG98: 0 | BH98: 0 | BI98: 0 | BJ98: 0 | BK98: 0 | BL98: 0 | BM98: 0 | BN98: 0 | BO98: 0 | BP98: =IF(BP$48=$E96,$D96,IF(BP$48=$E97,$D97,0)) -> 0 | BQ98: 0 | BR98: 0 | BS98: 0 | BT98: 0 | BU98: 0 | BV98: 0 | BW98: 0
B99: altura interpolada | C99: =IF(MAX(C97,C96)<-180,0,IF(C96<-180,D97+((D96-D97)*(C96+180)/(C96-C97)),IF(C$47=$G96,$D96,IF(C$47=$G97,$D97,0)))) -> 0 | D99: =IF(D$47<$G$96,0,IF(D$47=$G$96,$D$96,IF(D$47<=$G$97,$D$96+(($D$97-$D$96)*(D$47-$G$96)/($G$97-$G$96)),0))) -> 0 | E99: =IF(E$47<$G$96,0,IF(E$47=$G$96,$D$96,IF(E$47<=$G$97,$D$96+(($D$97-$D$96)*(E$47-$G$96)/($G$97-$G$96)),0))) -> 0 | F99: 0 | G99: 0 | H99: 0 | I99: 0 | J99: 0 | K99: 0 | L99: 0 | M99: 0 | N99: 0 | O99: 0 | P99: 0 | Q99: 0 | R99: 0 | S99: 0 | T99: 0 | U99: 0 | V99: 0 | W99: 0 | X99: 0 | Y99: 0 | Z99: 0 | AA99: 0 | AB99: 0 | AC99: 0 | AD99: 0 | AE99: 0 | AF99: 0 | AG99: 0 | AH99: 0 | AI99: 0 | AJ99: 0 | AK99: 0 | AL99: 0 | AM99: 0 | AN99: 0 | AO99: 0 | AP99: 0 | AQ99: 0 | AR99: 0 | AS99: 0 | AT99: 0 | AU99: 0 | AV99: 0 | AW99: 0 | AX99: 0 | AY99: 0 | AZ99: 0 | BA99: 0 | BB99: 0 | BC99: 0 | BD99: 0 | BE99: 0 | BF99: 0 | BG99: 0 | BH99: 0 | BI99: 0 | BJ99: 0 | BK99: 0 | BL99: 0 | BM99: 0 | BN99: 0 | BO99: 0 | BP99: 0 | BQ99: =IF(BQ$47<$G$96,0,IF(BQ$47=$G$96,$D$96,IF(BQ$47<=$G$97,$D$96+(($D$97-$D$96)*(BQ$47-$G$96)/($G$97-$G$96)),0))) -> 0 | BR99: 0 | BS99: 0 | BT99: 0 | BU99: 0 | BV99: 0 | BW99: =IF(C97>180,D96+((D97-D96)*(C97-180)/(C97-C96)),IF(BW$47<$G96,0,IF(BW$47=$G96,$D96,IF(BW$47<=$G97,$D96+(($D97-$D96)*(BW$47-$G96)/($G97-$G96)),0)))) -> 0
B100: Obs2 fr2_a | C100: =MIN(Sombras!P69:P70) -> 0.00 | D100: =VLOOKUP(C100,Sombras!P69:Q70,2,FALSE) -> 0.00 | E100: =ROUND(C100/5,0)*5 -> 0 | F100: col inicio | G100: =IF(C100>180,73,IF(C100<-180,1,MATCH($D100,C102:BW102,FALSE))) -> 1
B101: Obs2 fr2_b | C101: =MAX(Sombras!P69:P70) -> 0.00 | D101: =VLOOKUP(C101,Sombras!P69:Q70,2,FALSE) -> 0.00 | E101: =ROUND(C101/5,0)*5 -> 0 | F101: col fin | G101: =IF(E101>180,73,IF(C101<-180,1,IF(E101=E100,G100,MATCH($D101,C102:BW102,FALSE)))) -> 1
B102: altura solar | C102: =IF(C$48=$E100,$D100,IF(C$48=$E101,$D101,0)) -> 0 | D102: =IF(D$48=$E100,$D100,IF(D$48=$E101,$D101,0)) -> 0 | E102: 0 | F102: 0 | G102: 0 | H102: 0 | I102: 0 | J102: 0 | K102: 0 | L102: 0 | M102: 0 | N102: 0 | O102: 0 | P102: 0 | Q102: 0 | R102: 0 | S102: 0 | T102: 0 | U102: 0 | V102: 0 | W102: 0 | X102: 0 | Y102: 0 | Z102: 0 | AA102: 0 | AB102: 0 | AC102: 0 | AD102: 0 | AE102: 0 | AF102: 0 | AG102: 0 | AH102: 0 | AI102: 0 | AJ102: 0 | AK102: 0 | AL102: 0 | AM102: 0 | AN102: 0 | AO102: 0 | AP102: 0 | AQ102: 0 | AR102: 0 | AS102: 0 | AT102: 0 | AU102: 0 | AV102: 0 | AW102: 0 | AX102: 0 | AY102: 0 | AZ102: 0 | BA102: 0 | BB102: 0 | BC102: 0 | BD102: 0 | BE102: 0 | BF102: 0 | BG102: 0 | BH102: 0 | BI102: 0 | BJ102: 0 | BK102: 0 | BL102: 0 | BM102: 0 | BN102: 0 | BO102: 0 | BP102: =IF(BP$48=$E100,$D100,IF(BP$48=$E101,$D101,0)) -> 0 | BQ102: 0 | BR102: 0 | BS102: 0 | BT102: 0 | BU102: 0 | BV102: 0 | BW102: 0
B103: altura interpolada | C103: =IF(MAX(C101,C100)<-180,0,IF(C100<-180,D101+((D100-D101)*(C100+180)/(C100-C101)),IF(C$47=$G100,$D100,IF(C$47=$G101,$D101,0)))) -> 0 | D103: =IF(D$47<$G$100,0,IF(D$47=$G$100,$D$100,IF(D$47<=$G$101,$D$100+(($D$101-$D$100)*(D$47-$G$100)/($G$101-$G$100)),0))) -> 0 | E103: =IF(E$47<$G$100,0,IF(E$47=$G$100,$D$100,IF(E$47<=$G$101,$D$100+(($D$101-$D$100)*(E$47-$G$100)/($G$101-$G$100)),0))) -> 0 | F103: 0 | G103: 0 | H103: 0 | I103: 0 | J103: 0 | K103: 0 | L103: 0 | M103: 0 | N103: 0 | O103: 0 | P103: 0 | Q103: 0 | R103: 0 | S103: 0 | T103: 0 | U103: 0 | V103: 0 | W103: 0 | X103: 0 | Y103: 0 | Z103: 0 | AA103: 0 | AB103: 0 | AC103: 0 | AD103: 0 | AE103: 0 | AF103: 0 | AG103: 0 | AH103: 0 | AI103: 0 | AJ103: 0 | AK103: 0 | AL103: 0 | AM103: 0 | AN103: 0 | AO103: 0 | AP103: 0 | AQ103: 0 | AR103: 0 | AS103: 0 | AT103: 0 | AU103: 0 | AV103: 0 | AW103: 0 | AX103: 0 | AY103: 0 | AZ103: 0 | BA103: 0 | BB103: 0 | BC103: 0 | BD103: 0 | BE103: 0 | BF103: 0 | BG103: 0 | BH103: 0 | BI103: 0 | BJ103: 0 | BK103: 0 | BL103: 0 | BM103: 0 | BN103: 0 | BO103: 0 | BP103: 0 | BQ103: =IF(BQ$47<$G$100,0,IF(BQ$47=$G$100,$D$100,IF(BQ$47<=$G$101,$D$100+(($D$101-$D$100)*(BQ$47-$G$100)/($G$101-$G$100)),0))) -> 0 | BR103: 0 | BS103: 0 | BT103: 0 | BU103: 0 | BV103: 0 | BW103: =IF(C101>180,D100+((D101-D100)*(C101-180)/(C101-C100)),IF(BW$47<$G100,0,IF(BW$47=$G100,$D100,IF(BW$47<=$G101,$D100+(($D101-$D100)*(BW$47-$G100)/($G101-$G100)),0)))) -> 0
B104: Obs3 fr_a | C104: =MIN(Sombras!P74:P75) -> 0.00 | D104: =VLOOKUP(C104,Sombras!P74:Q75,2,FALSE) -> 0.00 | E104: =ROUND(C104/5,0)*5 -> 0 | F104: col inicio | G104: =IF(C104>180,73,IF(C104<-180,1,MATCH($D104,C106:BW106,FALSE))) -> 1
B105: Obs3 fr_b | C105: =MAX(Sombras!P74:P75) -> 0.00 | D105: =VLOOKUP(C105,Sombras!P74:Q75,2,FALSE) -> 0.00 | E105: =ROUND(C105/5,0)*5 -> 0 | F105: col fin | G105: =IF(E105>180,73,IF(C105<-180,1,IF(E105=E104,G104,MATCH($D105,C106:BW106,FALSE)))) -> 1
B106: altura solar | C106: =IF(C$48=$E104,$D104,IF(C$48=$E105,$D105,0)) -> 0 | D106: =IF(D$48=$E104,$D104,IF(D$48=$E105,$D105,0)) -> 0 | E106: 0 | F106: 0 | G106: 0 | H106: 0 | I106: 0 | J106: 0 | K106: 0 | L106: 0 | M106: 0 | N106: 0 | O106: 0 | P106: 0 | Q106: 0 | R106: 0 | S106: 0 | T106: 0 | U106: 0 | V106: 0 | W106: 0 | X106: 0 | Y106: 0 | Z106: 0 | AA106: 0 | AB106: 0 | AC106: 0 | AD106: 0 | AE106: 0 | AF106: 0 | AG106: 0 | AH106: 0 | AI106: 0 | AJ106: 0 | AK106: 0 | AL106: 0 | AM106: 0 | AN106: 0 | AO106: 0 | AP106: 0 | AQ106: 0 | AR106: 0 | AS106: 0 | AT106: 0 | AU106: 0 | AV106: 0 | AW106: 0 | AX106: 0 | AY106: 0 | AZ106: 0 | BA106: 0 | BB106: 0 | BC106: 0 | BD106: 0 | BE106: 0 | BF106: 0 | BG106: 0 | BH106: 0 | BI106: 0 | BJ106: 0 | BK106: 0 | BL106: 0 | BM106: 0 | BN106: 0 | BO106: 0 | BP106: =IF(BP$48=$E104,$D104,IF(BP$48=$E105,$D105,0)) -> 0 | BQ106: 0 | BR106: 0 | BS106: 0 | BT106: 0 | BU106: 0 | BV106: 0 | BW106: 0
B107: altura interpolada | C107: =IF(MAX(C105,C104)<-180,0,IF(C104<-180,D105+((D104-D105)*(C104+180)/(C104-C105)),IF(C$47=$G104,$D104,IF(C$47=$G105,$D105,0)))) -> 0 | D107: =IF(D$47<$G$104,0,IF(D$47=$G$104,$D$104,IF(D$47<=$G$105,$D$104+(($D$105-$D$104)*(D$47-$G$104)/($G$105-$G$104)),0))) -> 0 | E107: =IF(E$47<$G$104,0,IF(E$47=$G$104,$D$104,IF(E$47<=$G$105,$D$104+(($D$105-$D$104)*(E$47-$G$104)/($G$105-$G$104)),0))) -> 0 | F107: 0 | G107: 0 | H107: 0 | I107: 0 | J107: 0 | K107: 0 | L107: 0 | M107: 0 | N107: 0 | O107: 0 | P107: 0 | Q107: 0 | R107: 0 | S107: 0 | T107: 0 | U107: 0 | V107: 0 | W107: 0 | X107: 0 | Y107: 0 | Z107: 0 | AA107: 0 | AB107: 0 | AC107: 0 | AD107: 0 | AE107: 0 | AF107: 0 | AG107: 0 | AH107: 0 | AI107: 0 | AJ107: 0 | AK107: 0 | AL107: 0 | AM107: 0 | AN107: 0 | AO107: 0 | AP107: 0 | AQ107: 0 | AR107: 0 | AS107: 0 | AT107: 0 | AU107: 0 | AV107: 0 | AW107: 0 | AX107: 0 | AY107: 0 | AZ107: 0 | BA107: 0 | BB107: 0 | BC107: 0 | BD107: 0 | BE107: 0 | BF107: 0 | BG107: 0 | BH107: 0 | BI107: 0 | BJ107: 0 | BK107: 0 | BL107: 0 | BM107: 0 | BN107: 0 | BO107: 0 | BP107: 0 | BQ107: =IF(BQ$47<$G$104,0,IF(BQ$47=$G$104,$D$104,IF(BQ$47<=$G$105,$D$104+(($D$105-$D$104)*(BQ$47-$G$104)/($G$105-$G$104)),0))) -> 0 | BR107: 0 | BS107: 0 | BT107: 0 | BU107: 0 | BV107: 0 | BW107: 0
B108: Obs3 lt_a | C108: =MIN(Sombras!P79:P80) -> 0.00 | D108: =VLOOKUP(C108,Sombras!P79:Q80,2,FALSE) -> 0.00 | E108: =ROUND(C108/5,0)*5 -> 0 | F108: col inicio | G108: =IF(C108>180,73,IF(C108<-180,1,MATCH($D108,C110:BW110,FALSE))) -> 1
B109: Obs3 lt_b | C109: =MAX(Sombras!P79:P80) -> 0.00 | D109: =VLOOKUP(C109,Sombras!P79:Q80,2,FALSE) -> 0.00 | E109: =ROUND(C109/5,0)*5 -> 0 | F109: col fin | G109: =IF(E109>180,73,IF(C109<-180,1,IF(E109=E108,G108,MATCH($D109,C110:BW110,FALSE)))) -> 1
B110: altura solar | C110: =IF(C$48=$E108,$D108,IF(C$48=$E109,$D109,0)) -> 0 | D110: =IF(D$48=$E108,$D108,IF(D$48=$E109,$D109,0)) -> 0 | E110: 0 | F110: 0 | G110: 0 | H110: 0 | I110: 0 | J110: 0 | K110: 0 | L110: 0 | M110: 0 | N110: 0 | O110: 0 | P110: 0 | Q110: 0 | R110: 0 | S110: 0 | T110: 0 | U110: 0 | V110: 0 | W110: 0 | X110: 0 | Y110: 0 | Z110: 0 | AA110: 0 | AB110: 0 | AC110: 0 | AD110: 0 | AE110: 0 | AF110: 0 | AG110: 0 | AH110: 0 | AI110: 0 | AJ110: 0 | AK110: 0 | AL110: 0 | AM110: 0 | AN110: 0 | AO110: 0 | AP110: 0 | AQ110: 0 | AR110: 0 | AS110: 0 | AT110: 0 | AU110: 0 | AV110: 0 | AW110: 0 | AX110: 0 | AY110: 0 | AZ110: 0 | BA110: 0 | BB110: 0 | BC110: 0 | BD110: 0 | BE110: 0 | BF110: 0 | BG110: 0 | BH110: 0 | BI110: 0 | BJ110: 0 | BK110: 0 | BL110: 0 | BM110: 0 | BN110: 0 | BO110: 0 | BP110: =IF(BP$48=$E108,$D108,IF(BP$48=$E109,$D109,0)) -> 0 | BQ110: 0 | BR110: 0 | BS110: 0 | BT110: 0 | BU110: 0 | BV110: 0 | BW110: 0
B111: altura interpolada | C111: =IF(MAX(C109,C108)<-180,0,IF(C108<-180,D109+((D108-D109)*(C108+180)/(C108-C109)),IF(C$47=$G108,$D108,IF(C$47=$G109,$D109,0)))) -> 0 | D111: =IF(D$47<$G$108,0,IF(D$47=$G$108,$D$108,IF(D$47<=$G$109,$D$108+(($D$109-$D$108)*(D$47-$G$108)/($G$109-$G$108)),0))) -> 0 | E111: =IF(E$47<$G$108,0,IF(E$47=$G$108,$D$108,IF(E$47<=$G$109,$D$108+(($D$109-$D$108)*(E$47-$G$108)/($G$109-$G$108)),0))) -> 0 | F111: 0 | G111: 0 | H111: 0 | I111: 0 | J111: 0 | K111: 0 | L111: 0 | M111: 0 | N111: 0 | O111: 0 | P111: 0 | Q111: 0 | R111: 0 | S111: 0 | T111: 0 | U111: 0 | V111: 0 | W111: 0 | X111: 0 | Y111: 0 | Z111: 0 | AA111: 0 | AB111: 0 | AC111: 0 | AD111: 0 | AE111: 0 | AF111: 0 | AG111: 0 | AH111: 0 | AI111: 0 | AJ111: 0 | AK111: 0 | AL111: 0 | AM111: 0 | AN111: 0 | AO111: 0 | AP111: 0 | AQ111: 0 | AR111: 0 | AS111: 0 | AT111: 0 | AU111: 0 | AV111: 0 | AW111: 0 | AX111: 0 | AY111: 0 | AZ111: 0 | BA111: 0 | BB111: 0 | BC111: 0 | BD111: 0 | BE111: 0 | BF111: 0 | BG111: 0 | BH111: 0 | BI111: 0 | BJ111: 0 | BK111: 0 | BL111: 0 | BM111: 0 | BN111: 0 | BO111: 0 | BP111: 0 | BQ111: =IF(BQ$47<$G$108,0,IF(BQ$47=$G$108,$D$108,IF(BQ$47<=$G$109,$D$108+(($D$109-$D$108)*(BQ$47-$G$108)/($G$109-$G$108)),0))) -> 0 | BR111: 0 | BS111: 0 | BT111: 0 | BU111: 0 | BV111: 0 | BW111: =IF(C109>180,D108+((D109-D108)*(C109-180)/(C109-C108)),IF(BW$47<$G108,0,IF(BW$47=$G108,$D108,IF(BW$47<=$G109,$D108+(($D109-$D108)*(BW$47-$G108)/($G109-$G108)),0)))) -> 0
B113: EDIFICIO max | C113: =MAX(C111,C107,C103,C99,C95,C91) -> 0 | D113: =MAX(D111,D107,D103,D99,D95,D91) -> 0 | E113: 0 | F113: 0 | G113: 0 | H113: 0 | I113: 0 | J113: 0 | K113: 0 | L113: 0 | M113: 0 | N113: 0 | O113: 0 | P113: 0 | Q113: 0 | R113: 0 | S113: 0 | T113: 0 | U113: 0 | V113: 0 | W113: 0 | X113: 0 | Y113: 0 | Z113: 0 | AA113: 0 | AB113: 0 | AC113: 0 | AD113: 0 | AE113: 0 | AF113: 0 | AG113: 0 | AH113: 0 | AI113: 0 | AJ113: 0 | AK113: 0 | AL113: 0 | AM113: 0 | AN113: 0 | AO113: 0 | AP113: 0 | AQ113: 0 | AR113: 0 | AS113: 0 | AT113: 0 | AU113: 0 | AV113: 0 | AW113: 0 | AX113: 0 | AY113: 0 | AZ113: 0 | BA113: 0 | BB113: 0 | BC113: 0 | BD113: 0 | BE113: 0 | BF113: 0 | BG113: 0 | BH113: 0 | BI113: 0 | BJ113: 0 | BK113: 0 | BL113: 0 | BM113: 0 | BN113: 0 | BO113: 0 | BP113: =MAX(BP111,BP107,BP103,BP99,BP95,BP91) -> 0 | BQ113: 0 | BR113: 0 | BS113: 0 | BT113: 0 | BU113: 0 | BV113: 0 | BW113: 0
B115: GRUPO1 | C115: azimut | D115: altura | E115: =Sombras!U6 -> Perfil edificio
B116: GR1_1A | C116: =MIN(Sombras!AJ9:AJ10) -> 0.00 | D116: =VLOOKUP(C116,Sombras!AJ9:AK10,2,FALSE) -> 0.00 | E116: =ROUND(C116/5,0)*5 -> 0 | F116: col inicio | G116: =IF(C116>180,73,IF(C116<-180,1,MATCH($D116,C118:BW118,FALSE))) -> 1
B117: GR1_1B | C117: =MAX(Sombras!AJ9:AJ10) -> 0.00 | D117: =VLOOKUP(C117,Sombras!AJ9:AK10,2,FALSE) -> 0.00 | E117: =ROUND(C117/5,0)*5 -> 0 | F117: col fin | G117: =IF(E117>180,73,IF(C117<-180,1,IF(E117=E116,G116,MATCH($D117,C118:BW118,FALSE)))) -> 1
B118: altura solar | C118: =IF(C$48=$E116,$D116,IF(C$48=$E117,$D117,0)) -> 0 | D118: =IF(D$48=$E116,$D116,IF(D$48=$E117,$D117,0)) -> 0 | E118: 0 | F118: 0 | G118: 0 | H118: 0 | I118: 0 | J118: 0 | K118: 0 | L118: 0 | M118: 0 | N118: 0 | O118: 0 | P118: 0 | Q118: 0 | R118: 0 | S118: 0 | T118: 0 | U118: 0 | V118: 0 | W118: 0 | X118: 0 | Y118: 0 | Z118: 0 | AA118: 0 | AB118: 0 | AC118: 0 | AD118: 0 | AE118: 0 | AF118: 0 | AG118: 0 | AH118: 0 | AI118: 0 | AJ118: 0 | AK118: 0 | AL118: 0 | AM118: 0 | AN118: 0 | AO118: 0 | AP118: 0 | AQ118: 0 | AR118: 0 | AS118: 0 | AT118: 0 | AU118: 0 | AV118: 0 | AW118: 0 | AX118: 0 | AY118: 0 | AZ118: 0 | BA118: 0 | BB118: 0 | BC118: 0 | BD118: 0 | BE118: 0 | BF118: 0 | BG118: 0 | BH118: 0 | BI118: 0 | BJ118: 0 | BK118: 0 | BL118: 0 | BM118: 0 | BN118: 0 | BO118: 0 | BP118: =IF(BP$48=$E116,$D116,IF(BP$48=$E117,$D117,0)) -> 0 | BQ118: 0 | BR118: 0 | BS118: 0 | BT118: 0 | BU118: 0 | BV118: 0 | BW118: 0
B119: altura interpolada | C119: =IF(MAX(C117,C116)<-180,0,IF(C116<-180,D117+((D116-D117)*(C116+180)/(C116-C117)),IF(C$47=$G116,$D116,IF(C$47=$G117,$D117,0)))) -> 0 | D119: =IF(D$47<$G$116,0,IF(D$47=$G$116,$D$116,IF(D$47<=$G$117,$D$116+(($D$117-$D$116)*(D$47-$G$116)/($G$117-$G$116)),0))) -> 0 | E119: =IF(E$47<$G$116,0,IF(E$47=$G$116,$D$116,IF(E$47<=$G$117,$D$116+(($D$117-$D$116)*(E$47-$G$116)/($G$117-$G$116)),0))) -> 0 | F119: 0 | G119: 0 | H119: 0 | I119: 0 | J119: 0 | K119: 0 | L119: 0 | M119: 0 | N119: 0 | O119: 0 | P119: 0 | Q119: 0 | R119: 0 | S119: 0 | T119: 0 | U119: 0 | V119: 0 | W119: 0 | X119: 0 | Y119: 0 | Z119: 0 | AA119: 0 | AB119: 0 | AC119: 0 | AD119: 0 | AE119: 0 | AF119: 0 | AG119: 0 | AH119: 0 | AI119: 0 | AJ119: 0 | AK119: 0 | AL119: 0 | AM119: 0 | AN119: 0 | AO119: 0 | AP119: 0 | AQ119: 0 | AR119: 0 | AS119: 0 | AT119: 0 | AU119: 0 | AV119: 0 | AW119: 0 | AX119: 0 | AY119: 0 | AZ119: 0 | BA119: 0 | BB119: 0 | BC119: 0 | BD119: 0 | BE119: 0 | BF119: 0 | BG119: 0 | BH119: 0 | BI119: 0 | BJ119: 0 | BK119: 0 | BL119: 0 | BM119: 0 | BN119: 0 | BO119: 0 | BP119: 0 | BQ119: =IF(BQ$47<$G$116,0,IF(BQ$47=$G$116,$D$116,IF(BQ$47<=$G$117,$D$116+(($D$117-$D$116)*(BQ$47-$G$116)/($G$117-$G$116)),0))) -> 0 | BR119: 0 | BS119: 0 | BT119: 0 | BU119: 0 | BV119: 0 | BW119: =IF(C117>180,D116+((D117-D116)*(C117-180)/(C117-C116)),IF(BW$47<$G116,0,IF(BW$47=$G116,$D116,IF(BW$47<=$G117,$D116+(($D117-$D116)*(BW$47-$G116)/($G117-$G116)),0)))) -> 0
B120: GR1_2A | C120: =MIN(Sombras!AJ15:AJ16) -> 0.00 | D120: =VLOOKUP(C120,Sombras!AJ15:AK16,2,FALSE) -> 0.00 | E120: =ROUND(C120/5,0)*5 -> 0 | F120: col inicio | G120: =IF(C120>180,73,IF(C120<-180,1,MATCH($D120,C122:BW122,FALSE))) -> 1
B121: GR1_2B | C121: =MAX(Sombras!AJ15:AJ16) -> 0.00 | D121: =VLOOKUP(C121,Sombras!AJ15:AK16,2,FALSE) -> 0.00 | E121: =ROUND(C121/5,0)*5 -> 0 | F121: col fin | G121: =IF(E121>180,73,IF(C121<-180,1,IF(E121=E120,G120,MATCH($D121,C122:BW122,FALSE)))) -> 1
B122: altura solar | C122: =IF(C$48=$E120,$D120,IF(C$48=$E121,$D121,0)) -> 0 | D122: =IF(D$48=$E120,$D120,IF(D$48=$E121,$D121,0)) -> 0 | E122: 0 | F122: 0 | G122: 0 | H122: 0 | I122: 0 | J122: 0 | K122: 0 | L122: 0 | M122: 0 | N122: 0 | O122: 0 | P122: 0 | Q122: 0 | R122: 0 | S122: 0 | T122: 0 | U122: 0 | V122: 0 | W122: 0 | X122: 0 | Y122: 0 | Z122: 0 | AA122: 0 | AB122: 0 | AC122: 0 | AD122: 0 | AE122: 0 | AF122: 0 | AG122: 0 | AH122: 0 | AI122: 0 | AJ122: 0 | AK122: 0 | AL122: 0 | AM122: 0 | AN122: 0 | AO122: 0 | AP122: 0 | AQ122: 0 | AR122: 0 | AS122: 0 | AT122: 0 | AU122: 0 | AV122: 0 | AW122: 0 | AX122: 0 | AY122: 0 | AZ122: 0 | BA122: 0 | BB122: 0 | BC122: 0 | BD122: 0 | BE122: 0 | BF122: 0 | BG122: 0 | BH122: 0 | BI122: 0 | BJ122: 0 | BK122: 0 | BL122: 0 | BM122: 0 | BN122: 0 | BO122: 0 | BP122: =IF(BP$48=$E120,$D120,IF(BP$48=$E121,$D121,0)) -> 0 | BQ122: 0 | BR122: 0 | BS122: 0 | BT122: 0 | BU122: 0 | BV122: 0 | BW122: 0
B123: altura interpolada | C123: =IF(MAX(C121,C120)<-180,0,IF(C120<-180,D121+((D120-D121)*(C120+180)/(C120-C121)),IF(C$47=$G120,$D120,IF(C$47=$G121,$D121,0)))) -> 0 | D123: =IF(D$47<$G$120,0,IF(D$47=$G$120,$D$120,IF(D$47<=$G$121,$D$120+(($D$121-$D$120)*(D$47-$G$120)/($G$121-$G$120)),0))) -> 0 | E123: =IF(E$47<$G$120,0,IF(E$47=$G$120,$D$120,IF(E$47<=$G$121,$D$120+(($D$121-$D$120)*(E$47-$G$120)/($G$121-$G$120)),0))) -> 0 | F123: 0 | G123: 0 | H123: 0 | I123: 0 | J123: 0 | K123: 0 | L123: 0 | M123: 0 | N123: 0 | O123: 0 | P123: 0 | Q123: 0 | R123: 0 | S123: 0 | T123: 0 | U123: 0 | V123: 0 | W123: 0 | X123: 0 | Y123: 0 | Z123: 0 | AA123: 0 | AB123: 0 | AC123: 0 | AD123: 0 | AE123: 0 | AF123: 0 | AG123: 0 | AH123: 0 | AI123: 0 | AJ123: 0 | AK123: 0 | AL123: 0 | AM123: 0 | AN123: 0 | AO123: 0 | AP123: 0 | AQ123: 0 | AR123: 0 | AS123: 0 | AT123: 0 | AU123: 0 | AV123: 0 | AW123: 0 | AX123: 0 | AY123: 0 | AZ123: 0 | BA123: 0 | BB123: 0 | BC123: 0 | BD123: 0 | BE123: 0 | BF123: 0 | BG123: 0 | BH123: 0 | BI123: 0 | BJ123: 0 | BK123: 0 | BL123: 0 | BM123: 0 | BN123: 0 | BO123: 0 | BP123: 0 | BQ123: =IF(BQ$47<$G$120,0,IF(BQ$47=$G$120,$D$120,IF(BQ$47<=$G$121,$D$120+(($D$121-$D$120)*(BQ$47-$G$120)/($G$121-$G$120)),0))) -> 0 | BR123: 0 | BS123: 0 | BT123: 0 | BU123: 0 | BV123: 0 | BW123: =IF(C121>180,D120+((D121-D120)*(C121-180)/(C121-C120)),IF(BW$47<$G120,0,IF(BW$47=$G120,$D120,IF(BW$47<=$G121,$D120+(($D121-$D120)*(BW$47-$G120)/($G121-$G120)),0)))) -> 0
B124: GR1_3A | C124: =MIN(Sombras!AJ21:AJ22) -> 0.00 | D124: =VLOOKUP(C124,Sombras!AJ21:AK22,2,FALSE) -> 0.00 | E124: =ROUND(C124/5,0)*5 -> 0 | F124: col inicio | G124: =IF(C124>180,73,IF(C124<-180,1,MATCH($D124,C126:BW126,FALSE))) -> 1
B125: GR1_3B | C125: =MAX(Sombras!AJ21:AJ22) -> 0.00 | D125: =VLOOKUP(C125,Sombras!AJ21:AK22,2,FALSE) -> 0.00 | E125: =ROUND(C125/5,0)*5 -> 0 | F125: col fin | G125: =IF(E125>180,73,IF(C125<-180,1,IF(E125=E124,G124,MATCH($D125,C126:BW126,FALSE)))) -> 1
B126: altura solar | C126: =IF(C$48=$E124,$D124,IF(C$48=$E125,$D125,0)) -> 0 | D126: =IF(D$48=$E124,$D124,IF(D$48=$E125,$D125,0)) -> 0 | E126: 0 | F126: 0 | G126: 0 | H126: 0 | I126: 0 | J126: 0 | K126: 0 | L126: 0 | M126: 0 | N126: 0 | O126: 0 | P126: 0 | Q126: 0 | R126: 0 | S126: 0 | T126: 0 | U126: 0 | V126: 0 | W126: 0 | X126: 0 | Y126: 0 | Z126: 0 | AA126: 0 | AB126: 0 | AC126: 0 | AD126: 0 | AE126: 0 | AF126: 0 | AG126: 0 | AH126: 0 | AI126: 0 | AJ126: 0 | AK126: 0 | AL126: 0 | AM126: 0 | AN126: 0 | AO126: 0 | AP126: 0 | AQ126: 0 | AR126: 0 | AS126: 0 | AT126: 0 | AU126: 0 | AV126: 0 | AW126: 0 | AX126: 0 | AY126: 0 | AZ126: 0 | BA126: 0 | BB126: 0 | BC126: 0 | BD126: 0 | BE126: 0 | BF126: 0 | BG126: 0 | BH126: 0 | BI126: 0 | BJ126: 0 | BK126: 0 | BL126: 0 | BM126: 0 | BN126: 0 | BO126: 0 | BP126: =IF(BP$48=$E124,$D124,IF(BP$48=$E125,$D125,0)) -> 0 | BQ126: 0 | BR126: 0 | BS126: 0 | BT126: 0 | BU126: 0 | BV126: 0 | BW126: 0
B127: altura interpolada | C127: =IF(MAX(C125,C124)<-180,0,IF(C124<-180,D125+((D124-D125)*(C124+180)/(C124-C125)),IF(C$47=$G124,$D124,IF(C$47=$G125,$D125,0)))) -> 0 | D127: =IF(D$47<$G$124,0,IF(D$47=$G$124,$D$124,IF(D$47<=$G$125,$D$124+(($D$125-$D$124)*(D$47-$G$124)/($G$125-$G$124)),0))) -> 0 | E127: =IF(E$47<$G$124,0,IF(E$47=$G$124,$D$124,IF(E$47<=$G$125,$D$124+(($D$125-$D$124)*(E$47-$G$124)/($G$125-$G$124)),0))) -> 0 | F127: 0 | G127: 0 | H127: 0 | I127: 0 | J127: 0 | K127: 0 | L127: 0 | M127: 0 | N127: 0 | O127: 0 | P127: 0 | Q127: 0 | R127: 0 | S127: 0 | T127: 0 | U127: 0 | V127: 0 | W127: 0 | X127: 0 | Y127: 0 | Z127: 0 | AA127: 0 | AB127: 0 | AC127: 0 | AD127: 0 | AE127: 0 | AF127: 0 | AG127: 0 | AH127: 0 | AI127: 0 | AJ127: 0 | AK127: 0 | AL127: 0 | AM127: 0 | AN127: 0 | AO127: 0 | AP127: 0 | AQ127: 0 | AR127: 0 | AS127: 0 | AT127: 0 | AU127: 0 | AV127: 0 | AW127: 0 | AX127: 0 | AY127: 0 | AZ127: 0 | BA127: 0 | BB127: 0 | BC127: 0 | BD127: 0 | BE127: 0 | BF127: 0 | BG127: 0 | BH127: 0 | BI127: 0 | BJ127: 0 | BK127: 0 | BL127: 0 | BM127: 0 | BN127: 0 | BO127: 0 | BP127: 0 | BQ127: =IF(BQ$47<$G$124,0,IF(BQ$47=$G$124,$D$124,IF(BQ$47<=$G$125,$D$124+(($D$125-$D$124)*(BQ$47-$G$124)/($G$125-$G$124)),0))) -> 0 | BR127: 0 | BS127: 0 | BT127: 0 | BU127: 0 | BV127: 0 | BW127: =IF(C125>180,D124+((D125-D124)*(C125-180)/(C125-C124)),IF(BW$47<$G124,0,IF(BW$47=$G124,$D124,IF(BW$47<=$G125,$D124+(($D125-$D124)*(BW$47-$G124)/($G125-$G124)),0)))) -> 0
B129: GR1 max | C129: =MAX(C127,C123,C119) -> 0 | D129: =MAX(D127,D123,D119) -> 0 | E129: 0 | F129: 0 | G129: 0 | H129: 0 | I129: 0 | J129: 0 | K129: 0 | L129: 0 | M129: 0 | N129: 0 | O129: 0 | P129: 0 | Q129: 0 | R129: 0 | S129: 0 | T129: 0 | U129: 0 | V129: 0 | W129: 0 | X129: 0 | Y129: 0 | Z129: 0 | AA129: 0 | AB129: 0 | AC129: 0 | AD129: 0 | AE129: 0 | AF129: 0 | AG129: 0 | AH129: 0 | AI129: 0 | AJ129: 0 | AK129: 0 | AL129: 0 | AM129: 0 | AN129: 0 | AO129: 0 | AP129: 0 | AQ129: 0 | AR129: 0 | AS129: 0 | AT129: 0 | AU129: 0 | AV129: 0 | AW129: 0 | AX129: 0 | AY129: 0 | AZ129: 0 | BA129: 0 | BB129: 0 | BC129: 0 | BD129: 0 | BE129: 0 | BF129: 0 | BG129: 0 | BH129: 0 | BI129: 0 | BJ129: 0 | BK129: 0 | BL129: 0 | BM129: 0 | BN129: 0 | BO129: 0 | BP129: =MAX(BP127,BP123,BP119) -> 0 | BQ129: 0 | BR129: 0 | BS129: 0 | BT129: 0 | BU129: 0 | BV129: 0 | BW129: 0
B130: GR1 edificio | C130: =C129*IF($E$115=Sombras!$AC$3,1,0) -> 0 | D130: =D129*IF($E$115=Sombras!$AC$3,1,0) -> 0 | E130: =E129*IF($E$115=Sombras!$AC$3,1,0) -> 0 | F130: =F129*IF($E$115=Sombras!$AC$3,1,0) -> 0 | G130: =G129*IF($E$115=Sombras!$AC$3,1,0) -> 0 | H130: =H129*IF($E$115=Sombras!$AC$3,1,0) -> 0 | I130: =I129*IF($E$115=Sombras!$AC$3,1,0) -> 0 | J130: =J129*IF($E$115=Sombras!$AC$3,1,0) -> 0 | K130: =K129*IF($E$115=Sombras!$AC$3,1,0) -> 0 | L130: =L129*IF($E$115=Sombras!$AC$3,1,0) -> 0 | M130: =M129*IF($E$115=Sombras!$AC$3,1,0) -> 0 | N130: =N129*IF($E$115=Sombras!$AC$3,1,0) -> 0 | O130: =O129*IF($E$115=Sombras!$AC$3,1,0) -> 0 | P130: =P129*IF($E$115=Sombras!$AC$3,1,0) -> 0 | Q130: =Q129*IF($E$115=Sombras!$AC$3,1,0) -> 0 | R130: =R129*IF($E$115=Sombras!$AC$3,1,0) -> 0 | S130: =S129*IF($E$115=Sombras!$AC$3,1,0) -> 0 | T130: =T129*IF($E$115=Sombras!$AC$3,1,0) -> 0 | U130: =U129*IF($E$115=Sombras!$AC$3,1,0) -> 0 | V130: =V129*IF($E$115=Sombras!$AC$3,1,0) -> 0 | W130: =W129*IF($E$115=Sombras!$AC$3,1,0) -> 0 | X130: =X129*IF($E$115=Sombras!$AC$3,1,0) -> 0 | Y130: =Y129*IF($E$115=Sombras!$AC$3,1,0) -> 0 | Z130: =Z129*IF($E$115=Sombras!$AC$3,1,0) -> 0 | AA130: =AA129*IF($E$115=Sombras!$AC$3,1,0) -> 0 | AB130: =AB129*IF($E$115=Sombras!$AC$3,1,0) -> 0 | AC130: =AC129*IF($E$115=Sombras!$AC$3,1,0) -> 0 | AD130: =AD129*IF($E$115=Sombras!$AC$3,1,0) -> 0 | AE130: =AE129*IF($E$115=Sombras!$AC$3,1,0) -> 0 | AF130: =AF129*IF($E$115=Sombras!$AC$3,1,0) -> 0 | AG130: =AG129*IF($E$115=Sombras!$AC$3,1,0) -> 0 | AH130: =AH129*IF($E$115=Sombras!$AC$3,1,0) -> 0 | AI130: =AI129*IF($E$115=Sombras!$AC$3,1,0) -> 0 | AJ130: =AJ129*IF($E$115=Sombras!$AC$3,1,0) -> 0 | AK130: =AK129*IF($E$115=Sombras!$AC$3,1,0) -> 0 | AL130: =AL129*IF($E$115=Sombras!$AC$3,1,0) -> 0 | AM130: =AM129*IF($E$115=Sombras!$AC$3,1,0) -> 0 | AN130: =AN129*IF($E$115=Sombras!$AC$3,1,0) -> 0 | AO130: =AO129*IF($E$115=Sombras!$AC$3,1,0) -> 0 | AP130: =AP129*IF($E$115=Sombras!$AC$3,1,0) -> 0 | AQ130: =AQ129*IF($E$115=Sombras!$AC$3,1,0) -> 0 | AR130: =AR129*IF($E$115=Sombras!$AC$3,1,0) -> 0 | AS130: =AS129*IF($E$115=Sombras!$AC$3,1,0) -> 0 | AT130: =AT129*IF($E$115=Sombras!$AC$3,1,0) -> 0 | AU130: =AU129*IF($E$115=Sombras!$AC$3,1,0) -> 0 | AV130: =AV129*IF($E$115=Sombras!$AC$3,1,0) -> 0 | AW130: =AW129*IF($E$115=Sombras!$AC$3,1,0) -> 0 | AX130: =AX129*IF($E$115=Sombras!$AC$3,1,0) -> 0 | AY130: =AY129*IF($E$115=Sombras!$AC$3,1,0) -> 0 | AZ130: =AZ129*IF($E$115=Sombras!$AC$3,1,0) -> 0 | BA130: =BA129*IF($E$115=Sombras!$AC$3,1,0) -> 0 | BB130: =BB129*IF($E$115=Sombras!$AC$3,1,0) -> 0 | BC130: =BC129*IF($E$115=Sombras!$AC$3,1,0) -> 0 | BD130: =BD129*IF($E$115=Sombras!$AC$3,1,0) -> 0 | BE130: =BE129*IF($E$115=Sombras!$AC$3,1,0) -> 0 | BF130: =BF129*IF($E$115=Sombras!$AC$3,1,0) -> 0 | BG130: =BG129*IF($E$115=Sombras!$AC$3,1,0) -> 0 | BH130: =BH129*IF($E$115=Sombras!$AC$3,1,0) -> 0 | BI130: =BI129*IF($E$115=Sombras!$AC$3,1,0) -> 0 | BJ130: =BJ129*IF($E$115=Sombras!$AC$3,1,0) -> 0 | BK130: =BK129*IF($E$115=Sombras!$AC$3,1,0) -> 0 | BL130: =BL129*IF($E$115=Sombras!$AC$3,1,0) -> 0 | BM130: =BM129*IF($E$115=Sombras!$AC$3,1,0) -> 0 | BN130: =BN129*IF($E$115=Sombras!$AC$3,1,0) -> 0 | BO130: =BO129*IF($E$115=Sombras!$AC$3,1,0) -> 0 | BP130: =BP129*IF($E$115=Sombras!$AC$3,1,0) -> 0 | BQ130: =BQ129*IF($E$115=Sombras!$AC$3,1,0) -> 0 | BR130: =BR129*IF($E$115=Sombras!$AC$3,1,0) -> 0 | BS130: =BS129*IF($E$115=Sombras!$AC$3,1,0) -> 0 | BT130: =BT129*IF($E$115=Sombras!$AC$3,1,0) -> 0 | BU130: =BU129*IF($E$115=Sombras!$AC$3,1,0) -> 0 | BV130: =BV129*IF($E$115=Sombras!$AC$3,1,0) -> 0 | BW130: =BW129*IF($E$115=Sombras!$AC$3,1,0) -> 0
B131: GR1 alero | C131: =IF(C130<>0,90,IF(C129<>0,C129,90)) -> 90 | D131: =IF(D130<>0,90,IF(D129<>0,D129,90)) -> 90 | E131: 90 | F131: 90 | G131: 90 | H131: 90 | I131: 90 | J131: 90 | K131: 90 | L131: 90 | M131: 90 | N131: 90 | O131: 90 | P131: 90 | Q131: 90 | R131: 90 | S131: 90 | T131: 90 | U131: 90 | V131: 90 | W131: 90 | X131: 90 | Y131: 90 | Z131: 90 | AA131: 90 | AB131: 90 | AC131: 90 | AD131: 90 | AE131: 90 | AF131: 90 | AG131: 90 | AH131: 90 | AI131: 90 | AJ131: 90 | AK131: 90 | AL131: 90 | AM131: 90 | AN131: 90 | AO131: 90 | AP131: 90 | AQ131: 90 | AR131: 90 | AS131: 90 | AT131: 90 | AU131: 90 | AV131: 90 | AW131: 90 | AX131: 90 | AY131: 90 | AZ131: 90 | BA131: 90 | BB131: 90 | BC131: 90 | BD131: 90 | BE131: 90 | BF131: 90 | BG131: 90 | BH131: 90 | BI131: 90 | BJ131: 90 | BK131: 90 | BL131: 90 | BM131: 90 | BN131: 90 | BO131: 90 | BP131: =IF(BP130<>0,90,IF(BP129<>0,BP129,90)) -> 90 | BQ131: 90 | BR131: 90 | BS131: 90 | BT131: 90 | BU131: 90 | BV131: 90 | BW131: 90
B133: GRUPO2 | C133: azimut | D133: altura | E133: =Sombras!X6 -> Perfil edificio
B134: GR2_1A | C134: =MIN(Sombras!AM9:AM10) -> 0.00 | D134: =VLOOKUP(C134,Sombras!AM9:AN10,2,FALSE) -> 0.00 | E134: =ROUND(C134/5,0)*5 -> 0 | F134: col inicio | G134: =IF(C134>180,73,IF(C134<-180,1,MATCH($D134,C136:BW136,FALSE))) -> 1
B135: GR2_1B | C135: =MAX(Sombras!AM9:AM10) -> 0.00 | D135: =VLOOKUP(C135,Sombras!AM9:AN10,2,FALSE) -> 0.00 | E135: =ROUND(C135/5,0)*5 -> 0 | F135: col fin | G135: =IF(E135>180,73,IF(C135<-180,1,IF(E135=E134,G134,MATCH($D135,C136:BW136,FALSE)))) -> 1
B136: altura solar | C136: =IF(C$48=$E134,$D134,IF(C$48=$E135,$D135,0)) -> 0 | D136: =IF(D$48=$E134,$D134,IF(D$48=$E135,$D135,0)) -> 0 | E136: 0 | F136: 0 | G136: 0 | H136: 0 | I136: 0 | J136: 0 | K136: 0 | L136: 0 | M136: 0 | N136: 0 | O136: 0 | P136: 0 | Q136: 0 | R136: 0 | S136: 0 | T136: 0 | U136: 0 | V136: 0 | W136: 0 | X136: 0 | Y136: 0 | Z136: 0 | AA136: 0 | AB136: 0 | AC136: 0 | AD136: 0 | AE136: 0 | AF136: 0 | AG136: 0 | AH136: 0 | AI136: 0 | AJ136: 0 | AK136: 0 | AL136: 0 | AM136: 0 | AN136: 0 | AO136: 0 | AP136: 0 | AQ136: 0 | AR136: 0 | AS136: 0 | AT136: 0 | AU136: 0 | AV136: 0 | AW136: 0 | AX136: 0 | AY136: 0 | AZ136: 0 | BA136: 0 | BB136: 0 | BC136: 0 | BD136: 0 | BE136: 0 | BF136: 0 | BG136: 0 | BH136: 0 | BI136: 0 | BJ136: 0 | BK136: 0 | BL136: 0 | BM136: 0 | BN136: 0 | BO136: 0 | BP136: =IF(BP$48=$E134,$D134,IF(BP$48=$E135,$D135,0)) -> 0 | BQ136: 0 | BR136: 0 | BS136: 0 | BT136: 0 | BU136: 0 | BV136: 0 | BW136: 0
B137: altura interpolada | C137: =IF(MAX(C135,C134)<-180,0,IF(C134<-180,D135+((D134-D135)*(C134+180)/(C134-C135)),IF(C$47=$G134,$D134,IF(C$47=$G135,$D135,0)))) -> 0 | D137: =IF(D$47<$G$134,0,IF(D$47=$G$134,$D$134,IF(D$47<=$G$135,$D$134+(($D$135-$D$134)*(D$47-$G$134)/($G$135-$G$134)),0))) -> 0 | E137: =IF(E$47<$G$134,0,IF(E$47=$G$134,$D$134,IF(E$47<=$G$135,$D$134+(($D$135-$D$134)*(E$47-$G$134)/($G$135-$G$134)),0))) -> 0 | F137: 0 | G137: 0 | H137: 0 | I137: 0 | J137: 0 | K137: 0 | L137: 0 | M137: 0 | N137: 0 | O137: 0 | P137: 0 | Q137: 0 | R137: 0 | S137: 0 | T137: 0 | U137: 0 | V137: 0 | W137: 0 | X137: 0 | Y137: 0 | Z137: 0 | AA137: 0 | AB137: 0 | AC137: 0 | AD137: 0 | AE137: 0 | AF137: 0 | AG137: 0 | AH137: 0 | AI137: 0 | AJ137: 0 | AK137: 0 | AL137: 0 | AM137: 0 | AN137: 0 | AO137: 0 | AP137: 0 | AQ137: 0 | AR137: 0 | AS137: 0 | AT137: 0 | AU137: 0 | AV137: 0 | AW137: 0 | AX137: 0 | AY137: 0 | AZ137: 0 | BA137: 0 | BB137: 0 | BC137: 0 | BD137: 0 | BE137: 0 | BF137: 0 | BG137: 0 | BH137: 0 | BI137: 0 | BJ137: 0 | BK137: 0 | BL137: 0 | BM137: 0 | BN137: 0 | BO137: 0 | BP137: 0 | BQ137: =IF(BQ$47<$G$134,0,IF(BQ$47=$G$134,$D$134,IF(BQ$47<=$G$135,$D$134+(($D$135-$D$134)*(BQ$47-$G$134)/($G$135-$G$134)),0))) -> 0 | BR137: 0 | BS137: 0 | BT137: 0 | BU137: 0 | BV137: 0 | BW137: =IF(C135>180,D134+((D135-D134)*(C135-180)/(C135-C134)),IF(BW$47<$G134,0,IF(BW$47=$G134,$D134,IF(BW$47<=$G135,$D134+(($D135-$D134)*(BW$47-$G134)/($G135-$G134)),0)))) -> 0
B138: GR2_2A | C138: =MIN(Sombras!AM15:AM16) -> 0.00 | D138: =VLOOKUP(C138,Sombras!AM15:AN16,2,FALSE) -> 0.00 | E138: =ROUND(C138/5,0)*5 -> 0 | F138: col inicio | G138: =IF(C138>180,73,IF(C138<-180,1,MATCH($D138,C140:BW140,FALSE))) -> 1
B139: GR2_2B | C139: =MAX(Sombras!AM15:AM16) -> 0.00 | D139: =VLOOKUP(C139,Sombras!AM15:AN16,2,FALSE) -> 0.00 | E139: =ROUND(C139/5,0)*5 -> 0 | F139: col fin | G139: =IF(E139>180,73,IF(C139<-180,1,IF(E139=E138,G138,MATCH($D139,C140:BW140,FALSE)))) -> 1
B140: altura solar | C140: =IF(C$48=$E138,$D138,IF(C$48=$E139,$D139,0)) -> 0 | D140: =IF(D$48=$E138,$D138,IF(D$48=$E139,$D139,0)) -> 0 | E140: 0 | F140: 0 | G140: 0 | H140: 0 | I140: 0 | J140: 0 | K140: 0 | L140: 0 | M140: 0 | N140: 0 | O140: 0 | P140: 0 | Q140: 0 | R140: 0 | S140: 0 | T140: 0 | U140: 0 | V140: 0 | W140: 0 | X140: 0 | Y140: 0 | Z140: 0 | AA140: 0 | AB140: 0 | AC140: 0 | AD140: 0 | AE140: 0 | AF140: 0 | AG140: 0 | AH140: 0 | AI140: 0 | AJ140: 0 | AK140: 0 | AL140: 0 | AM140: 0 | AN140: 0 | AO140: 0 | AP140: 0 | AQ140: 0 | AR140: 0 | AS140: 0 | AT140: 0 | AU140: 0 | AV140: 0 | AW140: 0 | AX140: 0 | AY140: 0 | AZ140: 0 | BA140: 0 | BB140: 0 | BC140: 0 | BD140: 0 | BE140: 0 | BF140: 0 | BG140: 0 | BH140: 0 | BI140: 0 | BJ140: 0 | BK140: 0 | BL140: 0 | BM140: 0 | BN140: 0 | BO140: 0 | BP140: =IF(BP$48=$E138,$D138,IF(BP$48=$E139,$D139,0)) -> 0 | BQ140: 0 | BR140: 0 | BS140: 0 | BT140: 0 | BU140: 0 | BV140: 0 | BW140: 0
B141: altura interpolada | C141: =IF(MAX(C139,C138)<-180,0,IF(C138<-180,D139+((D138-D139)*(C138+180)/(C138-C139)),IF(C$47=$G138,$D138,IF(C$47=$G139,$D139,0)))) -> 0 | D141: =IF(D$47<$G$138,0,IF(D$47=$G$138,$D$138,IF(D$47<=$G$139,$D$138+(($D$139-$D$138)*(D$47-$G$138)/($G$139-$G$138)),0))) -> 0 | E141: =IF(E$47<$G$138,0,IF(E$47=$G$138,$D$138,IF(E$47<=$G$139,$D$138+(($D$139-$D$138)*(E$47-$G$138)/($G$139-$G$138)),0))) -> 0 | F141: 0 | G141: 0 | H141: 0 | I141: 0 | J141: 0 | K141: 0 | L141: 0 | M141: 0 | N141: 0 | O141: 0 | P141: 0 | Q141: 0 | R141: 0 | S141: 0 | T141: 0 | U141: 0 | V141: 0 | W141: 0 | X141: 0 | Y141: 0 | Z141: 0 | AA141: 0 | AB141: 0 | AC141: 0 | AD141: 0 | AE141: 0 | AF141: 0 | AG141: 0 | AH141: 0 | AI141: 0 | AJ141: 0 | AK141: 0 | AL141: 0 | AM141: 0 | AN141: 0 | AO141: 0 | AP141: 0 | AQ141: 0 | AR141: 0 | AS141: 0 | AT141: 0 | AU141: 0 | AV141: 0 | AW141: 0 | AX141: 0 | AY141: 0 | AZ141: 0 | BA141: 0 | BB141: 0 | BC141: 0 | BD141: 0 | BE141: 0 | BF141: 0 | BG141: 0 | BH141: 0 | BI141: 0 | BJ141: 0 | BK141: 0 | BL141: 0 | BM141: 0 | BN141: 0 | BO141: 0 | BP141: 0 | BQ141: =IF(BQ$47<$G$138,0,IF(BQ$47=$G$138,$D$138,IF(BQ$47<=$G$139,$D$138+(($D$139-$D$138)*(BQ$47-$G$138)/($G$139-$G$138)),0))) -> 0 | BR141: 0 | BS141: 0 | BT141: 0 | BU141: 0 | BV141: 0 | BW141: =IF(C139>180,D138+((D139-D138)*(C139-180)/(C139-C138)),IF(BW$47<$G138,0,IF(BW$47=$G138,$D138,IF(BW$47<=$G139,$D138+(($D139-$D138)*(BW$47-$G138)/($G139-$G138)),0)))) -> 0
B142: GR2_3A | C142: =MIN(Sombras!AM21:AM22) -> 0.00 | D142: =VLOOKUP(C142,Sombras!AM21:AN22,2,FALSE) -> 0.00 | E142: =ROUND(C142/5,0)*5 -> 0 | F142: col inicio | G142: =IF(C142>180,73,IF(C142<-180,1,MATCH($D142,C144:BW144,FALSE))) -> 1
B143: GR2_3B | C143: =MAX(Sombras!AM21:AM22) -> 0.00 | D143: =VLOOKUP(C143,Sombras!AM21:AN22,2,FALSE) -> 0.00 | E143: =ROUND(C143/5,0)*5 -> 0 | F143: col fin | G143: =IF(E143>180,73,IF(C143<-180,1,IF(E143=E142,G142,MATCH($D143,C144:BW144,FALSE)))) -> 1
B144: altura solar | C144: =IF(C$48=$E142,$D142,IF(C$48=$E143,$D143,0)) -> 0 | D144: =IF(D$48=$E142,$D142,IF(D$48=$E143,$D143,0)) -> 0 | E144: 0 | F144: 0 | G144: 0 | H144: 0 | I144: 0 | J144: 0 | K144: 0 | L144: 0 | M144: 0 | N144: 0 | O144: 0 | P144: 0 | Q144: 0 | R144: 0 | S144: 0 | T144: 0 | U144: 0 | V144: 0 | W144: 0 | X144: 0 | Y144: 0 | Z144: 0 | AA144: 0 | AB144: 0 | AC144: 0 | AD144: 0 | AE144: 0 | AF144: 0 | AG144: 0 | AH144: 0 | AI144: 0 | AJ144: 0 | AK144: 0 | AL144: 0 | AM144: 0 | AN144: 0 | AO144: 0 | AP144: 0 | AQ144: 0 | AR144: 0 | AS144: 0 | AT144: 0 | AU144: 0 | AV144: 0 | AW144: 0 | AX144: 0 | AY144: 0 | AZ144: 0 | BA144: 0 | BB144: 0 | BC144: 0 | BD144: 0 | BE144: 0 | BF144: 0 | BG144: 0 | BH144: 0 | BI144: 0 | BJ144: 0 | BK144: 0 | BL144: 0 | BM144: 0 | BN144: 0 | BO144: 0 | BP144: =IF(BP$48=$E142,$D142,IF(BP$48=$E143,$D143,0)) -> 0 | BQ144: 0 | BR144: 0 | BS144: 0 | BT144: 0 | BU144: 0 | BV144: 0 | BW144: 0
B145: altura interpolada | C145: =IF(MAX(C143,C142)<-180,0,IF(C142<-180,D143+((D142-D143)*(C142+180)/(C142-C143)),IF(C$47=$G142,$D142,IF(C$47=$G143,$D143,0)))) -> 0 | D145: =IF(D$47<$G$142,0,IF(D$47=$G$142,$D$142,IF(D$47<=$G$143,$D$142+(($D$143-$D$142)*(D$47-$G$142)/($G$143-$G$142)),0))) -> 0 | E145: =IF(E$47<$G$142,0,IF(E$47=$G$142,$D$142,IF(E$47<=$G$143,$D$142+(($D$143-$D$142)*(E$47-$G$142)/($G$143-$G$142)),0))) -> 0 | F145: 0 | G145: 0 | H145: 0 | I145: 0 | J145: 0 | K145: 0 | L145: 0 | M145: 0 | N145: 0 | O145: 0 | P145: 0 | Q145: 0 | R145: 0 | S145: 0 | T145: 0 | U145: 0 | V145: 0 | W145: 0 | X145: 0 | Y145: 0 | Z145: 0 | AA145: 0 | AB145: 0 | AC145: 0 | AD145: 0 | AE145: 0 | AF145: 0 | AG145: 0 | AH145: 0 | AI145: 0 | AJ145: 0 | AK145: 0 | AL145: 0 | AM145: 0 | AN145: 0 | AO145: 0 | AP145: 0 | AQ145: 0 | AR145: 0 | AS145: 0 | AT145: 0 | AU145: 0 | AV145: 0 | AW145: 0 | AX145: 0 | AY145: 0 | AZ145: 0 | BA145: 0 | BB145: 0 | BC145: 0 | BD145: 0 | BE145: 0 | BF145: 0 | BG145: 0 | BH145: 0 | BI145: 0 | BJ145: 0 | BK145: 0 | BL145: 0 | BM145: 0 | BN145: 0 | BO145: 0 | BP145: 0 | BQ145: =IF(BQ$47<$G$142,0,IF(BQ$47=$G$142,$D$142,IF(BQ$47<=$G$143,$D$142+(($D$143-$D$142)*(BQ$47-$G$142)/($G$143-$G$142)),0))) -> 0 | BR145: 0 | BS145: 0 | BT145: 0 | BU145: 0 | BV145: 0 | BW145: =IF(C143>180,D142+((D143-D142)*(C143-180)/(C143-C142)),IF(BW$47<$G142,0,IF(BW$47=$G142,$D142,IF(BW$47<=$G143,$D142+(($D143-$D142)*(BW$47-$G142)/($G143-$G142)),0)))) -> 0
B147: GR2 max | C147: =MAX(C145,C141,C137) -> 0 | D147: =MAX(D145,D141,D137) -> 0 | E147: 0 | F147: 0 | G147: 0 | H147: 0 | I147: 0 | J147: 0 | K147: 0 | L147: 0 | M147: 0 | N147: 0 | O147: 0 | P147: 0 | Q147: 0 | R147: 0 | S147: 0 | T147: 0 | U147: 0 | V147: 0 | W147: 0 | X147: 0 | Y147: 0 | Z147: 0 | AA147: 0 | AB147: 0 | AC147: 0 | AD147: 0 | AE147: 0 | AF147: 0 | AG147: 0 | AH147: 0 | AI147: 0 | AJ147: 0 | AK147: 0 | AL147: 0 | AM147: 0 | AN147: 0 | AO147: 0 | AP147: 0 | AQ147: 0 | AR147: 0 | AS147: 0 | AT147: 0 | AU147: 0 | AV147: 0 | AW147: 0 | AX147: 0 | AY147: 0 | AZ147: 0 | BA147: 0 | BB147: 0 | BC147: 0 | BD147: 0 | BE147: 0 | BF147: 0 | BG147: 0 | BH147: 0 | BI147: 0 | BJ147: 0 | BK147: 0 | BL147: 0 | BM147: 0 | BN147: 0 | BO147: 0 | BP147: =MAX(BP145,BP141,BP137) -> 0 | BQ147: 0 | BR147: 0 | BS147: 0 | BT147: 0 | BU147: 0 | BV147: 0 | BW147: 0
B148: GR2 edificio | C148: =C147*IF($E$133=Sombras!$AC$3,1,0) -> 0 | D148: =D147*IF($E$133=Sombras!$AC$3,1,0) -> 0 | E148: =E147*IF($E$133=Sombras!$AC$3,1,0) -> 0 | F148: =F147*IF($E$133=Sombras!$AC$3,1,0) -> 0 | G148: =G147*IF($E$133=Sombras!$AC$3,1,0) -> 0 | H148: =H147*IF($E$133=Sombras!$AC$3,1,0) -> 0 | I148: =I147*IF($E$133=Sombras!$AC$3,1,0) -> 0 | J148: =J147*IF($E$133=Sombras!$AC$3,1,0) -> 0 | K148: =K147*IF($E$133=Sombras!$AC$3,1,0) -> 0 | L148: =L147*IF($E$133=Sombras!$AC$3,1,0) -> 0 | M148: =M147*IF($E$133=Sombras!$AC$3,1,0) -> 0 | N148: =N147*IF($E$133=Sombras!$AC$3,1,0) -> 0 | O148: =O147*IF($E$133=Sombras!$AC$3,1,0) -> 0 | P148: =P147*IF($E$133=Sombras!$AC$3,1,0) -> 0 | Q148: =Q147*IF($E$133=Sombras!$AC$3,1,0) -> 0 | R148: =R147*IF($E$133=Sombras!$AC$3,1,0) -> 0 | S148: =S147*IF($E$133=Sombras!$AC$3,1,0) -> 0 | T148: =T147*IF($E$133=Sombras!$AC$3,1,0) -> 0 | U148: =U147*IF($E$133=Sombras!$AC$3,1,0) -> 0 | V148: =V147*IF($E$133=Sombras!$AC$3,1,0) -> 0 | W148: =W147*IF($E$133=Sombras!$AC$3,1,0) -> 0 | X148: =X147*IF($E$133=Sombras!$AC$3,1,0) -> 0 | Y148: =Y147*IF($E$133=Sombras!$AC$3,1,0) -> 0 | Z148: =Z147*IF($E$133=Sombras!$AC$3,1,0) -> 0 | AA148: =AA147*IF($E$133=Sombras!$AC$3,1,0) -> 0 | AB148: =AB147*IF($E$133=Sombras!$AC$3,1,0) -> 0 | AC148: =AC147*IF($E$133=Sombras!$AC$3,1,0) -> 0 | AD148: =AD147*IF($E$133=Sombras!$AC$3,1,0) -> 0 | AE148: =AE147*IF($E$133=Sombras!$AC$3,1,0) -> 0 | AF148: =AF147*IF($E$133=Sombras!$AC$3,1,0) -> 0 | AG148: =AG147*IF($E$133=Sombras!$AC$3,1,0) -> 0 | AH148: =AH147*IF($E$133=Sombras!$AC$3,1,0) -> 0 | AI148: =AI147*IF($E$133=Sombras!$AC$3,1,0) -> 0 | AJ148: =AJ147*IF($E$133=Sombras!$AC$3,1,0) -> 0 | AK148: =AK147*IF($E$133=Sombras!$AC$3,1,0) -> 0 | AL148: =AL147*IF($E$133=Sombras!$AC$3,1,0) -> 0 | AM148: =AM147*IF($E$133=Sombras!$AC$3,1,0) -> 0 | AN148: =AN147*IF($E$133=Sombras!$AC$3,1,0) -> 0 | AO148: =AO147*IF($E$133=Sombras!$AC$3,1,0) -> 0 | AP148: =AP147*IF($E$133=Sombras!$AC$3,1,0) -> 0 | AQ148: =AQ147*IF($E$133=Sombras!$AC$3,1,0) -> 0 | AR148: =AR147*IF($E$133=Sombras!$AC$3,1,0) -> 0 | AS148: =AS147*IF($E$133=Sombras!$AC$3,1,0) -> 0 | AT148: =AT147*IF($E$133=Sombras!$AC$3,1,0) -> 0 | AU148: =AU147*IF($E$133=Sombras!$AC$3,1,0) -> 0 | AV148: =AV147*IF($E$133=Sombras!$AC$3,1,0) -> 0 | AW148: =AW147*IF($E$133=Sombras!$AC$3,1,0) -> 0 | AX148: =AX147*IF($E$133=Sombras!$AC$3,1,0) -> 0 | AY148: =AY147*IF($E$133=Sombras!$AC$3,1,0) -> 0 | AZ148: =AZ147*IF($E$133=Sombras!$AC$3,1,0) -> 0 | BA148: =BA147*IF($E$133=Sombras!$AC$3,1,0) -> 0 | BB148: =BB147*IF($E$133=Sombras!$AC$3,1,0) -> 0 | BC148: =BC147*IF($E$133=Sombras!$AC$3,1,0) -> 0 | BD148: =BD147*IF($E$133=Sombras!$AC$3,1,0) -> 0 | BE148: =BE147*IF($E$133=Sombras!$AC$3,1,0) -> 0 | BF148: =BF147*IF($E$133=Sombras!$AC$3,1,0) -> 0 | BG148: =BG147*IF($E$133=Sombras!$AC$3,1,0) -> 0 | BH148: =BH147*IF($E$133=Sombras!$AC$3,1,0) -> 0 | BI148: =BI147*IF($E$133=Sombras!$AC$3,1,0) -> 0 | BJ148: =BJ147*IF($E$133=Sombras!$AC$3,1,0) -> 0 | BK148: =BK147*IF($E$133=Sombras!$AC$3,1,0) -> 0 | BL148: =BL147*IF($E$133=Sombras!$AC$3,1,0) -> 0 | BM148: =BM147*IF($E$133=Sombras!$AC$3,1,0) -> 0 | BN148: =BN147*IF($E$133=Sombras!$AC$3,1,0) -> 0 | BO148: =BO147*IF($E$133=Sombras!$AC$3,1,0) -> 0 | BP148: =BP147*IF($E$133=Sombras!$AC$3,1,0) -> 0 | BQ148: =BQ147*IF($E$133=Sombras!$AC$3,1,0) -> 0 | BR148: =BR147*IF($E$133=Sombras!$AC$3,1,0) -> 0 | BS148: =BS147*IF($E$133=Sombras!$AC$3,1,0) -> 0 | BT148: =BT147*IF($E$133=Sombras!$AC$3,1,0) -> 0 | BU148: =BU147*IF($E$133=Sombras!$AC$3,1,0) -> 0 | BV148: =BV147*IF($E$133=Sombras!$AC$3,1,0) -> 0 | BW148: =BW147*IF($E$133=Sombras!$AC$3,1,0) -> 0
B149: GR2 alero | C149: =IF(C148<>0,90,IF(C147<>0,C147,90)) -> 90 | D149: =IF(D148<>0,90,IF(D147<>0,D147,90)) -> 90 | E149: 90 | F149: 90 | G149: 90 | H149: 90 | I149: 90 | J149: 90 | K149: 90 | L149: 90 | M149: 90 | N149: 90 | O149: 90 | P149: 90 | Q149: 90 | R149: 90 | S149: 90 | T149: 90 | U149: 90 | V149: 90 | W149: 90 | X149: 90 | Y149: 90 | Z149: 90 | AA149: 90 | AB149: 90 | AC149: 90 | AD149: 90 | AE149: 90 | AF149: 90 | AG149: 90 | AH149: 90 | AI149: 90 | AJ149: 90 | AK149: 90 | AL149: 90 | AM149: 90 | AN149: 90 | AO149: 90 | AP149: 90 | AQ149: 90 | AR149: 90 | AS149: 90 | AT149: 90 | AU149: 90 | AV149: 90 | AW149: 90 | AX149: 90 | AY149: 90 | AZ149: 90 | BA149: 90 | BB149: 90 | BC149: 90 | BD149: 90 | BE149: 90 | BF149: 90 | BG149: 90 | BH149: 90 | BI149: 90 | BJ149: 90 | BK149: 90 | BL149: 90 | BM149: 90 | BN149: 90 | BO149: 90 | BP149: =IF(BP148<>0,90,IF(BP147<>0,BP147,90)) -> 90 | BQ149: 90 | BR149: 90 | BS149: 90 | BT149: 90 | BU149: 90 | BV149: 90 | BW149: 90
B151: ALERO | C151: azimut | D151: altura
B152: 1a | C152: =MIN(Sombras!W54:W55) -> 0.00 | D152: =VLOOKUP(C152,Sombras!W54:X55,2,FALSE) -> 0.00 | E152: =ROUND(C152/5,0)*5 -> 0 | F152: col inicio | G152: =IF(C152>180,73,IF(C152<-180,1,MATCH($D152,C154:BW154,FALSE))) -> 1
B153: 1b | C153: =MAX(Sombras!W54:W55) -> 0.00 | D153: =VLOOKUP(C153,Sombras!W54:X55,2,FALSE) -> 0.00 | E153: =ROUND(C153/5,0)*5 -> 0 | F153: col fin | G153: =IF(E153>180,73,IF(C153<-180,1,IF(E153=E152,G152,MATCH($D153,C154:BW154,FALSE)))) -> 1
B154: altura solar | C154: =IF(C$48=$E152,$D152,IF(C$48=$E153,$D153,0)) -> 0 | D154: =IF(D$48=$E152,$D152,IF(D$48=$E153,$D153,0)) -> 0 | E154: 0 | F154: 0 | G154: 0 | H154: 0 | I154: 0 | J154: 0 | K154: 0 | L154: 0 | M154: 0 | N154: 0 | O154: 0 | P154: 0 | Q154: 0 | R154: 0 | S154: 0 | T154: 0 | U154: 0 | V154: 0 | W154: 0 | X154: 0 | Y154: 0 | Z154: 0 | AA154: 0 | AB154: 0 | AC154: 0 | AD154: 0 | AE154: 0 | AF154: 0 | AG154: 0 | AH154: 0 | AI154: 0 | AJ154: 0 | AK154: 0 | AL154: 0 | AM154: 0 | AN154: 0 | AO154: 0 | AP154: 0 | AQ154: 0 | AR154: 0 | AS154: 0 | AT154: 0 | AU154: 0 | AV154: 0 | AW154: 0 | AX154: 0 | AY154: 0 | AZ154: 0 | BA154: 0 | BB154: 0 | BC154: 0 | BD154: 0 | BE154: 0 | BF154: 0 | BG154: 0 | BH154: 0 | BI154: 0 | BJ154: 0 | BK154: 0 | BL154: 0 | BM154: 0 | BN154: 0 | BO154: 0 | BP154: =IF(BP$48=$E152,$D152,IF(BP$48=$E153,$D153,0)) -> 0 | BQ154: 0 | BR154: 0 | BS154: 0 | BT154: 0 | BU154: 0 | BV154: 0 | BW154: 0
B155: altura interpolada | C155: =IF(MAX(C153,C152)<-180,0,IF(C152<-180,D153+((D152-D153)*(C152+180)/(C152-C153)),IF(C$47=$G152,$D152,IF(C$47=$G153,$D153,0)))) -> 0 | D155: =IF(D$47<$G$152,0,IF(D$47=$G$152,$D$152,IF(D$47<=$G$153,$D$152+(($D$153-$D$152)*(D$47-$G$152)/($G$153-$G$152)),0))) -> 0 | E155: =IF(E$47<$G$152,0,IF(E$47=$G$152,$D$152,IF(E$47<=$G$153,$D$152+(($D$153-$D$152)*(E$47-$G$152)/($G$153-$G$152)),0))) -> 0 | F155: 0 | G155: 0 | H155: 0 | I155: 0 | J155: 0 | K155: 0 | L155: 0 | M155: 0 | N155: 0 | O155: 0 | P155: 0 | Q155: 0 | R155: 0 | S155: 0 | T155: 0 | U155: 0 | V155: 0 | W155: 0 | X155: 0 | Y155: 0 | Z155: 0 | AA155: 0 | AB155: 0 | AC155: 0 | AD155: 0 | AE155: 0 | AF155: 0 | AG155: 0 | AH155: 0 | AI155: 0 | AJ155: 0 | AK155: 0 | AL155: 0 | AM155: 0 | AN155: 0 | AO155: 0 | AP155: 0 | AQ155: 0 | AR155: 0 | AS155: 0 | AT155: 0 | AU155: 0 | AV155: 0 | AW155: 0 | AX155: 0 | AY155: 0 | AZ155: 0 | BA155: 0 | BB155: 0 | BC155: 0 | BD155: 0 | BE155: 0 | BF155: 0 | BG155: 0 | BH155: 0 | BI155: 0 | BJ155: 0 | BK155: 0 | BL155: 0 | BM155: 0 | BN155: 0 | BO155: 0 | BP155: 0 | BQ155: =IF(BQ$47<$G$152,0,IF(BQ$47=$G$152,$D$152,IF(BQ$47<=$G$153,$D$152+(($D$153-$D$152)*(BQ$47-$G$152)/($G$153-$G$152)),0))) -> 0 | BR155: 0 | BS155: 0 | BT155: 0 | BU155: 0 | BV155: 0 | BW155: =IF(C153>180,D152+((D153-D152)*(C153-180)/(C153-C152)),IF(BW$47<$G152,0,IF(BW$47=$G152,$D152,IF(BW$47<=$G153,$D152+(($D153-$D152)*(BW$47-$G152)/($G153-$G152)),0)))) -> 0
B156: 2a | C156: =MIN(Sombras!W59:W60) -> 0.00 | D156: =VLOOKUP(C156,Sombras!W59:X60,2,FALSE) -> 0.00 | E156: =ROUND(C156/5,0)*5 -> 0 | F156: col inicio | G156: =IF(C156>180,73,IF(C156<-180,1,MATCH($D156,C158:BW158,FALSE))) -> 1
B157: 2b | C157: =MAX(Sombras!W59:W60) -> 0.00 | D157: =VLOOKUP(C157,Sombras!W59:X60,2,FALSE) -> 0.00 | E157: =ROUND(C157/5,0)*5 -> 0 | F157: col fin | G157: =IF(E157>180,73,IF(C157<-180,1,IF(E157=E156,G156,MATCH($D157,C158:BW158,FALSE)))) -> 1
B158: altura solar | C158: =IF(C$48=$E156,$D156,IF(C$48=$E157,$D157,0)) -> 0 | D158: =IF(D$48=$E156,$D156,IF(D$48=$E157,$D157,0)) -> 0 | E158: 0 | F158: 0 | G158: 0 | H158: 0 | I158: 0 | J158: 0 | K158: 0 | L158: 0 | M158: 0 | N158: 0 | O158: 0 | P158: 0 | Q158: 0 | R158: 0 | S158: 0 | T158: 0 | U158: 0 | V158: 0 | W158: 0 | X158: 0 | Y158: 0 | Z158: 0 | AA158: 0 | AB158: 0 | AC158: 0 | AD158: 0 | AE158: 0 | AF158: 0 | AG158: 0 | AH158: 0 | AI158: 0 | AJ158: 0 | AK158: 0 | AL158: 0 | AM158: 0 | AN158: 0 | AO158: 0 | AP158: 0 | AQ158: 0 | AR158: 0 | AS158: 0 | AT158: 0 | AU158: 0 | AV158: 0 | AW158: 0 | AX158: 0 | AY158: 0 | AZ158: 0 | BA158: 0 | BB158: 0 | BC158: 0 | BD158: 0 | BE158: 0 | BF158: 0 | BG158: 0 | BH158: 0 | BI158: 0 | BJ158: 0 | BK158: 0 | BL158: 0 | BM158: 0 | BN158: 0 | BO158: 0 | BP158: =IF(BP$48=$E156,$D156,IF(BP$48=$E157,$D157,0)) -> 0 | BQ158: 0 | BR158: 0 | BS158: 0 | BT158: 0 | BU158: 0 | BV158: 0 | BW158: 0
B159: altura interpolada | C159: =IF(MAX(C157,C156)<-180,0,IF(C156<-180,D157+((D156-D157)*(C156+180)/(C156-C157)),IF(C$47=$G156,$D156,IF(C$47=$G157,$D157,0)))) -> 0 | D159: =IF(D$47<$G$156,0,IF(D$47=$G$156,$D$156,IF(D$47<=$G$157,$D$156+(($D$157-$D$156)*(D$47-$G$156)/($G$157-$G$156)),0))) -> 0 | E159: =IF(E$47<$G$156,0,IF(E$47=$G$156,$D$156,IF(E$47<=$G$157,$D$156+(($D$157-$D$156)*(E$47-$G$156)/($G$157-$G$156)),0))) -> 0 | F159: 0 | G159: 0 | H159: 0 | I159: 0 | J159: 0 | K159: 0 | L159: 0 | M159: 0 | N159: 0 | O159: 0 | P159: 0 | Q159: 0 | R159: 0 | S159: 0 | T159: 0 | U159: 0 | V159: 0 | W159: 0 | X159: 0 | Y159: 0 | Z159: 0 | AA159: 0 | AB159: 0 | AC159: 0 | AD159: 0 | AE159: 0 | AF159: 0 | AG159: 0 | AH159: 0 | AI159: 0 | AJ159: 0 | AK159: 0 | AL159: 0 | AM159: 0 | AN159: 0 | AO159: 0 | AP159: 0 | AQ159: 0 | AR159: 0 | AS159: 0 | AT159: 0 | AU159: 0 | AV159: 0 | AW159: 0 | AX159: 0 | AY159: 0 | AZ159: 0 | BA159: 0 | BB159: 0 | BC159: 0 | BD159: 0 | BE159: 0 | BF159: 0 | BG159: 0 | BH159: 0 | BI159: 0 | BJ159: 0 | BK159: 0 | BL159: 0 | BM159: 0 | BN159: 0 | BO159: 0 | BP159: 0 | BQ159: =IF(BQ$47<$G$156,0,IF(BQ$47=$G$156,$D$156,IF(BQ$47<=$G$157,$D$156+(($D$157-$D$156)*(BQ$47-$G$156)/($G$157-$G$156)),0))) -> 0 | BR159: 0 | BS159: 0 | BT159: 0 | BU159: 0 | BV159: 0 | BW159: =IF(C157>180,D156+((D157-D156)*(C157-180)/(C157-C156)),IF(BW$47<$G156,0,IF(BW$47=$G156,$D156,IF(BW$47<=$G157,$D156+(($D157-$D156)*(BW$47-$G156)/($G157-$G156)),0)))) -> 0
B160: 3a | C160: =MIN(Sombras!W64:W65) -> 0.00 | D160: =VLOOKUP(C160,Sombras!W64:X65,2,FALSE) -> 0.00 | E160: =ROUND(C160/5,0)*5 -> 0 | F160: col inicio | G160: =IF(C160>180,73,IF(C160<-180,1,MATCH($D160,C162:BW162,FALSE))) -> 1
B161: 3b | C161: =MAX(Sombras!W64:W65) -> 0.00 | D161: =VLOOKUP(C161,Sombras!W64:X65,2,FALSE) -> 0.00 | E161: =ROUND(C161/5,0)*5 -> 0 | F161: col fin | G161: =IF(E161>180,73,IF(C161<-180,1,IF(E161=E160,G160,MATCH($D161,C162:BW162,FALSE)))) -> 1
B162: altura solar | C162: =IF(C$48=$E160,$D160,IF(C$48=$E161,$D161,0)) -> 0 | D162: =IF(D$48=$E160,$D160,IF(D$48=$E161,$D161,0)) -> 0 | E162: 0 | F162: 0 | G162: 0 | H162: 0 | I162: 0 | J162: 0 | K162: 0 | L162: 0 | M162: 0 | N162: 0 | O162: 0 | P162: 0 | Q162: 0 | R162: 0 | S162: 0 | T162: 0 | U162: 0 | V162: 0 | W162: 0 | X162: 0 | Y162: 0 | Z162: 0 | AA162: 0 | AB162: 0 | AC162: 0 | AD162: 0 | AE162: 0 | AF162: 0 | AG162: 0 | AH162: 0 | AI162: 0 | AJ162: 0 | AK162: 0 | AL162: 0 | AM162: 0 | AN162: 0 | AO162: 0 | AP162: 0 | AQ162: 0 | AR162: 0 | AS162: 0 | AT162: 0 | AU162: 0 | AV162: 0 | AW162: 0 | AX162: 0 | AY162: 0 | AZ162: 0 | BA162: 0 | BB162: 0 | BC162: 0 | BD162: 0 | BE162: 0 | BF162: 0 | BG162: 0 | BH162: 0 | BI162: 0 | BJ162: 0 | BK162: 0 | BL162: 0 | BM162: 0 | BN162: 0 | BO162: 0 | BP162: =IF(BP$48=$E160,$D160,IF(BP$48=$E161,$D161,0)) -> 0 | BQ162: 0 | BR162: 0 | BS162: 0 | BT162: 0 | BU162: 0 | BV162: 0 | BW162: 0
B163: altura interpolada | C163: =IF(MAX(C161,C160)<-180,0,IF(C160<-180,D161+((D160-D161)*(C160+180)/(C160-C161)),IF(C$47=$G160,$D160,IF(C$47=$G161,$D161,0)))) -> 0 | D163: =IF(D$47<$G$160,0,IF(D$47=$G$160,$D$160,IF(D$47<=$G$161,$D$160+(($D$161-$D$160)*(D$47-$G$160)/($G$161-$G$160)),0))) -> 0 | E163: =IF(E$47<$G$160,0,IF(E$47=$G$160,$D$160,IF(E$47<=$G$161,$D$160+(($D$161-$D$160)*(E$47-$G$160)/($G$161-$G$160)),0))) -> 0 | F163: 0 | G163: 0 | H163: 0 | I163: 0 | J163: 0 | K163: 0 | L163: 0 | M163: 0 | N163: 0 | O163: 0 | P163: 0 | Q163: 0 | R163: 0 | S163: 0 | T163: 0 | U163: 0 | V163: 0 | W163: 0 | X163: 0 | Y163: 0 | Z163: 0 | AA163: 0 | AB163: 0 | AC163: 0 | AD163: 0 | AE163: 0 | AF163: 0 | AG163: 0 | AH163: 0 | AI163: 0 | AJ163: 0 | AK163: 0 | AL163: 0 | AM163: 0 | AN163: 0 | AO163: 0 | AP163: 0 | AQ163: 0 | AR163: 0 | AS163: 0 | AT163: 0 | AU163: 0 | AV163: 0 | AW163: 0 | AX163: 0 | AY163: 0 | AZ163: 0 | BA163: 0 | BB163: 0 | BC163: 0 | BD163: 0 | BE163: 0 | BF163: 0 | BG163: 0 | BH163: 0 | BI163: 0 | BJ163: 0 | BK163: 0 | BL163: 0 | BM163: 0 | BN163: 0 | BO163: 0 | BP163: 0 | BQ163: =IF(BQ$47<$G$160,0,IF(BQ$47=$G$160,$D$160,IF(BQ$47<=$G$161,$D$160+(($D$161-$D$160)*(BQ$47-$G$160)/($G$161-$G$160)),0))) -> 0 | BR163: 0 | BS163: 0 | BT163: 0 | BU163: 0 | BV163: 0 | BW163: =IF(C161>180,D160+((D161-D160)*(C161-180)/(C161-C160)),IF(BW$47<$G160,0,IF(BW$47=$G160,$D160,IF(BW$47<=$G161,$D160+(($D161-$D160)*(BW$47-$G160)/($G161-$G160)),0)))) -> 0
B164: 4a | C164: =MIN(Sombras!W69:W70) -> 0.00 | D164: =VLOOKUP(C164,Sombras!W69:X70,2,FALSE) -> 0.00 | E164: =ROUND(C164/5,0)*5 -> 0 | F164: col inicio | G164: =IF(C164>180,73,IF(C164<-180,1,MATCH($D164,C166:BW166,FALSE))) -> 1
B165: 4b | C165: =MAX(Sombras!W69:W70) -> 0.00 | D165: =VLOOKUP(C165,Sombras!W69:X70,2,FALSE) -> 0.00 | E165: =ROUND(C165/5,0)*5 -> 0 | F165: col fin | G165: =IF(E165>180,73,IF(C165<-180,1,IF(E165=E164,G164,MATCH($D165,C166:BW166,FALSE)))) -> 1
B166: altura solar | C166: =IF(C$48=$E164,$D164,IF(C$48=$E165,$D165,0)) -> 0 | D166: =IF(D$48=$E164,$D164,IF(D$48=$E165,$D165,0)) -> 0 | E166: 0 | F166: 0 | G166: 0 | H166: 0 | I166: 0 | J166: 0 | K166: 0 | L166: 0 | M166: 0 | N166: 0 | O166: 0 | P166: 0 | Q166: 0 | R166: 0 | S166: 0 | T166: 0 | U166: 0 | V166: 0 | W166: 0 | X166: 0 | Y166: 0 | Z166: 0 | AA166: 0 | AB166: 0 | AC166: 0 | AD166: 0 | AE166: 0 | AF166: 0 | AG166: 0 | AH166: 0 | AI166: 0 | AJ166: 0 | AK166: 0 | AL166: 0 | AM166: 0 | AN166: 0 | AO166: 0 | AP166: 0 | AQ166: 0 | AR166: 0 | AS166: 0 | AT166: 0 | AU166: 0 | AV166: 0 | AW166: 0 | AX166: 0 | AY166: 0 | AZ166: 0 | BA166: 0 | BB166: 0 | BC166: 0 | BD166: 0 | BE166: 0 | BF166: 0 | BG166: 0 | BH166: 0 | BI166: 0 | BJ166: 0 | BK166: 0 | BL166: 0 | BM166: 0 | BN166: 0 | BO166: 0 | BP166: =IF(BP$48=$E164,$D164,IF(BP$48=$E165,$D165,0)) -> 0 | BQ166: 0 | BR166: 0 | BS166: 0 | BT166: 0 | BU166: 0 | BV166: 0 | BW166: 0
B167: altura interpolada | C167: =IF(MAX(C165,C164)<-180,0,IF(C164<-180,D165+((D164-D165)*(C164+180)/(C164-C165)),IF(C$47=$G164,$D164,IF(C$47=$G165,$D165,0)))) -> 0 | D167: =IF(D$47<$G$164,0,IF(D$47=$G$164,$D$164,IF(D$47<=$G$165,$D$164+(($D$165-$D$164)*(D$47-$G$164)/($G$165-$G$164)),0))) -> 0 | E167: =IF(E$47<$G$164,0,IF(E$47=$G$164,$D$164,IF(E$47<=$G$165,$D$164+(($D$165-$D$164)*(E$47-$G$164)/($G$165-$G$164)),0))) -> 0 | F167: 0 | G167: 0 | H167: 0 | I167: 0 | J167: 0 | K167: 0 | L167: 0 | M167: 0 | N167: 0 | O167: 0 | P167: 0 | Q167: 0 | R167: 0 | S167: 0 | T167: 0 | U167: 0 | V167: 0 | W167: 0 | X167: 0 | Y167: 0 | Z167: 0 | AA167: 0 | AB167: 0 | AC167: 0 | AD167: 0 | AE167: 0 | AF167: 0 | AG167: 0 | AH167: 0 | AI167: 0 | AJ167: 0 | AK167: 0 | AL167: 0 | AM167: 0 | AN167: 0 | AO167: 0 | AP167: 0 | AQ167: 0 | AR167: 0 | AS167: 0 | AT167: 0 | AU167: 0 | AV167: 0 | AW167: 0 | AX167: 0 | AY167: 0 | AZ167: 0 | BA167: 0 | BB167: 0 | BC167: 0 | BD167: 0 | BE167: 0 | BF167: 0 | BG167: 0 | BH167: 0 | BI167: 0 | BJ167: 0 | BK167: 0 | BL167: 0 | BM167: 0 | BN167: 0 | BO167: 0 | BP167: 0 | BQ167: =IF(BQ$47<$G$164,0,IF(BQ$47=$G$164,$D$164,IF(BQ$47<=$G$165,$D$164+(($D$165-$D$164)*(BQ$47-$G$164)/($G$165-$G$164)),0))) -> 0 | BR167: 0 | BS167: 0 | BT167: 0 | BU167: 0 | BV167: 0 | BW167: =IF(C165>180,D164+((D165-D164)*(C165-180)/(C165-C164)),IF(BW$47<$G164,0,IF(BW$47=$G164,$D164,IF(BW$47<=$G165,$D164+(($D165-$D164)*(BW$47-$G164)/($G165-$G164)),0)))) -> 0
B169: ALERO | C169: =IF(MAX(C167,C163,C159,C155)<>0,MAX(C167,C163,C159,C155),90) -> 90 | D169: =IF(MAX(D167,D163,D159,D155)<>0,MAX(D167,D163,D159,D155),90) -> 90 | E169: 90 | F169: 90 | G169: 90 | H169: 90 | I169: 90 | J169: 90 | K169: 90 | L169: 90 | M169: 90 | N169: 90 | O169: 90 | P169: 90 | Q169: 90 | R169: 90 | S169: 90 | T169: 90 | U169: 90 | V169: 90 | W169: 90 | X169: 90 | Y169: 90 | Z169: 90 | AA169: 90 | AB169: 90 | AC169: 90 | AD169: 90 | AE169: 90 | AF169: 90 | AG169: 90 | AH169: 90 | AI169: 90 | AJ169: 90 | AK169: 90 | AL169: 90 | AM169: 90 | AN169: 90 | AO169: 90 | AP169: 90 | AQ169: 90 | AR169: 90 | AS169: 90 | AT169: 90 | AU169: 90 | AV169: 90 | AW169: 90 | AX169: 90 | AY169: 90 | AZ169: 90 | BA169: 90 | BB169: 90 | BC169: 90 | BD169: 90 | BE169: 90 | BF169: 90 | BG169: 90 | BH169: 90 | BI169: 90 | BJ169: 90 | BK169: 90 | BL169: 90 | BM169: 90 | BN169: 90 | BO169: 90 | BP169: =IF(MAX(BP167,BP163,BP159,BP155)<>0,MAX(BP167,BP163,BP159,BP155),90) -> 90 | BQ169: 90 | BR169: 90 | BS169: 90 | BT169: 90 | BU169: 90 | BV169: 90 | BW169: 90
B171: PERFILES ENVOLVENTES OBSTRUCCION SOLAR
B172: AZIMUT | C172: -180 | D172: =C172+5 -> -175 | E172: =D172+5 -> -170 | F172: -165 | G172: -160 | H172: -155 | I172: -150 | J172: -145 | K172: -140 | L172: -135 | M172: -130 | N172: -125 | O172: -120 | P172: -115 | Q172: -110 | R172: -105 | S172: -100 | T172: -95 | U172: -90 | V172: -85 | W172: -80 | X172: -75 | Y172: -70 | Z172: -65 | AA172: -60 | AB172: -55 | AC172: -50 | AD172: -45 | AE172: -40 | AF172: -35 | AG172: -30 | AH172: -25 | AI172: -20 | AJ172: -15 | AK172: -10 | AL172: -5 | AM172: 0 | AN172: 5 | AO172: 10 | AP172: 15 | AQ172: 20 | AR172: 25 | AS172: 30 | AT172: 35 | AU172: 40 | AV172: 45 | AW172: 50 | AX172: 55 | AY172: 60 | AZ172: 65 | BA172: 70 | BB172: 75 | BC172: 80 | BD172: 85 | BE172: 90 | BF172: 95 | BG172: 100 | BH172: 105 | BI172: 110 | BJ172: 115 | BK172: 120 | BL172: 125 | BM172: 130 | BN172: 135 | BO172: 140 | BP172: 145 | BQ172: =BP172+5 -> 150 | BR172: 155 | BS172: 160 | BT172: 165 | BU172: 170 | BV172: 175 | BW172: 180
B173: INFERIOR | C173: =MAX(C53,C73,C113,C130,C148,C85) -> 90 | D173: =MAX(D53,D73,D113,D130,D148,D85) -> 90 | E173: 90 | F173: 90 | G173: 90 | H173: 90 | I173: 90 | J173: 90 | K173: 90 | L173: 90 | M173: 90 | N173: 90 | O173: 90 | P173: 90 | Q173: 90 | R173: 90 | S173: 90 | T173: 90 | U173: 90 | V173: 90 | W173: 90 | X173: 90 | Y173: 90 | Z173: 90 | AA173: 90 | AB173: 90 | AC173: 0 | AD173: 0 | AE173: 0 | AF173: 0 | AG173: 0 | AH173: 0 | AI173: 0 | AJ173: 0 | AK173: 0 | AL173: 0 | AM173: 0 | AN173: 0 | AO173: 0 | AP173: 0 | AQ173: 0 | AR173: 0 | AS173: 0 | AT173: 0 | AU173: 0 | AV173: 0 | AW173: 0 | AX173: 0 | AY173: 0 | AZ173: 0 | BA173: 0 | BB173: 0 | BC173: 0 | BD173: 0 | BE173: 0 | BF173: 0 | BG173: 0 | BH173: 0 | BI173: 0 | BJ173: 0 | BK173: 0 | BL173: 0 | BM173: 0 | BN173: 90 | BO173: 90 | BP173: =MAX(BP53,BP73,BP113,BP130,BP148,BP85) -> 90 | BQ173: 90 | BR173: 90 | BS173: 90 | BT173: 90 | BU173: 90 | BV173: 90 | BW173: 90
B174: h inferior | C174: 0 | D174: 0 | E174: 0 | F174: 0 | G174: 0 | H174: 0 | I174: 0 | J174: 0 | K174: 0 | L174: 0 | M174: 0 | N174: 0 | O174: 0 | P174: 0 | Q174: 0 | R174: 0 | S174: 0 | T174: 0 | U174: 0 | V174: 0 | W174: 0 | X174: 0 | Y174: 0 | Z174: 0 | AA174: 0 | AB174: 0 | AC174: 0 | AD174: 0 | AE174: 0 | AF174: 0 | AG174: 0 | AH174: 0 | AI174: 0 | AJ174: 0 | AK174: 0 | AL174: 0 | AM174: 0 | AN174: 0 | AO174: 0 | AP174: 0 | AQ174: 0 | AR174: 0 | AS174: 0 | AT174: 0 | AU174: 0 | AV174: 0 | AW174: 0 | AX174: 0 | AY174: 0 | AZ174: 0 | BA174: 0 | BB174: 0 | BC174: 0 | BD174: 0 | BE174: 0 | BF174: 0 | BG174: 0 | BH174: 0 | BI174: 0 | BJ174: 0 | BK174: 0 | BL174: 0 | BM174: 0 | BN174: 0 | BO174: 0 | BP174: 0 | BQ174: 0 | BR174: 0 | BS174: 0 | BT174: 0 | BU174: 0 | BV174: 0 | BW174: 0
B176: SUPERIOR | C176: =MIN(C169,C149,C131) -> 90 | D176: =MIN(D169,D149,D131) -> 90 | E176: 90 | F176: 90 | G176: 90 | H176: 90 | I176: 90 | J176: 90 | K176: 90 | L176: 90 | M176: 90 | N176: 90 | O176: 90 | P176: 90 | Q176: 90 | R176: 90 | S176: 90 | T176: 90 | U176: 90 | V176: 90 | W176: 90 | X176: 90 | Y176: 90 | Z176: 90 | AA176: 90 | AB176: 90 | AC176: 90 | AD176: 90 | AE176: 90 | AF176: 90 | AG176: 90 | AH176: 90 | AI176: 90 | AJ176: 90 | AK176: 90 | AL176: 90 | AM176: 90 | AN176: 90 | AO176: 90 | AP176: 90 | AQ176: 90 | AR176: 90 | AS176: 90 | AT176: 90 | AU176: 90 | AV176: 90 | AW176: 90 | AX176: 90 | AY176: 90 | AZ176: 90 | BA176: 90 | BB176: 90 | BC176: 90 | BD176: 90 | BE176: 90 | BF176: 90 | BG176: 90 | BH176: 90 | BI176: 90 | BJ176: 90 | BK176: 90 | BL176: 90 | BM176: 90 | BN176: 90 | BO176: 90 | BP176: =MIN(BP169,BP149,BP131) -> 90 | BQ176: 90 | BR176: 90 | BS176: 90 | BT176: 90 | BU176: 90 | BV176: 90 | BW176: 90
B177: h superior | C177: 90 | D177: 90 | E177: 90 | F177: 90 | G177: 90 | H177: 90 | I177: 90 | J177: 90 | K177: 90 | L177: 90 | M177: 90 | N177: 90 | O177: 90 | P177: 90 | Q177: 90 | R177: 90 | S177: 90 | T177: 90 | U177: 90 | V177: 90 | W177: 90 | X177: 90 | Y177: 90 | Z177: 90 | AA177: 90 | AB177: 90 | AC177: 90 | AD177: 90 | AE177: 90 | AF177: 90 | AG177: 90 | AH177: 90 | AI177: 90 | AJ177: 90 | AK177: 90 | AL177: 90 | AM177: 90 | AN177: 90 | AO177: 90 | AP177: 90 | AQ177: 90 | AR177: 90 | AS177: 90 | AT177: 90 | AU177: 90 | AV177: 90 | AW177: 90 | AX177: 90 | AY177: 90 | AZ177: 90 | BA177: 90 | BB177: 90 | BC177: 90 | BD177: 90 | BE177: 90 | BF177: 90 | BG177: 90 | BH177: 90 | BI177: 90 | BJ177: 90 | BK177: 90 | BL177: 90 | BM177: 90 | BN177: 90 | BO177: 90 | BP177: 90 | BQ177: 90 | BR177: 90 | BS177: 90 | BT177: 90 | BU177: 90 | BV177: 90 | BW177: 90
B179: FACTORES SOLARES MENSUALES
B181: Localidad | C181: =C3 -> Madrid | E181: radianes | G181: cte solar
B182: Latitud | C182: =C4 -> 40.40 | E182: =C182*PI()/180 -> 0.71 | G182: =M4 -> 1,367 | H182: W/m2
B185: ENERO
B186: Declinacion dia tipo | C186: =D186*180/PI() -> -21.18 | D186: =C205 -> -0.37
B187: ocaso | C187: =-DEGREES(ACOS((SIN(D187*PI()/180)*SIN($E$182)-SIN($C$186*PI()/180))/(COS(D187*PI()/180)*COS($E$182)))) -> -61.67 | D187: 0.00
B188: AZIMUT | C188: -180 | D188: =C188+5 -> -175 | E188: =D188+5 -> -170 | F188: -165 | G188: -160 | H188: -155 | I188: -150 | J188: -145 | K188: -140 | L188: -135 | M188: -130 | N188: -125 | O188: -120 | P188: -115 | Q188: -110 | R188: -105 | S188: -100 | T188: -95 | U188: -90 | V188: -85 | W188: -80 | X188: -75 | Y188: -70 | Z188: -65 | AA188: -60 | AB188: -55 | AC188: -50 | AD188: -45 | AE188: -40 | AF188: -35 | AG188: -30 | AH188: -25 | AI188: -20 | AJ188: -15 | AK188: -10 | AL188: -5 | AM188: 0 | AN188: 5 | AO188: 10 | AP188: 15 | AQ188: 20 | AR188: 25 | AS188: 30 | AT188: 35 | AU188: 40 | AV188: 45 | AW188: 50 | AX188: 55 | AY188: 60 | AZ188: 65 | BA188: 70 | BB188: 75 | BC188: 80 | BD188: 85 | BE188: 90 | BF188: 95 | BG188: 100 | BH188: 105 | BI188: 110 | BJ188: 115 | BK188: 120 | BL188: 125 | BM188: 130 | BN188: 135 | BO188: 140 | BP188: 145 | BQ188: =BP188+5 -> 150 | BR188: 155 | BS188: 160 | BT188: 165 | BU188: 170 | BV188: 175 | BW188: 180
B189: Az radianes | C189: =C188*PI()/180 -> -3.14 | D189: =D188*PI()/180 -> -3.05 | E189: =E188*PI()/180 -> -2.97 | F189: =F188*PI()/180 -> -2.88 | G189: -2.79 | H189: -2.71 | I189: -2.62 | J189: -2.53 | K189: -2.44 | L189: -2.36 | M189: -2.27 | N189: -2.18 | O189: -2.09 | P189: -2.01 | Q189: -1.92 | R189: -1.83 | S189: -1.75 | T189: -1.66 | U189: -1.57 | V189: -1.48 | W189: -1.40 | X189: -1.31 | Y189: -1.22 | Z189: -1.13 | AA189: -1.05 | AB189: -0.96 | AC189: -0.87 | AD189: -0.79 | AE189: -0.70 | AF189: -0.61 | AG189: -0.52 | AH189: -0.44 | AI189: -0.35 | AJ189: -0.26 | AK189: -0.17 | AL189: -0.09 | AM189: 0.00 | AN189: 0.09 | AO189: 0.17 | AP189: 0.26 | AQ189: 0.35 | AR189: 0.44 | AS189: 0.52 | AT189: 0.61 | AU189: 0.70 | AV189: 0.79 | AW189: 0.87 | AX189: 0.96 | AY189: 1.05 | AZ189: 1.13 | BA189: 1.22 | BB189: 1.31 | BC189: 1.40 | BD189: 1.48 | BE189: 1.57 | BF189: 1.66 | BG189: 1.75 | BH189: 1.83 | BI189: 1.92 | BJ189: 2.01 | BK189: 2.09 | BL189: 2.18 | BM189: 2.27 | BN189: 2.36 | BO189: 2.44 | BP189: 2.53 | BQ189: 2.62 | BR189: =BR188*PI()/180 -> 2.71 | BS189: 2.79 | BT189: 2.88 | BU189: 2.97 | BV189: 3.05 | BW189: 3.14
B190: a | C190: =SIN($E$182)^2+COS(C189)^2*COS($E$182)^2 -> 1.000 | D190: =SIN($E$182)^2+COS(D189)^2*COS($E$182)^2 -> 0.996 | E190: =SIN($E$182)^2+COS(E189)^2*COS($E$182)^2 -> 0.983 | F190: 0.961 | G190: 0.932 | H190: 0.896 | I190: 0.855 | J190: 0.809 | K190: 0.760 | L190: 0.710 | M190: 0.660 | N190: 0.611 | O190: 0.565 | P190: 0.524 | Q190: 0.488 | R190: 0.459 | S190: 0.438 | T190: 0.424 | U190: 0.420 | V190: 0.424 | W190: 0.438 | X190: 0.459 | Y190: 0.488 | Z190: 0.524 | AA190: 0.565 | AB190: 0.611 | AC190: 0.660 | AD190: 0.710 | AE190: 0.760 | AF190: 0.809 | AG190: 0.855 | AH190: 0.896 | AI190: 0.932 | AJ190: 0.961 | AK190: 0.983 | AL190: 0.996 | AM190: 1.000 | AN190: 0.996 | AO190: 0.983 | AP190: 0.961 | AQ190: 0.932 | AR190: 0.896 | AS190: 0.855 | AT190: 0.809 | AU190: 0.760 | AV190: 0.710 | AW190: 0.660 | AX190: 0.611 | AY190: 0.565 | AZ190: 0.524 | BA190: 0.488 | BB190: 0.459 | BC190: 0.438 | BD190: 0.424 | BE190: 0.420 | BF190: 0.424 | BG190: 0.438 | BH190: 0.459 | BI190: 0.488 | BJ190: 0.524 | BK190: 0.565 | BL190: 0.611 | BM190: 0.660 | BN190: 0.710 | BO190: 0.760 | BP190: 0.809 | BQ190: =SIN($E$182)^2+COS(BQ189)^2*COS($E$182)^2 -> 0.855 | BR190: 0.896 | BS190: 0.932 | BT190: 0.961 | BU190: 0.983 | BV190: 0.996 | BW190: 1.000
B191: b | C191: =-2*SIN($E$182)*SIN($D186) -> 0.468 | D191: =-2*SIN($E$182)*SIN($D186) -> 0.468 | E191: =-2*SIN($E$182)*SIN($D186) -> 0.468 | F191: 0.468 | G191: 0.468 | H191: 0.468 | I191: 0.468 | J191: 0.468 | K191: 0.468 | L191: 0.468 | M191: 0.468 | N191: 0.468 | O191: 0.468 | P191: 0.468 | Q191: 0.468 | R191: 0.468 | S191: 0.468 | T191: 0.468 | U191: 0.468 | V191: 0.468 | W191: 0.468 | X191: 0.468 | Y191: 0.468 | Z191: 0.468 | AA191: 0.468 | AB191: 0.468 | AC191: 0.468 | AD191: 0.468 | AE191: 0.468 | AF191: 0.468 | AG191: 0.468 | AH191: 0.468 | AI191: 0.468 | AJ191: 0.468 | AK191: 0.468 | AL191: 0.468 | AM191: 0.468 | AN191: 0.468 | AO191: 0.468 | AP191: 0.468 | AQ191: 0.468 | AR191: 0.468 | AS191: 0.468 | AT191: 0.468 | AU191: 0.468 | AV191: 0.468 | AW191: 0.468 | AX191: 0.468 | AY191: 0.468 | AZ191: 0.468 | BA191: 0.468 | BB191: 0.468 | BC191: 0.468 | BD191: 0.468 | BE191: 0.468 | BF191: 0.468 | BG191: 0.468 | BH191: 0.468 | BI191: 0.468 | BJ191: 0.468 | BK191: 0.468 | BL191: 0.468 | BM191: 0.468 | BN191: 0.468 | BO191: 0.468 | BP191: 0.468 | BQ191: =-2*SIN($E$182)*SIN($D186) -> 0.468 | BR191: 0.468 | BS191: 0.468 | BT191: 0.468 | BU191: 0.468 | BV191: 0.468 | BW191: 0.468
B192: c | C192: =SIN($D186)^2-COS($E$182)^2*COS(C189)^2 -> -0.449 | D192: =SIN($D186)^2-COS($E$182)^2*COS(D189)^2 -> -0.445 | E192: =SIN($D186)^2-COS($E$182)^2*COS(E189)^2 -> -0.432 | F192: -0.411 | G192: -0.382 | H192: -0.346 | I192: -0.304 | J192: -0.259 | K192: -0.210 | L192: -0.159 | M192: -0.109 | N192: -0.060 | O192: -0.014 | P192: 0.027 | Q192: 0.063 | R192: 0.092 | S192: 0.113 | T192: 0.126 | U192: 0.131 | V192: 0.126 | W192: 0.113 | X192: 0.092 | Y192: 0.063 | Z192: 0.027 | AA192: -0.014 | AB192: -0.060 | AC192: -0.109 | AD192: -0.159 | AE192: -0.210 | AF192: -0.259 | AG192: -0.304 | AH192: -0.346 | AI192: -0.382 | AJ192: -0.411 | AK192: -0.432 | AL192: -0.445 | AM192: -0.449 | AN192: -0.445 | AO192: -0.432 | AP192: -0.411 | AQ192: -0.382 | AR192: -0.346 | AS192: -0.304 | AT192: -0.259 | AU192: -0.210 | AV192: -0.159 | AW192: -0.109 | AX192: -0.060 | AY192: -0.014 | AZ192: 0.027 | BA192: 0.063 | BB192: 0.092 | BC192: 0.113 | BD192: 0.126 | BE192: 0.131 | BF192: 0.126 | BG192: 0.113 | BH192: 0.092 | BI192: 0.063 | BJ192: 0.027 | BK192: -0.014 | BL192: -0.060 | BM192: -0.109 | BN192: -0.159 | BO192: -0.210 | BP192: -0.259 | BQ192: =SIN($D186)^2-COS($E$182)^2*COS(BQ189)^2 -> -0.304 | BR192: -0.346 | BS192: -0.382 | BT192: -0.411 | BU192: -0.432 | BV192: -0.445 | BW192: -0.449
B193: alt solar | C193: =IF(C188<=$C$187,0,IF(C188>=-$C$187,0,DEGREES(ASIN(((-C191+(C191^2-4*C190*C192)^0.5)/(2*C190)))))) -> 0.00 | D193: =IF(D188<=$C$187,0,IF(D188>=-$C$187,0,DEGREES(ASIN(((-D191+(D191^2-4*D190*D192)^0.5)/(2*D190)))))) -> 0.00 | E193: 0.00 | F193: 0.00 | G193: 0.00 | H193: 0.00 | I193: 0.00 | J193: 0.00 | K193: 0.00 | L193: 0.00 | M193: 0.00 | N193: 0.00 | O193: 0.00 | P193: 0.00 | Q193: 0.00 | R193: 0.00 | S193: 0.00 | T193: 0.00 | U193: 0.00 | V193: 0.00 | W193: 0.00 | X193: 0.00 | Y193: 0.00 | Z193: 0.00 | AA193: 1.70 | AB193: 6.44 | AC193: 10.65 | AD193: 14.33 | AE193: 17.51 | AF193: 20.22 | AG193: 22.49 | AH193: 24.36 | AI193: 25.85 | AJ193: 26.99 | AK193: 27.79 | AL193: 28.26 | AM193: 28.42 | AN193: 28.26 | AO193: 27.79 | AP193: 26.99 | AQ193: 25.85 | AR193: 24.36 | AS193: 22.49 | AT193: 20.22 | AU193: 17.51 | AV193: 14.33 | AW193: 10.65 | AX193: 6.44 | AY193: 1.70 | AZ193: 0.00 | BA193: 0.00 | BB193: 0.00 | BC193: 0.00 | BD193: 0.00 | BE193: 0.00 | BF193: 0.00 | BG193: 0.00 | BH193: 0.00 | BI193: 0.00 | BJ193: 0.00 | BK193: 0.00 | BL193: 0.00 | BM193: 0.00 | BN193: 0.00 | BO193: 0.00 | BP193: =IF(BP188<=$C$187,0,IF(BP188>=-$C$187,0,DEGREES(ASIN(((-BP191+(BP191^2-4*BP190*BP192)^0.5)/(2*BP190)))))) -> 0.00 | BQ193: 0.00 | BR193: 0.00 | BS193: 0.00 | BT193: 0.00 | BU193: 0.00 | BV193: 0.00 | BW193: 0.00
B195: obst. Inf. | C195: =IF($C$173>=C193,0,1) -> 0 | D195: =IF($D$173>=D193,0,1) -> 0 | E195: =IF($E$173>=E193,0,1) -> 0 | F195: =IF($F$173>=F193,0,1) -> 0 | G195: =IF($G$173>=G193,0,1) -> 0 | H195: =IF($H$173>=H193,0,1) -> 0 | I195: =IF($I$173>=I193,0,1) -> 0 | J195: =IF($J$173>=J193,0,1) -> 0 | K195: =IF($K$173>=K193,0,1) -> 0 | L195: =IF($L$173>=L193,0,1) -> 0 | M195: =IF($M$173>=M193,0,1) -> 0 | N195: =IF($N$173>=N193,0,1) -> 0 | O195: =IF($O$173>=O193,0,1) -> 0 | P195: =IF($P$173>=P193,0,1) -> 0 | Q195: =IF($Q$173>=Q193,0,1) -> 0 | R195: =IF($R$173>=R193,0,1) -> 0 | S195: =IF($S$173>=S193,0,1) -> 0 | T195: =IF($T$173>=T193,0,1) -> 0 | U195: =IF($U$173>=U193,0,1) -> 0 | V195: =IF($V$173>=V193,0,1) -> 0 | W195: =IF($W$173>=W193,0,1) -> 0 | X195: =IF($X$173>=X193,0,1) -> 0 | Y195: =IF($Y$173>=Y193,0,1) -> 0 | Z195: =IF($Z$173>=Z193,0,1) -> 0 | AA195: =IF($AA$173>=AA193,0,1) -> 0 | AB195: =IF($AB$173>=AB193,0,1) -> 0 | AC195: =IF($AC$173>=AC193,0,1) -> 1 | AD195: =IF($AD$173>=AD193,0,1) -> 1 | AE195: =IF($AE$173>=AE193,0,1) -> 1 | AF195: =IF($AF$173>=AF193,0,1) -> 1 | AG195: =IF($AG$173>=AG193,0,1) -> 1 | AH195: =IF($AH$173>=AH193,0,1) -> 1 | AI195: =IF($AI$173>=AI193,0,1) -> 1 | AJ195: =IF($AJ$173>=AJ193,0,1) -> 1 | AK195: =IF($AK$173>=AK193,0,1) -> 1 | AL195: =IF($AL$173>=AL193,0,1) -> 1 | AM195: =IF($AM$173>=AM193,0,1) -> 1 | AN195: =IF($AN$173>=AN193,0,1) -> 1 | AO195: =IF($AO$173>=AO193,0,1) -> 1 | AP195: =IF($AP$173>=AP193,0,1) -> 1 | AQ195: =IF($AQ$173>=AQ193,0,1) -> 1 | AR195: =IF($AR$173>=AR193,0,1) -> 1 | AS195: =IF($AS$173>=AS193,0,1) -> 1 | AT195: =IF($AT$173>=AT193,0,1) -> 1 | AU195: =IF($AU$173>=AU193,0,1) -> 1 | AV195: =IF($AV$173>=AV193,0,1) -> 1 | AW195: =IF($AW$173>=AW193,0,1) -> 1 | AX195: =IF($AX$173>=AX193,0,1) -> 1 | AY195: =IF($AY$173>=AY193,0,1) -> 1 | AZ195: =IF($AZ$173>=AZ193,0,1) -> 0 | BA195: =IF($BA$173>=BA193,0,1) -> 0 | BB195: =IF($BB$173>=BB193,0,1) -> 0 | BC195: =IF($BC$173>=BC193,0,1) -> 0 | BD195: =IF($BD$173>=BD193,0,1) -> 0 | BE195: =IF($BE$173>=BE193,0,1) -> 0 | BF195: =IF($BF$173>=BF193,0,1) -> 0 | BG195: =IF($BG$173>=BG193,0,1) -> 0 | BH195: =IF($BH$173>=BH193,0,1) -> 0 | BI195: =IF($BI$173>=BI193,0,1) -> 0 | BJ195: =IF($BJ$173>=BJ193,0,1) -> 0 | BK195: =IF($BK$173>=BK193,0,1) -> 0 | BL195: =IF($BL$173>=BL193,0,1) -> 0 | BM195: =IF($BM$173>=BM193,0,1) -> 0 | BN195: =IF($BN$173>=BN193,0,1) -> 0 | BO195: =IF($BO$173>=BO193,0,1) -> 0 | BP195: =IF($BP$173>=BP193,0,1) -> 0 | BQ195: =IF($BQ$173>=BQ193,0,1) -> 0 | BR195: =IF($BR$173>=BR193,0,1) -> 0 | BS195: =IF($BS$173>=BS193,0,1) -> 0 | BT195: =IF($BT$173>=BT193,0,1) -> 0 | BU195: =IF($BU$173>=BU193,0,1) -> 0 | BV195: =IF($BV$173>=BV193,0,1) -> 0 | BW195: =IF($BW$173>=BW193,0,1) -> 0
B196: obst. Sup | C196: =IF(C193>$C$176,0,1) -> 1 | D196: =IF(D193>$D$176,0,1) -> 1 | E196: =IF(E193>$E$176,0,1) -> 1 | F196: =IF(F193>$F$176,0,1) -> 1 | G196: =IF(G193>$G$176,0,1) -> 1 | H196: =IF(H193>$H$176,0,1) -> 1 | I196: =IF(I193>$I$176,0,1) -> 1 | J196: =IF(J193>$J$176,0,1) -> 1 | K196: =IF(K193>$K$176,0,1) -> 1 | L196: =IF(L193>$L$176,0,1) -> 1 | M196: =IF(M193>$M$176,0,1) -> 1 | N196: =IF(N193>$N$176,0,1) -> 1 | O196: =IF(O193>$O$176,0,1) -> 1 | P196: =IF(P193>$P$176,0,1) -> 1 | Q196: =IF(Q193>$Q$176,0,1) -> 1 | R196: =IF(R193>$R$176,0,1) -> 1 | S196: =IF(S193>$S$176,0,1) -> 1 | T196: =IF(T193>$T$176,0,1) -> 1 | U196: =IF(U193>$U$176,0,1) -> 1 | V196: =IF(V193>$V$176,0,1) -> 1 | W196: =IF(W193>$W$176,0,1) -> 1 | X196: =IF(X193>$X$176,0,1) -> 1 | Y196: =IF(Y193>$Y$176,0,1) -> 1 | Z196: =IF(Z193>$Z$176,0,1) -> 1 | AA196: =IF(AA193>$AA$176,0,1) -> 1 | AB196: =IF(AB193>$AB$176,0,1) -> 1 | AC196: =IF(AC193>$AC$176,0,1) -> 1 | AD196: =IF(AD193>$AD$176,0,1) -> 1 | AE196: =IF(AE193>$AE$176,0,1) -> 1 | AF196: =IF(AF193>$AF$176,0,1) -> 1 | AG196: =IF(AG193>$AG$176,0,1) -> 1 | AH196: =IF(AH193>$AH$176,0,1) -> 1 | AI196: =IF(AI193>$AI$176,0,1) -> 1 | AJ196: =IF(AJ193>$AJ$176,0,1) -> 1 | AK196: =IF(AK193>$AK$176,0,1) -> 1 | AL196: =IF(AL193>$AL$176,0,1) -> 1 | AM196: =IF(AM193>$AM$176,0,1) -> 1 | AN196: =IF(AN193>$AN$176,0,1) -> 1 | AO196: =IF(AO193>$AO$176,0,1) -> 1 | AP196: =IF(AP193>$AP$176,0,1) -> 1 | AQ196: =IF(AQ193>$AQ$176,0,1) -> 1 | AR196: =IF(AR193>$AR$176,0,1) -> 1 | AS196: =IF(AS193>$AS$176,0,1) -> 1 | AT196: =IF(AT193>$AT$176,0,1) -> 1 | AU196: =IF(AU193>$AU$176,0,1) -> 1 | AV196: =IF(AV193>$AV$176,0,1) -> 1 | AW196: =IF(AW193>$AW$176,0,1) -> 1 | AX196: =IF(AX193>$AX$176,0,1) -> 1 | AY196: =IF(AY193>$AY$176,0,1) -> 1 | AZ196: =IF(AZ193>$AZ$176,0,1) -> 1 | BA196: =IF(BA193>$BA$176,0,1) -> 1 | BB196: =IF(BB193>$BB$176,0,1) -> 1 | BC196: =IF(BC193>$BC$176,0,1) -> 1 | BD196: =IF(BD193>$BD$176,0,1) -> 1 | BE196: =IF(BE193>$BE$176,0,1) -> 1 | BF196: =IF(BF193>$BF$176,0,1) -> 1 | BG196: =IF(BG193>$BG$176,0,1) -> 1 | BH196: =IF(BH193>$BH$176,0,1) -> 1 | BI196: =IF(BI193>$BI$176,0,1) -> 1 | BJ196: =IF(BJ193>$BJ$176,0,1) -> 1 | BK196: =IF(BK193>$BK$176,0,1) -> 1 | BL196: =IF(BL193>$BL$176,0,1) -> 1 | BM196: =IF(BM193>$BM$176,0,1) -> 1 | BN196: =IF(BN193>$BN$176,0,1) -> 1 | BO196: =IF(BO193>$BO$176,0,1) -> 1 | BP196: =IF(BP193>$BP$176,0,1) -> 1 | BQ196: =IF(BQ193>$BQ$176,0,1) -> 1 | BR196: =IF(BR193>$BR$176,0,1) -> 1 | BS196: =IF(BS193>$BS$176,0,1) -> 1 | BT196: =IF(BT193>$BT$176,0,1) -> 1 | BU196: =IF(BU193>$BU$176,0,1) -> 1 | BV196: =IF(BV193>$BV$176,0,1) -> 1 | BW196: =IF(BW193>$BW$176,0,1) -> 1
B197: obst. TOTAL | C197: =C195*C196 -> 0 | D197: =D195*D196 -> 0 | E197: 0 | F197: 0 | G197: 0 | H197: 0 | I197: 0 | J197: 0 | K197: 0 | L197: 0 | M197: 0 | N197: 0 | O197: 0 | P197: 0 | Q197: 0 | R197: 0 | S197: 0 | T197: 0 | U197: 0 | V197: 0 | W197: 0 | X197: 0 | Y197: 0 | Z197: 0 | AA197: 0 | AB197: 0 | AC197: 1 | AD197: 1 | AE197: 1 | AF197: 1 | AG197: 1 | AH197: 1 | AI197: 1 | AJ197: 1 | AK197: 1 | AL197: 1 | AM197: 1 | AN197: 1 | AO197: 1 | AP197: 1 | AQ197: 1 | AR197: 1 | AS197: 1 | AT197: 1 | AU197: 1 | AV197: 1 | AW197: 1 | AX197: 1 | AY197: 1 | AZ197: 0 | BA197: 0 | BB197: 0 | BC197: 0 | BD197: 0 | BE197: 0 | BF197: 0 | BG197: 0 | BH197: 0 | BI197: 0 | BJ197: 0 | BK197: 0 | BL197: 0 | BM197: 0 | BN197: 0 | BO197: 0 | BP197: =BP195*BP196 -> 0 | BQ197: 0 | BR197: 0 | BS197: 0 | BT197: 0 | BU197: 0 | BV197: 0 | BW197: 0
B199: Latitud | C199: =$C$182 -> 40.40 | E199: =PI()*(C199+D199/60)/180 -> 0.71
B200: Azimut | C200: =I4 -> 40.00 | E200: =C200*PI()/180 -> 0.70
B201: Inclinacion | C201: =I3 -> 35.00 | E201: =C201*PI()/180 -> 0.61
B202: Coeficiente refexion | C202: =M3 -> 0.20
B203: Constante solar extraterrestre (Bo) | C203: =$G$182 -> 1,367 | D203: W/m2
B204: Dia del año | C204: 15.5
B205: Declinacion . radianes | C205: =23.45*PI()/180*SIN(2*PI()*((C204+284)/365)) -> -0.370
B206: Ángulo puesta de sol. Radianes. Ws | C206: =ACOS(-TAN(C205)*TAN($E$199)) -> 1.235
B207: Distancia sol - tierra. Bo | C207: =1+0.033*COS((2*PI()*C204/365)*PI()/180) -> 1.033 | D207: expresion Duffi y Beckman
B208: Factor angulo solar | C208: =(SIN(C205)*C206*SIN(E199))+COS(E199)*COS(C205)*SIN(C206) -> 0.381
B209: Ho. Irradiacion Extraterreste sobre sup. Horizontal | C209: =+($C$203*24/PI())*C207*C208 -> 4,112
B210: H1 | C210: =+(3.6*C203*24/PI())*(1+0.033*COS(PI()/180*(360*C204/365))) -> 38,792
B211: H2 | C211: =COS(E199)*COS(C205)*SIN(C206) -> 0.670
B212: H3 | C212: =+SIN(C205)*C206*SIN(E199) -> -0.289
B213: H horizontal diaria (W/m2 dia) s/ localidad | C213: =C6 -> 2,273 | D213: W/m2 dia
B214: Indice de claridad Kt | C214: =C213/C209 -> 0.553
B215: Fraccion difusa diaria promedio | C215: =0.775+0.347*(C206-(PI()/2))-(0.505+0.261*(C206-(PI()/2)))*COS(2*C214-1.8) -> 0.338 | D215: Correlacion Collares-Pereira
B216: Factor A Lui y Jordan | C216: =0.409+0.5016*SIN(C206-60*PI()/180) -> 0.502 | D216: parametros 5 estaciones EEUU
B217: Factor B Lui y Jordan | C217: =0.6609-0.4767*SIN(C206-60*PI()/180) -> 0.572 | D217: parametros 5 estaciones EEUU
B219: AZIMUT | C219: -180 | D219: =C219+5 -> -175 | E219: =D219+5 -> -170 | F219: -165 | G219: -160 | H219: -155 | I219: -150 | J219: -145 | K219: -140 | L219: -135 | M219: -130 | N219: -125 | O219: -120 | P219: -115 | Q219: -110 | R219: -105 | S219: -100 | T219: -95 | U219: -90 | V219: -85 | W219: -80 | X219: -75 | Y219: -70 | Z219: -65 | AA219: -60 | AB219: -55 | AC219: -50 | AD219: -45 | AE219: -40 | AF219: -35 | AG219: -30 | AH219: -25 | AI219: -20 | AJ219: -15 | AK219: -10 | AL219: -5 | AM219: 0 | AN219: 5 | AO219: 10 | AP219: 15 | AQ219: 20 | AR219: 25 | AS219: 30 | AT219: 35 | AU219: 40 | AV219: 45 | AW219: 50 | AX219: 55 | AY219: 60 | AZ219: 65 | BA219: 70 | BB219: 75 | BC219: 80 | BD219: 85 | BE219: 90 | BF219: 95 | BG219: 100 | BH219: 105 | BI219: 110 | BJ219: 115 | BK219: 120 | BL219: 125 | BM219: 130 | BN219: 135 | BO219: 140 | BP219: 145 | BQ219: =BP219+5 -> 150 | BR219: 155 | BS219: 160 | BT219: 165 | BU219: 170 | BV219: 175 | BW219: 180
B220: Az radianes | C220: =C219*PI()/180 -> -3.14 | D220: =D219*PI()/180 -> -3.05 | E220: =E219*PI()/180 -> -2.97 | F220: =F219*PI()/180 -> -2.88 | G220: -2.79 | H220: -2.71 | I220: -2.62 | J220: -2.53 | K220: -2.44 | L220: -2.36 | M220: -2.27 | N220: -2.18 | O220: -2.09 | P220: -2.01 | Q220: -1.92 | R220: -1.83 | S220: -1.75 | T220: -1.66 | U220: -1.57 | V220: -1.48 | W220: -1.40 | X220: -1.31 | Y220: -1.22 | Z220: -1.13 | AA220: -1.05 | AB220: -0.96 | AC220: -0.87 | AD220: -0.79 | AE220: -0.70 | AF220: -0.61 | AG220: -0.52 | AH220: -0.44 | AI220: -0.35 | AJ220: -0.26 | AK220: -0.17 | AL220: -0.09 | AM220: 0.00 | AN220: 0.09 | AO220: 0.17 | AP220: 0.26 | AQ220: 0.35 | AR220: 0.44 | AS220: 0.52 | AT220: 0.61 | AU220: 0.70 | AV220: 0.79 | AW220: 0.87 | AX220: 0.96 | AY220: 1.05 | AZ220: 1.13 | BA220: 1.22 | BB220: 1.31 | BC220: 1.40 | BD220: 1.48 | BE220: 1.57 | BF220: 1.66 | BG220: 1.75 | BH220: 1.83 | BI220: 1.92 | BJ220: 2.01 | BK220: 2.09 | BL220: 2.18 | BM220: 2.27 | BN220: 2.36 | BO220: 2.44 | BP220: 2.53 | BQ220: 2.62 | BR220: =BR219*PI()/180 -> 2.71 | BS220: 2.79 | BT220: 2.88 | BU220: 2.97 | BV220: 3.05 | BW220: 3.14
B221: alt solar (grados) | C221: =C193 -> 0.00 | D221: =D193 -> 0.00 | E221: =E193 -> 0.00 | F221: 0.00 | G221: 0.00 | H221: 0.00 | I221: 0.00 | J221: 0.00 | K221: 0.00 | L221: 0.00 | M221: 0.00 | N221: 0.00 | O221: 0.00 | P221: 0.00 | Q221: 0.00 | R221: 0.00 | S221: 0.00 | T221: 0.00 | U221: 0.00 | V221: 0.00 | W221: 0.00 | X221: 0.00 | Y221: 0.00 | Z221: 0.00 | AA221: 1.70 | AB221: 6.44 | AC221: 10.65 | AD221: 14.33 | AE221: 17.51 | AF221: 20.22 | AG221: 22.49 | AH221: 24.36 | AI221: 25.85 | AJ221: 26.99 | AK221: 27.79 | AL221: 28.26 | AM221: 28.42 | AN221: 28.26 | AO221: 27.79 | AP221: 26.99 | AQ221: 25.85 | AR221: 24.36 | AS221: 22.49 | AT221: 20.22 | AU221: 17.51 | AV221: 14.33 | AW221: 10.65 | AX221: 6.44 | AY221: 1.70 | AZ221: 0.00 | BA221: 0.00 | BB221: 0.00 | BC221: 0.00 | BD221: 0.00 | BE221: 0.00 | BF221: 0.00 | BG221: 0.00 | BH221: 0.00 | BI221: 0.00 | BJ221: 0.00 | BK221: 0.00 | BL221: 0.00 | BM221: 0.00 | BN221: 0.00 | BO221: 0.00 | BP221: 0.00 | BQ221: =BQ193 -> 0.00 | BR221: 0.00 | BS221: 0.00 | BT221: 0.00 | BU221: 0.00 | BV221: 0.00 | BW221: 0.00
B222: ang horario (grados) | C222: =DEGREES(ACOS((SIN(C221*PI()/180)-(SIN($E199)*SIN($C205)))/(COS($E199)*COS($C205)))) -> 70.74 | D222: =DEGREES(ACOS((SIN(D221*PI()/180)-(SIN($E199)*SIN($C205)))/(COS($E199)*COS($C205)))) -> 70.74 | E222: 70.74 | F222: 70.74 | G222: 70.74 | H222: 70.74 | I222: 70.74 | J222: 70.74 | K222: 70.74 | L222: 70.74 | M222: 70.74 | N222: 70.74 | O222: 70.74 | P222: 70.74 | Q222: 70.74 | R222: 70.74 | S222: 70.74 | T222: 70.74 | U222: 70.74 | V222: 70.74 | W222: 70.74 | X222: 70.74 | Y222: 70.74 | Z222: 70.74 | AA222: 68.18 | AB222: 60.81 | AC222: 53.84 | AD222: 47.29 | AE222: 41.10 | AF222: 35.26 | AG222: 29.70 | AH222: 24.39 | AI222: 19.27 | AJ222: 14.32 | AK222: 9.48 | AL222: 4.72 | AM222: 0.00 | AN222: =-DEGREES(ACOS((SIN(AN221*PI()/180)-(SIN($E199)*SIN($C205)))/(COS($E199)*COS($C205)))) -> -4.72 | AO222: =-DEGREES(ACOS((SIN(AO221*PI()/180)-(SIN($E199)*SIN($C205)))/(COS($E199)*COS($C205)))) -> -9.48 | AP222: -14.32 | AQ222: -19.27 | AR222: -24.39 | AS222: -29.70 | AT222: -35.26 | AU222: -41.10 | AV222: -47.29 | AW222: -53.84 | AX222: -60.81 | AY222: -68.18 | AZ222: -70.74 | BA222: -70.74 | BB222: -70.74 | BC222: -70.74 | BD222: -70.74 | BE222: -70.74 | BF222: -70.74 | BG222: -70.74 | BH222: -70.74 | BI222: -70.74 | BJ222: -70.74 | BK222: -70.74 | BL222: -70.74 | BM222: -70.74 | BN222: -70.74 | BO222: -70.74 | BP222: -70.74 | BQ222: -70.74 | BR222: -70.74 | BS222: -70.74 | BT222: -70.74 | BU222: -70.74 | BV222: -70.74 | BW222: -70.74
B223: Factor inclinación | C223: =-(IF(C221=0,0,(SIN($C205)*SIN($E199)*COS($E201)-SIN($C205)*COS($E199)*SIN($E201)*COS($E200)+COS($C205)*COS($E199)*COS($E201)*COS(C222*PI()/180)+COS($C205)*SIN($E199)*SIN($E201)*COS(C222*PI()/180)*COS($E200)+COS($C205)*SIN($E201)*SIN(C222*PI()/180)*SIN($E200))/(COS($C205)*COS($E199)*COS(C222*PI()/180)+SIN($C205)*SIN($E199)))) -> 0.00 | D223: =-(IF(D221=0,0,(SIN($C205)*SIN($E199)*COS($E201)-SIN($C205)*COS($E199)*SIN($E201)*COS($E200)+COS($C205)*COS($E199)*COS($E201)*COS(D222*PI()/180)+COS($C205)*SIN($E199)*SIN($E201)*COS(D222*PI()/180)*COS($E200)+COS($C205)*SIN($E201)*SIN(D222*PI()/180)*SIN($E200))/(COS($C205)*COS($E199)*COS(D222*PI()/180)+SIN($C205)*SIN($E199)))) -> 0.00 | E223: 0.00 | F223: 0.00 | G223: 0.00 | H223: 0.00 | I223: 0.00 | J223: 0.00 | K223: 0.00 | L223: 0.00 | M223: 0.00 | N223: 0.00 | O223: 0.00 | P223: 0.00 | Q223: 0.00 | R223: 0.00 | S223: 0.00 | T223: 0.00 | U223: 0.00 | V223: 0.00 | W223: 0.00 | X223: 0.00 | Y223: 0.00 | Z223: 0.00 | AA223: -18.97 | AB223: -5.73 | AC223: -3.82 | AD223: -3.06 | AE223: -2.64 | AF223: -2.37 | AG223: -2.18 | AH223: -2.04 | AI223: -1.93 | AJ223: -1.84 | AK223: -1.76 | AL223: -1.69 | AM223: -1.63 | AN223: -1.57 | AO223: -1.52 | AP223: -1.47 | AQ223: -1.41 | AR223: -1.35 | AS223: -1.29 | AT223: -1.22 | AU223: -1.13 | AV223: -1.01 | AW223: -0.82 | AX223: -0.38 | AY223: 2.53 | AZ223: 0.00 | BA223: 0.00 | BB223: 0.00 | BC223: 0.00 | BD223: 0.00 | BE223: 0.00 | BF223: 0.00 | BG223: 0.00 | BH223: 0.00 | BI223: 0.00 | BJ223: 0.00 | BK223: 0.00 | BL223: 0.00 | BM223: 0.00 | BN223: 0.00 | BO223: 0.00 | BP223: =-(IF(BP221=0,0,(SIN($C205)*SIN($E199)*COS($E201)-SIN($C205)*COS($E199)*SIN($E201)*COS($E200)+COS($C205)*COS($E199)*COS($E201)*COS(BP222*PI()/180)+COS($C205)*SIN($E199)*SIN($E201)*COS(BP222*PI()/180)*COS($E200)+COS($C205)*SIN($E201)*SIN(BP222*PI()/180)*SIN($E200))/(COS($C205)*COS($E199)*COS(BP222*PI()/180)+SIN($C205)*SIN($E199)))) -> 0.00 | BQ223: 0.00 | BR223: 0.00 | BS223: 0.00 | BT223: 0.00 | BU223: 0.00 | BV223: 0.00 | BW223: 0.00
B224: Correccion valores negativos | C224: =ABS(C223) -> 0.00 | D224: =ABS(D223) -> 0.00 | E224: 0.00 | F224: 0.00 | G224: 0.00 | H224: 0.00 | I224: 0.00 | J224: 0.00 | K224: 0.00 | L224: 0.00 | M224: 0.00 | N224: 0.00 | O224: 0.00 | P224: 0.00 | Q224: 0.00 | R224: 0.00 | S224: 0.00 | T224: 0.00 | U224: 0.00 | V224: 0.00 | W224: 0.00 | X224: 0.00 | Y224: 0.00 | Z224: 0.00 | AA224: 18.97 | AB224: 5.73 | AC224: 3.82 | AD224: 3.06 | AE224: 2.64 | AF224: 2.37 | AG224: 2.18 | AH224: 2.04 | AI224: 1.93 | AJ224: 1.84 | AK224: 1.76 | AL224: 1.69 | AM224: 1.63 | AN224: 1.57 | AO224: 1.52 | AP224: 1.47 | AQ224: 1.41 | AR224: 1.35 | AS224: 1.29 | AT224: 1.22 | AU224: 1.13 | AV224: 1.01 | AW224: 0.82 | AX224: 0.38 | AY224: 2.53 | AZ224: 0.00 | BA224: 0.00 | BB224: 0.00 | BC224: 0.00 | BD224: 0.00 | BE224: 0.00 | BF224: 0.00 | BG224: 0.00 | BH224: 0.00 | BI224: 0.00 | BJ224: 0.00 | BK224: 0.00 | BL224: 0.00 | BM224: 0.00 | BN224: 0.00 | BO224: 0.00 | BP224: =ABS(BP223) -> 0.00 | BQ224: 0.00 | BR224: 0.00 | BS224: 0.00 | BT224: 0.00 | BU224: 0.00 | BV224: 0.00 | BW224: 0.00
B225: Radiacion H GLOBAL (distribucion Lui y Jordan) | C225: =$C213*((PI()/24*($C216+$C217*COS(C222*PI()/180))*(COS(C222*PI()/180)-COS($C206)))/(SIN($C206)-$C206*COS($C206))) -> 0.00 | D225: =$C213*((PI()/24*($C216+$C217*COS(D222*PI()/180))*(COS(D222*PI()/180)-COS($C206)))/(SIN($C206)-$C206*COS($C206))) -> 0.00 | E225: 0.00 | F225: 0.00 | G225: 0.00 | H225: 0.00 | I225: 0.00 | J225: 0.00 | K225: 0.00 | L225: 0.00 | M225: 0.00 | N225: 0.00 | O225: 0.00 | P225: 0.00 | Q225: 0.00 | R225: 0.00 | S225: 0.00 | T225: 0.00 | U225: 0.00 | V225: 0.00 | W225: 0.00 | X225: 0.00 | Y225: 0.00 | Z225: 0.00 | AA225: 16.57 | AB225: =$C213*((PI()/24*($C216+$C217*COS(AB222*PI()/180))*(COS(AB222*PI()/180)-COS($C206)))/(SIN($C206)-$C206*COS($C206))) -> 68.42 | AC225: 121.13 | AD225: 172.03 | AE225: 219.25 | AF225: 261.62 | AG225: 298.50 | AH225: 329.61 | AI225: 354.89 | AJ225: 374.38 | AK225: 388.20 | AL225: 396.45 | AM225: 399.19 | AN225: 396.45 | AO225: 388.20 | AP225: 374.38 | AQ225: 354.89 | AR225: 329.61 | AS225: 298.50 | AT225: 261.62 | AU225: 219.25 | AV225: 172.03 | AW225: 121.13 | AX225: 68.42 | AY225: 16.57 | AZ225: 0.00 | BA225: 0.00 | BB225: 0.00 | BC225: 0.00 | BD225: 0.00 | BE225: 0.00 | BF225: 0.00 | BG225: 0.00 | BH225: 0.00 | BI225: 0.00 | BJ225: 0.00 | BK225: 0.00 | BL225: 0.00 | BM225: 0.00 | BN225: 0.00 | BO225: 0.00 | BP225: =$C213*((PI()/24*($C216+$C217*COS(BP222*PI()/180))*(COS(BP222*PI()/180)-COS($C206)))/(SIN($C206)-$C206*COS($C206))) -> 0.00 | BQ225: 0.00 | BR225: 0.00 | BS225: 0.00 | BT225: 0.00 | BU225: 0.00 | BV225: 0.00 | BW225: 0.00
B226: Radiacion H DIFUSA (distribucion Lui y Jordan) | C226: =$C215*$C213*((PI()/24*(COS(C222*PI()/180)-COS($C206)))/(SIN($C206)-$C206*COS($C206))) -> 0.00 | D226: =$C215*$C213*((PI()/24*(COS(D222*PI()/180)-COS($C206)))/(SIN($C206)-$C206*COS($C206))) -> 0.00 | E226: 0.00 | F226: 0.00 | G226: 0.00 | H226: 0.00 | I226: 0.00 | J226: 0.00 | K226: 0.00 | L226: 0.00 | M226: 0.00 | N226: 0.00 | O226: 0.00 | P226: 0.00 | Q226: 0.00 | R226: 0.00 | S226: 0.00 | T226: 0.00 | U226: 0.00 | V226: 0.00 | W226: 0.00 | X226: 0.00 | Y226: 0.00 | Z226: 0.00 | AA226: 7.83 | AB226: 29.57 | AC226: 48.70 | AD226: 65.24 | AE226: 79.31 | AF226: 91.12 | AG226: 100.87 | AH226: 108.75 | AI226: 114.96 | AJ226: 119.64 | AK226: 122.90 | AL226: 124.82 | AM226: 125.45 | AN226: 124.82 | AO226: 122.90 | AP226: 119.64 | AQ226: 114.96 | AR226: 108.75 | AS226: 100.87 | AT226: 91.12 | AU226: 79.31 | AV226: 65.24 | AW226: 48.70 | AX226: 29.57 | AY226: 7.83 | AZ226: 0.00 | BA226: 0.00 | BB226: 0.00 | BC226: 0.00 | BD226: 0.00 | BE226: 0.00 | BF226: 0.00 | BG226: 0.00 | BH226: 0.00 | BI226: 0.00 | BJ226: 0.00 | BK226: 0.00 | BL226: 0.00 | BM226: 0.00 | BN226: 0.00 | BO226: 0.00 | BP226: =$C215*$C213*((PI()/24*(COS(BP222*PI()/180)-COS($C206)))/(SIN($C206)-$C206*COS($C206))) -> 0.00 | BQ226: 0.00 | BR226: 0.00 | BS226: 0.00 | BT226: 0.00 | BU226: 0.00 | BV226: 0.00 | BW226: 0.00
B227: Total Directa | C227: =C$54*IF((C225-C226)*C224<0,0,(C225-C226)*C224) -> 0.00 | D227: =D$54*IF((D225-D226)*D224<0,0,(D225-D226)*D224) -> 0.00 | E227: 0.00 | F227: 0.00 | G227: 0.00 | H227: 0.00 | I227: 0.00 | J227: 0.00 | K227: 0.00 | L227: 0.00 | M227: 0.00 | N227: 0.00 | O227: 0.00 | P227: 0.00 | Q227: 0.00 | R227: 0.00 | S227: 0.00 | T227: 0.00 | U227: 0.00 | V227: 0.00 | W227: 0.00 | X227: 0.00 | Y227: 0.00 | Z227: 0.00 | AA227: 0.00 | AB227: 0.00 | AC227: 277.01 | AD227: 326.41 | AE227: 369.07 | AF227: 404.17 | AG227: 431.48 | AH227: 451.12 | AI227: 463.40 | AJ227: 468.71 | AK227: 467.43 | AL227: 459.93 | AM227: 446.52 | AN227: 427.46 | AO227: 402.96 | AP227: 373.24 | AQ227: 338.53 | AR227: 299.14 | AS227: 255.52 | AT227: 208.39 | AU227: 158.81 | AV227: 108.38 | AW227: 59.33 | AX227: 14.62 | AY227: 22.17 | AZ227: 0.00 | BA227: 0.00 | BB227: 0.00 | BC227: 0.00 | BD227: 0.00 | BE227: 0.00 | BF227: 0.00 | BG227: 0.00 | BH227: 0.00 | BI227: 0.00 | BJ227: 0.00 | BK227: 0.00 | BL227: 0.00 | BM227: 0.00 | BN227: 0.00 | BO227: 0.00 | BP227: =BP$54*IF((BP225-BP226)*BP224<0,0,(BP225-BP226)*BP224) -> 0.00 | BQ227: 0.00 | BR227: 0.00 | BS227: 0.00 | BT227: 0.00 | BU227: 0.00 | BV227: 0.00 | BW227: 0.00
B228: Total Difusa (plano incl) | C228: =C$54*C226*(1+COS($E201))/2 -> 0.00 | D228: =D$54*D226*(1+COS($E201))/2 -> 0.00 | E228: 0.00 | F228: 0.00 | G228: 0.00 | H228: 0.00 | I228: 0.00 | J228: 0.00 | K228: 0.00 | L228: 0.00 | M228: 0.00 | N228: 0.00 | O228: 0.00 | P228: 0.00 | Q228: 0.00 | R228: 0.00 | S228: 0.00 | T228: 0.00 | U228: 0.00 | V228: 0.00 | W228: 0.00 | X228: 0.00 | Y228: 0.00 | Z228: 0.00 | AA228: 0.00 | AB228: 0.00 | AC228: 44.30 | AD228: 59.34 | AE228: 72.14 | AF228: 82.88 | AG228: 91.74 | AH228: 98.92 | AI228: 104.57 | AJ228: 108.82 | AK228: 111.78 | AL228: 113.53 | AM228: 114.11 | AN228: 113.53 | AO228: 111.78 | AP228: 108.82 | AQ228: 104.57 | AR228: 98.92 | AS228: 91.74 | AT228: 82.88 | AU228: 72.14 | AV228: 59.34 | AW228: 44.30 | AX228: 26.89 | AY228: 7.12 | AZ228: 0.00 | BA228: 0.00 | BB228: 0.00 | BC228: 0.00 | BD228: 0.00 | BE228: 0.00 | BF228: 0.00 | BG228: 0.00 | BH228: 0.00 | BI228: 0.00 | BJ228: 0.00 | BK228: 0.00 | BL228: 0.00 | BM228: 0.00 | BN228: 0.00 | BO228: 0.00 | BP228: =BP$54*BP226*(1+COS($E201))/2 -> 0.00 | BQ228: 0.00 | BR228: 0.00 | BS228: 0.00 | BT228: 0.00 | BU228: 0.00 | BV228: 0.00 | BW228: 0.00
B229: Total Reflejada (plano incl) | C229: =C$54*C225*$C202*(1-COS($E201))/2 -> 0.00 | D229: =D$54*D225*$C202*(1-COS($E201))/2 -> 0.00 | E229: 0.00 | F229: 0.00 | G229: 0.00 | H229: 0.00 | I229: 0.00 | J229: 0.00 | K229: 0.00 | L229: 0.00 | M229: 0.00 | N229: 0.00 | O229: 0.00 | P229: 0.00 | Q229: 0.00 | R229: 0.00 | S229: 0.00 | T229: 0.00 | U229: 0.00 | V229: 0.00 | W229: 0.00 | X229: 0.00 | Y229: 0.00 | Z229: 0.00 | AA229: 0.00 | AB229: 0.00 | AC229: 2.19 | AD229: 3.11 | AE229: 3.97 | AF229: 4.73 | AG229: 5.40 | AH229: 5.96 | AI229: 6.42 | AJ229: 6.77 | AK229: 7.02 | AL229: 7.17 | AM229: 7.22 | AN229: 7.17 | AO229: 7.02 | AP229: 6.77 | AQ229: 6.42 | AR229: 5.96 | AS229: 5.40 | AT229: 4.73 | AU229: 3.97 | AV229: 3.11 | AW229: 2.19 | AX229: 1.24 | AY229: 0.30 | AZ229: 0.00 | BA229: 0.00 | BB229: 0.00 | BC229: 0.00 | BD229: 0.00 | BE229: 0.00 | BF229: 0.00 | BG229: 0.00 | BH229: 0.00 | BI229: 0.00 | BJ229: 0.00 | BK229: 0.00 | BL229: 0.00 | BM229: 0.00 | BN229: 0.00 | BO229: 0.00 | BP229: =BP$54*BP225*$C202*(1-COS($E201))/2 -> 0.00 | BQ229: 0.00 | BR229: 0.00 | BS229: 0.00 | BT229: 0.00 | BU229: 0.00 | BV229: 0.00 | BW229: 0.00
B230: TOTAL (W/m2) | C230: =C227+C228+C229 -> 0.00 | D230: 0.00 | E230: 0.00 | F230: 0.00 | G230: 0.00 | H230: 0.00 | I230: 0.00 | J230: 0.00 | K230: 0.00 | L230: 0.00 | M230: 0.00 | N230: 0.00 | O230: 0.00 | P230: 0.00 | Q230: 0.00 | R230: 0.00 | S230: 0.00 | T230: 0.00 | U230: 0.00 | V230: 0.00 | W230: 0.00 | X230: 0.00 | Y230: 0.00 | Z230: 0.00 | AA230: 0.00 | AB230: 0.00 | AC230: 323.50 | AD230: 388.86 | AE230: 445.18 | AF230: 491.78 | AG230: 528.63 | AH230: 556.00 | AI230: 574.39 | AJ230: 584.30 | AK230: 586.24 | AL230: 580.64 | AM230: 567.85 | AN230: 548.16 | AO230: 521.77 | AP230: 488.83 | AQ230: 449.52 | AR230: 404.02 | AS230: 352.67 | AT230: 296.00 | AU230: 234.92 | AV230: 170.83 | AW230: 105.82 | AX230: 42.75 | AY230: 29.58 | AZ230: 0.00 | BA230: 0.00 | BB230: 0.00 | BC230: 0.00 | BD230: 0.00 | BE230: 0.00 | BF230: 0.00 | BG230: 0.00 | BH230: 0.00 | BI230: 0.00 | BJ230: 0.00 | BK230: 0.00 | BL230: 0.00 | BM230: 0.00 | BN230: 0.00 | BO230: =BO227+BO228+BO229 -> 0.00 | BP230: 0.00 | BQ230: 0.00 | BR230: 0.00 | BS230: 0.00 | BT230: 0.00 | BU230: 0.00 | BV230: 0.00 | BW230: 0.00
B231: Radiación Directa recibida | C231: =C227*C197 -> 0.00 | D231: =D227*D197 -> 0.00 | E231: 0.00 | F231: 0.00 | G231: 0.00 | H231: 0.00 | I231: 0.00 | J231: 0.00 | K231: 0.00 | L231: 0.00 | M231: 0.00 | N231: 0.00 | O231: 0.00 | P231: 0.00 | Q231: 0.00 | R231: 0.00 | S231: 0.00 | T231: 0.00 | U231: 0.00 | V231: 0.00 | W231: 0.00 | X231: 0.00 | Y231: 0.00 | Z231: 0.00 | AA231: 0.00 | AB231: 0.00 | AC231: 277.01 | AD231: 326.41 | AE231: 369.07 | AF231: 404.17 | AG231: 431.48 | AH231: 451.12 | AI231: 463.40 | AJ231: 468.71 | AK231: 467.43 | AL231: 459.93 | AM231: 446.52 | AN231: 427.46 | AO231: 402.96 | AP231: 373.24 | AQ231: 338.53 | AR231: 299.14 | AS231: 255.52 | AT231: 208.39 | AU231: 158.81 | AV231: 108.38 | AW231: 59.33 | AX231: 14.62 | AY231: 22.17 | AZ231: 0.00 | BA231: 0.00 | BB231: 0.00 | BC231: 0.00 | BD231: 0.00 | BE231: 0.00 | BF231: 0.00 | BG231: 0.00 | BH231: 0.00 | BI231: 0.00 | BJ231: 0.00 | BK231: 0.00 | BL231: 0.00 | BM231: 0.00 | BN231: 0.00 | BO231: 0.00 | BP231: =BP227*BP197 -> 0.00 | BQ231: 0.00 | BR231: 0.00 | BS231: 0.00 | BT231: 0.00 | BU231: 0.00 | BV231: 0.00 | BW231: 0.00
B232: Radiación Global recibida | C232: =C231+C229+C228 -> 0.00 | D232: 0.00 | E232: 0.00 | F232: 0.00 | G232: 0.00 | H232: 0.00 | I232: 0.00 | J232: 0.00 | K232: 0.00 | L232: 0.00 | M232: 0.00 | N232: 0.00 | O232: 0.00 | P232: 0.00 | Q232: 0.00 | R232: 0.00 | S232: 0.00 | T232: 0.00 | U232: 0.00 | V232: 0.00 | W232: 0.00 | X232: 0.00 | Y232: 0.00 | Z232: 0.00 | AA232: 0.00 | AB232: 0.00 | AC232: 323.50 | AD232: 388.86 | AE232: 445.18 | AF232: 491.78 | AG232: 528.63 | AH232: 556.00 | AI232: 574.39 | AJ232: 584.30 | AK232: 586.24 | AL232: 580.64 | AM232: 567.85 | AN232: 548.16 | AO232: 521.77 | AP232: 488.83 | AQ232: 449.52 | AR232: 404.02 | AS232: 352.67 | AT232: 296.00 | AU232: 234.92 | AV232: 170.83 | AW232: 105.82 | AX232: 42.75 | AY232: 29.58 | AZ232: 0.00 | BA232: 0.00 | BB232: 0.00 | BC232: 0.00 | BD232: 0.00 | BE232: 0.00 | BF232: 0.00 | BG232: 0.00 | BH232: 0.00 | BI232: 0.00 | BJ232: 0.00 | BK232: 0.00 | BL232: 0.00 | BM232: 0.00 | BN232: 0.00 | BO232: =BO231+BO229+BO228 -> 0.00 | BP232: 0.00 | BQ232: 0.00 | BR232: 0.00 | BS232: 0.00 | BT232: 0.00 | BU232: 0.00 | BV232: 0.00 | BW232: 0.00
B233: Total Directa recibida | C233: =SUM(C231:BW231) -> 7,234 | D233: W/m2
B234: Total Directa disponible | C234: =SUM(C227:BW227) -> 7,234 | D234: W/m2
... 608 more rows

Sheet Localidades (hidden)
A2: DT | B2: Provincia (Pr) | C2: ='HE-4 SOLAR'!D6 -> Madrid | G2: Temperatura Agua s/ CTE HE4 2013
A3: B | B3: Capital (Cp) | C3: =VLOOKUP($C$2,$B$12:$R$63,2,FALSE) -> 40.4 | G3: Enero | H3: Febrero | I3: Marzo | J3: Abril | K3: Mayo | L3: Junio | M3: Julio | N3: Agosto | O3: Sept. | P3: Oct. | Q3: Nov. | R3: Dic.
A4: B | B4: Zona HE1 | C4: =VLOOKUP($C$2,$B$12:$R$63,3,FALSE) -> D3 | G4: =VLOOKUP($C$2,$B$12:$R$63,G5,FALSE) -> 8 | H4: =VLOOKUP($C$2,$B$12:$R$63,H5,FALSE) -> 8 | I4: 10 | J4: 12 | K4: 14 | L4: 17 | M4: 20 | N4: 19 | O4: 17 | P4: 13 | Q4: 10 | R4: 8
A5: B | B5: Zona HE4 | C5: =VLOOKUP($C$2,$B$12:$R$63,4,FALSE) -> IV | G5: 6 | H5: 7 | I5: 8 | J5: 9 | K5: 10 | L5: 11 | M5: 12 | N5: 13 | O5: 14 | P5: 15 | Q5: 16 | R5: 17
G6: Temperatura median en horas diurnas
G7: Enero | H7: Febrero | I7: Marzo | J7: Abril | K7: Mayo | L7: Junio | M7: Julio | N7: Agosto | O7: Sept. | P7: Oct. | Q7: Nov. | R7: Dic.
G8: =VLOOKUP($C$2,$B$67:$R$118,G5,FALSE) -> 6 | H8: =VLOOKUP($C$2,$B$67:$R$118,H5,FALSE) -> 8 | I8: 11 | J8: 13 | K8: 18 | L8: 23 | M8: 28 | N8: 26 | O8: 21 | P8: 15 | Q8: 11 | R8: 7
G10: Temperatura Agua s/ CTE HE4 2013
C11: Latitud | D11: Zona Climática | E11: Zona Solar | F11: Altitud capital | G11: Enero | H11: Febrero | I11: Marzo | J11: Abril | K11: Mayo | L11: Junio | M11: Julio | N11: Agosto | O11: Sept. | P11: Oct. | Q11: Nov. | R11: Dic.
B12: Albacete | C12: 39 | D12: D3 | E12: V | F12: 686 | G12: 7 | H12: 8 | I12: 9 | J12: 11 | K12: 14 | L12: 17 | M12: 19 | N12: 19 | O12: 17 | P12: 13 | Q12: 9 | R12: 7
B13: Alicante | C13: 38.4 | D13: B4 | E13: V | F13: 7 | G13: 11 | H13: 12 | I13: 13 | J13: 14 | K13: 16 | L13: 18 | M13: 20 | N13: 20 | O13: 19 | P13: 16 | Q13: 13 | R13: 12
B14: Almería | C14: 36.9 | D14: A4 | E14: V | F14: 65 | G14: 12 | H14: 12 | I14: 13 | J14: 14 | K14: 16 | L14: 18 | M14: 20 | N14: 21 | O14: 19 | P14: 17 | Q14: 14 | R14: 12
B15: Ávila | C15: 40.7 | D15: E1 | E15: IV | F15: 1126 | G15: 6 | H15: 6 | I15: 7 | J15: 9 | K15: 11 | L15: 14 | M15: 17 | N15: 16 | O15: 14 | P15: 11 | Q15: 8 | R15: 6
B16: Badajoz | C16: 38.9 | D16: C4 | E16: V | F16: 186 | G16: 9 | H16: 10 | I16: 11 | J16: 13 | K16: 15 | L16: 18 | M16: 20 | N16: 20 | O16: 18 | P16: 15 | Q16: 12 | R16: 9
B17: Barcelona | C17: 41.4 | D17: C2 | E17: II | F17: 95 | G17: 9 | H17: 10 | I17: 11 | J17: 12 | K17: 14 | L17: 17 | M17: 19 | N17: 19 | O17: 17 | P17: 15 | Q17: 12 | R17: 10
B18: Bilbao | C18: 43.3 | D18: C1 | E18: I | F18: 32 | G18: 9 | H18: 10 | I18: 10 | J18: 11 | K18: 13 | L18: 15 | M18: 17 | N18: 17 | O18: 16 | P18: 14 | Q18: 11 | R18: 10
B19: Burgos | C19: 42.3 | D19: E1 | E19: II | F19: 929 | G19: 5 | H19: 6 | I19: 7 | J19: 9 | K19: 11 | L19: 13 | M19: 16 | N19: 16 | O19: 14 | P19: 11 | Q19: 7 | R19: 6
B20: Cáceres | C20: 39.5 | D20: C4 | E20: V | F20: 459 | G20: 9 | H20: 10 | I20: 11 | J20: 12 | K20: 14 | L20: 18 | M20: 21 | N20: 20 | O20: 19 | P20: 15 | Q20: 11 | R20: 9
B21: Cádiz | C21: 36.5 | D21: A3 | E21: IV | F21: 28 | G21: 12 | H21: 12 | I21: 13 | J21: 14 | K21: 16 | L21: 18 | M21: 19 | N21: 20 | O21: 19 | P21: 17 | Q21: 14 | R21: 12
B22: Castellón | C22: 40 | D22: B3 | E22: IV | F22: 27 | G22: 10 | H22: 11 | I22: 12 | J22: 13 | K22: 15 | L22: 18 | M22: 19 | N22: 20 | O22: 18 | P22: 16 | Q22: 12 | R22: 11
B23: Ceuta | C23: 35.9 | D23: B3 | E23: V | F23: 206 | G23: 11 | H23: 11 | I23: 12 | J23: 13 | K23: 14 | L23: 16 | M23: 18 | N23: 18 | O23: 17 | P23: 15 | Q23: 13 | R23: 12
B24: Ciudad Real | C24: 39 | D24: D3 | E24: IV | F24: 628 | G24: 7 | H24: 8 | I24: 10 | J24: 11 | K24: 14 | L24: 17 | M24: 20 | N24: 20 | O24: 17 | P24: 13 | Q24: 10 | R24: 7
B25: Córdoba | C25: 37.9 | D25: B4 | E25: IV | F25: 128 | G25: 10 | H25: 11 | I25: 12 | J25: 14 | K25: 16 | L25: 19 | M25: 21 | N25: 21 | O25: 19 | P25: 16 | Q25: 12 | R25: 10
B26: Coruña, La | C26: 43.4 | D26: C1 | E26: I | F26: 54 | G26: 10 | H26: 10 | I26: 11 | J26: 12 | K26: 13 | L26: 14 | M26: 16 | N26: 16 | O26: 15 | P26: 14 | Q26: 12 | R26: 11
B27: Cuenca | C27: 40.1 | D27: D2 | E27: III | F27: 949 | G27: 6 | H27: 7 | I27: 8 | J27: 10 | K27: 13 | L27: 16 | M27: 18 | N27: 18 | O27: 16 | P27: 12 | Q27: 9 | R27: 7
B28: Gerona | C28: 42 | D28: D2 | E28: III | F28: 95 | G28: 8 | H28: 9 | I28: 10 | J28: 11 | K28: 14 | L28: 16 | M28: 19 | N28: 18 | O28: 17 | P28: 14 | Q28: 10 | R28: 9
B29: Granada | C29: 37.2 | D29: C3 | E29: IV | F29: 775 | G29: 8 | H29: 9 | I29: 10 | J29: 12 | K29: 14 | L29: 17 | M29: 20 | N29: 19 | O29: 17 | P29: 14 | Q29: 11 | R29: 8
B30: Guadalajara | C30: 40.6 | D30: D3 | E30: IV | F30: 685 | G30: 7 | H30: 8 | I30: 9 | J30: 11 | K30: 14 | L30: 17 | M30: 19 | N30: 19 | O30: 16 | P30: 13 | Q30: 9 | R30: 7
B31: Huelva | C31: 37.3 | D31: A4 | E31: V | F31: 4 | G31: 12 | H31: 12 | I31: 13 | J31: 14 | K31: 16 | L31: 18 | M31: 20 | N31: 20 | O31: 19 | P31: 17 | Q31: 14 | R31: 12
B32: Huesca | C32: 42.1 | D32: D2 | E32: III | F32: 488 | G32: 7 | H32: 8 | I32: 10 | J32: 11 | K32: 14 | L32: 16 | M32: 19 | N32: 18 | O32: 17 | P32: 13 | Q32: 9 | R32: 7
B33: Jaén | C33: 37.8 | D33: C4 | E33: IV | F33: 586 | G33: 9 | H33: 10 | I33: 11 | J33: 13 | K33: 16 | L33: 19 | M33: 21 | N33: 21 | O33: 19 | P33: 15 | Q33: 12 | R33: 9
B34: León | C34: 42.6 | D34: E1 | E34: III | F34: 908 | G34: 6 | H34: 6 | I34: 8 | J34: 9 | K34: 12 | L34: 14 | M34: 16 | N34: 16 | O34: 15 | P34: 11 | Q34: 8 | R34: 6
B35: Lleida | C35: 41.7 | D35: D3 | E35: III | F35: 323 | G35: 7 | H35: 9 | I35: 10 | J35: 12 | K35: 15 | L35: 17 | M35: 20 | N35: 19 | O35: 17 | P35: 14 | Q35: 10 | R35: 7
B36: Logroño | C36: 42.5 | D36: D2 | E36: II | F36: 380 | G36: 7 | H36: 8 | I36: 10 | J36: 11 | K36: 13 | L36: 16 | M36: 18 | N36: 18 | O36: 16 | P36: 13 | Q36: 10 | R36: 8
B37: Lugo | C37: 43 | D37: D1 | E37: II | F37: 465 | G37: 7 | H37: 8 | I37: 9 | J37: 10 | K37: 11 | L37: 13 | M37: 15 | N37: 15 | O37: 14 | P37: 12 | Q37: 9 | R37: 8
B38: Madrid | C38: 40.4 | D38: D3 | E38: IV | F38: 667 | G38: 8 | H38: 8 | I38: 10 | J38: 12 | K38: 14 | L38: 17 | M38: 20 | N38: 19 | O38: 17 | P38: 13 | Q38: 10 | R38: 8
B39: Málaga | C39: 36.7 | D39: A3 | E39: IV | F39: 40 | G39: 12 | H39: 12 | I39: 13 | J39: 14 | K39: 16 | L39: 18 | M39: 20 | N39: 20 | O39: 19 | P39: 16 | Q39: 14 | R39: 12
B40: Melilla | C40: 35.3 | D40: A3 | E40: V | F40: 47 | G40: 12 | H40: 13 | I40: 13 | J40: 14 | K40: 16 | L40: 18 | M40: 20 | N40: 20 | O40: 19 | P40: 17 | Q40: 14 | R40: 13
B41: Murcia | C41: 38 | D41: B3 | E41: IV | F41: 42 | G41: 11 | H41: 11 | I41: 12 | J41: 13 | K41: 15 | L41: 17 | M41: 19 | N41: 20 | O41: 18 | P41: 16 | Q41: 13 | R41: 11
B42: Orense | C42: 42.3 | D42: D2 | E42: II | F42: 139 | G42: 8 | H42: 10 | I42: 11 | J42: 12 | K42: 14 | L42: 16 | M42: 18 | N42: 18 | O42: 17 | P42: 13 | Q42: 11 | R42: 9
B43: Oviedo | C43: 43.4 | D43: D1 | E43: I | F43: 232 | G43: 9 | H43: 9 | I43: 10 | J43: 10 | K43: 12 | L43: 14 | M43: 15 | N43: 16 | O43: 15 | P43: 13 | Q43: 10 | R43: 9
B44: Palencia | C44: 42 | D44: D1 | E44: II | F44: 734 | G44: 6 | H44: 7 | I44: 8 | J44: 10 | K44: 12 | L44: 15 | M44: 17 | N44: 17 | O44: 15 | P44: 12 | Q44: 9 | R44: 6
B45: Palma de Mallorca | C45: 39.6 | D45: B3 | E45: IV | F45: 28 | G45: 11 | H45: 11 | I45: 12 | J45: 13 | K45: 15 | L45: 18 | M45: 20 | N45: 20 | O45: 19 | P45: 17 | Q45: 14 | R45: 12
B46: Pamplona | C46: 42.8 | D46: D1 | E46: II | F46: 449 | G46: 7 | H46: 8 | I46: 9 | J46: 10 | K46: 12 | L46: 15 | M46: 17 | N46: 17 | O46: 16 | P46: 13 | Q46: 9 | R46: 7
B47: Pontevedra | C47: 42.4 | D47: C1 | E47: I | F47: 19 | G47: 10 | H47: 11 | I47: 11 | J47: 13 | K47: 14 | L47: 16 | M47: 17 | N47: 17 | O47: 16 | P47: 14 | Q47: 12 | R47: 10
B48: Salamanca | C48: 41 | D48: D2 | E48: III | F48: 803 | G48: 6 | H48: 7 | I48: 8 | J48: 10 | K48: 12 | L48: 15 | M48: 17 | N48: 17 | O48: 15 | P48: 12 | Q48: 8 | R48: 6
B49: San Sebastian | C49: 43.30 | D49: D1 | E49: I | F49: 181 | G49: 9 | H49: 9 | I49: 10 | J49: 11 | K49: 12 | L49: 14 | M49: 16 | N49: 16 | O49: 15 | P49: 14 | Q49: 11 | R49: 9
B50: Santander | C50: 43.5 | D50: C1 | E50: I | F50: 69 | G50: 10 | H50: 10 | I50: 11 | J50: 11 | K50: 13 | L50: 15 | M50: 16 | N50: 16 | O50: 16 | P50: 14 | Q50: 12 | R50: 10
B51: Segovia | C51: 41 | D51: D2 | E51: III | F51: 1002 | G51: 6 | H51: 7 | I51: 8 | J51: 10 | K51: 12 | L51: 15 | M51: 18 | N51: 18 | O51: 15 | P51: 12 | Q51: 8 | R51: 6
B52: Sevilla | C52: 37.4 | D52: B4 | E52: V | F52: 30 | G52: 11 | H52: 11 | I52: 13 | J52: 14 | K52: 16 | L52: 19 | M52: 21 | N52: 21 | O52: 20 | P52: 16 | Q52: 13 | R52: 11
B53: Soria | C53: 41.8 | D53: E1 | E53: III | F53: 1063 | G53: 5 | H53: 6 | I53: 7 | J53: 9 | K53: 11 | L53: 14 | M53: 17 | N53: 16 | O53: 14 | P53: 11 | Q53: 8 | R53: 6
B54: Tarragona | C54: 41.1 | D54: B3 | E54: III | F54: 60 | G54: 10 | H54: 11 | I54: 12 | J54: 14 | K54: 16 | L54: 18 | M54: 20 | N54: 20 | O54: 19 | P54: 16 | Q54: 12 | R54: 11
B55: Teruel | C55: 40.4 | D55: D2 | E55: III | F55: 915 | G55: 6 | H55: 7 | I55: 8 | J55: 10 | K55: 12 | L55: 15 | M55: 18 | N55: 17 | O55: 15 | P55: 12 | Q55: 8 | R55: 6
B56: Toledo | C56: 39.9 | D56: C4 | E56: IV | F56: 540 | G56: 8 | H56: 9 | I56: 11 | J56: 12 | K56: 15 | L56: 18 | M56: 21 | N56: 20 | O56: 18 | P56: 14 | Q56: 11 | R56: 8
B57: Valencia | C57: 39.5 | D57: B3 | E57: IV | F57: 10 | G57: 10 | H57: 11 | I57: 12 | J57: 13 | K57: 15 | L57: 17 | M57: 19 | N57: 20 | O57: 18 | P57: 16 | Q57: 13 | R57: 11
B58: Valladolid | C58: 41.7 | D58: D2 | E58: II | F58: 694 | G58: 6 | H58: 8 | I58: 9 | J58: 10 | K58: 12 | L58: 15 | M58: 18 | N58: 18 | O58: 16 | P58: 12 | Q58: 9 | R58: 7
B59: Vitoria | C59: 42.9 | D59: D1 | E59: I | F59: 542 | G59: 7 | H59: 7 | I59: 8 | J59: 10 | K59: 12 | L59: 14 | M59: 16 | N59: 16 | O59: 14 | P59: 12 | Q59: 8 | R59: 7
B60: Zamora | C60: 41.5 | D60: D2 | E60: III | F60: 649 | G60: 6 | H60: 8 | I60: 9 | J60: 10 | K60: 13 | L60: 16 | M60: 18 | N60: 18 | O60: 16 | P60: 12 | Q60: 9 | R60: 7
B61: Zaragoza | C61: 41.7 | D61: D3 | E61: IV | F61: 200 | G61: 8 | H61: 9 | I61: 10 | J61: 12 | K61: 15 | L61: 17 | M61: 20 | N61: 19 | O61: 17 | P61: 14 | Q61: 10 | R61: 8
B62: Palmas de Gran Canarias | C62: 28.2 | D62: alfa3 | E62: V | F62: 6 | G62: 15 | H62: 15 | I62: 16 | J62: 16 | K62: 17 | L62: 18 | M62: 19 | N62: 19 | O62: 19 | P62: 18 | Q62: 17 | R62: 16
B63: Santa Cruz de Tenerife | C63: 28.5 | D63: alfa3 | E63: V | F63: 37 | G63: 15 | H63: 15 | I63: 16 | J63: 16 | K63: 17 | L63: 18 | M63: 20 | N63: 20 | O63: 20 | P63: 18 | Q63: 17 | R63: 16
G65: Temperatura media diurna. Pliego IDAE para instalaciones térmicas baja temperatura
G66: Enero | H66: Febrero | I66: Marzo | J66: Abril | K66: Mayo | L66: Junio | M66: Julio | N66: Agosto | O66: Sept. | P66: Oct. | Q66: Nov. | R66: Dic.
B67: Albacete | G67: 6 | H67: 8 | I67: 11 | J67: 13 | K67: 17 | L67: 22 | M67: 26 | N67: 26 | O67: 22 | P67: 16 | Q67: 11 | R67: 7
B68: Alicante | G68: 13 | H68: 14 | I68: 16 | J68: 18 | K68: 21 | L68: 25 | M68: 28 | N68: 28 | O68: 26 | P68: 21 | Q68: 17 | R68: 14
B69: Almería | G69: 15 | H69: 15 | I69: 16 | J69: 18 | K69: 21 | L69: 24 | M69: 27 | N69: 28 | O69: 26 | P69: 22 | Q69: 18 | R69: 16
B70: Ávila | G70: 4 | H70: 5 | I70: 8 | J70: 11 | K70: 14 | L70: 18 | M70: 22 | N70: 22 | O70: 18 | P70: 13 | Q70: 8 | R70: 5
B71: Badajoz | G71: 11 | H71: 12 | I71: 15 | J71: 17 | K71: 20 | L71: 25 | M71: 28 | N71: 28 | O71: 25 | P71: 20 | Q71: 15 | R71: 11
B72: Barcelona | G72: 11 | H72: 12 | I72: 14 | J72: 17 | K72: 20 | L72: 24 | M72: 26 | N72: 26 | O72: 24 | P72: 20 | Q72: 16 | R72: 12
B73: Bilbao | G73: 10 | H73: 11 | I73: 12 | J73: 13 | K73: 16 | L73: 20 | M73: 22 | N73: 22 | O73: 20 | P73: 16 | Q73: 13 | R73: 10
B74: Burgos | G74: 5 | H74: 6 | I74: 9 | J74: 11 | K74: 14 | L74: 18 | M74: 21 | N74: 21 | O74: 18 | P74: 13 | Q74: 9 | R74: 5
B75: Cáceres | G75: 10 | H75: 11 | I75: 14 | J75: 16 | K75: 19 | L75: 25 | M75: 28 | N75: 28 | O75: 25 | P75: 19 | Q75: 14 | R75: 10
B76: Cádiz | G76: 13 | H76: 15 | I76: 17 | J76: 19 | K76: 21 | L76: 24 | M76: 27 | N76: 27 | O76: 25 | P76: 22 | Q76: 18 | R76: 15
B77: Castellón | G77: 13 | H77: 13 | I77: 15 | J77: 17 | K77: 20 | L77: 24 | M77: 26 | N77: 27 | O77: 25 | P77: 21 | Q77: 16 | R77: 13
B78: Ceuta | G78: 15 | H78: 15 | I78: 16 | J78: 17 | K78: 19 | L78: 23 | M78: 25 | N78: 26 | O78: 24 | P78: 21 | Q78: 18 | R78: 16
B79: Ciudad Real | G79: 7 | H79: 9 | I79: 12 | J79: 15 | K79: 18 | L79: 23 | M79: 28 | N79: 27 | O79: 20 | P79: 17 | Q79: 11 | R79: 8
B80: Córdoba | G80: 11 | H80: 13 | I80: 16 | J80: 18 | K80: 21 | L80: 26 | M80: 30 | N80: 30 | O80: 26 | P80: 21 | Q80: 16 | R80: 12
B81: Coruña, La | G81: 12 | H81: 12 | I81: 14 | J81: 14 | K81: 16 | L81: 19 | M81: 20 | N81: 21 | O81: 20 | P81: 17 | Q81: 14 | R81: 12
B82: Cuenca | G82: 5 | H82: 6 | I82: 9 | J82: 12 | K82: 15 | L82: 20 | M82: 24 | N82: 23 | O82: 20 | P82: 14 | Q82: 9 | R82: 6
B83: Gerona | G83: 9 | H83: 10 | I83: 13 | J83: 15 | K83: 19 | L83: 23 | M83: 26 | N83: 25 | O83: 23 | P83: 18 | Q83: 13 | R83: 10
B84: Granada | G84: 9 | H84: 10 | I84: 13 | J84: 16 | K84: 18 | L84: 24 | M84: 27 | N84: 27 | O84: 24 | P84: 18 | Q84: 13 | R84: 9
B85: Guadalajara | G85: 7 | H85: 8 | I85: 12 | J85: 14 | K85: 18 | L85: 22 | M85: 26 | N85: 26 | O85: 22 | P85: 16 | Q85: 10 | R85: 8
B86: Huelva | G86: 13 | H86: 14 | I86: 16 | J86: 20 | K86: 21 | L86: 24 | M86: 27 | N86: 27 | O86: 25 | P86: 21 | Q86: 17 | R86: 14
B87: Huesca | G87: 7 | H87: 8 | I87: 12 | J87: 15 | K87: 18 | L87: 22 | M87: 25 | N87: 25 | O87: 21 | P87: 16 | Q87: 11 | R87: 7
B88: Jaén | G88: 11 | H88: 11 | I88: 14 | J88: 17 | K88: 21 | L88: 26 | M88: 30 | N88: 29 | O88: 25 | P88: 19 | Q88: 15 | R88: 10
B89: León | G89: 5 | H89: 6 | I89: 10 | J89: 12 | K89: 15 | L89: 19 | M89: 22 | N89: 22 | O89: 19 | P89: 14 | Q89: 9 | R89: 6
B90: Lleida | G90: 7 | H90: 10 | I90: 14 | J90: 15 | K90: 21 | L90: 24 | M90: 27 | N90: 27 | O90: 23 | P90: 18 | Q90: 11 | R90: 8
B91: Logroño | G91: 7 | H91: 9 | I91: 12 | J91: 14 | K91: 17 | L91: 21 | M91: 24 | N91: 24 | O91: 21 | P91: 16 | Q91: 11 | R91: 8
B92: Lugo | G92: 8 | H92: 9 | I92: 11 | J92: 13 | K92: 15 | L92: 18 | M92: 20 | N92: 21 | O92: 19 | P92: 15 | Q92: 11 | R92: 8
B93: Madrid | G93: 6 | H93: 8 | I93: 11 | J93: 13 | K93: 18 | L93: 23 | M93: 28 | N93: 26 | O93: 21 | P93: 15 | Q93: 11 | R93: 7
B94: Málaga | G94: 15 | H94: 15 | I94: 17 | J94: 19 | K94: 21 | L94: 25 | M94: 27 | N94: 28 | O94: 26 | P94: 22 | Q94: 18 | R94: 15
B95: Melilla | G95: 15 | H95: 15 | I95: 16 | J95: 18 | K95: 21 | L95: 25 | M95: 27 | N95: 28 | O95: 26 | P95: 22 | Q95: 18 | R95: 16
B96: Murcia | G96: 12 | H96: 12 | I96: 15 | J96: 17 | K96: 21 | L96: 25 | M96: 28 | N96: 28 | O96: 25 | P96: 20 | Q96: 16 | R96: 12
B97: Orense | G97: 9 | H97: 9 | I97: 13 | J97: 15 | K97: 18 | L97: 21 | M97: 24 | N97: 23 | O97: 21 | P97: 16 | Q97: 12 | R97: 9
B98: Oviedo | G98: 9 | H98: 10 | I98: 11 | J98: 12 | K98: 15 | L98: 18 | M98: 20 | N98: 20 | O98: 19 | P98: 16 | Q98: 12 | R98: 10
B99: Palencia | G99: 5 | H99: 7 | I99: 10 | J99: 13 | K99: 16 | L99: 20 | M99: 23 | N99: 23 | O99: 20 | P99: 14 | Q99: 9 | R99: 6
B100: Palma de Mallorca | G100: 12 | H100: 13 | I100: 14 | J100: 17 | K100: 19 | L100: 23 | M100: 26 | N100: 27 | O100: 25 | P100: 20 | Q100: 16 | R100: 14
B101: Pamplona | G101: 7 | H101: 7 | I101: 11 | J101: 13 | K101: 16 | L101: 20 | M101: 22 | N101: 23 | O101: 20 | P101: 15 | Q101: 10 | R101: 8
B102: Pontevedra | G102: 11 | H102: 12 | I102: 14 | J102: 16 | K102: 18 | L102: 20 | M102: 22 | N102: 23 | O102: 20 | P102: 17 | Q102: 14 | R102: 12
B103: Salamanca | G103: 6 | H103: 7 | I103: 10 | J103: 13 | K103: 16 | L103: 20 | M103: 24 | N103: 23 | O103: 20 | P103: 14 | Q103: 9 | R103: 6
B104: San Sebastian | G104: 10 | H104: 10 | I104: 13 | J104: 14 | K104: 16 | L104: 19 | M104: 21 | N104: 21 | O104: 20 | P104: 17 | Q104: 13 | R104: 10
B105: Santander | G105: 11 | H105: 11 | I105: 14 | J105: 14 | K105: 16 | L105: 19 | M105: 21 | N105: 21 | O105: 20 | P105: 17 | Q105: 14 | R105: 12
B106: Segovia | G106: 4 | H106: 6 | I106: 10 | J106: 12 | K106: 15 | L106: 20 | M106: 24 | N106: 23 | O106: 20 | P106: 14 | Q106: 9 | R106: 5
B107: Sevilla | G107: 11 | H107: 13 | I107: 14 | J107: 17 | K107: 21 | L107: 25 | M107: 29 | N107: 29 | O107: 24 | P107: 20 | Q107: 16 | R107: 12
B108: Soria | G108: 4 | H108: 6 | I108: 9 | J108: 11 | K108: 14 | L108: 19 | M108: 22 | N108: 22 | O108: 18 | P108: 13 | Q108: 8 | R108: 5
B109: Tarragona | G109: 11 | H109: 12 | I109: 14 | J109: 16 | K109: 19 | L109: 22 | M109: 25 | N109: 26 | O109: 23 | P109: 20 | Q109: 15 | R109: 12
B110: Teruel | G110: 5 | H110: 6 | I110: 9 | J110: 12 | K110: 16 | L110: 20 | M110: 23 | N110: 24 | O110: 19 | P110: 14 | Q110: 9 | R110: 6
B111: Toledo | G111: 8 | H111: 9 | I111: 13 | J111: 15 | K111: 19 | L111: 24 | M111: 28 | N111: 27 | O111: 23 | P111: 17 | Q111: 12 | R111: 8
B112: Valencia | G112: 12 | H112: 13 | I112: 15 | J112: 17 | K112: 20 | L112: 23 | M112: 26 | N112: 27 | O112: 24 | P112: 20 | Q112: 16 | R112: 13
B113: Valladolid | G113: 4 | H113: 6 | I113: 9 | J113: 12 | K113: 17 | L113: 21 | M113: 24 | N113: 23 | O113: 18 | P113: 13 | Q113: 8 | R113: 4
B114: Vitoria | G114: 7 | H114: 7 | I114: 11 | J114: 12 | K114: 15 | L114: 19 | M114: 21 | N114: 21 | O114: 19 | P114: 15 | Q114: 10 | R114: 7
B115: Zamora | G115: 6 | H115: 7 | I115: 11 | J115: 13 | K115: 16 | L115: 21 | M115: 24 | N115: 23 | O115: 20 | P115: 15 | Q115: 10 | R115: 6
B116: Zaragoza | G116: 8 | H116: 10 | I116: 13 | J116: 16 | K116: 19 | L116: 23 | M116: 26 | N116: 26 | O116: 23 | P116: 17 | Q116: 12 | R116: 9
B117: Palmas de Gran Canarias | G117: 20 | H117: 20 | I117: 21 | J117: 22 | K117: 23 | L117: 24 | M117: 25 | N117: 25 | O117: 26 | P117: 25 | Q117: 23 | R117: 21
B118: Santa Cruz de Tenerife | G118: 19 | H118: 20 | I118: 20 | J118: 21 | K118: 22 | L118: 24 | M118: 26 | N118: 27 | O118: 26 | P118: 25 | Q118: 23 | R118: 20

Sheet Datos SOLAR (hidden)
B2: DATOS RADIACIÓN SOLAR
B4: Localidad | C4: ='HE-4 SOLAR'!D6 -> Madrid | E4: Rad anual | F4: =VLOOKUP($C$4,$B$68:$O$119,14,FALSE)*3.6052 -> 17.593376
C5: 2 | D5: 3 | E5: 4 | F5: 5 | G5: 6 | H5: 7 | I5: 8 | J5: 9 | K5: 10 | L5: 11 | M5: 12 | N5: 13
C6: ENERO | D6: FEBRERO | E6: MARZO | F6: ABRIL | G6: MAYO | H6: JUNIO | I6: JULIO | J6: AGOSTO | K6: SEPTIEMBRE | L6: OCTUBRE | M6: NOVIEMBRE | N6: DICIEMBRE
B7: Atlas Radiacion solar 2012 AEMET | C7: =VLOOKUP($C$4,$B$68:$N$119,C5,FALSE)*3.6052 -> 8.18 | D7: =VLOOKUP($C$4,$B$68:$N$119,D5,FALSE)*3.6052 -> 11.72 | E7: 16.76 | F7: 20.73 | G7: 23.79 | H7: 27.90 | I7: 28.99 | J7: 25.24 | K7: 19.72 | L7: 12.83 | M7: 8.76 | N7: 6.74
B8: Pliego Instalaciones solar térmica IDAE | C8: =VLOOKUP($C$4,$B$13:$N$64,C5,FALSE) -> 6.7 | D8: =VLOOKUP($C$4,$B$13:$N$64,D5,FALSE) -> 10.6 | E8: 13.6 | F8: 18.8 | G8: 20.9 | H8: 23.5 | I8: 26 | J8: 23.1 | K8: 16.9 | L8: 11.4 | M8: 7.5 | N8: 5.9
B9: Otra localidad (definida por usuario)
B11: Energía en megajulios que incide sobre un metro cuadrado de superficie horizontal en un día medio de cada mes. (Fuente: CENSOLAR).
C12: ENE | D12: FEB | E12: MAR | F12: ABR | G12: MAY | H12: JUN | I12: JUL | J12: AGO | K12: SEP | L12: OCT | M12: NOV | N12: DIC
B13: Vitoria | C13: 4.6 | D13: 6.9 | E13: 11.2 | F13: 13 | G13: 14.8 | H13: 16.6 | I13: 18.1 | J13: 17.3 | K13: 14.3 | L13: 9.5 | M13: 5.5 | N13: 4.1
B14: Albacete | C14: 6.7 | D14: 10.5 | E14: 15 | F14: 19.2 | G14: 21.2 | H14: 25.1 | I14: 26.7 | J14: 23.2 | K14: 18.8 | L14: 12.4 | M14: 8.4 | N14: 6.4
B15: Alicante | C15: 8.5 | D15: 12 | E15: 16.3 | F15: 18.9 | G15: 23.1 | H15: 24.8 | I15: 25.8 | J15: 22.5 | K15: 18.3 | L15: 13.6 | M15: 9.8 | N15: 7.6
B16: Almería | C16: 8.9 | D16: 12.2 | E16: 16.4 | F16: 19.6 | G16: 23.1 | H16: 24.6 | I16: 25.3 | J16: 22.5 | K16: 18.5 | L16: 13.9 | M16: 10 | N16: 8
B17: Oviedo | C17: 5.3 | D17: 7.7 | E17: 10.6 | F17: 12.2 | G17: 15 | H17: 15.2 | I17: 16.8 | J17: 14.8 | K17: 12.4 | L17: 9.8 | M17: 5.9 | N17: 4.6
B18: Ávila | C18: 6 | D18: 9.1 | E18: 13.5 | F18: 17.7 | G18: 19.4 | H18: 22.3 | I18: 26.3 | J18: 25.3 | K18: 18.8 | L18: 11.2 | M18: 6.9 | N18: 5.2
B19: Badajoz | C19: 6.5 | D19: 10 | E19: 13.6 | F19: 18.7 | G19: 21.8 | H19: 24.6 | I19: 25.9 | J19: 23.8 | K19: 17.9 | L19: 12.3 | M19: 8.2 | N19: 6.2
B20: Palma de Mallorca | C20: 7.2 | D20: 10.7 | E20: 14.4 | F20: 16.2 | G20: 21 | H20: 22.7 | I20: 24.2 | J20: 20.6 | K20: 16.4 | L20: 12.1 | M20: 8.5 | N20: 6.5
B21: Barcelona | C21: 6.5 | D21: 9.5 | E21: 12.9 | F21: 16.1 | G21: 18.6 | H21: 20.3 | I21: 21.6 | J21: 18.1 | K21: 14.6 | L21: 10.8 | M21: 7.2 | N21: 5.8
B22: Burgos | C22: 5.1 | D22: 7.9 | E22: 12.4 | F22: 16 | G22: 18.7 | H22: 21.5 | I22: 23 | J22: 20.7 | K22: 16.7 | L22: 10.1 | M22: 6.5 | N22: 4.5
B23: Cáceres | C23: 6.8 | D23: 10 | E23: 14.7 | F23: 19.6 | G23: 22.1 | H23: 25.1 | I23: 28.1 | J23: 25.4 | K23: 19.7 | L23: 12.7 | M23: 8.9 | N23: 6.6
B24: Cádiz | C24: 8.1 | D24: 11.5 | E24: 15.7 | F24: 18.5 | G24: 22.2 | H24: 23.8 | I24: 25.9 | J24: 23 | K24: 18.1 | L24: 14.2 | M24: 10 | N24: 7.4
B25: Santander | C25: 5 | D25: 7.4 | E25: 11 | F25: 13 | G25: 16.1 | H25: 17 | I25: 18.4 | J25: 15.5 | K25: 13 | L25: 9.5 | M25: 5.8 | N25: 4.5
B26: Castellón | C26: 8 | D26: 12.2 | E26: 15.5 | F26: 17.4 | G26: 20.6 | H26: 21.4 | I26: 23.9 | J26: 19.5 | K26: 16.6 | L26: 13.1 | M26: 8.6 | N26: 7.3
B27: Ceuta | C27: 8.9 | D27: 13.1 | E27: 18.6 | F27: 21 | G27: 24.3 | H27: 26.7 | I27: 26.8 | J27: 24.3 | K27: 19.1 | L27: 14.2 | M27: 11 | N27: 8.6
B28: Ciudad Real | C28: 7 | D28: 10.1 | E28: 15 | F28: 18.7 | G28: 21.4 | H28: 23.7 | I28: 25.3 | J28: 23.2 | K28: 18.8 | L28: 12.5 | M28: 8.7 | N28: 6.5
B29: Córdoba | C29: 7.2 | D29: 10.1 | E29: 15.1 | F29: 18.5 | G29: 21.8 | H29: 25.9 | I29: 28.5 | J29: 25.1 | K29: 19.9 | L29: 12.6 | M29: 8.6 | N29: 6.9
B30: Coruña, La | C30: 5.4 | D30: 8 | E30: 11.4 | F30: 12.4 | G30: 15.4 | H30: 16.2 | I30: 17.4 | J30: 15.3 | K30: 13.9 | L30: 10.9 | M30: 6.4 | N30: 5.1
B31: Cuenca | C31: 5.9 | D31: 8.8 | E31: 12.9 | F31: 17.4 | G31: 18.7 | H31: 22 | I31: 25.6 | J31: 22.3 | K31: 17.5 | L31: 11.2 | M31: 7.2 | N31: 5.5
B32: Gerona | C32: 7.1 | D32: 10.5 | E32: 14.2 | F32: 15.9 | G32: 18.7 | H32: 19 | I32: 22.3 | J32: 18.5 | K32: 14.9 | L32: 11.7 | M32: 7.8 | N32: 6.6
B33: Granada | C33: 7.8 | D33: 10.8 | E33: 15.2 | F33: 18.5 | G33: 21.9 | H33: 24.8 | I33: 26.7 | J33: 23.6 | K33: 18.8 | L33: 12.9 | M33: 9.6 | N33: 7.1
B34: Guadalajara | C34: 6.5 | D34: 9.2 | E34: 14 | F34: 17.9 | G34: 19.4 | H34: 22.7 | I34: 25 | J34: 23.2 | K34: 17.8 | L34: 11.7 | M34: 7.8 | N34: 5.6
B35: Bilbao | C35: 5.5 | D35: 7.7 | E35: 11.3 | F35: 11.7 | G35: 14.6 | H35: 16.2 | I35: 16.1 | J35: 13.6 | K35: 12.7 | L35: 10.3 | M35: 6.2 | N35: 5
B36: Huelva | C36: 7.6 | D36: 11.3 | E36: 16 | F36: 19.5 | G36: 24.1 | H36: 25.6 | I36: 28.7 | J36: 25.6 | K36: 21.2 | L36: 14.5 | M36: 9.2 | N36: 7.5
B37: Huesca | C37: 6.1 | D37: 9.6 | E37: 14.3 | F37: 18.7 | G37: 20.3 | H37: 22.1 | I37: 23.1 | J37: 20.9 | K37: 16.9 | L37: 11.3 | M37: 7.2 | N37: 5.1
B38: Jaén | C38: 6.7 | D38: 10.1 | E38: 14.4 | F38: 18 | G38: 20.3 | H38: 24.4 | I38: 26.7 | J38: 24.1 | K38: 19.2 | L38: 11.9 | M38: 8.1 | N38: 6.5
B39: Palmas de Gran Canarias | C39: 11.2 | D39: 14.2 | E39: 17.8 | F39: 19.6 | G39: 21.7 | H39: 22.5 | I39: 24.3 | J39: 21.9 | K39: 19.8 | L39: 15.1 | M39: 12.3 | N39: 10.7
B40: León | C40: 5.8 | D40: 8.7 | E40: 13.8 | F40: 17.2 | G40: 19.5 | H40: 22.1 | I40: 24.2 | J40: 20.9 | K40: 17.2 | L40: 10.4 | M40: 7 | N40: 4.8
B41: Lleida | C41: 6 | D41: 9.9 | E41: 18 | F41: 18.8 | G41: 20.9 | H41: 22.6 | I41: 23.8 | J41: 21.3 | K41: 16.8 | L41: 12.1 | M41: 7.2 | N41: 4.8
B42: Lugo | C42: 5.1 | D42: 7.6 | E42: 11.7 | F42: 15.2 | G42: 17.1 | H42: 19.5 | I42: 20.2 | J42: 18.4 | K42: 15 | L42: 9.9 | M42: 6.2 | N42: 4.5
B43: Madrid | C43: 6.7 | D43: 10.6 | E43: 13.6 | F43: 18.8 | G43: 20.9 | H43: 23.5 | I43: 26 | J43: 23.1 | K43: 16.9 | L43: 11.4 | M43: 7.5 | N43: 5.9
B44: Málaga | C44: 8.3 | D44: 12 | E44: 15.5 | F44: 18.5 | G44: 23.2 | H44: 24.5 | I44: 26.5 | J44: 23.2 | K44: 19 | L44: 13.6 | M44: 9.3 | N44: 8
B45: Melilla | C45: 9.4 | D45: 12.6 | E45: 17.2 | F45: 20.3 | G45: 23 | H45: 24.8 | I45: 24.8 | J45: 22.6 | K45: 18.3 | L45: 14.2 | M45: 10.9 | N45: 8.7
B46: Murcia | C46: 10.1 | D46: 14.8 | E46: 16.6 | F46: 20.4 | G46: 24.2 | H46: 25.6 | I46: 27.7 | J46: 23.5 | K46: 18.6 | L46: 13.9 | M46: 9.8 | N46: 8.1
B47: Pamplona | C47: 5 | D47: 7.4 | E47: 12.3 | F47: 14.5 | G47: 17.1 | H47: 18.9 | I47: 20.5 | J47: 18.2 | K47: 16.2 | L47: 10.2 | M47: 6 | N47: 4.5
B48: Orense | C48: 4.7 | D48: 7.3 | E48: 11.3 | F48: 14 | G48: 16.2 | H48: 17.6 | I48: 18.3 | J48: 16.6 | K48: 14.3 | L48: 9.4 | M48: 5.6 | N48: 4.3
B49: Palencia | C49: 5.3 | D49: 9 | E49: 13.2 | F49: 17.5 | G49: 19.7 | H49: 21.8 | I49: 24.1 | J49: 21.6 | K49: 17.1 | L49: 10.9 | M49: 6.6 | N49: 4.6
B50: Pontevedra | C50: 5.5 | D50: 8.2 | E50: 13 | F50: 15.7 | G50: 17.5 | H50: 20.4 | I50: 22 | J50: 18.9 | K50: 15.1 | L50: 11.3 | M50: 6.8 | N50: 5.5
B51: Logroño | C51: 5.6 | D51: 8.8 | E51: 13.7 | F51: 16.6 | G51: 19.2 | H51: 21.4 | I51: 23.3 | J51: 20.8 | K51: 16.2 | L51: 10.7 | M51: 6.8 | N51: 4.8
B52: Salamanca | C52: 6.1 | D52: 9.5 | E52: 13.5 | F52: 17.1 | G52: 19.7 | H52: 22.8 | I52: 24.6 | J52: 22.6 | K52: 17.5 | L52: 11.3 | M52: 7.4 | N52: 5.2
B53: Segovia | C53: 5.7 | D53: 8.8 | E53: 13.4 | F53: 18.4 | G53: 20.4 | H53: 22.6 | I53: 25.7 | J53: 24.9 | K53: 18.8 | L53: 11.4 | M53: 6.8 | N53: 5.1
B54: Sevilla | C54: 7.3 | D54: 10.9 | E54: 14.4 | F54: 19.2 | G54: 22.4 | H54: 24.3 | I54: 24.9 | J54: 23 | K54: 17.9 | L54: 12.3 | M54: 8.8 | N54: 6.9
B55: Soria | C55: 5.9 | D55: 8.7 | E55: 12.8 | F55: 17.1 | G55: 19.7 | H55: 21.8 | I55: 24.1 | J55: 22.3 | K55: 17.5 | L55: 11.1 | M55: 7.6 | N55: 5.6
B56: Santa Cruz de Tenerife | C56: 10.7 | D56: 13.3 | E56: 18.1 | F56: 21.5 | G56: 25.7 | H56: 26.5 | I56: 29.3 | J56: 26.6 | K56: 21.2 | L56: 16.2 | M56: 10.8 | N56: 9.3
B57: Tarragona | C57: 7.3 | D57: 10.7 | E57: 14.9 | F57: 17.6 | G57: 20.2 | H57: 22.5 | I57: 23.8 | J57: 20.5 | K57: 16.4 | L57: 12.3 | M57: 8.8 | N57: 6.3
B58: Teruel | C58: 6.1 | D58: 8.8 | E58: 12.9 | F58: 16.7 | G58: 18.4 | H58: 20.6 | I58: 21.8 | J58: 20.7 | K58: 16.9 | L58: 11 | M58: 7.1 | N58: 5.3
B59: Toledo | C59: 6.2 | D59: 9.5 | E59: 14 | F59: 19.3 | G59: 21 | H59: 24.4 | I59: 27.2 | J59: 24.5 | K59: 18.1 | L59: 11.9 | M59: 7.6 | N59: 5.6
B60: Valencia | C60: 7.6 | D60: 10.6 | E60: 14.9 | F60: 18.1 | G60: 20.6 | H60: 22.8 | I60: 23.8 | J60: 20.7 | K60: 16.7 | L60: 12 | M60: 8.7 | N60: 6.6
B61: Valladolid | C61: 5.5 | D61: 8.8 | E61: 13.9 | F61: 17.2 | G61: 19.9 | H61: 22.6 | I61: 25.1 | J61: 23 | K61: 18.3 | L61: 11.2 | M61: 6.9 | N61: 4.2
B62: San Sebastian | C62: 5 | D62: 7.1 | E62: 10.8 | F62: 12.7 | G62: 15.5 | H62: 16.7 | I62: 17.9 | J62: 15.7 | K62: 13.1 | L62: 9.3 | M62: 6 | N62: 4.6
B63: Zamora | C63: 5.4 | D63: 8.9 | E63: 13.2 | F63: 17.3 | G63: 22.2 | H63: 21.6 | I63: 23.5 | J63: 22 | K63: 17.2 | L63: 11.1 | M63: 6.7 | N63: 4.6
B64: Zaragoza | C64: 6.3 | D64: 9.8 | E64: 15.2 | F64: 18.3 | G64: 21.8 | H64: 24.2 | I64: 25.1 | J64: 23.4 | K64: 18.3 | L64: 12.1 | M64: 7.4 | N64: 5.7
B66: Radiación global media diaria kWh/m2 dia. Atlas de radiación solaren España AEMET 2012. Datos SAF 1983-2005
C67: ENERO | D67: FEBRERO | E67: MARZO | F67: ABRIL | G67: MAYO | H67: JUNIO | I67: JULIO | J67: AGOSTO | K67: SEPTIEMBRE | L67: OCTUBRE | M67: NOVIEMBRE | N67: DICIEMBRE | O67: anual
B68: Albacete | C68: 2.49 | D68: 3.39 | E68: 4.72 | F68: 5.97 | G68: 6.65 | H68: 7.65 | I68: 7.96 | J68: 6.91 | K68: 5.51 | L68: 3.75 | M68: 2.64 | N68: 2.11 | O68: 4.98
B69: Alicante | C69: 2.61 | D69: 3.49 | E69: 4.70 | F69: 6.13 | G69: 6.92 | H69: 7.65 | I69: 7.96 | J69: 6.91 | K69: 5.51 | L69: 3.75 | M69: 2.64 | N69: 2.11 | O69: 5.05
B70: Almería | C70: 2.84 | D70: 3.72 | E70: 4.93 | F70: 6.52 | G70: 7.21 | H70: 7.94 | I70: 7.89 | J70: 7.02 | K70: 5.71 | L70: 4.15 | M70: 3.02 | N70: 2.46 | O70: 5.29
B71: Ávila | C71: 2.13 | D71: 3.06 | E71: 4.44 | F71: 5.45 | G71: 6.15 | H71: 7.31 | I71: 7.72 | J71: 6.66 | K71: 5.17 | L71: 3.37 | M71: 2.29 | N71: 1.81 | O71: 4.63
B72: Badajoz | C72: 2.43 | D72: 3.34 | E72: 4.80 | F72: 5.84 | G72: 6.80 | H72: 7.84 | I72: 8.06 | J72: 7.12 | K72: 5.61 | L72: 3.79 | M72: 2.63 | N72: 1.98 | O72: 5.02
B73: Barcelona | C73: 2.18 | D73: 3.14 | E73: 4.34 | F73: 5.69 | G73: 6.47 | H73: 7.10 | I73: 7.33 | J73: 6.12 | K73: 4.78 | L73: 3.33 | M73: 2.31 | N73: 1.91 | O73: 4.56
B74: Bilbao | C74: 1.56 | D74: 2.23 | E74: 3.43 | F74: 4.30 | G74: 5.17 | H74: 5.55 | I74: 5.49 | J74: 4.87 | K74: 4.08 | L74: 2.72 | M74: 1.70 | N74: 1.38 | O74: 3.54
B75: Burgos | C75: 1.69 | D75: 2.55 | E75: 4.08 | F75: 4.96 | G75: 6.04 | H75: 7.22 | I75: 7.42 | J75: 6.44 | K75: 4.96 | L75: 3.05 | M75: 1.92 | N75: 1.45 | O75: 4.31
B76: Cáceres | C76: 2.39 | D76: 3.34 | E76: 4.79 | F76: 5.86 | G76: 6.82 | H76: 7.81 | I76: 8.08 | J76: 7.07 | K76: 5.54 | L76: 3.66 | M76: 2.56 | N76: 1.98 | O76: 4.99
B77: Cádiz | C77: 2.77 | D77: 3.71 | E77: 5.03 | F77: 6.37 | G77: 7.29 | H77: 7.90 | I77: 7.96 | J77: 7.11 | K77: 5.80 | L77: 4.13 | M77: 2.96 | N77: 2.38 | O77: 5.28
B78: Castellón | C78: 2.43 | D78: 3.34 | E78: 4.53 | F78: 5.88 | G78: 6.52 | H78: 7.24 | I78: 7.48 | J78: 6.38 | K78: 5.03 | L78: 3.63 | M78: 2.55 | N78: 2.08 | O78: 4.76
B79: Ceuta | C79: 2.57 | D79: 3.31 | E79: 4.41 | F79: 5.97 | G79: 6.74 | H79: 7.64 | I79: 7.61 | J79: 6.72 | K79: 5.38 | L79: 3.69 | M79: 2.68 | N79: 2.15 | O79: 4.91
B80: Ciudad Real | C80: 2.36 | D80: 3.39 | E80: 4.85 | F80: 5.92 | G80: 6.70 | H80: 7.81 | I80: 8.09 | J80: 7.13 | K80: 5.62 | L80: 3.80 | M80: 2.61 | N80: 2.01 | O80: 5.03
B81: Córdoba | C81: 2.62 | D81: 3.53 | E81: 4.91 | F81: 5.92 | G81: 6.76 | H81: 7.85 | I81: 8.12 | J81: 7.19 | K81: 5.70 | L81: 3.88 | M81: 2.79 | N81: 2.23 | O81: 5.12
B82: Coruña, La | C82: 1.60 | D82: 2.34 | E82: 3.62 | F82: 4.62 | G82: 5.64 | H82: 6.36 | I82: 6.30 | J82: 5.71 | K82: 4.39 | L82: 2.71 | M82: 1.74 | N82: 1.34 | O82: 3.86
B83: Cuenca | C83: 2.24 | D83: 3.18 | E83: 4.49 | F83: 5.40 | G83: 6.26 | H83: 7.44 | I83: 7.85 | J83: 6.83 | K83: 5.30 | L83: 3.45 | M83: 2.38 | N83: 1.90 | O83: 4.73
B84: Gerona | C84: 2.14 | D84: 3.04 | E84: 4.27 | F84: 5.29 | G84: 5.99 | H84: 6.56 | I84: 7.03 | J84: 5.93 | K84: 4.71 | L84: 3.25 | M84: 2.27 | N84: 1.86 | O84: 4.36
B85: Granada | C85: 2.77 | D85: 3.64 | E85: 4.92 | F85: 5.98 | G85: 6.88 | H85: 7.90 | I85: 8.07 | J85: 7.18 | K85: 5.73 | L85: 4.05 | M85: 2.92 | N85: 2.37 | O85: 5.20
B86: Guadalajara | C86: 2.20 | D86: 3.17 | E86: 4.58 | F86: 5.66 | G86: 6.54 | H86: 7.70 | I86: 7.95 | J86: 6.96 | K86: 5.41 | L86: 3.52 | M86: 2.34 | N86: 1.85 | O86: 4.82
B87: Huelva | C87: 2.69 | D87: 3.63 | E87: 4.97 | F87: 6.12 | G87: 7.01 | H87: 7.92 | I87: 8.07 | J87: 7.20 | K87: 5.78 | L87: 4.04 | M87: 2.92 | N87: 2.28 | O87: 5.22
B88: Huesca | C88: 2.06 | D88: 3.25 | E88: 4.67 | F88: 5.82 | G88: 6.68 | H88: 7.48 | I88: 7.69 | J88: 6.58 | K88: 5.24 | L88: 3.47 | M88: 2.33 | N88: 1.79 | O88: 4.76
B89: Jaén | C89: 2.68 | D89: 3.57 | E89: 4.94 | F89: 6.06 | G89: 6.86 | H89: 7.95 | I89: 8.12 | J89: 7.18 | K89: 5.69 | L89: 3.95 | M89: 2.82 | N89: 2.29 | O89: 5.18
B90: León | C90: 1.86 | D90: 2.86 | E90: 4.28 | F90: 5.35 | G90: 6.21 | H90: 7.39 | I90: 7.58 | J90: 6.57 | K90: 4.99 | L90: 3.13 | M90: 2.09 | N90: 1.56 | O90: 4.49
B91: Lleida | C91: 1.98 | D91: 3.25 | E91: 4.73 | F91: 6.03 | G91: 6.81 | H91: 7.60 | I91: 7.72 | J91: 6.61 | K91: 5.29 | L91: 3.55 | M91: 2.29 | N91: 1.64 | O91: 4.79
B92: Logroño | C92: 1.77 | D92: 2.66 | E92: 4.07 | F92: 4.98 | G92: 5.85 | H92: 6.80 | I92: 7.05 | J92: 6.13 | K92: 4.76 | L92: 3.07 | M92: 1.97 | N92: 1.54 | O92: 4.22
B93: Lugo | C93: 1.65 | D93: 2.37 | E93: 3.64 | F93: 4.49 | G93: 5.32 | H93: 6.27 | I93: 6.33 | J93: 5.71 | K93: 4.35 | L93: 2.71 | M93: 1.79 | N93: 1.40 | O93: 3.83
B94: Madrid | C94: 2.27 | D94: 3.25 | E94: 4.65 | F94: 5.75 | G94: 6.60 | H94: 7.74 | I94: 8.04 | J94: 7.00 | K94: 5.47 | L94: 3.56 | M94: 2.43 | N94: 1.87 | O94: 4.88
B95: Málaga | C95: 2.78 | D95: 3.60 | E95: 4.85 | F95: 6.15 | G95: 7.00 | H95: 7.87 | I95: 7.97 | J95: 7.05 | K95: 5.76 | L95: 4.07 | M95: 2.92 | N95: 2.36 | O95: 5.20
B96: Melilla | C96: 2.86 | D96: 3.70 | E96: 4.82 | F96: 6.32 | G96: 6.76 | H96: 7.29 | I96: 7.35 | J96: 6.66 | K96: 5.55 | L96: 4.13 | M96: 3.04 | N96: 2.57 | O96: 5.09
B97: Murcia | C97: 2.72 | D97: 3.60 | E97: 4.80 | F97: 6.29 | G97: 6.96 | H97: 7.73 | I97: 7.89 | J97: 6.87 | K97: 5.51 | L97: 3.99 | M97: 2.88 | N97: 2.35 | O97: 5.13
B98: Orense | C98: 1.74 | D98: 2.56 | E98: 3.82 | F98: 4.72 | G98: 5.69 | H98: 6.80 | I98: 6.96 | J98: 6.18 | K98: 4.66 | L98: 2.87 | M98: 1.84 | N98: 1.44 | O98: 4.11
B99: Oviedo | C99: 1.77 | D99: 2.43 | E99: 3.60 | F99: 4.46 | G99: 4.99 | H99: 5.34 | I99: 5.29 | J99: 4.80 | K99: 4.10 | L99: 2.74 | M99: 1.87 | N99: 1.49 | O99: 3.57
B100: Palencia | C100: 1.89 | D100: 2.96 | E100: 4.44 | F100: 5.46 | G100: 6.38 | H100: 7.51 | I100: 7.72 | J100: 6.74 | K100: 5.19 | L100: 3.29 | M100: 2.14 | N100: 1.61 | O100: 4.61
B101: Palma de Mallorca | C101: 2.32 | D101: 3.13 | E101: 4.46 | F101: 5.86 | G101: 6.68 | H101: 7.51 | I101: 7.58 | J101: 6.63 | K101: 4.98 | L101: 3.60 | M101: 2.50 | N101: 2.05 | O101: 4.77
B102: Pamplona | C102: 1.62 | D102: 2.49 | E102: 3.80 | F102: 4.58 | G102: 5.66 | H102: 6.62 | I102: 6.86 | J102: 5.95 | K102: 4.60 | L102: 2.96 | M102: 1.87 | N102: 1.47 | O102: 4.04
B103: Pontevedra | C103: 1.74 | D103: 2.53 | E103: 3.82 | F103: 4.76 | G103: 5.77 | H103: 6.73 | I103: 6.76 | J103: 6.05 | K103: 4.64 | L103: 2.90 | M103: 1.88 | N103: 1.44 | O103: 4.08
B104: Salamanca | C104: 2.08 | D104: 3.09 | E104: 4.49 | F104: 5.56 | G104: 6.44 | H104: 7.60 | I104: 7.82 | J104: 6.84 | K104: 5.27 | L104: 3.43 | M104: 2.28 | N104: 1.78 | O104: 4.72
B105: San Sebastian | C105: 1.53 | D105: 2.22 | E105: 3.49 | F105: 4.39 | G105: 5.18 | H105: 5.62 | I105: 5.59 | J105: 4.93 | K105: 4.11 | L105: 2.59 | M105: 1.66 | N105: 1.33 | O105: 3.55
B106: Santander | C106: 1.60 | D106: 2.34 | E106: 3.60 | F106: 4.60 | G106: 5.33 | H106: 5.80 | I106: 5.71 | J106: 5.04 | K106: 4.18 | L106: 2.69 | M106: 1.69 | N106: 1.36 | O106: 3.66
B107: Segovia | C107: 2.00 | D107: 2.90 | E107: 4.32 | F107: 5.26 | G107: 6.09 | H107: 7.30 | I107: 7.70 | J107: 6.67 | K107: 5.15 | L107: 3.29 | M107: 2.16 | N107: 1.72 | O107: 4.55
B108: Sevilla | C108: 2.72 | D108: 3.66 | E108: 5.03 | F108: 6.14 | G108: 6.99 | H108: 7.88 | I108: 8.10 | J108: 7.20 | K108: 5.78 | L108: 4.02 | M108: 2.92 | N108: 2.33 | O108: 5.23
B109: Soria | C109: 1.96 | D109: 2.92 | E109: 4.33 | F109: 5.27 | G109: 6.12 | H109: 7.15 | I109: 7.48 | J109: 6.43 | K109: 4.98 | L109: 3.23 | M109: 2.16 | N109: 1.72 | O109: 4.48
B110: Tarragona | C110: 2.26 | D110: 3.25 | E110: 4.46 | F110: 5.76 | G110: 6.51 | H110: 7.26 | I110: 7.44 | J110: 7.14 | K110: 4.87 | L110: 3.42 | M110: 2.41 | N110: 1.98 | O110: 4.65
B111: Teruel | C111: 2.31 | D111: 3.27 | E111: 4.56 | F111: 5.63 | G111: 6.39 | H111: 7.27 | I111: 7.59 | J111: 6.54 | K111: 5.22 | L111: 3.57 | M111: 2.44 | N111: 1.93 | O111: 4.73
B112: Toledo | C112: 2.38 | D112: 3.35 | E112: 4.81 | F112: 5.94 | G112: 6.71 | H112: 7.85 | I112: 8.09 | J112: 7.08 | K112: 5.57 | L112: 3.72 | M112: 2.55 | N112: 1.95 | O112: 5.00
B113: Valencia | C113: 2.52 | D113: 3.40 | E113: 4.68 | F113: 6.07 | G113: 6.78 | H113: 7.48 | I113: 7.68 | J113: 6.62 | K113: 5.28 | L113: 3.78 | M113: 2.67 | N113: 2.13 | O113: 4.92
B114: Valladolid | C114: 1.92 | D114: 3.01 | E114: 4.47 | F114: 5.53 | G114: 6.48 | H114: 7.55 | I114: 7.75 | J114: 6.79 | K114: 5.26 | L114: 3.36 | M114: 2.18 | N114: 1.64 | O114: 4.66
B115: Vitoria | C115: 1.56 | D115: 2.32 | E115: 3.58 | F115: 4.46 | G115: 5.40 | H115: 6.11 | I115: 6.28 | J115: 5.49 | K115: 4.37 | L115: 2.83 | M115: 1.79 | N115: 1.38 | O115: 3.80
B116: Zamora | C116: 1.93 | D116: 3.06 | E116: 4.53 | F116: 5.60 | G116: 6.53 | H116: 7.67 | I116: 7.80 | J116: 6.85 | K116: 5.24 | L116: 3.39 | M116: 2.21 | N116: 1.67 | O116: 4.71
B117: Zaragoza | C117: 2.05 | D117: 3.21 | E117: 4.66 | F117: 5.82 | G117: 6.75 | H117: 7.56 | I117: 7.76 | J117: 6.64 | K117: 5.25 | L117: 3.52 | M117: 2.35 | N117: 1.79 | O117: 4.78
B118: Palmas de Gran Canarias | C118: 3.50 | D118: 4.14 | E118: 5.03 | F118: 5.95 | G118: 6.51 | H118: 6.22 | I118: 6.06 | J118: 6.05 | K118: 5.64 | L118: 4.70 | M118: 3.71 | N118: 3.24 | O118: 5.06
B119: Santa Cruz de Tenerife | C119: 3.47 | D119: 4.22 | E119: 5.04 | F119: 6.11 | G119: 6.59 | H119: 7.22 | I119: 7.60 | J119: 7.02 | K119: 5.90 | L119: 4.79 | M119: 3.70 | N119: 3.17 | O119: 5.40

Sheet Datos CTE (hidden)
B2: DATOS CTE HE-4 CONTRIBUCIÓN SOLAR MÍNIMA
B4: Consumo acs a 60ºC CTE HE4 2013 Tabla 3,1
B5: Viviendas | C5: 28 | D5: Nº de personas: | E5: nº
B6: Sin otros usos | C6: 0
B7: Hospitales y clinicas | C7: 55 | D7: Nº de personas: | E7: nº
B8: Hoteles 5 **** | C8: 69 | D8: Nº de personas: | E8: nº
B9: Hoteles 4 **** | C9: 55 | D9: Nº de personas: | E9: nº
B10: Hotel 3 *** | C10: 41 | D10: Nº de personas: | E10: nº
B11: Hotel / Hostal 2 ** | C11: 34 | D11: Nº de personas: | E11: nº
B12: Camping | C12: 21 | D12: Nº de personas: | E12: nº
B13: Hostal / Pensión 1 * | C13: 28 | D13: Nº de personas: | E13: nº
B14: Residencia publica | C14: 41 | D14: Nº de personas: | E14: nº
B15: Centro penitenciario | C15: 28 | D15: Nº de personas: | E15: nº
B16: Albergue | C16: 24 | D16: Nº de personas: | E16: nº
B17: Vestuarios/duchas colectivas | C17: 21 | D17: Nº de personas: | E17: nº
B18: Escuelas sin duchas | C18: 4 | D18: Nº de personas: | E18: nº
B19: Escuelas con duchas | C19: 21 | D19: Nº de personas: | E19: nº
B20: Cuarteles | C20: 28 | D20: Nº de personas: | E20: nº
B21: Fábricas y talleres | C21: 21 | D21: Nº de personas: | E21: nº
B22: Administrativos | C22: 2 | D22: Nº de personas: | E22: nº
B23: Gimnasios | C23: 21 | D23: Nº de personas: | E23: nº
B24: Restaurantes | C24: 8 | D24: Nº de personas: | E24: nº
B25: Cafeterías | C25: 1 | D25: Nº de personas: | E25: nº
B26: Otros (1 l/d por persona) | C26: 1 | D26: Demanda de litros ACS/día a 60ºC | E26: l/d
B28: Contribución solar mínima CTE HE4 Tabla 2.1
B30: Zona climática | C30: ='HE-4 SOLAR'!D7 -> IV | E30: fila | F30: =MATCH(C31,B35:B37,1) -> 1
B31: Vol. Acumulación | C31: ='HE-4 SOLAR'!L28 -> 2343.6 | E31: columna | F31: =MATCH(C30,$E$34:$I$34,1) -> 4
B32: %min solar | C32: =INDEX($E$35:$I$37,$F$30,$F$31) -> 50.00%
B34: min | C34: max | E34: I | F34: II | G34: III | H34: IV | I34: V
B35: 50 | C35: 5,000 | E35: 30.00% | F35: 30.00% | G35: 40.00% | H35: 50.00% | I35: 60.00%
B36: 5,001 | C36: 10,000 | E36: 30.00% | F36: 40.00% | G36: 50.00% | H36: 60.00% | I36: 70.00%
B37: 10,001 | E37: 30.00% | F37: 50.00% | G37: 60.00% | H37: 70.00% | I37: 70.00%
B39: Pérdidas Límite CTE HE4 Tabla 2.4
D40: Orientación e inclinación | E40: Sombras | F40: Total
A41: 1 | B41: General | D41: 10.00% | E41: 10.00% | F41: 15.00%
A42: 2 | B42: Superposición | D42: 20.00% | E42: 15.00% | F42: 30.00%
A43: 3 | B43: Integración | D43: 40.00% | E43: 20.00% | F43: 50.00%
B45: Calculo de ocupación en uso residencial vivienda
D46: nº Dormitorios | E46: 1 | F46: 2 | G46: 3 | H46: 4 | I46: 5 | J46: 6 | K46: 7 | L46: >7
D48: Nº Ocupantes (2013) | E48: 1.5 | F48: 3 | G48: 4 | H48: 5 | I48: 6 | J48: 6 | K48: 7 | L48: 7
B50: Factor de centralización
E51: limites | F51: factor
B52: nº viviendas | C52: ='HE-4 SOLAR'!Q23 -> 20 | E52: 3 | F52: 1
B53: fila | C53: =IF(C52=0,0,IF(C52<=3,1,MATCH(C52,$E$52:$E$58,1))) -> 3 | E53: 4 | F53: 0.95
B54: factor | C54: =IF(C52<=0,0,INDEX($E$52:$F$58,$C$53,2)) -> 0.9 | E54: 11 | F54: 0.9
E55: 21 | F55: 0.85
E56: 51 | F56: 0.8
E57: 76 | F57: 0.75
E58: 101 | F58: 0.7
B59: Zona radiación solar
B61: Radiación global anual | C61: ='Datos SOLAR'!F4 -> 17.59 | D61: MJ/m2 dia | E61: I | F61: 0.00 | G61: 13.70
B62: fila | C62: =MATCH($C$61,$G$61:$G$65,1)+1 -> 4.00 | E62: II | F62: 13.70 | G62: 15.10
B63: Zona radiación | C63: =IF(C61<13.7,"I",INDEX(E61:E65,C62,1)) -> IV | E63: III | F63: 15.10 | G63: 16.60
E64: IV | F64: 16.60 | G64: 18.00
E65: V | F65: 18.00 | G65: 100000.00

Sheet Factor K (hidden)
C2: Factor de corrección k para superficies inclinadas
C3: Representa el cociente entre la energía total incidente en un día sobre una superficie orientada hacia el ecuador (sur en el hemisferio norte, norte en el hemisferio sur) e inclinada un determinado ángulo y y la energía total incidente en un día sobre una superficie horizontal
C4: Los valores están obtenidos del anexo X del Pliego de Condiciones Técnicas de Instalaciones de baja temperatura, IDAE, 2002, tomados a su vez de CENSOLAR
C6: Provincia | D6: ='HE-4 SOLAR'!D6 -> Madrid | H6: Localizacion factor K
C7: Latitud | D7: ='HE-4 SOLAR'!D9 -> 40.4 | I7: fila Enero | J7: =VLOOKUP($D$8,$A$225:$B$238,2,FALSE) -> 122
C8: Latitud (Redond) | D8: =ROUND(D7,0) -> 40 | I8: columna | J8: =MATCH($D$9,E13:W13,0) -> 8
C9: Inclinación | D9: =MROUND('HE-4 SOLAR'!D39,5) -> 35 | F9: Enero | G9: Febrero | H9: Marzo | I9: Abril | J9: Mayo | K9: Junio | L9: Julio | M9: Agosto | N9: Septiembre | O9: Octubre | P9: Noviembre | Q9: Diciembre
C10: Factor K | F10: =INDEX($E$13:$W$221,$J$7,$J$8) -> 1.37 | G10: =INDEX($E$13:$W$221,$J$7+1,$J$8) -> 1.28 | H10: =INDEX($E$13:$W$221,$J$7+2,$J$8) -> 1.17 | I10: =INDEX($E$13:$W$221,$J$7+3,$J$8) -> 1.06 | J10: =INDEX($E$13:$W$221,$J$7+4,$J$8) -> 0.98 | K10: =INDEX($E$13:$W$221,$J$7+5,$J$8) -> 0.95 | L10: =INDEX($E$13:$W$221,$J$7+6,$J$8) -> 0.98 | M10: =INDEX($E$13:$W$221,$J$7+7,$J$8) -> 1.07 | N10: =INDEX($E$13:$W$221,$J$7+8,$J$8) -> 1.21 | O10: =INDEX($E$13:$W$221,$J$7+9,$J$8) -> 1.37 | P10: =INDEX($E$13:$W$221,$J$7+10,$J$8) -> 1.47 | Q10: =INDEX($E$13:$W$221,$J$7+11,$J$8) -> 1.45
A12: 28
B13: 1 | C13: latitud = 28 º | D13: Inclinación | E13: 0 | F13: 5 | G13: 10 | H13: 15 | I13: 20 | J13: 25 | K13: 30 | L13: 35 | M13: 40 | N13: 45 | O13: 50 | P13: 55 | Q13: 60 | R13: 65 | S13: 70 | T13: 75 | U13: 80 | V13: 85 | W13: 90
B14: =B13+1 -> 2 | D14: Enero | E14: 1.00 | F14: 1.05 | G14: 1.10 | H14: 1.14 | I14: 1.17 | J14: 1.20 | K14: 1.22 | L14: 1.23 | M14: 1.24 | N14: 1.23 | O14: 1.22 | P14: 1.20 | Q14: 1.18 | R14: 1.14 | S14: 1.10 | T14: 1.06 | U14: 1.00 | V14: 0.94 | W14: 0.88
B15: 3 | D15: Febrero | E15: 1.00 | F15: 1.04 | G15: 1.08 | H15: 1.11 | I15: 1.13 | J15: 1.15 | K15: 1.15 | L15: 1.16 | M15: 1.15 | N15: 1.14 | O15: 1.12 | P15: 1.09 | Q15: 1.05 | R15: 1.01 | S15: 0.97 | T15: 0.91 | U15: 0.86 | V15: 0.79 | W15: 0.72
B16: 4 | D16: Marzo | E16: 1.00 | F16: 1.03 | G16: 1.05 | H16: 1.07 | I16: 1.08 | J16: 1.08 | K16: 1.07 | L16: 1.06 | M16: 1.04 | N16: 1.01 | O16: 0.98 | P16: 0.94 | Q16: 0.90 | R16: 0.85 | S16: 0.79 | T16: 0.73 | U16: 0.66 | V16: 0.59 | W16: 0.52
B17: 5 | D17: Abril | E17: 1.00 | F17: 1.01 | G17: 1.02 | H17: 1.02 | I17: 1.02 | J17: 1.00 | K17: 0.98 | L17: 0.96 | M17: 0.92 | N17: 0.89 | O17: 0.84 | P17: 0.79 | Q17: 0.73 | R17: 0.67 | S17: 0.61 | T17: 0.54 | U17: 0.47 | V17: 0.39 | W17: 0.32
B18: 6 | D18: Mayo | E18: 1.00 | F18: 1.00 | G18: 1.00 | H18: 0.99 | I18: 0.97 | J18: 0.95 | K18: 0.92 | L18: 0.88 | M18: 0.84 | N18: 0.79 | O18: 0.73 | P18: 0.68 | Q18: 0.61 | R18: 0.55 | S18: 0.48 | T18: 0.4 | U18: 0.33 | V18: 0.25 | W18: 0.17
B19: 7 | D19: Junio | E19: 1.00 | F19: 1.00 | G19: 0.99 | H19: 0.98 | I19: 0.95 | J19: 0.93 | K19: 0.89 | L19: 0.85 | M19: 0.80 | N19: 0.75 | O19: 0.69 | P19: 0.63 | Q19: 0.57 | R19: 0.50 | S19: 0.42 | T19: 0.35 | U19: 0.27 | V19: 0.19 | W19: 0.11
B20: 8 | D20: Julio | E20: 1.00 | G20: 1.00 | H20: 0.99 | I20: 0.97 | J20: 0.95 | K20: 0.92 | L20: 0.88 | M20: 0.84 | N20: 0.79 | O20: 0.73 | P20: 0.67 | Q20: 0.61 | R20: 0.54 | S20: 0.47 | T20: 0.39 | U20: 0.32 | V20: 0.24 | W20: 0.16
B21: 9 | D21: Agosto | E21: 1.00 | F21: 1.02 | G21: 1.02 | H21: 1.03 | I21: 1.02 | J21: 1.01 | K21: 0.99 | L21: 0.96 | M21: 0.93 | N21: 0.89 | O21: 0.84 | P21: 0.79 | Q21: 0.73 | R21: 0.67 | S21: 0.60 | T21: 0.53 | U21: 0.46 | V21: 0.38 | W21: 0.31
B22: 10 | D22: Septiembre | E22: 1.00 | F22: 1.03 | G22: 1.06 | H22: 1.08 | I22: 1.09 | J22: 1.09 | K22: 1.09 | L22: 1.08 | M22: 1.06 | N22: 1.04 | O22: 1.00 | P22: 0.96 | Q22: 0.92 | R22: 0.86 | S22: 0.81 | T22: 0.74 | U22: 0.67 | V22: 0.60 | W22: 0.53
B23: 11 | D23: Octubre | E23: 1.00 | F23: 1.05 | G23: 1.10 | H23: 1.13 | I23: 1.16 | J23: 1.19 | K23: 1.20 | L23: 1.21 | M23: 1.21 | N23: 1.20 | O23: 1.18 | P23: 1.15 | Q23: 1.12 | R23: 1.08 | S23: 1.03 | T23: 0.97 | U23: 0.91 | V23: 0.84 | W23: 0.77
B24: 12 | D24: Noviembre | E24: 1.00 | F24: 1.06 | G24: 1.12 | H24: 1.17 | I24: 1.21 | J24: 1.25 | K24: 1.27 | L24: 1.29 | M24: 1.30 | N24: 1.30 | O24: 1.30 | P24: 1.28 | Q24: 1.26 | R24: 1.22 | S24: 1.18 | T24: 1.14 | U24: 1.08 | V24: 1.02 | W24: 0.95
B25: 13 | D25: Diciembre | E25: 1.00 | F25: 1.06 | G25: 1.12 | H25: 1.17 | I25: 1.21 | J25: 1.24 | K25: 1.27 | L25: 1.29 | M25: 1.30 | N25: 1.30 | O25: 1.30 | P25: 1.28 | Q25: 1.26 | R25: 1.23 | S25: 1.19 | T25: 1.15 | U25: 1.10 | V25: 1.04 | W25: 0.98
B26: 14 | D26: Media anual | E26: =SUM(E14:E25)/12 -> 1.00 | F26: =SUM(F14:F25)/12 -> 0.95 | G26: 1.06 | H26: 1.07 | I26: 1.08 | J26: 1.09 | K26: 1.08 | L26: 1.07 | M26: 1.05 | N26: 1.03 | O26: 0.99 | P26: 0.96 | Q26: 0.91 | R26: 0.86 | S26: 0.80 | T26: 0.74 | U26: 0.68 | V26: 0.61 | W26: 0.54
A27: 29 | B27: =B26+1 -> 15
B28: 16 | C28: latitud = 29 º | D28: =$D$13 -> Inclinación | E28: =E$13 -> 0 | F28: =F$13 -> 5 | G28: 10 | H28: 15 | I28: 20 | J28: 25 | K28: 30 | L28: 35 | M28: 40 | N28: 45 | O28: 50 | P28: 55 | Q28: 60 | R28: 65 | S28: 70 | T28: 75 | U28: 80 | V28: 85 | W28: 90
B29: 17 | D29: =D$14 -> Enero | E29: 1.00 | F29: 1.05 | G29: 1.10 | H29: 1.15 | I29: 1.18 | J29: 1.21 | K29: 1.23 | L29: 1.24 | M29: 1.25 | N29: 1.24 | O29: 1.23 | P29: 1.22 | Q29: 1.19 | R29: 1.16 | S29: 1.12 | T29: 1.07 | U29: 1.02 | V29: 0.96 | W29: 0.90
B30: 18 | D30: =D$15 -> Febrero | E30: 1.00 | F30: 1.04 | G30: 1.08 | H30: 1.11 | I30: 1.14 | J30: 1.15 | K30: 1.16 | L30: 1.17 | M30: 1.16 | N30: 1.15 | O30: 1.13 | P30: 1.10 | Q30: 1.07 | R30: 1.03 | S30: 0.98 | T30: 0.93 | U30: 0.87 | V30: 0.81 | W30: 0.74
B31: 19 | D31: =D$16 -> Marzo | E31: 1.00 | F31: 1.03 | G31: 1.05 | H31: 1.07 | I31: 1.08 | J31: 1.08 | K31: 1.08 | L31: 1.07 | M31: 1.05 | N31: 1.02 | O31: 0.99 | P31: 0.95 | Q31: 0.91 | R31: 0.86 | S31: 0.80 | T31: 0.74 | U31: 0.68 | V31: 0.61 | W31: 0.54
B32: 20 | D32: =D$17 -> Abril | E32: 1.00 | F32: 1.02 | G32: 1.02 | H32: 1.03 | I32: 1.02 | J32: 1.01 | K32: 0.99 | L32: 0.97 | M32: 0.93 | N32: 0.90 | O32: 0.85 | P32: 0.80 | Q32: 0.75 | R32: 0.69 | S32: 0.62 | T32: 0.55 | U32: 0.48 | V32: 0.41 | W32: 0.33
B33: 21 | D33: =D$18 -> Mayo | E33: 1.00 | F33: 1.00 | G33: 1.00 | H33: 0.99 | I33: 0.98 | J33: 0.95 | K33: 0.92 | L33: 0.89 | M33: 0.85 | N33: 0.80 | O33: 0.75 | P33: 0.69 | Q33: 0.63 | R33: 0.56 | S33: 0.49 | T33: 0.42 | U33: 0.34 | V33: 0.26 | W33: 0.18
B34: 22 | D34: =D$19 -> Junio | E34: 1.00 | F34: 1.00 | G34: 0.99 | H34: 0.98 | I34: 0.96 | J34: 0.93 | K34: 0.90 | L34: 0.86 | M34: 0.81 | N34: 0.76 | O34: 0.71 | P34: 0.64 | Q34: 0.58 | R34: 0.51 | S34: 0.44 | T34: 0.36 | U34: 0.28 | V34: 0.21 | W34: 0.13
B35: 23 | D35: =D$20 -> Julio | E35: 1.00 | F35: 1.00 | G35: 1.00 | H35: 0.99 | I35: 0.98 | J35: 0.95 | K35: 0.92 | L35: 0.89 | M35: 0.85 | N35: 0.80 | O35: 0.74 | P35: 0.68 | Q35: 0.62 | R35: 0.55 | S35: 0.48 | T35: 0.41 | U35: 0.33 | V35: 0.25 | W35: 0.17
B36: 24 | D36: =D$21 -> Agosto | E36: 1.00 | F36: 1.02 | G36: 1.03 | H36: 1.03 | I36: 1.03 | J36: 1.01 | K36: 1.00 | L36: 0.97 | M36: 0.94 | N36: 0.90 | O36: 0.85 | P36: 0.80 | Q36: 0.75 | R36: 0.69 | S36: 0.62 | T36: 0.55 | U36: 0.48 | V36: 0.40 | W36: 0.32
B37: 25 | D37: =D$22 -> Septiembre | E37: 1.00 | F37: 1.03 | G37: 1.06 | H37: 1.08 | I37: 1.10 | J37: 1.10 | K37: 1.10 | L37: 1.09 | M37: 1.07 | N37: 1.05 | O37: 1.02 | P37: 0.98 | Q37: 0.93 | R37: 0.88 | S37: 0.82 | T37: 0.76 | U37: 0.69 | V37: 0.62 | W37: 0.54
B38: 26 | D38: =D$23 -> Octubre | E38: 1.00 | F38: 1.05 | G38: 1.10 | H38: 1.14 | I38: 1.17 | J38: 1.20 | K38: 1.21 | L38: 1.22 | M38: 1.22 | N38: 1.21 | O38: 1.19 | P38: 1.17 | Q38: 1.14 | R38: 1.10 | S38: 1.05 | T38: 0.99 | U38: 0.93 | V38: 0.87 | W38: 0.79
B39: 27 | D39: =D$24 -> Noviembre | E39: 1.00 | F39: 1.07 | G39: 1.12 | H39: 1.18 | I39: 1.22 | J39: 1.26 | K39: 1.28 | L39: 1.30 | M39: 1.32 | N39: 1.32 | O39: 1.31 | P39: 1.30 | Q39: 1.28 | R39: 1.24 | S39: 1.20 | T39: 1.16 | U39: 1.10 | V39: 1.04 | W39: 0.97
B40: 28 | D40: =D$25 -> Diciembre | E40: 1.00 | F40: 1.06 | G40: 1.12 | H40: 1.17 | I40: 1.22 | J40: 1.25 | K40: 1.28 | L40: 1.30 | M40: 1.31 | N40: 1.32 | O40: 1.31 | P40: 1.30 | Q40: 1.28 | R40: 1.25 | S40: 1.22 | T40: 1.17 | U40: 1.12 | V40: 1.06 | W40: 1.00
B41: 29 | D41: =D$26 -> Media anual | E41: =SUM(E29:E40)/12 -> 1.00 | F41: =SUM(F29:F40)/12 -> 1.03 | G41: 1.06 | H41: 1.08 | I41: 1.09 | J41: 1.09 | K41: 1.09 | L41: 1.08 | M41: 1.06 | N41: 1.04 | O41: 1.01 | P41: 0.97 | Q41: 0.93 | R41: 0.88 | S41: 0.82 | T41: 0.76 | U41: 0.69 | V41: 0.63 | W41: 0.55
A42: 34 | B42: =B41+1 -> 30
B43: =B42+1 -> 31 | C43: latitud = 34 º | D43: =$D$13 -> Inclinación | E43: =E$13 -> 0 | F43: =F$13 -> 5 | G43: =G$13 -> 10 | H43: 15 | I43: 20 | J43: 25 | K43: 30 | L43: 35 | M43: 40 | N43: 45 | O43: 50 | P43: 55 | Q43: 60 | R43: 65 | S43: 70 | T43: 75 | U43: 80 | V43: 85 | W43: 90
B44: =B43+1 -> 32 | D44: =D$14 -> Enero | E44: 1.00 | F44: 1.06 | G44: 1.12 | H44: 1.17 | I44: 1.21 | J44: 1.25 | K44: 1.27 | L44: 1.29 | M44: 1.31 | N44: 1.31 | O44: 1.31 | P44: 1.30 | Q44: 1.28 | R44: 1.25 | S44: 1.21 | T44: 1.17 | U44: 1.12 | V44: 1.06 | W44: 1.00
B45: 33 | D45: =D$15 -> Febrero | E45: 1.00 | F45: 1.05 | G45: 1.10 | H45: 1.13 | I45: 1.16 | J45: 1.19 | K45: 1.20 | L45: 1.21 | M45: 1.21 | N45: 1.21 | O45: 1.19 | P45: 1.17 | Q45: 1.14 | R45: 1.11 | S45: 1.06 | T45: 1.01 | U45: 0.96 | V45: 0.90 | W45: 0.83
B46: 34 | D46: =D$16 -> Marzo | E46: 1.00 | F46: 1.04 | G46: 1.07 | H46: 1.09 | I46: 1.11 | J46: 1.12 | K46: 1.12 | L46: 1.11 | M46: 1.10 | N46: 1.08 | O46: 1.05 | P46: 1.02 | Q46: 0.98 | R46: 0.93 | S46: 0.88 | T46: 0.82 | U46: 0.76 | V46: 0.69 | W46: 0.62
B47: 35 | D47: =D$17 -> Abril | E47: 1.00 | F47: 1.02 | G47: 1.04 | H47: 1.05 | I47: 1.05 | J47: 1.04 | K47: 1.03 | L47: 1.01 | M47: 0.98 | N47: 0.95 | O47: 0.91 | P47: 0.86 | Q47: 0.81 | R47: 0.75 | S47: 0.69 | T47: 0.63 | U47: 0.53 | V47: 0.48 | W47: 0.41
B48: 36 | D48: =D$18 -> Mayo | E48: 1.00 | F48: 1.01 | G48: 1.01 | H48: 1.01 | I48: 1.00 | J48: 0.98 | K48: 0.96 | L48: 0.93 | M48: 0.89 | N48: 0.85 | O48: 0.80 | P48: 0.75 | Q48: 0.69 | R48: 0.63 | S48: 0.56 | T48: 0.49 | U48: 0.41 | V48: 0.34 | W48: 0.26
B49: 37 | D49: =D$19 -> Junio | E49: 1.00 | F49: 1.01 | G49: 1.01 | H49: 1.00 | I49: 0.98 | J49: 0.96 | K49: 0.94 | L49: 0.90 | M49: 0.86 | N49: 0.81 | O49: 0.76 | P49: 0.70 | Q49: 0.64 | R49: 0.58 | S49: 0.51 | T49: 0.43 | U49: 0.36 | V49: 0.28 | W49: 0.20
B50: 38 | D50: =D$20 -> Julio | E50: 1.00 | F50: 1.01 | G50: 1.02 | H50: 1.01 | I50: 1.00 | J50: 0.99 | K50: 0.96 | L50: 0.93 | M50: 0.89 | N50: 0.85 | O50: 0.80 | P50: 0.75 | Q50: 0.69 | R50: 0.62 | S50: 0.55 | T50: 0.48 | U50: 0.41 | V50: 0.33 | W50: 0.25
B51: 39 | D51: =D$21 -> Agosto | E51: 1.00 | F51: 1.02 | G51: 1.04 | H51: 1.05 | I51: 1.05 | J51: 1.05 | K51: 1.03 | L51: 1.01 | M51: 0.99 | N51: 0.95 | O51: 0.91 | P51: 0.87 | Q51: 0.82 | R51: 0.76 | S51: 0.69 | T51: 0.63 | U51: 0.56 | V51: 0.48 | W51: 0.40
B52: 40 | D52: =D$22 -> Septiembre | E52: 1.00 | F52: 1.04 | G52: 1.08 | H52: 1.11 | I52: 1.13 | J52: 1.14 | K52: 1.14 | L52: 1.14 | M52: 1.13 | N52: 1.11 | O52: 1.09 | P52: 1.05 | Q52: 1.01 | R52: 0.96 | S52: 0.91 | T52: 0.85 | U52: 0.78 | V52: 0.71 | W52: 0.64
B53: 41 | D53: =D$23 -> Octubre | E53: 1.00 | F53: 1.06 | G53: 1.12 | H53: 1.17 | I53: 1.21 | J53: 1.24 | K53: 1.27 | L53: 1.28 | M53: 1.29 | N53: 1.29 | O53: 1.28 | P53: 1.26 | Q53: 1.23 | R53: 1.20 | S53: 1.15 | T53: 1.10 | U53: 1.04 | V53: 0.98 | W53: 0.91
B54: 42 | D54: =D$24 -> Noviembre | E54: 1.00 | F54: 1.08 | G54: 1.14 | H54: 1.21 | I54: 1.26 | J54: 1.31 | K54: 1.34 | L54: 1.37 | M54: 1.39 | N54: 1.40 | O54: 1.41 | P54: 1.40 | Q54: 1.38 | R54: 1.36 | S54: 1.32 | T54: 1.28 | U54: 1.23 | V54: 1.17 | W54: 1.10
B55: 43 | D55: =D$25 -> Diciembre | E55: 1.00 | F55: 1.07 | G55: 1.14 | H55: 1.20 | I55: 1.25 | J55: 1.30 | K55: 1.33 | L55: 1.36 | M55: 1.38 | N55: 1.40 | O55: 1.40 | P55: 1.39 | Q55: 1.38 | R55: 1.36 | S55: 1.32 | T55: 1.28 | U55: 1.27 | V55: 1.18 | W55: 1.12
B56: 44 | D56: =D$26 -> Media anual | E56: =SUM(E44:E55)/12 -> 1.00 | F56: =SUM(F44:F55)/12 -> 1.04 | G56: 1.07 | H56: 1.10 | I56: 1.12 | J56: 1.13 | K56: 1.13 | L56: 1.13 | M56: 1.12 | N56: 1.10 | O56: 1.08 | P56: 1.04 | Q56: 1.00 | R56: 0.96 | S56: 0.90 | T56: 0.85 | U56: 0.79 | V56: 0.72 | W56: 0.65
A57: 35 | B57: =B56+1 -> 45
B58: 46 | C58: latitud = 35 º | D58: =$D$13 -> Inclinación | E58: =E$13 -> 0 | F58: =F$13 -> 5 | G58: 10 | H58: 15 | I58: 20 | J58: 25 | K58: 30 | L58: 35 | M58: 40 | N58: 45 | O58: 50 | P58: 55 | Q58: 60 | R58: 65 | S58: 70 | T58: 75 | U58: 80 | V58: 85 | W58: 90
B59: 47 | D59: =D$14 -> Enero | E59: 1.00 | F59: 1.06 | G59: 1.12 | H59: 1.17 | I59: 1.22 | J59: 1.25 | K59: 1.28 | L59: 1.31 | M59: 1.32 | N59: 1.33 | O59: 1.32 | P59: 1.31 | Q59: 1.29 | R59: 1.27 | S59: 1.23 | T59: 1.19 | U59: 1.14 | V59: 1.09 | W59: 1.02
B60: 48 | D60: =D$15 -> Febrero | E60: 1.00 | F60: 1.05 | G60: 1.10 | H60: 1.14 | I60: 1.17 | J60: 1.20 | K60: 1.21 | L60: 1.22 | M60: 1.23 | N60: 1.22 | O60: 1.21 | P60: 1.19 | Q60: 1.16 | R60: 1.12 | S60: 1.08 | T60: 1.03 | U60: 0.98 | V60: 0.92 | W60: 0.85
B61: 49 | D61: =D$16 -> Marzo | E61: 1.00 | F61: 1.04 | G61: 1.07 | H61: 1.09 | I61: 1.11 | J61: 1.12 | K61: 1.13 | L61: 1.12 | M61: 1.11 | N61: 1.09 | O61: 1.07 | P61: 1.03 | Q61: 0.99 | R61: 0.95 | S61: 0.90 | T61: 0.84 | U61: 0.78 | V61: 0.71 | W61: 0.64
B62: 50 | D62: =D$17 -> Abril | E62: 1.00 | F62: 1.02 | G62: 1.04 | H62: 1.05 | I62: 1.05 | J62: 1.05 | K62: 1.04 | L62: 1.02 | M62: 0.99 | N62: 0.96 | O62: 0.92 | P62: 0.87 | Q62: 0.82 | R62: 0.77 | S62: 0.71 | T62: 0.64 | U62: 0.57 | V62: 0.50 | W62: 0.42
B63: 51 | D63: =D$18 -> Mayo | E63: 1.00 | F63: 1.01 | G63: 1.02 | H63: 1.02 | I63: 1.01 | J63: 0.99 | K63: 0.97 | L63: 0.94 | M63: 0.90 | N63: 0.86 | O63: 0.81 | P63: 0.76 | Q63: 0.70 | R63: 0.64 | S63: 0.57 | T63: 0.50 | U63: 0.43 | V63: 0.35 | W63: 0.27
B64: 52 | D64: =D$19 -> Junio | E64: 1.00 | F64: 1.01 | G64: 1.01 | H64: 1.00 | I64: 0.99 | J64: 0.97 | K64: 0.94 | L64: 0.91 | M64: 0.87 | N64: 0.82 | O64: 0.77 | P64: 0.72 | Q64: 0.66 | R64: 0.59 | S64: 0.52 | T64: 0.45 | U64: 0.37 | V64: 0.29 | W64: 0.21
B65: 53 | D65: =D$20 -> Julio | E65: 1.00 | F65: 1.01 | G65: 1.02 | H65: 1.02 | I65: 1.01 | J65: 0.99 | K65: 0.97 | L65: 0.94 | M65: 0.90 | N65: 0.86 | O65: 0.81 | P65: 0.76 | Q65: 0.70 | R65: 0.64 | S65: 0.57 | T65: 0.50 | U65: 0.42 | V65: 0.34 | W65: 0.26
B66: 54 | D66: =D$21 -> Agosto | E66: 1.00 | F66: 1.03 | G66: 1.04 | H66: 1.05 | I66: 1.06 | J66: 1.05 | K66: 1.04 | L66: 1.02 | M66: 1.00 | N66: 0.97 | O66: 0.93 | P66: 0.88 | Q66: 0.83 | R66: 0.77 | S66: 0.71 | T66: 0.64 | U66: 0.57 | V66: 0.50 | W66: 0.42
B67: 55 | D67: =D$22 -> Septiembre | E67: 1.00 | F67: 1.04 | G67: 1.08 | H67: 1.11 | I67: 1.13 | J67: 1.15 | K67: 1.15 | L67: 1.15 | M67: 1.14 | N67: 1.13 | O67: 1.10 | P67: 1.07 | Q67: 1.03 | R67: 0.98 | S67: 0.93 | T67: 0.87 | U67: 0.80 | V67: 0.73 | W67: 0.66
B68: 56 | D68: =D$23 -> Octubre | E68: 1.00 | F68: 1.06 | G68: 1.12 | H68: 1.17 | I68: 1.22 | J68: 1.25 | K68: 1.28 | L68: 1.29 | M68: 1.30 | N68: 1.30 | O68: 1.30 | P68: 1.28 | Q68: 1.25 | R68: 1.22 | S68: 1.18 | T68: 1.13 | U68: 1.07 | V68: 1.00 | W68: 0.93
B69: 57 | D69: =D$24 -> Noviembre | E69: 1.00 | F69: 1.08 | G69: 1.15 | H69: 1.21 | I69: 1.27 | J69: 1.32 | K69: 1.36 | L69: 1.39 | M69: 1.41 | N69: 1.42 | O69: 1.43 | P69: 1.42 | Q69: 1.41 | R69: 1.38 | S69: 1.35 | T69: 1.31 | U69: 1.26 | V69: 1.20 | W69: 1.13
B70: 58 | D70: =D$25 -> Diciembre | E70: 1.00 | F70: 1.07 | G70: 1.14 | H70: 1.21 | I70: 1.26 | J70: 1.31 | K70: 1.35 | L70: 1.38 | M70: 1.40 | N70: 1.41 | O70: 1.42 | P70: 1.41 | Q70: 1.40 | R70: 1.38 | S70: 1.35 | T70: 1.31 | U70: 1.26 | V70: 1.21 | W70: 1.15
B71: 59 | D71: =D$26 -> Media anual | E71: =SUM(E59:E70)/12 -> 1.00 | F71: =SUM(F59:F70)/12 -> 1.04 | G71: 1.08 | H71: 1.10 | I71: 1.13 | J71: 1.14 | K71: 1.14 | L71: 1.14 | M71: 1.13 | N71: 1.11 | O71: 1.09 | P71: 1.06 | Q71: 1.02 | R71: 0.98 | S71: 0.93 | T71: 0.87 | U71: 0.80 | V71: 0.74 | W71: 0.66
A72: 36 | B72: =B71+1 -> 60
B73: =B72+1 -> 61 | C73: latitud = 36 º | D73: =$D$13 -> Inclinación | E73: =E$13 -> 0 | F73: =F$13 -> 5 | G73: =G$13 -> 10 | H73: 15 | I73: 20 | J73: 25 | K73: 30 | L73: 35 | M73: 40 | N73: 45 | O73: 50 | P73: 55 | Q73: 60 | R73: 65 | S73: 70 | T73: 75 | U73: 80 | V73: 85 | W73: 90
B74: 62 | D74: =D$14 -> Enero | E74: 1.00 | F74: 1.07 | G74: 1.13 | H74: 1.18 | I74: 1.22 | J74: 1.26 | K74: 1.29 | L74: 1.32 | M74: 1.33 | N74: 1.34 | O74: 1.34 | P74: 1.33 | Q74: 1.31 | R74: 1.29 | S74: 1.25 | T74: 1.21 | U74: 1.16 | V74: 1.11 | W74: 1.05
B75: 63 | D75: =D$15 -> Febrero | E75: 1.00 | F75: 1.05 | G75: 1.10 | H75: 1.14 | I75: 1.18 | J75: 1.20 | K75: 1.22 | L75: 1.23 | M75: 1.24 | N75: 1.23 | O75: 1.22 | P75: 1.20 | Q75: 1.17 | R75: 1.14 | S75: 1.10 | T75: 1.05 | U75: 1.00 | V75: 0.94 | W75: 0.87
B76: 64 | D76: =D$16 -> Marzo | E76: 1.00 | F76: 1.04 | G76: 1.07 | H76: 1.10 | I76: 1.12 | J76: 1.13 | K76: 1.13 | L76: 1.13 | M76: 1.12 | N76: 1.10 | O76: 1.08 | P76: 1.05 | Q76: 1.01 | R76: 0.96 | S76: 0.91 | T76: 0.85 | U76: 0.79 | V76: 0.73 | W76: 0.65
B77: 65 | D77: =D$17 -> Abril | E77: 1.00 | F77: 1.02 | G77: 1.04 | H77: 1.05 | I77: 1.06 | J77: 1.05 | K77: 1.04 | L77: 1.02 | M77: 1.00 | N77: 0.97 | O77: 0.93 | P77: 0.89 | Q77: 0.84 | R77: 0.78 | S77: 0.72 | T77: 0.66 | U77: 0.59 | V77: 0.52 | W77: 0.44
B78: 66 | D78: =D$18 -> Mayo | E78: 1.00 | F78: 1.01 | G78: 1.02 | H78: 1.02 | I78: 1.01 | J78: 1.00 | K78: 0.98 | L78: 0.95 | M78: 0.91 | N78: 0.87 | O78: 0.82 | P78: 0.77 | Q78: 0.71 | R78: 0.65 | S78: 0.59 | T78: 0.52 | U78: 0.44 | V78: 0.37 | W78: 0.29
B79: 67 | D79: =D$19 -> Junio | E79: 1.00 | F79: 1.01 | G79: 1.01 | H79: 1.01 | I79: 0.99 | J79: 0.98 | K79: 0.95 | L79: 0.92 | M79: 0.88 | N79: 0.84 | O79: 0.78 | P79: 0.73 | Q79: 0.67 | R79: 0.60 | S79: 0.53 | T79: 0.46 | U79: 0.39 | V79: 0.31 | W79: 0.23
B80: 68 | D80: =D$20 -> Julio | E80: 1.00 | F80: 1.01 | G80: 1.02 | H80: 1.02 | I80: 1.01 | J80: 1.00 | K80: 0.98 | L80: 0.95 | M80: 0.91 | N80: 0.87 | O80: 0.82 | P80: 0.77 | Q80: 0.71 | R80: 0.65 | S80: 0.58 | T80: 0.51 | U80: 0.44 | V80: 0.36 | W80: 0.28
B81: 69 | D81: =D$21 -> Agosto | E81: 1.00 | F81: 1.03 | G81: 1.05 | H81: 1.06 | I81: 1.06 | J81: 1.06 | K81: 1.05 | L81: 1.03 | M81: 1.01 | N81: 0.98 | O81: 0.94 | P81: 0.90 | Q81: 0.84 | R81: 0.79 | S81: 0.73 | T81: 0.66 | U81: 0.59 | V81: 0.51 | W81: 0.44
B82: 70 | D82: =D$22 -> Septiembre | E82: 1.00 | F82: 1.05 | G82: 1.08 | H82: 1.12 | I82: 1.14 | J82: 1.16 | K82: 1.16 | L82: 1.16 | M82: 1.16 | N82: 1.14 | O82: 1.12 | P82: 1.08 | Q82: 1.05 | R82: 1.00 | S82: 0.95 | T82: 0.89 | U82: 0.82 | V82: 0.75 | W82: 0.68
B83: 71 | D83: =D$23 -> Octubre | E83: 1.00 | F83: 1.07 | G83: 1.13 | H83: 1.18 | I83: 1.22 | J83: 1.26 | K83: 1.29 | L83: 1.31 | M83: 1.32 | N83: 1.32 | O83: 1.31 | P83: 1.30 | Q83: 1.27 | R83: 1.24 | S83: 1.20 | T83: 1.15 | U83: 1.09 | V83: 1.03 | W83: 0.96
B84: 72 | D84: =D$24 -> Noviembre | E84: 1.00 | F84: 1.08 | G84: 1.15 | H84: 1.22 | I84: 1.28 | J84: 1.33 | K84: 1.37 | L84: 1.40 | M84: 1.43 | N84: 1.44 | O84: 1.45 | P84: 1.44 | Q84: 1.43 | R84: 1.41 | S84: 1.37 | T84: 1.33 | U84: 1.28 | V84: 1.23 | W84: 1.16
B85: 73 | D85: =D$25 -> Diciembre | E85: 1.00 | F85: 1.08 | G85: 1.15 | H85: 1.21 | I85: 1.27 | J85: 1.32 | K85: 1.36 | L85: 1.39 | M85: 1.41 | N85: 1.43 | O85: 1.44 | P85: 1.43 | Q85: 1.42 | R85: 1.40 | S85: 1.37 | T85: 1.33 | U85: 1.29 | V85: 1.23 | W85: 1.17
B86: 74 | D86: =D$26 -> Media anual | E86: =SUM(E74:E85)/12 -> 1.00 | F86: 1.04 | G86: 1.08 | H86: 1.11 | I86: 1.13 | J86: 1.15 | K86: 1.15 | L86: 1.15 | M86: 1.14 | N86: 1.13 | O86: 1.10 | P86: 1.07 | Q86: 1.04 | R86: 0.99 | S86: 0.94 | T86: 0.89 | U86: 0.82 | V86: 0.76 | W86: 0.69
A87: 37 | B87: =B86+1 -> 75
B88: 76 | C88: latitud = 37 º | D88: =$D$13 -> Inclinación | E88: =E$13 -> 0 | F88: =F$13 -> 5 | G88: =G$13 -> 10 | H88: 15 | I88: 20 | J88: 25 | K88: 30 | L88: 35 | M88: 40 | N88: 45 | O88: 50 | P88: 55 | Q88: 60 | R88: 65 | S88: 70 | T88: 75 | U88: 80 | V88: 85 | W88: 90
B89: 77 | D89: =D$14 -> Enero | E89: 1.00 | F89: 1.07 | G89: 1.13 | H89: 1.18 | I89: 1.23 | J89: 1.27 | K89: 1.30 | L89: 1.33 | M89: 1.35 | N89: 1.35 | O89: 1.35 | P89: 1.35 | Q89: 1.33 | R89: 1.31 | S89: 1.27 | T89: 1.23 | U89: 1.19 | V89: 1.13 | W89: 1.07
B90: 78 | D90: =D$15 -> Febrero | E90: 1.00 | F90: 10.60 | G90: 1.10 | H90: 1.15 | I90: 1.18 | J90: 1.21 | K90: 1.23 | L90: 1.24 | M90: 1.25 | N90: 1.25 | O90: 1.24 | P90: 1.22 | Q90: 1.19 | R90: 1.16 | S90: 1.12 | T90: 1.07 | U90: 1.02 | V90: 0.96 | W90: 0.89
B91: 79 | D91: =D$16 -> Marzo | E91: 1.00 | F91: 10.40 | G91: 1.08 | H91: 1.10 | I91: 1.12 | J91: 1.14 | K91: 1.14 | L91: 1.14 | M91: 1.13 | N91: 1.11 | O91: 1.09 | P91: 1.06 | Q91: 1.02 | R91: 0.98 | S91: 0.93 | T91: 0.87 | U91: 0.81 | V91: 0.74 | W91: 0.67
B92: 80 | D92: =D$17 -> Abril | E92: 1.00 | F92: 10.30 | G92: 1.05 | H92: 1.06 | I92: 1.06 | J92: 1.06 | K92: 1.05 | L92: 1.03 | M92: 1.01 | N92: 0.98 | O92: 0.94 | P92: 0.90 | Q92: 0.85 | R92: 0.80 | S92: 0.74 | T92: 0.67 | U92: 0.60 | V92: 0.53 | W92: 0.46
B93: 81 | D93: =D$18 -> Mayo | E93: 1.00 | F93: 1.01 | G93: 1.02 | H93: 1.02 | I93: 1.02 | J93: 1.00 | K93: 0.98 | L93: 0.96 | M93: 0.92 | N93: 0.88 | O93: 0.84 | P93: 0.78 | Q93: 0.73 | R93: 0.67 | S93: 0.60 | T93: 0.53 | U93: 0.46 | V93: 0.38 | W93: 0.30
B94: 82 | D94: =D$19 -> Junio | E94: 1.00 | F94: 1.01 | G94: 1.01 | H94: 1.01 | I94: 1.00 | J94: 0.98 | K94: 0.96 | L94: 0.93 | M94: 0.89 | N94: 0.85 | O94: 0.80 | P94: 0.74 | Q94: 0.68 | R94: 0.62 | S94: 0.55 | T94: 0.48 | U94: 0.40 | V94: 0.32 | W94: 0.25
B95: 83 | D95: =D$20 -> Julio | E95: 1.00 | F95: 1.02 | G95: 1.02 | H95: 1.02 | I95: 1.02 | J95: 1.00 | K95: 0.98 | L95: 0.96 | M95: 0.92 | N95: 0.88 | O95: 0.84 | P95: 0.78 | Q95: 0.73 | R95: 0.66 | S95: 0.60 | T95: 0.53 | U95: 0.45 | V95: 0.38 | W95: 0.30
B96: 84 | D96: =D$21 -> Agosto | E96: 1.00 | F96: 1.03 | G96: 1.05 | H96: 1.06 | I96: 1.07 | J96: 1.07 | K96: 1.06 | L96: 1.04 | M96: 1.02 | N96: 0.99 | O96: 0.95 | P96: 0.91 | Q96: 0.86 | R96: 0.80 | S96: 0.74 | T96: 0.68 | U96: 0.60 | V96: 0.53 | W96: 0.45
B97: 85 | D97: =D$22 -> Septiembre | E97: 1.00 | F97: 1.05 | G97: 1.09 | H97: 1.12 | I97: 1.15 | J97: 1.16 | K97: 1.17 | L97: 1.17 | M97: 1.17 | N97: 1.15 | O97: 1.13 | P97: 1.10 | Q97: 1.06 | R97: 1.02 | S97: 0.97 | T97: 0.91 | U97: 0.84 | V97: 0.77 | W97: 0.70
B98: 86 | D98: =D$23 -> Octubre | E98: 1.00 | F98: 1.07 | G98: 1.13 | H98: 1.19 | I98: 1.23 | J98: 1.27 | K98: 1.30 | L98: 1.32 | M98: 1.34 | N98: 1.34 | O98: 1.33 | P98: 1.32 | Q98: 1.30 | R98: 1.26 | S98: 1.22 | T98: 1.17 | U98: 1.12 | V98: 1.05 | W98: 0.98
B99: 87 | D99: =D$24 -> Noviembre | E99: 1.00 | F99: 1.08 | G99: 1.16 | H99: 1.23 | I99: 1.29 | J99: 1.34 | K99: 1.38 | L99: 1.42 | M99: 1.44 | N99: 1.46 | O99: 1.47 | P99: 1.47 | Q99: 1.45 | R99: 1.43 | S99: 1.40 | T99: 1.60 | U99: 1.31 | V99: 1.26 | W99: 1.19
B100: 88 | D100: =D$25 -> Diciembre | E100: 1.00 | F100: 1.08 | G100: 1.15 | H100: 1.22 | I100: 1.28 | J100: 1.33 | K100: 1.37 | L100: 1.41 | M100: 1.43 | N100: 1.45 | O100: 1.46 | P100: 1.45 | Q100: 1.44 | R100: 1.42 | S100: 1.40 | T100: 1.36 | U100: 1.31 | V100: 1.26 | W100: 1.20
B101: 89 | D101: =D$26 -> Media anual | E101: =SUM(E89:E100)/12 -> 1.00 | F101: =SUM(F89:F100)/12 -> 3.39 | G101: 1.08 | H101: 1.11 | I101: 1.14 | J101: 1.15 | K101: 1.16 | L101: 1.16 | M101: 1.16 | N101: 1.14 | O101: 1.12 | P101: 1.09 | Q101: 1.05 | R101: 1.01 | S101: 0.96 | T101: 0.93 | U101: 0.84 | V101: 0.78 | W101: 0.71
A102: 38 | B102: =B101+1 -> 90
B103: 91 | C103: latitud = 38 º | D103: =$D$13 -> Inclinación | E103: 0 | F103: 5 | G103: 10 | H103: 15 | I103: 20 | J103: 25 | K103: 30 | L103: 35 | M103: 40 | N103: 45 | O103: 50 | P103: 55 | Q103: 60 | R103: 65 | S103: 70 | T103: 75 | U103: 80 | V103: 85 | W103: 90
B104: 92 | D104: =D$14 -> Enero | E104: 1.00 | F104: 1.07 | G104: 1.13 | H104: 1.19 | I104: 1.24 | J104: 1.28 | K104: 1.31 | L104: 1.34 | M104: 1.36 | N104: 1.37 | O104: 1.37 | P104: 1.36 | Q104: 1.35 | R104: 1.33 | S104: 1.29 | T104: 1.25 | U104: 1.21 | V104: 1.15 | W104: 1.09
B105: 93 | D105: =D$15 -> Febrero | E105: 1.00 | F105: 1.06 | G105: 1.11 | H105: 1.15 | I105: 1.19 | J105: 1.22 | K105: 1.24 | L105: 1.25 | M105: 1.26 | N105: 1.26 | O105: 1.25 | P105: 1.23 | Q105: 1.21 | R105: 1.18 | S105: 1.14 | T105: 1.09 | U105: 1.04 | V105: 0.98 | W105: 0.91
B106: 94 | D106: =D$16 -> Marzo | E106: 1.00 | F106: 1.04 | G106: 1.08 | H106: 1.11 | I106: 1.13 | J106: 1.14 | K106: 1.15 | L106: 1.15 | M106: 1.14 | N106: 1.13 | O106: 1.10 | P106: 1.07 | Q106: 1.04 | R106: 0.99 | S106: 0.94 | T106: 0.89 | U106: 0.83 | V106: 0.76 | W106: 0.69
B107: 95 | D107: =D$17 -> Abril | E107: 1.00 | F107: 1.03 | G107: 1.05 | H107: 1.06 | I107: 1.07 | J107: 1.07 | K107: 1.06 | L107: 1.04 | M107: 1.02 | N107: 0.99 | O107: 0.96 | P107: 0.91 | Q107: 0.86 | R107: 0.81 | S107: 0.75 | T107: 0.69 | U107: 0.62 | V107: 0.55 | W107: 0.47
B108: 96 | D108: =D$18 -> Mayo | E108: 1.00 | F108: 1.02 | G108: 1.02 | H108: 1.03 | I108: 1.02 | J108: 1.01 | K108: 0.99 | L108: 0.96 | M108: 0.93 | N108: 0.89 | O108: 0.85 | P108: 0.80 | Q108: 0.74 | R108: 0.68 | S108: 0.61 | T108: 0.54 | U108: 0.47 | V108: 0.40 | W108: 0.32
B109: 97 | D109: =D$19 -> Junio | E109: 1.00 | F109: 1.01 | G109: 1.02 | H109: 1.01 | I109: 1.01 | J109: 0.99 | K109: 0.97 | L109: 0.94 | M109: 0.90 | N109: 0.86 | O109: 0.81 | P109: 0.75 | Q109: 0.69 | R109: 0.63 | S109: 0.56 | T109: 0.49 | U109: 0.42 | V109: 0.34 | W109: 0.26
B110: 98 | D110: =D$20 -> Julio | E110: 1.00 | F110: 1.02 | G110: 1.03 | H110: 1.03 | I110: 1.02 | J110: 1.01 | K110: 0.99 | L110: 0.97 | M110: 0.93 | N110: 0.89 | O110: 0.85 | P110: 0.80 | Q110: 0.74 | R110: 0.68 | S110: 0.61 | T110: 0.54 | U110: 0.47 | V110: 0.39 | W110: 0.31
B111: 99 | D111: =D$21 -> Agosto | E111: 1.00 | F111: 1.03 | G111: 1.05 | H111: 1.07 | I111: 1.07 | J111: 1.08 | K111: 1.07 | L111: 1.05 | M111: 1.03 | N111: 1.00 | O111: 0.97 | P111: 0.92 | Q111: 0.87 | R111: 0.82 | S111: 0.76 | T111: 0.69 | U111: 0.62 | V111: 0.55 | W111: 0.47
B112: 100 | D112: =D$22 -> Septiembre | E112: 1.00 | F112: 1.05 | G112: 1.09 | H112: 1.13 | I112: 1.15 | J112: 1.17 | K112: 1.18 | L112: 1.19 | M112: 1.18 | N112: 1.17 | O112: 1.15 | P112: 1.12 | Q112: 1.08 | R112: 1.04 | S112: 0.98 | T112: 0.93 | U112: 0.86 | V112: 0.79 | W112: 0.72
B113: 101 | D113: =D$23 -> Octubre | E113: 1.00 | F113: 1.07 | G113: 1.14 | H113: 1.19 | I113: 1.24 | J113: 1.28 | K113: 1.31 | L113: 1.34 | M113: 1.35 | N113: 1.36 | O113: 1.35 | P113: 1.34 | Q113: 1.32 | R113: 1.29 | S113: 1.25 | T113: 1.20 | U113: 1.14 | V113: 1.08 | W113: 1.01
B114: 102 | D114: =D$24 -> Noviembre | E114: 1.00 | F114: 1.08 | G114: 1.16 | H114: 1.23 | I114: 1.30 | J114: 1.35 | K114: 1.40 | L114: 1.43 | M114: 1.46 | N114: 1.48 | O114: 1.49 | P114: 1.49 | Q114: 1.48 | R114: 1.46 | S114: 1.43 | T114: 1.39 | U114: 1.34 | V114: 1.29 | W114: 1.22
B115: 103 | D115: =D$25 -> Diciembre | E115: 1.00 | F115: 1.08 | G115: 1.16 | H115: 1.22 | I115: 1.29 | J115: 1.34 | K115: 1.38 | L115: 1.42 | M115: 1.45 | N115: 1.47 | O115: 1.48 | P115: 1.48 | Q115: 1.47 | R115: 1.45 | S115: 1.42 | T115: 1.39 | U115: 1.34 | V115: 1.29 | W115: 1.23
B116: 104 | D116: =D$26 -> Media anual | E116: =SUM(E104:E115)/12 -> 1.00 | F116: =SUM(F104:F115)/12 -> 1.05 | G116: 1.09 | H116: 1.12 | I116: 1.14 | J116: 1.16 | K116: 1.17 | L116: 1.17 | M116: 1.17 | N116: 1.16 | O116: 1.14 | P116: 1.11 | Q116: 1.07 | R116: 1.03 | S116: 0.98 | T116: 0.92 | U116: 0.86 | V116: 0.80 | W116: 0.73
